Workbook

Sheet Summary of Assumptions (hidden)
B2: ='Analysis v2'!B7&" - "&'Analysis v2'!B8 -> Pointe Hilton Tapatio Cliffs Resort - Phoenix, AZ | AL2: Internal
B3: SUMMARY OF UNDERWRITING ASSUMPTIONS & COMMENTARY
B5: General Overview
B19: Market Overview / New Supply
B33: Competitive Set Overview
C35: Property Name | L35: Keys | P35: Commentary
C36: ='Hotel Index Analysis'!B7 -> Hyatt Regency Phoenix | L36: ='Hotel Index Analysis'!J7 -> 693
C37: ='Hotel Index Analysis'!B8 -> Kimpton Miralina Resort & Villas | L37: ='Hotel Index Analysis'!J8 -> 404
C38: ='Hotel Index Analysis'!B9 -> Marriott Phoenix Resort Tempe At The Buttes | L38: ='Hotel Index Analysis'!J9 -> 353
C39: ='Hotel Index Analysis'!B10 -> DoubleTree Resort by Hilton Hotel Paradise Valley - Scottsdale | L39: ='Hotel Index Analysis'!J10 -> 378
C40: ='Hotel Index Analysis'!B11 -> Hilton Phoenix Resort at the Peak | L40: ='Hotel Index Analysis'!J11 -> 432
C41: ='Hotel Index Analysis'!B12 -> 0 | L41: ='Hotel Index Analysis'!J12 -> 
C42: ='Hotel Index Analysis'!B13 -> 0 | L42: ='Hotel Index Analysis'!J13 -> 
C43: ='Hotel Index Analysis'!B14 -> 0 | L43: ='Hotel Index Analysis'!J14 -> 
C44: ='Hotel Index Analysis'!B15 -> 0 | L44: ='Hotel Index Analysis'!J15 -> 
C45: ='Hotel Index Analysis'!B16 -> 0 | L45: ='Hotel Index Analysis'!J16 -> 
B65: Deal Assumptions
C67: Acquisition Assumptions | Q67: Commentary
C68: Purchase Price | K68: =Analysis!C16 -> 0
C69: Purchase Price / Key | K69: =Analysis!D16 -> 0
C70: =Analysis!A11 -> Entry Cap on 2025 | K70: =Analysis!D11 -> 25.72921314
C71: =Analysis!A12 -> Entry Cap on First Year NOI | K71: =Analysis!D12 -> 28.08200627
C74: Capital Expenditures | Q74: Commentary
C75: Capital Expenditures (CapEx) | K75: =Analysis!C17 -> 0
C76: CapEx / Key | K76: =Analysis!D17 -> 0
C81: Debt Assumptions | Q81: Commentary
C82: Senior Debt LTV | K82: =Analysis!B23 -> 0
C83: Senior Debt Type | K83: =Analysis!D23 -> Fixed
C84: Senior Debt Interest Rate | K84: =IF(K83="Float","L + "&TEXT(Analysis!B25,"0.0%"),Analysis!B25) -> 0.0775
C85: Mezzanine Debt LTV | K85: =Analysis!B27 -> 0
C86: Mezzanine Debt Interest Rate | K86: =Analysis!B28 -> 0.12
C93: Exit Assumptions | Q93: Commentary
C94: Sale Price | K94: =Analysis!D53 -> 0
C95: Sale Price / Key | K95: =Analysis!D54 -> 0
C96: Exit Cap. Rate | K96: =Analysis!D49 -> 0.07
B110: Revenue Assumptions
C112: Rooms Revenue | U112: Commentary
C113: Rooms Metrics | F113: =TEXT('Hotel Index Analysis'!$I$5,"yyyy")&"A" -> 2024A | H113: =TEXT('Hotel Index Analysis'!$J$5,"yyyy")&"A" -> 2025A | J113: =TEXT('Hotel Index Analysis'!$N$5,"yyyy")&"F" -> 2026F | L113: ='Hotel Index Analysis'!$O$5 -> 2027-01-01 | N113: ='Hotel Index Analysis'!$P$5 -> 2028-01-01 | P113: ='Hotel Index Analysis'!$Q$5 -> 2029-01-01 | R113: ='Hotel Index Analysis'!$R$5 -> 2030-01-01
C114: Occupancy | F114: ='Hotel Index Analysis'!I47 -> 0.5541705761 | H114: ='Hotel Index Analysis'!J47 -> 0.5569478326 | J114: ='Hotel Index Analysis'!N47 -> 0.5470804196 | L114: ='Hotel Index Analysis'!O47 -> 0.552672 | N114: ='Hotel Index Analysis'!P47 -> 0.64006326 | P114: ='Hotel Index Analysis'!Q47 -> 0.652394754 | R114: ='Hotel Index Analysis'!R47 -> 0.6583256154
C115: ADR | F115: ='Hotel Index Analysis'!I61 -> 186.0079586 | H115: ='Hotel Index Analysis'!J61 -> 185.3300726 | J115: ='Hotel Index Analysis'!N61 -> 184.9996129 | L115: ='Hotel Index Analysis'!O61 -> 187.128249 | N115: ='Hotel Index Analysis'!P61 -> 198.6526103 | P115: ='Hotel Index Analysis'!Q61 -> 255.0586737 | R115: ='Hotel Index Analysis'!R61 -> 271.7291603
C116: Change | H116: =IFERROR(H115/F115-1,0) -> -0.003644392287 | J116: =IFERROR(J115/H115-1,0) -> -0.001783087066 | L116: =IFERROR(L115/J115-1,0) -> 0.01150616491 | N116: =IFERROR(N115/L115-1,0) -> 0.06158536414 | P116: =IFERROR(P115/N115-1,0) -> 0.2839432275 | R116: =IFERROR(R115/P115-1,0) -> 0.06535941848
C117: RevPAR | F117: =F114*F115 -> 103.0801375 | H117: =H114*H115 -> 103.2191822 | J117: =J114*J115 -> 101.2096659 | L117: =L114*L115 -> 103.4205436 | N117: =N114*N115 -> 127.1502374 | P117: =P114*P115 -> 166.3989407 | R117: =R114*R115 -> 178.8862666
C118: Change | H118: =IFERROR(H117/F117-1,0) -> 0.001348898999 | J118: =IFERROR(J117/H117-1,0) -> -0.01946843927 | L118: =IFERROR(L117/J117-1,0) -> 0.02184453175 | N118: =IFERROR(N117/L117-1,0) -> 0.2294485498 | P118: =IFERROR(P117/N117-1,0) -> 0.3086797484 | R118: =IFERROR(R117/P117-1,0) -> 0.0750445041
C120: Penetration | F120: =F113 -> 2024A | H120: =H113 -> 2025A | J120: =J113 -> 2026F | L120: =L113 -> 2027-01-01 | N120: =N113 -> 2028-01-01 | P120: =P113 -> 2029-01-01 | R120: =R113 -> 2030-01-01
C121: Occupancy | F121: ='Hotel Index Analysis'!I50 -> 0.8629145178 | H121: ='Hotel Index Analysis'!J50 -> 0.9682997282 | J121: ='Hotel Index Analysis'!N50 -> 0.9597902098 | L121: ='Hotel Index Analysis'!O50 -> 0.96 | N121: ='Hotel Index Analysis'!P50 -> 1.09 | P121: ='Hotel Index Analysis'!Q50 -> 1.1 | R121: ='Hotel Index Analysis'!R50 -> 1.11
C122: ADR | F122: ='Hotel Index Analysis'!I63 -> 0.9292311253 | H122: ='Hotel Index Analysis'!J63 -> 0.903514116 | J122: ='Hotel Index Analysis'!N63 -> 0.9068608477 | L122: ='Hotel Index Analysis'!O63 -> 0.9082132061 | N122: ='Hotel Index Analysis'!P63 -> 0.9545998486 | P122: ='Hotel Index Analysis'!Q63 -> 1.201619618 | R122: ='Hotel Index Analysis'!R63 -> 1.248933442
C123: RevPAR | F123: ='Hotel Index Analysis'!I76 -> 0.8018470284 | H123: ='Hotel Index Analysis'!J76 -> 0.8748724729 | J123: ='Hotel Index Analysis'!N76 -> 0.8703961633 | L123: ='Hotel Index Analysis'!O76 -> 0.8718846778 | N123: ='Hotel Index Analysis'!P76 -> 1.040513835 | P123: ='Hotel Index Analysis'!Q76 -> 1.32178158 | R123: ='Hotel Index Analysis'!R76 -> 1.38631612
C125: Business Mix | F125: =F120 -> 2024A | H125: =H120 -> 2025A | J125: =J120 -> 2026F | L125: =L120 -> 2027-01-01 | N125: =N120 -> 46753 | P125: =P120 -> 47119 | R125: =R120 -> 47484
C126: Transient | F126: ='Hotel Segmentation'!H18 -> 0.6437308998 | H126: ='Hotel Segmentation'!L18 -> 0.5993059241 | J126: ='Hotel Segmentation'!P18 -> 0.5993059241 | L126: ='Hotel Segmentation'!T18 -> 0.6 | N126: ='Hotel Segmentation'!X18 -> 0.6 | P126: ='Hotel Segmentation'!AB18 -> 0.52 | R126: ='Hotel Segmentation'!AF18 -> 0.515
C127: Group | F127: ='Hotel Segmentation'!H29 -> 0.3562691002 | H127: ='Hotel Segmentation'!L29 -> 0.4006940759 | J127: ='Hotel Segmentation'!P29 -> 0.4006940759 | L127: ='Hotel Segmentation'!T29 -> 0.4 | N127: ='Hotel Segmentation'!X29 -> 0.4 | P127: ='Hotel Segmentation'!AB29 -> 0.48 | R127: ='Hotel Segmentation'!AF29 -> 0.485
C128: Contract | F128: ='Hotel Segmentation'!H31 -> 0 | H128: ='Hotel Segmentation'!L31 -> 0 | J128: ='Hotel Segmentation'!P31 -> 0 | L128: ='Hotel Segmentation'!T31 -> 0 | N128: ='Hotel Segmentation'!X31 -> 0 | P128: ='Hotel Segmentation'!AB31 -> 0 | R128: ='Hotel Segmentation'!AD31 -> 0
B148: Revenue Assumptions
C150: Food & Beverage Revenue | U150: Commentary
F151: =TEXT('Hotel Index Analysis'!$I$5,"yyyy")&"A" -> 2024A | H151: =TEXT('Hotel Index Analysis'!$J$5,"yyyy")&"A" -> 2025A | J151: =TEXT('Hotel Index Analysis'!$N$5,"yyyy")&"F" -> 2026F | L151: ='Hotel Index Analysis'!$O$5 -> 2027-01-01 | N151: ='Hotel Index Analysis'!$P$5 -> 2028-01-01 | P151: ='Hotel Index Analysis'!$Q$5 -> 2029-01-01 | R151: ='Hotel Index Analysis'!$R$5 -> 2030-01-01
C152: F&B Rev. POR | F152: ='Proforma Assumptions'!J68 -> 150.0658082 | H152: ='Proforma Assumptions'!K68 -> 179.6986052 | J152: ='Proforma Assumptions'!O68 -> 0 | L152: ='Proforma Assumptions'!S68 -> 184.0287023 | N152: ='Proforma Assumptions'!T68 -> 194.328444 | P152: ='Proforma Assumptions'!U68 -> 234.8958625 | R152: ='Proforma Assumptions'!V68 -> 240.9916747
C153: Change | H153: =IFERROR(H152/F152-1,0) -> 0.1974653477 | J153: =IFERROR(J152/H152-1,0) -> -1 | L153: =IFERROR(L152/J152-1,0) -> 0 | N153: =IFERROR(N152/L152-1,0) -> 0.05596812689 | P153: =IFERROR(P152/N152-1,0) -> 0.2087569768 | R153: =IFERROR(R152/P152-1,0) -> 0.02595112654
C154: Outlets Rev. POR | F154: ='Proforma Assumptions'!J40 -> 87.55299804 | H154: ='Proforma Assumptions'!K40 -> 99.68102785 | J154: ='Proforma Assumptions'!O40 -> 0 | L154: ='Proforma Assumptions'!S40 -> 101.6746484 | N154: ='Proforma Assumptions'!T40 -> 106.7583808 | P154: ='Proforma Assumptions'!U40 -> 133.447976 | R154: ='Proforma Assumptions'!V40 -> 140.1203748
C155: Change | H155: =IFERROR(H154/F154-1,0) -> 0.1385221532 | J155: =IFERROR(J154/H154-1,0) -> -1 | L155: =IFERROR(L154/J154-1,0) -> 0 | N155: =IFERROR(N154/L154-1,0) -> 0.05 | P155: =IFERROR(P154/N154-1,0) -> 0.25 | R155: =IFERROR(R154/P154-1,0) -> 0.05
C156: B&C Rev. POGR | F156: ='Proforma Assumptions'!J63 -> 175.4651474 | H156: ='Proforma Assumptions'!K63 -> 199.6974305 | J156: ='Proforma Assumptions'!O63 -> 0 | L156: ='Proforma Assumptions'!S63 -> 205.8851346 | N156: ='Proforma Assumptions'!T63 -> 218.925158 | P156: ='Proforma Assumptions'!U63 -> 264.1617124 | R156: ='Proforma Assumptions'!V63 -> 276.6516985
C157: Change | H157: =IFERROR(H156/F156-1,0) -> 0.138103113 | J157: =IFERROR(J156/H156-1,0) -> -1 | L157: =IFERROR(L156/J156-1,0) -> 0 | N157: =IFERROR(N156/L156-1,0) -> 0.06333640052 | P157: =IFERROR(P156/N156-1,0) -> 0.2066302239 | R157: =IFERROR(R156/P156-1,0) -> 0.0472815912
C160: ='Proforma Assumptions'!B79 -> Parking | U160: Commentary
F161: =TEXT('Hotel Index Analysis'!$I$5,"yyyy")&"A" -> 2024A | H161: =TEXT('Hotel Index Analysis'!$J$5,"yyyy")&"A" -> 2025A | J161: =TEXT('Hotel Index Analysis'!$N$5,"yyyy")&"F" -> 2026F | L161: ='Hotel Index Analysis'!$O$5 -> 2027-01-01 | N161: ='Hotel Index Analysis'!$P$5 -> 2028-01-01 | P161: ='Hotel Index Analysis'!$Q$5 -> 2029-01-01 | R161: ='Hotel Index Analysis'!$R$5 -> 2030-01-01
C162: Revenue POR | F162: ='Proforma Assumptions'!J87 -> 0 | H162: ='Proforma Assumptions'!L87 -> 0 | J162: ='Proforma Assumptions'!O87 -> 0 | L162: ='Proforma Assumptions'!S87 -> 0 | N162: ='Proforma Assumptions'!T87 -> 0 | P162: ='Proforma Assumptions'!U87 -> 0 | R162: ='Proforma Assumptions'!V87 -> 0
C163: Change | H163: =IFERROR(H162/F162-1,0) -> 0 | J163: =IFERROR(J162/H162-1,0) -> 0 | L163: =IFERROR(L162/J162-1,0) -> 0 | N163: =IFERROR(N162/L162-1,0) -> 0 | P163: =IFERROR(P162/N162-1,0) -> 0 | R163: =IFERROR(R162/P162-1,0) -> 0
C166: ='Proforma Assumptions'!B96 -> Minor Operating Other | U166: Commentary
F167: =TEXT('Hotel Index Analysis'!$I$5,"yyyy")&"A" -> 2024A | H167: =TEXT('Hotel Index Analysis'!$J$5,"yyyy")&"A" -> 2025A | J167: =TEXT('Hotel Index Analysis'!$N$5,"yyyy")&"F" -> 2026F | L167: ='Hotel Index Analysis'!$O$5 -> 2027-01-01 | N167: ='Hotel Index Analysis'!$P$5 -> 2028-01-01 | P167: ='Hotel Index Analysis'!$Q$5 -> 2029-01-01 | R167: ='Hotel Index Analysis'!$R$5 -> 2030-01-01
C168: Revenue POR | F168: ='Proforma Assumptions'!J97 -> 0.01831207091 | H168: ='Proforma Assumptions'!K97 -> 0.05260342055 | J168: ='Proforma Assumptions'!O97 -> 0 | L168: ='Proforma Assumptions'!S97 -> 0.05418152316 | N168: ='Proforma Assumptions'!T97 -> 0.05580696886 | P168: ='Proforma Assumptions'!U97 -> 0.05748117792 | R168: ='Proforma Assumptions'!V97 -> 0.05920561326
C169: Change | H169: =IFERROR(H168/F168-1,0) -> 1.872609046 | J169: =IFERROR(J168/H168-1,0) -> -1 | L169: =IFERROR(L168/J168-1,0) -> 0 | N169: =IFERROR(N168/L168-1,0) -> 0.03 | P169: =IFERROR(P168/N168-1,0) -> 0.03 | R169: =IFERROR(R168/P168-1,0) -> 0.03
C172: ='Proforma Assumptions'!B105 -> Golf | U172: Commentary
F173: =TEXT('Hotel Index Analysis'!$I$5,"yyyy")&"A" -> 2024A | H173: =TEXT('Hotel Index Analysis'!$J$5,"yyyy")&"A" -> 2025A | J173: =TEXT('Hotel Index Analysis'!$N$5,"yyyy")&"F" -> 2026F | L173: ='Hotel Index Analysis'!$O$5 -> 2027-01-01 | N173: ='Hotel Index Analysis'!$P$5 -> 2028-01-01 | P173: ='Hotel Index Analysis'!$Q$5 -> 2029-01-01 | R173: ='Hotel Index Analysis'!$R$5 -> 2030-01-01
C174: Revenue POR | F174: ='Proforma Assumptions'!J106 -> 46.78016144 | H174: ='Proforma Assumptions'!K106 -> 47.6692811 | J174: ='Proforma Assumptions'!O106 -> 0 | L174: ='Proforma Assumptions'!S106 -> 49.09935953 | N174: ='Proforma Assumptions'!T106 -> 56.46426346 | P174: ='Proforma Assumptions'!U106 -> 64.93390298 | R174: ='Proforma Assumptions'!V106 -> 66.88192007
C175: Change | H175: =IFERROR(H174/F174-1,0) -> 0.01900634016 | J175: =IFERROR(J174/H174-1,0) -> -1 | L175: =IFERROR(L174/J174-1,0) -> 0 | N175: =IFERROR(N174/L174-1,0) -> 0.15 | P175: =IFERROR(P174/N174-1,0) -> 0.15 | R175: =IFERROR(R174/P174-1,0) -> 0.03
C178: ='Proforma Assumptions'!B141 -> Misc Income | U178: Commentary
F179: =TEXT('Hotel Index Analysis'!$I$5,"yyyy")&"A" -> 2024A | H179: =TEXT('Hotel Index Analysis'!$J$5,"yyyy")&"A" -> 2025A | J179: =TEXT('Hotel Index Analysis'!$N$5,"yyyy")&"F" -> 2026F | L179: ='Hotel Index Analysis'!$O$5 -> 2027-01-01 | N179: ='Hotel Index Analysis'!$P$5 -> 2028-01-01 | P179: ='Hotel Index Analysis'!$Q$5 -> 2029-01-01 | R179: ='Hotel Index Analysis'!$R$5 -> 2030-01-01
C180: Revenue POR | F180: ='Proforma Assumptions'!J142 -> 2.824800681 | H180: ='Proforma Assumptions'!K142 -> 3.260684905 | J180: ='Proforma Assumptions'!O142 -> 0 | L180: ='Proforma Assumptions'!S142 -> 3.358505453 | N180: ='Proforma Assumptions'!T142 -> 3.862281271 | P180: ='Proforma Assumptions'!U142 -> 4.055395334 | R180: ='Proforma Assumptions'!V142 -> 4.177057194
C181: Change | H181: =IFERROR(H180/F180-1,0) -> 0.154306188 | J181: =IFERROR(J180/H180-1,0) -> -1 | L181: =IFERROR(L180/J180-1,0) -> 0 | N181: =IFERROR(N180/L180-1,0) -> 0.15 | P181: =IFERROR(P180/N180-1,0) -> 0.05 | R181: =IFERROR(R180/P180-1,0) -> 0.03
B190: Expense Assumptions - Departmental Expenses
C192: ='Proforma Assumptions'!B12 -> Rooms | U192: Commentary
F193: =TEXT('Hotel Index Analysis'!$I$5,"yyyy")&"A" -> 2024A | H193: =TEXT('Hotel Index Analysis'!$J$5,"yyyy")&"A" -> 2025A | J193: =TEXT('Hotel Index Analysis'!$N$5,"yyyy")&"F" -> 2026F | L193: ='Hotel Index Analysis'!$O$5 -> 2027-01-01 | N193: ='Hotel Index Analysis'!$P$5 -> 2028-01-01 | P193: ='Hotel Index Analysis'!$Q$5 -> 2029-01-01 | R193: ='Hotel Index Analysis'!$R$5 -> 2030-01-01
C194: Expenses POR | F194: ='Proforma Assumptions'!J37 -> 53.22690426 | H194: ='Proforma Assumptions'!K37 -> 56.42676877 | J194: ='Proforma Assumptions'!O37 -> 0 | L194: ='Proforma Assumptions'!S37 -> 57.04145338 | N194: ='Proforma Assumptions'!T37 -> 60.71277505 | P194: ='Proforma Assumptions'!U37 -> 66.46865468 | R194: ='Proforma Assumptions'!V37 -> 68.62648148
C195: Change | H195: =IFERROR(H194/F194-1,0) -> 0.06011742645 | J195: =IFERROR(J194/H194-1,0) -> -1 | L195: =IFERROR(L194/J194-1,0) -> 0 | N195: =IFERROR(N194/L194-1,0) -> 0.06436234457 | P195: =IFERROR(P194/N194-1,0) -> 0.09480508213 | R195: =IFERROR(R194/P194-1,0) -> 0.03246382534
C196: Expense Margin | F196: =1-'Proforma Assumptions'!J36 -> 0.286153908 | H196: =1-'Proforma Assumptions'!K36 -> 0.3044663393 | J196: =1-'Proforma Assumptions'!O36 -> 1 | L196: =1-'Proforma Assumptions'!S36 -> 0.3048254536 | N196: =1-'Proforma Assumptions'!T36 -> 0.3056228406 | P196: =1-'Proforma Assumptions'!U36 -> 0.2162957325 | R196: =1-'Proforma Assumptions'!V36 -> 0.2038840055
C201: ='Proforma Assumptions'!B38 -> Food and Beverage | U201: Commentary
F202: =TEXT('Hotel Index Analysis'!$I$5,"yyyy")&"A" -> 2024A | H202: =TEXT('Hotel Index Analysis'!$J$5,"yyyy")&"A" -> 2025A | J202: =TEXT('Hotel Index Analysis'!$N$5,"yyyy")&"F" -> 2026F | L202: ='Hotel Index Analysis'!$O$5 -> 2027-01-01 | N202: ='Hotel Index Analysis'!$P$5 -> 2028-01-01 | P202: ='Hotel Index Analysis'!$Q$5 -> 2029-01-01 | R202: ='Hotel Index Analysis'!$R$5 -> 2030-01-01
C203: Expense Margin | F203: =1-'Proforma Assumptions'!J71 -> 0.6344639283 | H203: =1-'Proforma Assumptions'!K71 -> 0.6148767943 | J203: =1-'Proforma Assumptions'!O71 -> 1 | L203: =1-'Proforma Assumptions'!S71 -> 0.6148767943 | N203: =1-'Proforma Assumptions'!T71 -> 0.6148767943 | P203: =1-'Proforma Assumptions'!U71 -> 0.59 | R203: =1-'Proforma Assumptions'!V71 -> 0.58
C209: ='Proforma Assumptions'!B96 -> Minor Operating Other | U209: Commentary
F210: =TEXT('Hotel Index Analysis'!$I$5,"yyyy")&"A" -> 2024A | H210: =TEXT('Hotel Index Analysis'!$J$5,"yyyy")&"A" -> 2025A | J210: =TEXT('Hotel Index Analysis'!$N$5,"yyyy")&"F" -> 2026F | L210: ='Hotel Index Analysis'!$O$5 -> 2027-01-01 | N210: ='Hotel Index Analysis'!$P$5 -> 2028-01-01 | P210: ='Hotel Index Analysis'!$Q$5 -> 2029-01-01 | R210: ='Hotel Index Analysis'!$R$5 -> 2030-01-01
C211: Expense Margin | F211: =1-'Proforma Assumptions'!J103 -> 182.7765712 | H211: =1-'Proforma Assumptions'!K103 -> 22.59289772 | J211: =1-'Proforma Assumptions'!O103 -> 1 | L211: =1-'Proforma Assumptions'!S103 -> 22.59289772 | N211: =1-'Proforma Assumptions'!T103 -> 22.59289772 | P211: =1-'Proforma Assumptions'!U103 -> 22.59289772 | R211: =1-'Proforma Assumptions'!V103 -> 22.59289772
C214: ='Proforma Assumptions'!B105 -> Golf | U214: Commentary
F215: =TEXT('Hotel Index Analysis'!$I$5,"yyyy")&"A" -> 2024A | H215: =TEXT('Hotel Index Analysis'!$J$5,"yyyy")&"A" -> 2025A | J215: =TEXT('Hotel Index Analysis'!$N$5,"yyyy")&"F" -> 2026F | L215: ='Hotel Index Analysis'!$O$5 -> 2027-01-01 | N215: ='Hotel Index Analysis'!$P$5 -> 2028-01-01 | P215: ='Hotel Index Analysis'!$Q$5 -> 2029-01-01 | R215: ='Hotel Index Analysis'!$R$5 -> 2030-01-01
C216: Expense Margin | F216: =1-'Proforma Assumptions'!J112 -> 0.6984845275 | H216: =1-'Proforma Assumptions'!K112 -> 0.6933854794 | J216: =1-'Proforma Assumptions'!O112 -> 1 | L216: =1-'Proforma Assumptions'!S112 -> 0.6933854794 | N216: =1-'Proforma Assumptions'!T112 -> 0.6933854794 | P216: =1-'Proforma Assumptions'!U112 -> 0.6933854794 | R216: =1-'Proforma Assumptions'!V112 -> 0.6933854794
B219: Expense Assumptions - Undistributed Operating Expenses
C221: ='Proforma Assumptions'!B153 -> Administrative and General | U221: Commentary
F222: =TEXT('Hotel Index Analysis'!$I$5,"yyyy")&"A" -> 2024A | H222: =TEXT('Hotel Index Analysis'!$J$5,"yyyy")&"A" -> 2025A | J222: =TEXT('Hotel Index Analysis'!$N$5,"yyyy")&"F" -> 2026F | L222: ='Hotel Index Analysis'!$O$5 -> 2027-01-01 | N222: ='Hotel Index Analysis'!$P$5 -> 2028-01-01 | P222: ='Hotel Index Analysis'!$Q$5 -> 2029-01-01 | R222: ='Hotel Index Analysis'!$R$5 -> 2030-01-01
C223: Expenses Total | F223: ='Proforma Assumptions'!J176 -> 3721464.35 | H223: ='Proforma Assumptions'!K176 -> 3914983.33 | J223: ='Proforma Assumptions'!O176 -> 0 | L223: ='Proforma Assumptions'!S176 -> 3854628.796 | N223: ='Proforma Assumptions'!T176 -> 3698267.95 | P223: ='Proforma Assumptions'!U176 -> 4118928.941 | R223: ='Proforma Assumptions'!V176 -> 4393766.362
C224: Expenses PAR | F224: =F223/'Hotel Index Analysis'!$I$6 -> 6372.370462 | H224: =H223/'Hotel Index Analysis'!$J$6 -> 6703.738579 | J224: =J223/'Hotel Index Analysis'!$N$6 -> 0 | L224: =L223/'Hotel Index Analysis'!$O$6 -> 6600.391773 | N224: =N223/'Hotel Index Analysis'!$P$6 -> 9694.018216 | P224: =P223/'Hotel Index Analysis'!$Q$6 -> 13729.76314 | R224: =R223/'Hotel Index Analysis'!$R$6 -> 14645.88787
C226: Year 1 Centralized Accounting Fee / Month | R226: ='Proforma Assumptions'!S169/12 -> 1000
B233: Expense Assumptions - Undistributed Operating Expenses
C235: ='Proforma Assumptions'!B192 -> Sales and Marketing | U235: Commentary
F236: =TEXT('Hotel Index Analysis'!$I$5,"yyyy")&"A" -> 2024A | H236: =TEXT('Hotel Index Analysis'!$J$5,"yyyy")&"A" -> 2025A | J236: =TEXT('Hotel Index Analysis'!$N$5,"yyyy")&"F" -> 2026F | L236: ='Hotel Index Analysis'!$O$5 -> 2027-01-01 | N236: ='Hotel Index Analysis'!$P$5 -> 2028-01-01 | P236: ='Hotel Index Analysis'!$Q$5 -> 2029-01-01 | R236: ='Hotel Index Analysis'!$R$5 -> 2030-01-01
C237: Expenses Total | F237: ='Proforma Assumptions'!J222 -> 4366681.69 | H237: ='Proforma Assumptions'!K222 -> 4482495.498 | J237: ='Proforma Assumptions'!O222 -> 0 | L237: ='Proforma Assumptions'!S222 -> 4466546.803 | N237: ='Proforma Assumptions'!T222 -> 4209474.932 | P237: ='Proforma Assumptions'!U222 -> 5058427.152 | R237: ='Proforma Assumptions'!V222 -> 5527102.431
C238: Expenses PAR | F238: =F237/'Hotel Index Analysis'!$I$6 -> 7477.194675 | H238: =H237/'Hotel Index Analysis'!$J$6 -> 7675.505989 | J238: =J237/'Hotel Index Analysis'!$N$6 -> 0 | L238: =L237/'Hotel Index Analysis'!$O$6 -> 7648.196581 | N238: =N237/'Hotel Index Analysis'!$P$6 -> 11034.01031 | P238: =P237/'Hotel Index Analysis'!$Q$6 -> 16861.42384 | R238: =R237/'Hotel Index Analysis'!$R$6 -> 18423.67477
C240: Year 1 Centralized Revenue Management Fee / Month | R240: ='Proforma Assumptions'!S208/12 -> 0
C245: ='Proforma Assumptions'!B178 -> Information and Telecommunications | U245: Commentary
F246: =TEXT('Hotel Index Analysis'!$I$5,"yyyy")&"A" -> 2024A | H246: =TEXT('Hotel Index Analysis'!$J$5,"yyyy")&"A" -> 2025A | J246: =TEXT('Hotel Index Analysis'!$N$5,"yyyy")&"F" -> 2026F | L246: ='Hotel Index Analysis'!$O$5 -> 2027-01-01 | N246: ='Hotel Index Analysis'!$P$5 -> 2028-01-01 | P246: ='Hotel Index Analysis'!$Q$5 -> 2029-01-01 | R246: ='Hotel Index Analysis'!$R$5 -> 2030-01-01
C247: Expenses Total | F247: ='Proforma Assumptions'!J190 -> 627397.41 | H247: ='Proforma Assumptions'!K190 -> 769007.5073 | J247: ='Proforma Assumptions'!O190 -> 0 | L247: ='Proforma Assumptions'!S190 -> 804012.8593 | N247: ='Proforma Assumptions'!T190 -> 828133.245 | P247: ='Proforma Assumptions'!U190 -> 852977.2424 | R247: ='Proforma Assumptions'!V190 -> 878566.5597
C248: Expenses PAR | F248: ='Proforma Assumptions'!J179 -> 1015.782312 | H248: ='Proforma Assumptions'!K179 -> 1256.837444 | J248: ='Proforma Assumptions'!O179 -> 0 | L248: ='Proforma Assumptions'!S179 -> 1294.542567 | N248: ='Proforma Assumptions'!T179 -> 1333.378844 | P248: ='Proforma Assumptions'!U179 -> 1373.38021 | R248: ='Proforma Assumptions'!V179 -> 1414.581616
C251: Royalty Fees | U251: Commentary
F252: =TEXT('Hotel Index Analysis'!$I$5,"yyyy")&"A" -> 2024A | H252: =TEXT('Hotel Index Analysis'!$J$5,"yyyy")&"A" -> 2025A | J252: =TEXT('Hotel Index Analysis'!$N$5,"yyyy")&"F" -> 2026F | L252: ='Hotel Index Analysis'!$O$5 -> 2027-01-01 | N252: ='Hotel Index Analysis'!$P$5 -> 2028-01-01 | P252: ='Hotel Index Analysis'!$Q$5 -> 2029-01-01 | R252: ='Hotel Index Analysis'!$R$5 -> 2030-01-01
C253: Rooms Royalty | F253: ='Proforma Assumptions'!J225 -> 0.05635903648 | H253: ='Proforma Assumptions'!K225 -> 0.05647016808 | J253: ='Proforma Assumptions'!O225 -> 0 | L253: ='Proforma Assumptions'!S225 -> 0.05 | N253: ='Proforma Assumptions'!T225 -> 0.02 | P253: ='Proforma Assumptions'!U225 -> 0.03 | R253: ='Proforma Assumptions'!V225 -> 0.04
C254: =IF('Proforma Assumptions'!S228=0,"","F&B Royalty") -> F&B Royalty | F254: =IF('Proforma Assumptions'!J228=0,"",'Proforma Assumptions'!J228) -> 0.03000000046 | H254: =IF('Proforma Assumptions'!K228=0,"",'Proforma Assumptions'!K228) -> 0.02999988772 | J254: =IF('Proforma Assumptions'!O228=0,"",'Proforma Assumptions'!O228) ->  | L254: =IF('Proforma Assumptions'!S228=0,"",'Proforma Assumptions'!S228) -> 0.03 | N254: =IF('Proforma Assumptions'!T228=0,"",'Proforma Assumptions'!T228) -> 0.03 | P254: =IF('Proforma Assumptions'!U228=0,"",'Proforma Assumptions'!U228) -> 0.03 | R254: =IF('Proforma Assumptions'!V228=0,"",'Proforma Assumptions'!V228) -> 0.03
C257: ='Proforma Assumptions'!B233 -> Repairs and Maintenance | U257: Commentary
F258: =TEXT('Hotel Index Analysis'!$I$5,"yyyy")&"A" -> 2024A | H258: =TEXT('Hotel Index Analysis'!$J$5,"yyyy")&"A" -> 2025A | J258: =TEXT('Hotel Index Analysis'!$N$5,"yyyy")&"F" -> 2026F | L258: ='Hotel Index Analysis'!$O$5 -> 2027-01-01 | N258: ='Hotel Index Analysis'!$P$5 -> 2028-01-01 | P258: ='Hotel Index Analysis'!$Q$5 -> 2029-01-01 | R258: ='Hotel Index Analysis'!$R$5 -> 2030-01-01
C259: Expenses Total | F259: ='Proforma Assumptions'!J241 -> 3709276.44 | H259: ='Proforma Assumptions'!K241 -> 3986729.3 | J259: ='Proforma Assumptions'!O241 -> 0 | L259: ='Proforma Assumptions'!S241 -> 3966040.122 | N259: ='Proforma Assumptions'!T241 -> 3857133.514 | P259: ='Proforma Assumptions'!U241 -> 3873474.174 | R259: ='Proforma Assumptions'!V241 -> 3989678.399
C260: Expenses PAR | F260: =F259/Analysis!$C$8 -> 6351.500753 | H260: =H259/Analysis!$C$8 -> 6826.591267 | J260: =J259/Analysis!$C$8 -> 0 | L260: =L259/Analysis!$C$8 -> 6791.164592 | N260: =N259/Analysis!$C$8 -> 6604.680675 | P260: =P259/Analysis!$C$8 -> 6632.661257 | R260: =R259/Analysis!$C$8 -> 6831.641094
C263: ='Proforma Assumptions'!B244 -> Utilities | U263: Commentary
F264: =TEXT('Hotel Index Analysis'!$I$5,"yyyy")&"A" -> 2024A | H264: =TEXT('Hotel Index Analysis'!$J$5,"yyyy")&"A" -> 2025A | J264: =TEXT('Hotel Index Analysis'!$N$5,"yyyy")&"F" -> 2026F | L264: ='Hotel Index Analysis'!$O$5 -> 2027-01-01 | N264: ='Hotel Index Analysis'!$P$5 -> 2028-01-01 | P264: ='Hotel Index Analysis'!$Q$5 -> 2029-01-01 | R264: ='Hotel Index Analysis'!$R$5 -> 2030-01-01
C265: Expenses Total | F265: ='Proforma Assumptions'!J248 -> 2707077.5 | H265: ='Proforma Assumptions'!K248 -> 2871358.946 | J265: ='Proforma Assumptions'!O248 -> 0 | L265: ='Proforma Assumptions'!S248 -> 2957499.715 | N265: ='Proforma Assumptions'!T248 -> 2809624.729 | P265: ='Proforma Assumptions'!U248 -> 2893913.471 | R265: ='Proforma Assumptions'!V248 -> 2980730.875
C266: Pct. Revenue | F266: ='Proforma Assumptions'!J249 -> 0.05505932144 | H266: ='Proforma Assumptions'!K249 -> 0.05395259068 | J266: ='Proforma Assumptions'!O249 -> 0 | L266: ='Proforma Assumptions'!S249 -> 0.05503519678 | N266: ='Proforma Assumptions'!T249 -> 0.06386826335 | P266: ='Proforma Assumptions'!U249 -> 0.04968498486 | R266: ='Proforma Assumptions'!V249 -> 0.04495140485
C272: Aimbridge Management Fees | U272: Commentary
F273: =TEXT('Hotel Index Analysis'!$I$5,"yyyy")&"A" -> 2024A | H273: =TEXT('Hotel Index Analysis'!$J$5,"yyyy")&"A" -> 2025A | J273: =TEXT('Hotel Index Analysis'!$N$5,"yyyy")&"F" -> 2026F | L273: ='Hotel Index Analysis'!$O$5 -> 2027-01-01 | N273: ='Hotel Index Analysis'!$P$5 -> 2028-01-01 | P273: ='Hotel Index Analysis'!$Q$5 -> 2029-01-01 | R273: ='Hotel Index Analysis'!$R$5 -> 2030-01-01
C274: Mgmt. Fee | F274: ='Proforma Assumptions'!J254 -> 0.03000000615 | H274: ='Proforma Assumptions'!K254 -> 0.03078805677 | J274: ='Proforma Assumptions'!O254 -> 0 | L274: ='Proforma Assumptions'!S254 -> 0.025 | N274: ='Proforma Assumptions'!T254 -> 0.025 | P274: ='Proforma Assumptions'!U254 -> 0.025 | R274: ='Proforma Assumptions'!V254 -> 0.025
B278: Expense Assumptions - Non-Operating Expenses
C280: ='Proforma Assumptions'!B257 -> Property Taxes | U280: Commentary
F281: =TEXT('Hotel Index Analysis'!$I$5,"yyyy")&"A" -> 2024A | H281: =TEXT('Hotel Index Analysis'!$J$5,"yyyy")&"A" -> 2025A | J281: =TEXT('Hotel Index Analysis'!$N$5,"yyyy")&"F" -> 2026F | L281: ='Hotel Index Analysis'!$O$5 -> 2027-01-01 | N281: ='Hotel Index Analysis'!$P$5 -> 2028-01-01 | P281: ='Hotel Index Analysis'!$Q$5 -> 2029-01-01 | R281: ='Hotel Index Analysis'!$R$5 -> 2030-01-01
C282: Expenses Total | F282: ='Proforma Assumptions'!J257 -> 667353.75 | H282: ='Proforma Assumptions'!K257 -> 637959.71 | J282: ='Proforma Assumptions'!O257 -> 0 | L282: ='Proforma Assumptions'!S257 -> 657098.5013 | N282: ='Proforma Assumptions'!T257 -> 676811.4563 | P282: ='Proforma Assumptions'!U257 -> 697115.8 | R282: ='Proforma Assumptions'!V257 -> 469055.0823
C283: Change | H283: =IFERROR(H282/F282-1,0) -> -0.04404566544 | J283: =IFERROR(J282/H282-1,0) -> -1 | L283: =IFERROR(L282/J282-1,0) -> 0 | N283: =IFERROR(N282/L282-1,0) -> 0.03 | P283: =IFERROR(P282/N282-1,0) -> 0.03 | R283: =IFERROR(R282/P282-1,0) -> -0.3271489726
C286: ='Proforma Assumptions'!B259 -> Insurances | U286: Commentary
F287: =TEXT('Hotel Index Analysis'!$I$5,"yyyy")&"A" -> 2024A | H287: =TEXT('Hotel Index Analysis'!$J$5,"yyyy")&"A" -> 2025A | J287: =TEXT('Hotel Index Analysis'!$N$5,"yyyy")&"F" -> 2026F | L287: ='Hotel Index Analysis'!$O$5 -> 2027-01-01 | N287: ='Hotel Index Analysis'!$P$5 -> 2028-01-01 | P287: ='Hotel Index Analysis'!$Q$5 -> 2029-01-01 | R287: ='Hotel Index Analysis'!$R$5 -> 2030-01-01
C288: Expenses Total | F288: ='Proforma Assumptions'!J259 -> 191035.85 | H288: ='Proforma Assumptions'!K259 -> 176541.1534 | J288: ='Proforma Assumptions'!O259 -> 0 | L288: ='Proforma Assumptions'!S259 -> 181837.388 | N288: ='Proforma Assumptions'!T259 -> 187292.5096 | P288: ='Proforma Assumptions'!U259 -> 192911.2849 | R288: ='Proforma Assumptions'!V259 -> 129800.5563
C289: Change | H289: =IFERROR(H288/F288-1,0) -> -0.07587422256 | J289: =IFERROR(J288/H288-1,0) -> -1 | L289: =IFERROR(L288/J288-1,0) -> 0 | N289: =IFERROR(N288/L288-1,0) -> 0.03 | P289: =IFERROR(P288/N288-1,0) -> 0.03 | R289: =IFERROR(R288/P288-1,0) -> -0.3271489726
C292: ='Proforma Assumptions'!B261 -> Rent Offsite Storage | U292: Commentary
F293: =TEXT('Hotel Index Analysis'!$I$5,"yyyy")&"A" -> 2024A | H293: =TEXT('Hotel Index Analysis'!$J$5,"yyyy")&"A" -> 2025A | J293: =TEXT('Hotel Index Analysis'!$N$5,"yyyy")&"F" -> 2026F | L293: ='Hotel Index Analysis'!$O$5 -> 2027-01-01 | N293: ='Hotel Index Analysis'!$P$5 -> 2028-01-01 | P293: ='Hotel Index Analysis'!$Q$5 -> 2029-01-01 | R293: ='Hotel Index Analysis'!$R$5 -> 2030-01-01
C294: Expenses Total | F294: ='Proforma Assumptions'!J261 -> 40285.9 | H294: ='Proforma Assumptions'!K261 -> 0 | J294: ='Proforma Assumptions'!O261 -> 0 | L294: ='Proforma Assumptions'!S261 -> 0 | N294: ='Proforma Assumptions'!T261 -> 0 | P294: ='Proforma Assumptions'!U261 -> 0 | R294: ='Proforma Assumptions'!V261 -> 0
C295: Change | H295: =IFERROR(H294/F294-1,0) -> -1 | J295: =IFERROR(J294/H294-1,0) -> 0 | L295: =IFERROR(L294/J294-1,0) -> 0 | N295: =IFERROR(N294/L294-1,0) -> 0 | P295: =IFERROR(P294/N294-1,0) -> 0 | R295: =IFERROR(R294/P294-1,0) -> 0
C298: ='Proforma Assumptions'!B263 -> Income | U298: Commentary
F299: =TEXT('Hotel Index Analysis'!$I$5,"yyyy")&"A" -> 2024A | H299: =TEXT('Hotel Index Analysis'!$J$5,"yyyy")&"A" -> 2025A | J299: =TEXT('Hotel Index Analysis'!$N$5,"yyyy")&"F" -> 2026F | L299: ='Hotel Index Analysis'!$O$5 -> 2027-01-01 | N299: ='Hotel Index Analysis'!$P$5 -> 2028-01-01 | P299: ='Hotel Index Analysis'!$Q$5 -> 2029-01-01 | R299: ='Hotel Index Analysis'!$R$5 -> 2030-01-01
C300: Expenses Total | F300: ='Proforma Assumptions'!J263 -> 0 | H300: ='Proforma Assumptions'!K263 -> 0 | J300: ='Proforma Assumptions'!O263 -> 0 | L300: ='Proforma Assumptions'!S263 -> 0 | N300: ='Proforma Assumptions'!T263 -> 0 | P300: ='Proforma Assumptions'!U263 -> 0 | R300: ='Proforma Assumptions'!V263 -> 0
C301: Change | H301: =IFERROR(H300/F300-1,0) -> 0 | J301: =IFERROR(J300/H300-1,0) -> 0 | L301: =IFERROR(L300/J300-1,0) -> 0 | N301: =IFERROR(N300/L300-1,0) -> 0 | P301: =IFERROR(P300/N300-1,0) -> 0 | R301: =IFERROR(R300/P300-1,0) -> 0
C304: ='Proforma Assumptions'!B265 -> Condo Owner Split at 40% | U304: Commentary
F305: =TEXT('Hotel Index Analysis'!$I$5,"yyyy")&"A" -> 2024A | H305: =TEXT('Hotel Index Analysis'!$J$5,"yyyy")&"A" -> 2025A | J305: =TEXT('Hotel Index Analysis'!$N$5,"yyyy")&"F" -> 2026F | L305: ='Hotel Index Analysis'!$O$5 -> 2027-01-01 | N305: ='Hotel Index Analysis'!$P$5 -> 2028-01-01 | P305: ='Hotel Index Analysis'!$Q$5 -> 2029-01-01 | R305: ='Hotel Index Analysis'!$R$5 -> 2030-01-01
C306: Expenses Total | F306: ='Proforma Assumptions'!J265 -> 0 | H306: ='Proforma Assumptions'!K265 -> 0 | J306: ='Proforma Assumptions'!O265 -> 0 | L306: ='Proforma Assumptions'!S265 -> 0 | N306: ='Proforma Assumptions'!T265 -> 0 | P306: ='Proforma Assumptions'!U265 -> 2711233.946 | R306: ='Proforma Assumptions'!V265 -> 3911654.031
C307: Change | H307: =IFERROR(H306/F306-1,0) -> 0 | J307: =IFERROR(J306/H306-1,0) -> 0 | L307: =IFERROR(L306/J306-1,0) -> 0 | N307: =IFERROR(N306/L306-1,0) -> 0 | P307: =IFERROR(P306/N306-1,0) -> 0 | R307: =IFERROR(R306/P306-1,0) -> 0.4427578397

Sheet WIP >> (hidden)

Sheet Analysis Summary -WIP (hidden)
B2: General Info / Deal Specifics | E2: Sources & Uses | F2: Amount | G2: Per Key | I2: Operating Statistics / Projections | W2: Other | Y2: =Y29 -> 223500
B3: Property | C3: ='Analysis v2'!B7 -> Pointe Hilton Tapatio Cliffs Resort | E3: Sources | F3: =SUM(F4:F7) -> 15469750 | G3: =IFERROR(F3/$C$5,0) -> 154697.5 | L3: ='Proforma Assumptions'!K3 -> 2025-01-01 | M3: ='Proforma Assumptions'!Q3 -> 45658 | N3: 1 | O3: =N3+1 -> 2 | P3: 3 | Q3: 4 | R3: 5 | S3: 6 | T3: 7 | W3: Working Capital Operating | Y3: 0
B4: City, State | C4: ='Analysis v2'!B8 -> Phoenix, AZ | E4: Senior Debt | F4: =F19 -> 6500000 | G4: =IFERROR(F4/$C$5,0) -> 65000 | I4: Occupancy | L4: =IFERROR('Proforma Assumptions'!K6/'Proforma Assumptions'!K54,0) -> 0 | M4: =IFERROR('Proforma Assumptions'!Q6/'Proforma Assumptions'!Q5,0) -> 0.5569478326 | N4: =IFERROR('Proforma Assumptions'!S6/'Proforma Assumptions'!S5,0) -> 0.552672 | O4: =IFERROR('Proforma Assumptions'!T6/'Proforma Assumptions'!T5,0) -> 0.64006326 | P4: =IFERROR('Proforma Assumptions'!U6/'Proforma Assumptions'!U5,0) -> 0.815414754 | Q4: =IFERROR('Proforma Assumptions'!V6/'Proforma Assumptions'!V5,0) -> 0.8756856154 | R4: =IFERROR('Proforma Assumptions'!W6/'Proforma Assumptions'!W5,0) -> 0.8756856154 | S4: =IFERROR('Proforma Assumptions'!X6/'Proforma Assumptions'!X5,0) -> 0.8750917356 | T4: =IFERROR('Proforma Assumptions'!Y6/'Proforma Assumptions'!Y5,0) -> 0.8756856154 | W4: Senior Loan Fees | Y4: =Z4*F19 -> 97500 | Z4: 0.015
B5: Rooms / Keys | C5: 100 | E5: Mezz Debt | F5: =F23 -> 1000000 | G5: =IFERROR(F5/$C$5,0) -> 10000 | I5: Growth | W5: Mezz Loan Fees | Y5: 0
B6: Total Meeting Space | C6: ='Analysis v2'!C10 -> 39018 | E6: Renovation Loan | F6: =F27 -> 3250000 | G6: =F6/C5 -> 32500 | I6: ADR | W6: Reno Loan Fees | Y6: =F31 -> 48750
B7: Largest Meeting Room | C7: 0 | E7: Equity | F7: =F10-F5-F4-F6 -> 4719750 | G7: =IFERROR(F7/$C$5,0) -> 47197.5 | I7: Growth | W7: Acquisition Fee | Y7: =Z7*F11 -> 100000 | Z7: 0.01
E8: 0 | F8: =IFERROR(E8*$F$7,0) -> 0 | G8: 0 | I8: RevPAR | W8: Total Closing Costs | Y8: =SUM(Y2:Y7) -> 469750 | Z8: =+Y8/(F11+F12) -> 0.03131666667
B9: ="Entry Cap on "&TEXT(M3,"YYYY") -> Entry Cap on 2025 | E9: =1-E8 -> 1 | F9: =IFERROR(E9*$F$7,0) -> 4719750 | G9: 47197.5 | I9: Growth
B10: Entry Cap on Year 1 | E10: Uses | F10: =SUM(F11:F16) -> 15469750 | G10: 154697.5 | I10: Gross Operating Revenue | W10: Other
E11: Purchase Price / Land Cost | F11: 10000000 | G11: 100000 | I11: Adj. EBITDA | W11: Surveys | Y11: 3500
B12: Timing | E12: Construction / Reno Costs | F12: 5000000 | G12: 50000 | W12: Zoning Report | Y12: 1000
B13: Analysis / Construction Start Date | C13: =EOMONTH(DATE(C15,C14,1),0) -> 2025-12-31 | E13: Other | F13: 0 | G13: 0 | I13: Cashflow / Yield Analysis | W13: Environmental Phase I Report | Y13: 3000
B14: Month | C14: 12 | E14: Interest Reserve | F14: 0 | G14: 0 | N14: =N3 -> 1 | O14: =O3 -> 2 | P14: 3 | Q14: 4 | R14: 5 | S14: 6 | T14: 7 | W14: Property Condition Report | Y14: 7000
B15: Year | C15: 2025 | E15: Key Money | F15: 0 | G15: 0 | I15: Project Cash Flows | W15: Liquor License Consultant/Legal | Y15: 8000
B16: Construction Completion | C16: =EOMONTH(DATE(C18,C17,1),0) -> 2027-01-31 | E16: ="Closing Costs (inc. Loan Fees) -"&" "&TEXT(Z8,"0.0%") -> Closing Costs (inc. Loan Fees) - 3.1% | F16: =Y8 -> 469750 | G16: 4697.5 | I16: Purchase Price / Land Cost | W16: Renovation Consultant | Y16: 2000
B17: Month | C17: 1 | I17: Construction / Renovation Costs | W17: Legal - PSA/DD/Closing | Y17: 100000
B18: Year | C18: 2027 | E18: Financing | F18: Amount | G18: Per Key | I18: Interest Reserve | W18: IT Assessment | Y18: 8000
B19: Opening / Operation State Date | C19: =EDATE(C16,1) -> 2027-02-28 | E19: Senior Debt | F19: =E20*F11 -> 6500000 | G19: =F19/C5 -> 65000 | I19: Closing Costs (exclude Loan Fees) | W19: Travel | Y19: 5000
B20: Hold Period from Operating Start Date | C20: 5 | E20: 0.65 | F20: AMO (Years) | G20: 30 | I20: Loan Fees | W20: Franchise Application Fees | Y20: 0
B21: Exit Date | C21: =EOMONTH(C19,(C20*12)-1) -> 2032-01-31 | E21: =F19/(F11+F16) -> 0.6208362186 | F21: Type | G21: Floating | I21: Loan Funding | W21: Lien Searches | Y21: 1000
B22: Total Investment Period | C22: =DATEDIF(C13,C21,"y") -> 6 | E22: 0.035 | F22: Yrs of IO | G22: 2 | I22: Debt Service | W22: Title Insurance | Y22: 30000
E23: Mezz Debt | F23: =E24*F11 -> 1000000 | G23: =F23/C5 -> 10000 | I23: Refinance Proceeds | W23: Legal - Loan | Y23: 35000
B24: Disposition | E24: 0.1 | F24: AMO (Years) | G24: 30 | I24: Loan Repayment | W24: Legal - JV | Y24: 10000
B25: Exit Cap Rate | C25: 0.08 | E25: =F23/(F11+Y5) -> 0.1 | F25: Type | G25: Floating | I25: Net Sales Proceeds (inc. WC) | W25: Legal - Brands | Y25: 0
B26: Sale Price | E26: 0.035 | F26: Yrs of IO | G26: 2 | I26: Net Levered Cash Flow | J26: =SUM(J15:J25) -> 0 | K26: =SUM(K15:K25) -> 0 | L26: =SUM(L15:L25) -> 0 | M26: =SUM(M15:M25) -> 0 | N26: =SUM(N15:N25) -> 0 | O26: =SUM(O15:O25) -> 0 | P26: 0 | Q26: 0 | R26: 0 | S26: 0 | T26: 0 | W26: Utility Deposits | Y26: 10000
B27: Cost of Sale | C27: 0.02 | E27: Renovation Loan | F27: =E28*F12 -> 3250000 | G27: =F27/C5 -> 32500 | W27: RE Tax Escrow | Y27: 0
B28: Net Sales Proceeds | C28: =C26-(C26*C27) -> 0 | E28: 0.65 | F28: AMO (Years) | G28: 30 | I28: Yield on Equity | W28: Contingency | Y28: 0
E29: =F27/(F12+F31) -> 0.643723694 | F29: Type | G29: Floating | I29: Yield on Cost | W29: Total | Y29: =SUM(Y11:Y28) -> 223500
B30: Returns Summary | E30: 0.035 | F30: Yrs of IO | G30: 2 | I30: DSCR
B31: Levered IRR | E31: Reno Loan Fees | F31: =G31*F27 -> 48750 | G31: 0.015 | I31: Debt Yield
B32: Unlevered IRR
B33: Equity Multiple | E33: Refinancing Assumptions | G33: YES
E34: Date of Refinance | G34: 2028-06-28
E35: Value at Refi | G35: =(SUMIF('Monthly CF - WIP'!$F$3:$DV$3,">="&'Analysis Summary -WIP'!$G$34,'Monthly CF - WIP'!$F$66:$DV$66)-SUMIF('Monthly CF - WIP'!$F$3:$DV$3,">="&EDATE('Analysis Summary -WIP'!$G$34,12),'Monthly CF - WIP'!$F$66:$DV$66))/'Analysis Summary -WIP'!G36 -> 0
E36: Going in Cap Rate | G36: 0.08
E37: Loan Amount | G37: =G38*G35 -> 0
E38: LTV | G38: 0.65
E39: Loan Fees | G39: 0.015
E40: Loan Disbursal Amount | G40: =G37-(G39*G37) -> 0
E41: 0.035 | G41: Floating
E42: AMO (Years) | G42: 30
E43: Yrs of IO | G43: 2
E44: Debt Yield | G44: =IFERROR((SUMIF('Monthly CF - WIP'!$F$3:$DV$3,">="&'Analysis Summary -WIP'!$G$34,'Monthly CF - WIP'!$F$66:$DV$66)-SUMIF('Monthly CF - WIP'!$F$3:$DV$3,">="&EDATE('Analysis Summary -WIP'!$G$34,12),'Monthly CF - WIP'!$F$66:$DV$66))/'Analysis Summary -WIP'!G37,0) -> 0

Sheet Monthly CF - WIP (hidden)
E1: Year | F1: 0 | G1: 1 | H1: 1 | I1: 1 | J1: 1 | K1: 1 | L1: 1 | M1: 1 | N1: 1 | O1: 1 | P1: 1 | Q1: 1 | R1: 1 | S1: =G1+1 -> 2 | T1: =H1+1 -> 2 | U1: 2 | V1: 2 | W1: 2 | X1: 2 | Y1: 2 | Z1: 2 | AA1: 2 | AB1: 2 | AC1: 2 | AD1: 2 | AE1: 3 | AF1: 3 | AG1: 3 | AH1: 3 | AI1: 3 | AJ1: 3 | AK1: 3 | AL1: 3 | AM1: 3 | AN1: 3 | AO1: 3 | AP1: 3 | AQ1: 4 | AR1: 4 | AS1: 4 | AT1: 4 | AU1: 4 | AV1: 4 | AW1: 4 | AX1: 4 | AY1: 4 | AZ1: 4 | BA1: 4 | BB1: 4 | BC1: 5 | BD1: 5 | BE1: 5 | BF1: 5 | BG1: 5 | BH1: 5 | BI1: 5 | BJ1: 5 | BK1: 5 | BL1: 5 | BM1: 5 | BN1: 5 | BO1: 6 | BP1: 6 | BQ1: 6 | BR1: 6 | BS1: 6 | BT1: 6 | BU1: 6 | BV1: 6 | BW1: 6 | BX1: 6 | BY1: 6 | BZ1: 6 | CA1: 7 | CB1: 7 | CC1: 7 | CD1: 7 | CE1: 7 | CF1: =BT1+1 -> 7 | CG1: 7 | CH1: 7 | CI1: 7 | CJ1: 7 | CK1: 7 | CL1: 7 | CM1: 8 | CN1: 8 | CO1: 8 | CP1: 8 | CQ1: 8 | CR1: 8 | CS1: 8 | CT1: 8 | CU1: 8 | CV1: 8 | CW1: 8 | CX1: 8 | CY1: 9 | CZ1: 9 | DA1: 9 | DB1: 9 | DC1: 9 | DD1: 9 | DE1: 9 | DF1: 9 | DG1: 9 | DH1: 9 | DI1: 9 | DJ1: 9 | DK1: 10 | DL1: 10 | DM1: 10 | DN1: 10 | DO1: 10 | DP1: 10 | DQ1: 10 | DR1: 10 | DS1: 10 | DT1: 10 | DU1: 10 | DV1: 10
E2: Quarter | G2: 1 | H2: 1 | I2: 1 | J2: 2 | K2: 2 | L2: 2 | M2: 3 | N2: 3 | O2: 3 | P2: 4 | Q2: 4 | R2: 4 | S2: =G2 -> 1 | T2: =H2 -> 1 | U2: 1 | V2: 2 | W2: 2 | X2: 2 | Y2: 3 | Z2: 3 | AA2: 3 | AB2: 4 | AC2: 4 | AD2: 4 | AE2: 1 | AF2: 1 | AG2: 1 | AH2: 2 | AI2: 2 | AJ2: 2 | AK2: 3 | AL2: 3 | AM2: 3 | AN2: 4 | AO2: 4 | AP2: 4 | AQ2: 1 | AR2: 1 | AS2: 1 | AT2: 2 | AU2: 2 | AV2: 2 | AW2: 3 | AX2: 3 | AY2: 3 | AZ2: 4 | BA2: 4 | BB2: 4 | BC2: 1 | BD2: 1 | BE2: 1 | BF2: 2 | BG2: 2 | BH2: 2 | BI2: 3 | BJ2: 3 | BK2: 3 | BL2: 4 | BM2: 4 | BN2: 4 | BO2: 1 | BP2: 1 | BQ2: 1 | BR2: 2 | BS2: 2 | BT2: 2 | BU2: 3 | BV2: 3 | BW2: 3 | BX2: 4 | BY2: 4 | BZ2: 4 | CA2: 1 | CB2: 1 | CC2: 1 | CD2: 2 | CE2: 2 | CF2: =BT2 -> 2 | CG2: 3 | CH2: 3 | CI2: 3 | CJ2: 4 | CK2: 4 | CL2: 4 | CM2: 1 | CN2: 1 | CO2: 1 | CP2: 2 | CQ2: 2 | CR2: 2 | CS2: 3 | CT2: 3 | CU2: 3 | CV2: 4 | CW2: 4 | CX2: 4 | CY2: 1 | CZ2: 1 | DA2: 1 | DB2: 2 | DC2: 2 | DD2: 2 | DE2: 3 | DF2: 3 | DG2: 3 | DH2: 4 | DI2: 4 | DJ2: 4 | DK2: 1 | DL2: 1 | DM2: 1 | DN2: 2 | DO2: 2 | DP2: 2 | DQ2: 3 | DR2: 3 | DS2: 3 | DT2: 4 | DU2: 4 | DV2: 4
B3: 2032-01-31 | E3: Month | F3: 0 | G3: =F3+1 -> 1 | H3: =G3+1 -> 2 | I3: 3 | J3: 4 | K3: 5 | L3: 6 | M3: 7 | N3: 8 | O3: 9 | P3: 10 | Q3: 11 | R3: 12 | S3: 13 | T3: 14 | U3: 15 | V3: 16 | W3: 17 | X3: 18 | Y3: 19 | Z3: 20 | AA3: 21 | AB3: 22 | AC3: 23 | AD3: 24 | AE3: 25 | AF3: 26 | AG3: 27 | AH3: 28 | AI3: 29 | AJ3: 30 | AK3: 31 | AL3: 32 | AM3: 33 | AN3: 34 | AO3: 35 | AP3: 36 | AQ3: 37 | AR3: 38 | AS3: 39 | AT3: 40 | AU3: 41 | AV3: 42 | AW3: 43 | AX3: 44 | AY3: 45 | AZ3: 46 | BA3: 47 | BB3: 48 | BC3: 49 | BD3: 50 | BE3: 51 | BF3: 52 | BG3: 53 | BH3: 54 | BI3: 55 | BJ3: 56 | BK3: 57 | BL3: 58 | BM3: 59 | BN3: 60 | BO3: 61 | BP3: 62 | BQ3: 63 | BR3: 64 | BS3: 65 | BT3: =BS3+1 -> 66 | BU3: 67 | BV3: 68 | BW3: 69 | BX3: 70 | BY3: 71 | BZ3: 72 | CA3: 73 | CB3: 74 | CC3: 75 | CD3: 76 | CE3: 77 | CF3: 78 | CG3: 79 | CH3: 80 | CI3: 81 | CJ3: 82 | CK3: 83 | CL3: 84 | CM3: 85 | CN3: 86 | CO3: 87 | CP3: 88 | CQ3: 89 | CR3: 90 | CS3: 91 | CT3: 92 | CU3: 93 | CV3: 94 | CW3: 95 | CX3: 96 | CY3: 97 | CZ3: 98 | DA3: 99 | DB3: 100 | DC3: 101 | DD3: 102 | DE3: 103 | DF3: 104 | DG3: 105 | DH3: 106 | DI3: 107 | DJ3: 108 | DK3: 109 | DL3: 110 | DM3: 111 | DN3: 112 | DO3: 113 | DP3: 114 | DQ3: 115 | DR3: 116 | DS3: 117 | DT3: 118 | DU3: 119 | DV3: 120
B4: 2032-01-28 | F4: =YEAR(F5) -> 2025 | G4: =YEAR(G5) -> 2026 | H4: =YEAR(H5) -> 2026 | I4: 2026 | J4: 2026 | K4: 2026 | L4: 2026 | M4: 2026 | N4: 2026 | O4: 2026 | P4: 2026 | Q4: 2026 | R4: 2026 | S4: 2027 | T4: 2027 | U4: 2027 | V4: 2027 | W4: 2027 | X4: 2027 | Y4: 2027 | Z4: 2027 | AA4: 2027 | AB4: 2027 | AC4: 2027 | AD4: 2027 | AE4: 2028 | AF4: 2028 | AG4: 2028 | AH4: 2028 | AI4: 2028 | AJ4: 2028 | AK4: 2028 | AL4: 2028 | AM4: 2028 | AN4: 2028 | AO4: 2028 | AP4: 2028 | AQ4: 2029 | AR4: 2029 | AS4: 2029 | AT4: 2029 | AU4: 2029 | AV4: 2029 | AW4: 2029 | AX4: 2029 | AY4: 2029 | AZ4: 2029 | BA4: 2029 | BB4: 2029 | BC4: 2030 | BD4: 2030 | BE4: 2030 | BF4: 2030 | BG4: 2030 | BH4: 2030 | BI4: 2030 | BJ4: 2030 | BK4: 2030 | BL4: 2030 | BM4: 2030 | BN4: 2030 | BO4: 2031 | BP4: 2031 | BQ4: 2031 | BR4: 2031 | BS4: 2031 | BT4: =YEAR(BT5) -> 2031 | BU4: 2031 | BV4: 2031 | BW4: 2031 | BX4: 2031 | BY4: 2031 | BZ4: 2031 | CA4: 2032 | CB4: 2032 | CC4: 2032 | CD4: 2032 | CE4: 2032 | CF4: 2032 | CG4: 2032 | CH4: 2032 | CI4: 2032 | CJ4: 2032 | CK4: 2032 | CL4: 2032 | CM4: 2033 | CN4: 2033 | CO4: 2033 | CP4: 2033 | CQ4: 2033 | CR4: 2033 | CS4: 2033 | CT4: 2033 | CU4: 2033 | CV4: 2033 | CW4: 2033 | CX4: 2033 | CY4: 2034 | CZ4: 2034 | DA4: 2034 | DB4: 2034 | DC4: 2034 | DD4: 2034 | DE4: 2034 | DF4: 2034 | DG4: 2034 | DH4: 2034 | DI4: 2034 | DJ4: 2034 | DK4: 2035 | DL4: 2035 | DM4: 2035 | DN4: 2035 | DO4: 2035 | DP4: 2035 | DQ4: 2035 | DR4: 2035 | DS4: 2035 | DT4: 2035 | DU4: 2035 | DV4: 2035
F5: ='Analysis Summary -WIP'!$C$13 -> 2025-12-31 | G5: =EDATE(F5,1) -> 2026-01-31 | H5: 2026-02-28 | I5: 2026-03-28 | J5: 2026-04-28 | K5: 2026-05-28 | L5: 2026-06-28 | M5: 2026-07-28 | N5: 2026-08-28 | O5: 2026-09-28 | P5: 2026-10-28 | Q5: 2026-11-28 | R5: 2026-12-28 | S5: 2027-01-28 | T5: 2027-02-28 | U5: 2027-03-28 | V5: 2027-04-28 | W5: 2027-05-28 | X5: 2027-06-28 | Y5: 2027-07-28 | Z5: 2027-08-28 | AA5: 2027-09-28 | AB5: 2027-10-28 | AC5: 2027-11-28 | AD5: 2027-12-28 | AE5: 2028-01-28 | AF5: 2028-02-28 | AG5: 2028-03-28 | AH5: 2028-04-28 | AI5: 2028-05-28 | AJ5: 2028-06-28 | AK5: 2028-07-28 | AL5: 2028-08-28 | AM5: 2028-09-28 | AN5: 2028-10-28 | AO5: 2028-11-28 | AP5: 2028-12-28 | AQ5: 2029-01-28 | AR5: 2029-02-28 | AS5: 2029-03-28 | AT5: 2029-04-28 | AU5: 2029-05-28 | AV5: 2029-06-28 | AW5: 2029-07-28 | AX5: 2029-08-28 | AY5: 2029-09-28 | AZ5: 2029-10-28 | BA5: 2029-11-28 | BB5: 2029-12-28 | BC5: 2030-01-28 | BD5: 2030-02-28 | BE5: 2030-03-28 | BF5: 2030-04-28 | BG5: 2030-05-28 | BH5: 2030-06-28 | BI5: 2030-07-28 | BJ5: 2030-08-28 | BK5: 2030-09-28 | BL5: 2030-10-28 | BM5: 2030-11-28 | BN5: 2030-12-28 | BO5: =EDATE(BN5,1) -> 2031-01-28 | BP5: =EDATE(BO5,1) -> 2031-02-28 | BQ5: 2031-03-28 | BR5: 2031-04-28 | BS5: 2031-05-28 | BT5: 2031-06-28 | BU5: 2031-07-28 | BV5: 2031-08-28 | BW5: 2031-09-28 | BX5: 2031-10-28 | BY5: 2031-11-28 | BZ5: 2031-12-28 | CA5: 2032-01-28 | CB5: 2032-02-28 | CC5: 2032-03-28 | CD5: 2032-04-28 | CE5: 2032-05-28 | CF5: 2032-06-28 | CG5: 2032-07-28 | CH5: 2032-08-28 | CI5: 2032-09-28 | CJ5: 2032-10-28 | CK5: 2032-11-28 | CL5: 2032-12-28 | CM5: 2033-01-28 | CN5: 2033-02-28 | CO5: 2033-03-28 | CP5: 2033-04-28 | CQ5: 2033-05-28 | CR5: 2033-06-28 | CS5: 2033-07-28 | CT5: 2033-08-28 | CU5: 2033-09-28 | CV5: 2033-10-28 | CW5: 2033-11-28 | CX5: 2033-12-28 | CY5: 2034-01-28 | CZ5: 2034-02-28 | DA5: 2034-03-28 | DB5: 2034-04-28 | DC5: 2034-05-28 | DD5: 2034-06-28 | DE5: 2034-07-28 | DF5: 2034-08-28 | DG5: 2034-09-28 | DH5: 2034-10-28 | DI5: 2034-11-28 | DJ5: 2034-12-28 | DK5: 2035-01-28 | DL5: 2035-02-28 | DM5: 2035-03-28 | DN5: 2035-04-28 | DO5: 2035-05-28 | DP5: 2035-06-28 | DQ5: 2035-07-28 | DR5: 2035-08-28 | DS5: 2035-09-28 | DT5: 2035-10-28 | DU5: 2035-11-28 | DV5: 2035-12-28
F6: 0 | G6: 1 | H6: =G6+1 -> 2 | I6: =H6+1 -> 3 | J6: 4 | K6: 5 | L6: 6 | M6: 7 | N6: 8 | O6: 9 | P6: 10 | Q6: 11 | R6: 12 | S6: 13 | T6: 14 | U6: 15 | V6: 16 | W6: 17 | X6: 18 | Y6: 19 | Z6: 20 | AA6: 21 | AB6: 22 | AC6: 23 | AD6: 24 | AE6: 25 | AF6: 26 | AG6: 27 | AH6: 28 | AI6: 29 | AJ6: 30 | AK6: 31 | AL6: 32 | AM6: 33 | AN6: 34 | AO6: 35 | AP6: 36 | AQ6: 37 | AR6: 38 | AS6: 39 | AT6: 40 | AU6: 41 | AV6: 42 | AW6: 43 | AX6: 44 | AY6: 45 | AZ6: 46 | BA6: 47 | BB6: 48 | BC6: 49 | BD6: 50 | BE6: 51 | BF6: 52 | BG6: 53 | BH6: 54 | BI6: 55 | BJ6: 56 | BK6: 57 | BL6: 58 | BM6: 59 | BN6: 60 | BO6: 61 | BP6: 62 | BQ6: 63 | BR6: 64 | BS6: 65 | BT6: 66 | BU6: =BT6+1 -> 67 | BV6: 68 | BW6: 69 | BX6: 70 | BY6: 71 | BZ6: 72 | CA6: 73 | CB6: 74 | CC6: 75 | CD6: 76 | CE6: 77 | CF6: 78 | CG6: 79 | CH6: 80 | CI6: 81 | CJ6: 82 | CK6: 83 | CL6: 84 | CM6: 85 | CN6: 86 | CO6: 87 | CP6: 88 | CQ6: 89 | CR6: 90 | CS6: 91 | CT6: 92 | CU6: 93 | CV6: 94 | CW6: 95 | CX6: 96 | CY6: 97 | CZ6: 98 | DA6: 99 | DB6: 100 | DC6: 101 | DD6: 102 | DE6: 103 | DF6: 104 | DG6: 105 | DH6: 106 | DI6: 107 | DJ6: 108 | DK6: 109 | DL6: 110 | DM6: 111 | DN6: 112 | DO6: 113 | DP6: 114 | DQ6: 115 | DR6: 116 | DS6: 117 | DT6: 118 | DU6: 119 | DV6: 120
A8: Construction Cash Flow | B8: Budget | C8: Start Month | D8: Spread Assumption | E8: Total
A9: Acquisition / Land Purchase | B9: ='Analysis Summary -WIP'!F11 -> 10000000 | C9: 0 | D9: 1 | E9: =SUM(F9:DV9) -> 10000000 | F9: =IF(AND(F$3>=$C9,F$3<($C9+$D9)),$B9/$D9,0) -> 10000000 | G9: 0 | H9: 0 | I9: 0 | J9: 0 | K9: 0 | L9: 0 | M9: 0 | N9: 0 | O9: 0 | P9: 0 | Q9: 0 | R9: 0 | S9: 0 | T9: 0 | U9: 0 | V9: 0 | W9: 0 | X9: 0 | Y9: 0 | Z9: 0 | AA9: 0 | AB9: 0 | AC9: 0 | AD9: 0 | AE9: 0 | AF9: 0 | AG9: 0 | AH9: 0 | AI9: 0 | AJ9: 0 | AK9: 0 | AL9: =IF(AND(AL$3>=$C9,AL$3<($C9+$D9)),$B9/$D9,0) -> 0 | AM9: 0 | AN9: 0 | AO9: 0 | AP9: 0 | AQ9: 0 | AR9: 0 | AS9: 0 | AT9: 0 | AU9: 0 | AV9: 0 | AW9: 0 | AX9: 0 | AY9: 0 | AZ9: 0 | BA9: 0 | BB9: 0 | BC9: 0 | BD9: 0 | BE9: 0 | BF9: 0 | BG9: 0 | BH9: 0 | BI9: 0 | BJ9: 0 | BK9: 0 | BL9: 0 | BM9: 0 | BN9: 0 | BO9: 0 | BP9: 0 | BQ9: 0 | BR9: 0 | BS9: 0 | BT9: =IF(AND(BT$3>=$C9,BT$3<($C9+$D9)),$B9/$D9,0) -> 0 | BU9: 0 | BV9: 0 | BW9: 0 | BX9: 0 | BY9: 0 | BZ9: 0 | CA9: 0 | CB9: 0 | CC9: 0 | CD9: 0 | CE9: 0 | CF9: 0 | CG9: 0 | CH9: 0 | CI9: 0 | CJ9: 0 | CK9: 0 | CL9: 0 | CM9: 0 | CN9: 0 | CO9: 0 | CP9: 0 | CQ9: 0 | CR9: 0 | CS9: 0 | CT9: 0 | CU9: 0 | CV9: 0 | CW9: 0 | CX9: 0 | CY9: 0 | CZ9: 0 | DA9: 0 | DB9: 0 | DC9: 0 | DD9: 0 | DE9: 0 | DF9: 0 | DG9: 0 | DH9: 0 | DI9: 0 | DJ9: 0 | DK9: 0 | DL9: 0 | DM9: 0 | DN9: 0 | DO9: 0 | DP9: 0 | DQ9: 0 | DR9: 0 | DS9: 0 | DT9: 0 | DU9: 0 | DV9: 0
A10: Construction Costs | B10: ='Analysis Summary -WIP'!F12+'Analysis Summary -WIP'!F13+'Analysis Summary -WIP'!F14+'Analysis Summary -WIP'!F15+'Analysis Summary -WIP'!F16-SUM('Monthly CF - WIP'!B11:B19) -> 5469750 | C10: 6 | D10: 12 | E10: =SUM(F10:DV10) -> 5469750 | F10: =IF(AND(F$3>=$C10,F$3<($C10+$D10)),$B10/$D10,0) -> 0 | G10: =IF(AND(G$3>=$C10,G$3<($C10+$D10)),$B10/$D10,0) -> 0 | H10: 0 | I10: 0 | J10: 0 | K10: 0 | L10: 455812.5 | M10: 455812.5 | N10: 455812.5 | O10: 455812.5 | P10: 455812.5 | Q10: 455812.5 | R10: 455812.5 | S10: 455812.5 | T10: 455812.5 | U10: 455812.5 | V10: 455812.5 | W10: 455812.5 | X10: 0 | Y10: 0 | Z10: 0 | AA10: 0 | AB10: 0 | AC10: 0 | AD10: 0 | AE10: 0 | AF10: 0 | AG10: 0 | AH10: 0 | AI10: 0 | AJ10: 0 | AK10: 0 | AL10: 0 | AM10: 0 | AN10: 0 | AO10: 0 | AP10: 0 | AQ10: 0 | AR10: 0 | AS10: 0 | AT10: 0 | AU10: 0 | AV10: 0 | AW10: 0 | AX10: 0 | AY10: 0 | AZ10: 0 | BA10: 0 | BB10: 0 | BC10: 0 | BD10: 0 | BE10: 0 | BF10: 0 | BG10: 0 | BH10: 0 | BI10: 0 | BJ10: 0 | BK10: 0 | BL10: 0 | BM10: 0 | BN10: 0 | BO10: 0 | BP10: 0 | BQ10: 0 | BR10: 0 | BS10: =IF(AND(BS$3>=$C10,BS$3<($C10+$D10)),$B10/$D10,0) -> 0 | BT10: 0 | BU10: 0 | BV10: 0 | BW10: 0 | BX10: 0 | BY10: 0 | BZ10: 0 | CA10: 0 | CB10: 0 | CC10: 0 | CD10: 0 | CE10: 0 | CF10: 0 | CG10: 0 | CH10: 0 | CI10: 0 | CJ10: 0 | CK10: 0 | CL10: 0 | CM10: 0 | CN10: 0 | CO10: 0 | CP10: 0 | CQ10: 0 | CR10: 0 | CS10: 0 | CT10: 0 | CU10: 0 | CV10: 0 | CW10: 0 | CX10: 0 | CY10: 0 | CZ10: 0 | DA10: 0 | DB10: 0 | DC10: 0 | DD10: 0 | DE10: 0 | DF10: 0 | DG10: 0 | DH10: 0 | DI10: 0 | DJ10: 0 | DK10: 0 | DL10: 0 | DM10: 0 | DN10: 0 | DO10: 0 | DP10: 0 | DQ10: 0 | DR10: 0 | DS10: 0 | DT10: 0 | DU10: 0 | DV10: 0
A11: DD & Predevelopment | B11: 0 | C11: 1 | D11: 3 | E11: =SUM(F11:DV11) -> 0 | F11: 0 | G11: 0 | H11: 0 | I11: 0 | J11: 0 | K11: 0 | L11: 0 | M11: 0 | N11: 0 | O11: 0 | P11: 0 | Q11: 0 | R11: 0 | S11: 0 | T11: 0 | U11: 0 | V11: 0 | W11: 0 | X11: 0 | Y11: 0 | Z11: 0 | AA11: 0 | AB11: 0 | AC11: 0 | AD11: 0 | AE11: 0 | AF11: 0 | AG11: 0 | AH11: 0 | AI11: 0 | AJ11: 0 | AK11: 0 | AL11: 0 | AM11: 0 | AN11: 0 | AO11: 0 | AP11: 0 | AQ11: 0 | AR11: 0 | AS11: 0 | AT11: 0 | AU11: 0 | AV11: 0 | AW11: 0 | AX11: 0 | AY11: 0 | AZ11: 0 | BA11: 0 | BB11: 0 | BC11: 0 | BD11: 0 | BE11: 0 | BF11: 0 | BG11: 0 | BH11: 0 | BI11: 0 | BJ11: 0 | BK11: 0 | BL11: 0 | BM11: 0 | BN11: 0 | BO11: 0 | BP11: 0 | BQ11: 0 | BR11: 0 | BS11: 0 | BT11: 0 | BU11: 0 | BV11: 0 | BW11: 0 | BX11: 0 | BY11: 0 | BZ11: 0 | CA11: 0 | CB11: 0 | CC11: 0 | CD11: 0 | CE11: 0 | CF11: 0 | CG11: 0 | CH11: 0 | CI11: 0 | CJ11: 0 | CK11: 0 | CL11: 0 | CM11: 0 | CN11: 0 | CO11: 0 | CP11: 0 | CQ11: 0 | CR11: 0 | CS11: 0 | CT11: 0 | CU11: 0 | CV11: 0 | CW11: 0 | CX11: 0 | CY11: 0 | CZ11: 0 | DA11: 0 | DB11: 0 | DC11: 0 | DD11: 0 | DE11: 0 | DF11: 0 | DG11: 0 | DH11: 0 | DI11: 0 | DJ11: 0 | DK11: 0 | DL11: 0 | DM11: 0 | DN11: 0 | DO11: 0 | DP11: 0 | DQ11: 0 | DR11: 0 | DS11: 0 | DT11: 0 | DU11: 0 | DV11: 0
A12: Architectural and Civial Engineering | B12: 0 | C12: 1 | D12: 3 | E12: 0 | F12: 0 | G12: 0 | H12: 0 | I12: 0 | J12: 0 | K12: 0 | L12: 0 | M12: 0 | N12: 0 | O12: 0 | P12: 0 | Q12: 0 | R12: 0 | S12: 0 | T12: 0 | U12: 0 | V12: 0 | W12: 0 | X12: 0 | Y12: 0 | Z12: 0 | AA12: 0 | AB12: 0 | AC12: 0 | AD12: 0 | AE12: 0 | AF12: 0 | AG12: 0 | AH12: 0 | AI12: 0 | AJ12: 0 | AK12: 0 | AL12: 0 | AM12: 0 | AN12: 0 | AO12: 0 | AP12: 0 | AQ12: 0 | AR12: 0 | AS12: 0 | AT12: 0 | AU12: 0 | AV12: 0 | AW12: 0 | AX12: 0 | AY12: 0 | AZ12: 0 | BA12: 0 | BB12: 0 | BC12: 0 | BD12: 0 | BE12: 0 | BF12: 0 | BG12: 0 | BH12: 0 | BI12: 0 | BJ12: 0 | BK12: 0 | BL12: 0 | BM12: 0 | BN12: 0 | BO12: 0 | BP12: 0 | BQ12: 0 | BR12: 0 | BS12: 0 | BT12: 0 | BU12: 0 | BV12: 0 | BW12: 0 | BX12: 0 | BY12: 0 | BZ12: 0 | CA12: 0 | CB12: 0 | CC12: 0 | CD12: 0 | CE12: 0 | CF12: 0 | CG12: 0 | CH12: 0 | CI12: 0 | CJ12: 0 | CK12: 0 | CL12: 0 | CM12: 0 | CN12: 0 | CO12: 0 | CP12: 0 | CQ12: 0 | CR12: 0 | CS12: 0 | CT12: 0 | CU12: 0 | CV12: 0 | CW12: 0 | CX12: 0 | CY12: 0 | CZ12: 0 | DA12: 0 | DB12: 0 | DC12: 0 | DD12: 0 | DE12: 0 | DF12: 0 | DG12: 0 | DH12: 0 | DI12: 0 | DJ12: 0 | DK12: 0 | DL12: 0 | DM12: 0 | DN12: 0 | DO12: 0 | DP12: 0 | DQ12: 0 | DR12: 0 | DS12: 0 | DT12: 0 | DU12: 0 | DV12: 0
A13: Bonds & Insurance | B13: 0 | C13: 1 | D13: 17 | E13: 0 | F13: 0 | G13: 0 | H13: 0 | I13: 0 | J13: 0 | K13: 0 | L13: 0 | M13: 0 | N13: 0 | O13: 0 | P13: 0 | Q13: 0 | R13: 0 | S13: 0 | T13: 0 | U13: 0 | V13: 0 | W13: 0 | X13: 0 | Y13: 0 | Z13: 0 | AA13: 0 | AB13: 0 | AC13: 0 | AD13: 0 | AE13: 0 | AF13: 0 | AG13: 0 | AH13: 0 | AI13: 0 | AJ13: 0 | AK13: 0 | AL13: 0 | AM13: 0 | AN13: 0 | AO13: 0 | AP13: 0 | AQ13: 0 | AR13: 0 | AS13: 0 | AT13: 0 | AU13: 0 | AV13: 0 | AW13: 0 | AX13: 0 | AY13: 0 | AZ13: 0 | BA13: 0 | BB13: 0 | BC13: 0 | BD13: 0 | BE13: 0 | BF13: 0 | BG13: 0 | BH13: 0 | BI13: 0 | BJ13: 0 | BK13: 0 | BL13: 0 | BM13: 0 | BN13: 0 | BO13: 0 | BP13: 0 | BQ13: 0 | BR13: =IF(AND(BR$3>=$C13,BR$3<($C13+$D13)),$B13/$D13,0) -> 0 | BS13: 0 | BT13: 0 | BU13: 0 | BV13: 0 | BW13: 0 | BX13: 0 | BY13: 0 | BZ13: 0 | CA13: 0 | CB13: 0 | CC13: 0 | CD13: 0 | CE13: 0 | CF13: 0 | CG13: 0 | CH13: 0 | CI13: 0 | CJ13: 0 | CK13: 0 | CL13: 0 | CM13: 0 | CN13: 0 | CO13: 0 | CP13: 0 | CQ13: 0 | CR13: 0 | CS13: 0 | CT13: 0 | CU13: 0 | CV13: 0 | CW13: 0 | CX13: 0 | CY13: 0 | CZ13: 0 | DA13: 0 | DB13: 0 | DC13: =IF(AND(DC$3>=$C13,DC$3<($C13+$D13)),$B13/$D13,0) -> 0 | DD13: 0 | DE13: 0 | DF13: 0 | DG13: 0 | DH13: 0 | DI13: 0 | DJ13: 0 | DK13: 0 | DL13: 0 | DM13: 0 | DN13: 0 | DO13: 0 | DP13: 0 | DQ13: 0 | DR13: 0 | DS13: 0 | DT13: 0 | DU13: 0 | DV13: 0
A14: Agency Fees and Permits | B14: 0 | C14: 1 | D14: 4 | E14: 0 | F14: 0 | G14: =IF(AND(G$3>=$C14,G$3<($C14+$D14)),$B14/$D14,0) -> 0 | H14: 0 | I14: 0 | J14: 0 | K14: 0 | L14: 0 | M14: 0 | N14: 0 | O14: 0 | P14: 0 | Q14: 0 | R14: 0 | S14: 0 | T14: 0 | U14: 0 | V14: 0 | W14: 0 | X14: 0 | Y14: 0 | Z14: 0 | AA14: 0 | AB14: 0 | AC14: 0 | AD14: 0 | AE14: 0 | AF14: 0 | AG14: 0 | AH14: 0 | AI14: 0 | AJ14: 0 | AK14: 0 | AL14: 0 | AM14: 0 | AN14: 0 | AO14: 0 | AP14: 0 | AQ14: 0 | AR14: 0 | AS14: 0 | AT14: 0 | AU14: 0 | AV14: 0 | AW14: 0 | AX14: 0 | AY14: 0 | AZ14: 0 | BA14: 0 | BB14: 0 | BC14: 0 | BD14: 0 | BE14: 0 | BF14: 0 | BG14: 0 | BH14: 0 | BI14: 0 | BJ14: 0 | BK14: 0 | BL14: 0 | BM14: 0 | BN14: 0 | BO14: 0 | BP14: 0 | BQ14: 0 | BR14: 0 | BS14: 0 | BT14: =IF(AND(BT$3>=$C14,BT$3<($C14+$D14)),$B14/$D14,0) -> 0 | BU14: 0 | BV14: 0 | BW14: 0 | BX14: 0 | BY14: 0 | BZ14: 0 | CA14: 0 | CB14: 0 | CC14: 0 | CD14: 0 | CE14: 0 | CF14: 0 | CG14: 0 | CH14: 0 | CI14: 0 | CJ14: 0 | CK14: 0 | CL14: 0 | CM14: 0 | CN14: 0 | CO14: 0 | CP14: 0 | CQ14: 0 | CR14: 0 | CS14: 0 | CT14: 0 | CU14: 0 | CV14: 0 | CW14: 0 | CX14: 0 | CY14: 0 | CZ14: 0 | DA14: 0 | DB14: 0 | DC14: 0 | DD14: 0 | DE14: 0 | DF14: 0 | DG14: 0 | DH14: 0 | DI14: 0 | DJ14: 0 | DK14: 0 | DL14: 0 | DM14: 0 | DN14: 0 | DO14: 0 | DP14: 0 | DQ14: 0 | DR14: 0 | DS14: 0 | DT14: 0 | DU14: 0 | DV14: 0
A15: FF&E & OS&E | B15: 0 | C15: 3 | D15: 3 | E15: 0 | F15: 0 | G15: 0 | H15: 0 | I15: 0 | J15: 0 | K15: 0 | L15: 0 | M15: 0 | N15: 0 | O15: 0 | P15: 0 | Q15: 0 | R15: 0 | S15: 0 | T15: 0 | U15: 0 | V15: 0 | W15: 0 | X15: 0 | Y15: 0 | Z15: 0 | AA15: 0 | AB15: 0 | AC15: 0 | AD15: 0 | AE15: 0 | AF15: 0 | AG15: 0 | AH15: 0 | AI15: 0 | AJ15: 0 | AK15: 0 | AL15: 0 | AM15: 0 | AN15: 0 | AO15: 0 | AP15: 0 | AQ15: 0 | AR15: 0 | AS15: 0 | AT15: 0 | AU15: 0 | AV15: 0 | AW15: 0 | AX15: 0 | AY15: 0 | AZ15: 0 | BA15: 0 | BB15: 0 | BC15: 0 | BD15: 0 | BE15: 0 | BF15: 0 | BG15: 0 | BH15: 0 | BI15: 0 | BJ15: 0 | BK15: 0 | BL15: 0 | BM15: 0 | BN15: 0 | BO15: 0 | BP15: 0 | BQ15: 0 | BR15: 0 | BS15: 0 | BT15: 0 | BU15: 0 | BV15: 0 | BW15: 0 | BX15: 0 | BY15: 0 | BZ15: 0 | CA15: 0 | CB15: 0 | CC15: 0 | CD15: 0 | CE15: 0 | CF15: 0 | CG15: 0 | CH15: 0 | CI15: 0 | CJ15: 0 | CK15: 0 | CL15: 0 | CM15: 0 | CN15: 0 | CO15: 0 | CP15: 0 | CQ15: 0 | CR15: 0 | CS15: 0 | CT15: 0 | CU15: 0 | CV15: 0 | CW15: 0 | CX15: 0 | CY15: 0 | CZ15: 0 | DA15: 0 | DB15: 0 | DC15: 0 | DD15: 0 | DE15: 0 | DF15: 0 | DG15: 0 | DH15: 0 | DI15: 0 | DJ15: 0 | DK15: 0 | DL15: 0 | DM15: 0 | DN15: 0 | DO15: 0 | DP15: 0 | DQ15: 0 | DR15: 0 | DS15: 0 | DT15: 0 | DU15: 0 | DV15: 0
A16: Pre-Opening, Working Capital and Start Up Costs | B16: 0 | C16: 13 | D16: 5 | E16: 0 | F16: 0 | G16: 0 | H16: 0 | I16: 0 | J16: 0 | K16: 0 | L16: 0 | M16: 0 | N16: 0 | O16: 0 | P16: 0 | Q16: 0 | R16: 0 | S16: 0 | T16: 0 | U16: 0 | V16: 0 | W16: 0 | X16: 0 | Y16: 0 | Z16: 0 | AA16: 0 | AB16: 0 | AC16: 0 | AD16: 0 | AE16: 0 | AF16: 0 | AG16: 0 | AH16: 0 | AI16: 0 | AJ16: 0 | AK16: 0 | AL16: 0 | AM16: 0 | AN16: 0 | AO16: 0 | AP16: 0 | AQ16: 0 | AR16: 0 | AS16: 0 | AT16: 0 | AU16: 0 | AV16: 0 | AW16: 0 | AX16: 0 | AY16: 0 | AZ16: 0 | BA16: 0 | BB16: 0 | BC16: 0 | BD16: 0 | BE16: 0 | BF16: 0 | BG16: 0 | BH16: 0 | BI16: 0 | BJ16: 0 | BK16: 0 | BL16: 0 | BM16: 0 | BN16: 0 | BO16: 0 | BP16: 0 | BQ16: 0 | BR16: 0 | BS16: 0 | BT16: 0 | BU16: 0 | BV16: 0 | BW16: 0 | BX16: 0 | BY16: 0 | BZ16: 0 | CA16: 0 | CB16: 0 | CC16: 0 | CD16: 0 | CE16: 0 | CF16: 0 | CG16: 0 | CH16: 0 | CI16: 0 | CJ16: 0 | CK16: 0 | CL16: 0 | CM16: 0 | CN16: 0 | CO16: 0 | CP16: 0 | CQ16: 0 | CR16: 0 | CS16: 0 | CT16: 0 | CU16: 0 | CV16: 0 | CW16: 0 | CX16: 0 | CY16: 0 | CZ16: 0 | DA16: 0 | DB16: 0 | DC16: 0 | DD16: 0 | DE16: 0 | DF16: 0 | DG16: 0 | DH16: 0 | DI16: 0 | DJ16: 0 | DK16: 0 | DL16: 0 | DM16: 0 | DN16: 0 | DO16: 0 | DP16: 0 | DQ16: 0 | DR16: 0 | DS16: 0 | DT16: 0 | DU16: 0 | DV16: 0
A17: Construction Loan Fee & Interest | B17: 0 | C17: 5 | D17: 13 | E17: 0 | F17: 0 | G17: 0 | H17: 0 | I17: 0 | J17: 0 | K17: 0 | L17: 0 | M17: 0 | N17: 0 | O17: 0 | P17: 0 | Q17: 0 | R17: 0 | S17: 0 | T17: 0 | U17: 0 | V17: 0 | W17: 0 | X17: 0 | Y17: 0 | Z17: 0 | AA17: 0 | AB17: 0 | AC17: 0 | AD17: 0 | AE17: 0 | AF17: 0 | AG17: 0 | AH17: 0 | AI17: 0 | AJ17: 0 | AK17: 0 | AL17: 0 | AM17: 0 | AN17: 0 | AO17: 0 | AP17: 0 | AQ17: 0 | AR17: 0 | AS17: 0 | AT17: 0 | AU17: 0 | AV17: 0 | AW17: 0 | AX17: 0 | AY17: 0 | AZ17: 0 | BA17: 0 | BB17: 0 | BC17: 0 | BD17: 0 | BE17: 0 | BF17: 0 | BG17: 0 | BH17: 0 | BI17: 0 | BJ17: 0 | BK17: 0 | BL17: 0 | BM17: 0 | BN17: 0 | BO17: 0 | BP17: 0 | BQ17: 0 | BR17: =IF(AND(BR$3>=$C17,BR$3<($C17+$D17)),$B17/$D17,0) -> 0 | BS17: 0 | BT17: 0 | BU17: 0 | BV17: 0 | BW17: 0 | BX17: 0 | BY17: 0 | BZ17: 0 | CA17: 0 | CB17: 0 | CC17: 0 | CD17: 0 | CE17: 0 | CF17: 0 | CG17: 0 | CH17: 0 | CI17: 0 | CJ17: 0 | CK17: 0 | CL17: 0 | CM17: 0 | CN17: 0 | CO17: 0 | CP17: 0 | CQ17: 0 | CR17: 0 | CS17: 0 | CT17: 0 | CU17: 0 | CV17: 0 | CW17: 0 | CX17: 0 | CY17: 0 | CZ17: 0 | DA17: 0 | DB17: 0 | DC17: 0 | DD17: 0 | DE17: 0 | DF17: 0 | DG17: 0 | DH17: 0 | DI17: 0 | DJ17: 0 | DK17: 0 | DL17: 0 | DM17: 0 | DN17: 0 | DO17: 0 | DP17: 0 | DQ17: 0 | DR17: 0 | DS17: 0 | DT17: 0 | DU17: 0 | DV17: 0
A18: Developer Fee | B18: 0 | C18: 1 | D18: 18 | E18: 0 | F18: 0 | G18: =IF(AND(G$3>=$C18,G$3<($C18+$D18)),$B18/$D18,0) -> 0 | H18: 0 | I18: 0 | J18: 0 | K18: 0 | L18: 0 | M18: 0 | N18: 0 | O18: 0 | P18: 0 | Q18: 0 | R18: 0 | S18: 0 | T18: 0 | U18: 0 | V18: 0 | W18: 0 | X18: 0 | Y18: 0 | Z18: 0 | AA18: 0 | AB18: 0 | AC18: 0 | AD18: 0 | AE18: 0 | AF18: 0 | AG18: 0 | AH18: 0 | AI18: 0 | AJ18: 0 | AK18: 0 | AL18: 0 | AM18: 0 | AN18: 0 | AO18: 0 | AP18: 0 | AQ18: 0 | AR18: 0 | AS18: 0 | AT18: 0 | AU18: 0 | AV18: 0 | AW18: 0 | AX18: 0 | AY18: 0 | AZ18: 0 | BA18: 0 | BB18: 0 | BC18: 0 | BD18: 0 | BE18: 0 | BF18: 0 | BG18: 0 | BH18: 0 | BI18: 0 | BJ18: 0 | BK18: 0 | BL18: 0 | BM18: 0 | BN18: 0 | BO18: 0 | BP18: 0 | BQ18: 0 | BR18: 0 | BS18: 0 | BT18: 0 | BU18: 0 | BV18: 0 | BW18: 0 | BX18: 0 | BY18: 0 | BZ18: 0 | CA18: 0 | CB18: 0 | CC18: 0 | CD18: 0 | CE18: 0 | CF18: 0 | CG18: 0 | CH18: 0 | CI18: 0 | CJ18: 0 | CK18: 0 | CL18: 0 | CM18: 0 | CN18: 0 | CO18: 0 | CP18: 0 | CQ18: 0 | CR18: 0 | CS18: 0 | CT18: 0 | CU18: 0 | CV18: 0 | CW18: 0 | CX18: 0 | CY18: 0 | CZ18: 0 | DA18: 0 | DB18: 0 | DC18: =IF(AND(DC$3>=$C18,DC$3<($C18+$D18)),$B18/$D18,0) -> 0 | DD18: 0 | DE18: 0 | DF18: 0 | DG18: 0 | DH18: 0 | DI18: 0 | DJ18: 0 | DK18: 0 | DL18: 0 | DM18: 0 | DN18: 0 | DO18: 0 | DP18: 0 | DQ18: 0 | DR18: 0 | DS18: 0 | DT18: 0 | DU18: 0 | DV18: 0
A19: Project Contigency | B19: 0 | C19: 2 | D19: 18 | E19: 0 | F19: 0 | G19: 0 | H19: 0 | I19: 0 | J19: 0 | K19: 0 | L19: 0 | M19: 0 | N19: 0 | O19: 0 | P19: 0 | Q19: 0 | R19: 0 | S19: 0 | T19: 0 | U19: 0 | V19: 0 | W19: 0 | X19: 0 | Y19: 0 | Z19: 0 | AA19: 0 | AB19: 0 | AC19: 0 | AD19: 0 | AE19: 0 | AF19: 0 | AG19: 0 | AH19: 0 | AI19: 0 | AJ19: 0 | AK19: 0 | AL19: 0 | AM19: 0 | AN19: 0 | AO19: 0 | AP19: 0 | AQ19: 0 | AR19: 0 | AS19: 0 | AT19: 0 | AU19: 0 | AV19: 0 | AW19: 0 | AX19: 0 | AY19: 0 | AZ19: 0 | BA19: 0 | BB19: 0 | BC19: 0 | BD19: 0 | BE19: 0 | BF19: 0 | BG19: 0 | BH19: 0 | BI19: 0 | BJ19: 0 | BK19: 0 | BL19: 0 | BM19: 0 | BN19: 0 | BO19: 0 | BP19: 0 | BQ19: 0 | BR19: 0 | BS19: 0 | BT19: =IF(AND(BT$3>=$C19,BT$3<($C19+$D19)),$B19/$D19,0) -> 0 | BU19: 0 | BV19: 0 | BW19: 0 | BX19: 0 | BY19: 0 | BZ19: 0 | CA19: 0 | CB19: 0 | CC19: 0 | CD19: 0 | CE19: 0 | CF19: 0 | CG19: 0 | CH19: 0 | CI19: 0 | CJ19: 0 | CK19: 0 | CL19: 0 | CM19: 0 | CN19: 0 | CO19: 0 | CP19: 0 | CQ19: 0 | CR19: 0 | CS19: 0 | CT19: 0 | CU19: 0 | CV19: 0 | CW19: 0 | CX19: 0 | CY19: 0 | CZ19: 0 | DA19: 0 | DB19: 0 | DC19: 0 | DD19: 0 | DE19: 0 | DF19: 0 | DG19: 0 | DH19: 0 | DI19: 0 | DJ19: 0 | DK19: 0 | DL19: 0 | DM19: 0 | DN19: 0 | DO19: 0 | DP19: 0 | DQ19: 0 | DR19: 0 | DS19: 0 | DT19: 0 | DU19: 0 | DV19: 0
A20: Total Construction Costs - Pre Interest Reserve & Fees | B20: =SUM(B9:B19) -> 15469750 | F20: =SUM(F9:F19) -> 10000000 | G20: 0 | H20: 0 | I20: 0 | J20: 0 | K20: 0 | L20: 455812.5 | M20: 455812.5 | N20: 455812.5 | O20: 455812.5 | P20: 455812.5 | Q20: 455812.5 | R20: 455812.5 | S20: 455812.5 | T20: 455812.5 | U20: 455812.5 | V20: 455812.5 | W20: 455812.5 | X20: 0 | Y20: 0 | Z20: 0 | AA20: 0 | AB20: 0 | AC20: 0 | AD20: 0 | AE20: 0 | AF20: 0 | AG20: 0 | AH20: 0 | AI20: 0 | AJ20: 0 | AK20: 0 | AL20: 0 | AM20: 0 | AN20: 0 | AO20: 0 | AP20: 0 | AQ20: 0 | AR20: 0 | AS20: 0 | AT20: 0 | AU20: 0 | AV20: 0 | AW20: 0 | AX20: 0 | AY20: 0 | AZ20: 0 | BA20: 0 | BB20: 0 | BC20: 0 | BD20: 0 | BE20: 0 | BF20: 0 | BG20: 0 | BH20: 0 | BI20: 0 | BJ20: 0 | BK20: 0 | BL20: 0 | BM20: 0 | BN20: 0 | BO20: 0 | BP20: 0 | BQ20: 0 | BR20: =SUM(BR9:BR19) -> 0 | BS20: 0 | BT20: 0 | BU20: 0 | BV20: 0 | BW20: 0 | BX20: 0 | BY20: 0 | BZ20: 0 | CA20: 0 | CB20: 0 | CC20: 0 | CD20: 0 | CE20: 0 | CF20: 0 | CG20: 0 | CH20: 0 | CI20: 0 | CJ20: 0 | CK20: 0 | CL20: 0 | CM20: 0 | CN20: 0 | CO20: 0 | CP20: 0 | CQ20: 0 | CR20: 0 | CS20: 0 | CT20: 0 | CU20: 0 | CV20: 0 | CW20: 0 | CX20: 0 | CY20: 0 | CZ20: 0 | DA20: 0 | DB20: 0 | DC20: 0 | DD20: 0 | DE20: 0 | DF20: 0 | DG20: 0 | DH20: 0 | DI20: 0 | DJ20: 0 | DK20: 0 | DL20: 0 | DM20: 0 | DN20: 0 | DO20: 0 | DP20: 0 | DQ20: 0 | DR20: 0 | DS20: 0 | DT20: 0 | DU20: 0 | DV20: 0
A21: Interest Reserve | B21: 0 | C21: 5 | D21: 13 | E21: =SUM(F21:DV21) -> 0 | F21: =IF(AND(F$3>=$C21,F$3<($C21+$D21)),$B21/$D21,0) -> 0 | G21: 0 | H21: 0 | I21: 0 | J21: 0 | K21: 0 | L21: 0 | M21: 0 | N21: 0 | O21: 0 | P21: 0 | Q21: 0 | R21: 0 | S21: 0 | T21: 0 | U21: 0 | V21: 0 | W21: 0 | X21: 0 | Y21: 0 | Z21: 0 | AA21: 0 | AB21: 0 | AC21: 0 | AD21: 0 | AE21: 0 | AF21: 0 | AG21: 0 | AH21: 0 | AI21: 0 | AJ21: 0 | AK21: 0 | AL21: 0 | AM21: 0 | AN21: 0 | AO21: 0 | AP21: 0 | AQ21: 0 | AR21: 0 | AS21: 0 | AT21: 0 | AU21: 0 | AV21: 0 | AW21: 0 | AX21: 0 | AY21: 0 | AZ21: 0 | BA21: 0 | BB21: 0 | BC21: 0 | BD21: 0 | BE21: 0 | BF21: 0 | BG21: 0 | BH21: 0 | BI21: 0 | BJ21: 0 | BK21: 0 | BL21: 0 | BM21: 0 | BN21: 0 | BO21: 0 | BP21: 0 | BQ21: 0 | BR21: 0 | BS21: =IF(AND(BS$3>=$C21,BS$3<($C21+$D21)),$B21/$D21,0) -> 0 | BT21: 0 | BU21: 0 | BV21: 0 | BW21: 0 | BX21: 0 | BY21: 0 | BZ21: 0 | CA21: 0 | CB21: 0 | CC21: 0 | CD21: 0 | CE21: 0 | CF21: 0 | CG21: 0 | CH21: 0 | CI21: 0 | CJ21: 0 | CK21: 0 | CL21: 0 | CM21: 0 | CN21: 0 | CO21: 0 | CP21: 0 | CQ21: 0 | CR21: 0 | CS21: 0 | CT21: 0 | CU21: 0 | CV21: 0 | CW21: 0 | CX21: 0 | CY21: 0 | CZ21: 0 | DA21: 0 | DB21: 0 | DC21: 0 | DD21: 0 | DE21: 0 | DF21: 0 | DG21: 0 | DH21: 0 | DI21: 0 | DJ21: 0 | DK21: 0 | DL21: 0 | DM21: 0 | DN21: 0 | DO21: 0 | DP21: 0 | DQ21: 0 | DR21: 0 | DS21: 0 | DT21: 0 | DU21: 0 | DV21: 0
A22: Loan Fees
A23: Total Construction Costs | F23: =SUM(F20:F22) -> 10000000 | G23: =SUM(G20:G22) -> 0 | H23: 0 | I23: 0 | J23: 0 | K23: 0 | L23: 455812.5 | M23: 455812.5 | N23: 455812.5 | O23: 455812.5 | P23: 455812.5 | Q23: 455812.5 | R23: 455812.5 | S23: 455812.5 | T23: 455812.5 | U23: 455812.5 | V23: 455812.5 | W23: 455812.5 | X23: 0 | Y23: 0 | Z23: 0 | AA23: 0 | AB23: 0 | AC23: 0 | AD23: 0 | AE23: 0 | AF23: 0 | AG23: 0 | AH23: 0 | AI23: 0 | AJ23: 0 | AK23: 0 | AL23: 0 | AM23: 0 | AN23: 0 | AO23: 0 | AP23: 0 | AQ23: 0 | AR23: 0 | AS23: 0 | AT23: 0 | AU23: 0 | AV23: 0 | AW23: 0 | AX23: 0 | AY23: 0 | AZ23: 0 | BA23: 0 | BB23: 0 | BC23: 0 | BD23: 0 | BE23: 0 | BF23: 0 | BG23: 0 | BH23: 0 | BI23: 0 | BJ23: 0 | BK23: 0 | BL23: 0 | BM23: 0 | BN23: 0 | BO23: 0 | BP23: 0 | BQ23: 0 | BR23: 0 | BS23: =SUM(BS20:BS22) -> 0 | BT23: 0 | BU23: 0 | BV23: 0 | BW23: 0 | BX23: 0 | BY23: 0 | BZ23: 0 | CA23: 0 | CB23: 0 | CC23: 0 | CD23: 0 | CE23: 0 | CF23: 0 | CG23: 0 | CH23: 0 | CI23: 0 | CJ23: 0 | CK23: 0 | CL23: 0 | CM23: 0 | CN23: 0 | CO23: 0 | CP23: 0 | CQ23: 0 | CR23: 0 | CS23: 0 | CT23: 0 | CU23: 0 | CV23: 0 | CW23: 0 | CX23: 0 | CY23: 0 | CZ23: 0 | DA23: 0 | DB23: 0 | DC23: 0 | DD23: 0 | DE23: 0 | DF23: 0 | DG23: 0 | DH23: 0 | DI23: 0 | DJ23: 0 | DK23: 0 | DL23: 0 | DM23: 0 | DN23: 0 | DO23: 0 | DP23: 0 | DQ23: 0 | DR23: 0 | DS23: 0 | DT23: 0 | DU23: 0 | DV23: 0
A25: Draw Schedule
A26: Equity | F26: =F28 -> 4719750 | G26: =G28 -> 0 | H26: 0 | I26: 0 | J26: 0 | K26: 0 | L26: 0 | M26: 0 | N26: 0 | O26: 0 | P26: 0 | Q26: 0 | R26: 0 | S26: 0 | T26: 0 | U26: 0 | V26: 0 | W26: 0 | X26: 0 | Y26: 0 | Z26: 0 | AA26: 0 | AB26: 0 | AC26: 0 | AD26: 0 | AE26: 0 | AF26: 0 | AG26: 0 | AH26: 0 | AI26: 0 | AJ26: 0 | AK26: 0 | AL26: 0 | AM26: 0 | AN26: 0 | AO26: 0 | AP26: 0 | AQ26: 0 | AR26: 0 | AS26: 0 | AT26: 0 | AU26: 0 | AV26: 0 | AW26: 0 | AX26: 0 | AY26: 0 | AZ26: 0 | BA26: 0 | BB26: 0 | BC26: 0 | BD26: 0 | BE26: 0 | BF26: 0 | BG26: 0 | BH26: 0 | BI26: 0 | BJ26: 0 | BK26: 0 | BL26: 0 | BM26: 0 | BN26: 0 | BO26: 0 | BP26: 0 | BQ26: 0 | BR26: 0 | BS26: =BS28 -> 0 | BT26: 0 | BU26: 0 | BV26: 0 | BW26: 0 | BX26: 0 | BY26: 0 | BZ26: 0 | CA26: 0 | CB26: 0 | CC26: 0 | CD26: 0 | CE26: 0 | CF26: 0 | CG26: 0 | CH26: 0 | CI26: 0 | CJ26: 0 | CK26: 0 | CL26: 0 | CM26: 0 | CN26: 0 | CO26: 0 | CP26: 0 | CQ26: 0 | CR26: 0 | CS26: 0 | CT26: 0 | CU26: 0 | CV26: 0 | CW26: 0 | CX26: 0 | CY26: 0 | CZ26: 0 | DA26: 0 | DB26: 0 | DC26: 0 | DD26: 0 | DE26: 0 | DF26: 0 | DG26: 0 | DH26: 0 | DI26: 0 | DJ26: 0 | DK26: 0 | DL26: 0 | DM26: 0 | DN26: 0 | DO26: 0 | DP26: 0 | DQ26: 0 | DR26: 0 | DS26: 0 | DT26: 0 | DU26: 0 | DV26: 0
B27: ='Analysis Summary -WIP'!F7 -> 4719750 | D27: Beginning Balance | F27: =B27 -> 4719750 | G27: =F29 -> 0 | H27: =G29 -> 0 | I27: 0 | J27: 0 | K27: 0 | L27: 0 | M27: 0 | N27: 0 | O27: 0 | P27: 0 | Q27: 0 | R27: 0 | S27: 0 | T27: 0 | U27: 0 | V27: 0 | W27: 0 | X27: 0 | Y27: 0 | Z27: 0 | AA27: 0 | AB27: 0 | AC27: 0 | AD27: 0 | AE27: 0 | AF27: 0 | AG27: 0 | AH27: 0 | AI27: 0 | AJ27: 0 | AK27: 0 | AL27: 0 | AM27: 0 | AN27: 0 | AO27: 0 | AP27: 0 | AQ27: 0 | AR27: 0 | AS27: 0 | AT27: 0 | AU27: 0 | AV27: 0 | AW27: 0 | AX27: 0 | AY27: 0 | AZ27: 0 | BA27: 0 | BB27: 0 | BC27: 0 | BD27: 0 | BE27: 0 | BF27: 0 | BG27: 0 | BH27: 0 | BI27: 0 | BJ27: 0 | BK27: 0 | BL27: 0 | BM27: 0 | BN27: 0 | BO27: 0 | BP27: 0 | BQ27: 0 | BR27: 0 | BS27: 0 | BT27: =BS29 -> 0 | BU27: 0 | BV27: 0 | BW27: 0 | BX27: 0 | BY27: 0 | BZ27: 0 | CA27: 0 | CB27: 0 | CC27: 0 | CD27: 0 | CE27: 0 | CF27: 0 | CG27: 0 | CH27: 0 | CI27: 0 | CJ27: 0 | CK27: 0 | CL27: 0 | CM27: 0 | CN27: 0 | CO27: 0 | CP27: 0 | CQ27: 0 | CR27: 0 | CS27: 0 | CT27: 0 | CU27: 0 | CV27: 0 | CW27: 0 | CX27: 0 | CY27: 0 | CZ27: 0 | DA27: 0 | DB27: 0 | DC27: 0 | DD27: 0 | DE27: 0 | DF27: 0 | DG27: 0 | DH27: 0 | DI27: 0 | DJ27: 0 | DK27: 0 | DL27: 0 | DM27: 0 | DN27: 0 | DO27: 0 | DP27: 0 | DQ27: 0 | DR27: 0 | DS27: 0 | DT27: 0 | DU27: 0 | DV27: 0
D28: Equity Required | F28: =MIN(F27,F23) -> 4719750 | G28: =MIN(G27,G23) -> 0 | H28: 0 | I28: 0 | J28: 0 | K28: 0 | L28: 0 | M28: 0 | N28: 0 | O28: 0 | P28: 0 | Q28: 0 | R28: 0 | S28: 0 | T28: 0 | U28: 0 | V28: 0 | W28: 0 | X28: 0 | Y28: 0 | Z28: 0 | AA28: 0 | AB28: 0 | AC28: 0 | AD28: 0 | AE28: 0 | AF28: 0 | AG28: 0 | AH28: 0 | AI28: 0 | AJ28: 0 | AK28: 0 | AL28: 0 | AM28: 0 | AN28: 0 | AO28: 0 | AP28: 0 | AQ28: 0 | AR28: 0 | AS28: 0 | AT28: 0 | AU28: 0 | AV28: 0 | AW28: 0 | AX28: 0 | AY28: 0 | AZ28: 0 | BA28: 0 | BB28: 0 | BC28: 0 | BD28: 0 | BE28: 0 | BF28: 0 | BG28: 0 | BH28: 0 | BI28: 0 | BJ28: 0 | BK28: 0 | BL28: 0 | BM28: 0 | BN28: 0 | BO28: 0 | BP28: 0 | BQ28: 0 | BR28: 0 | BS28: =MIN(BS27,BS23) -> 0 | BT28: 0 | BU28: 0 | BV28: 0 | BW28: 0 | BX28: 0 | BY28: 0 | BZ28: 0 | CA28: 0 | CB28: 0 | CC28: 0 | CD28: 0 | CE28: 0 | CF28: 0 | CG28: 0 | CH28: 0 | CI28: 0 | CJ28: 0 | CK28: 0 | CL28: 0 | CM28: 0 | CN28: 0 | CO28: 0 | CP28: 0 | CQ28: 0 | CR28: 0 | CS28: 0 | CT28: 0 | CU28: 0 | CV28: 0 | CW28: 0 | CX28: 0 | CY28: 0 | CZ28: 0 | DA28: 0 | DB28: 0 | DC28: 0 | DD28: 0 | DE28: 0 | DF28: 0 | DG28: 0 | DH28: 0 | DI28: 0 | DJ28: 0 | DK28: 0 | DL28: 0 | DM28: 0 | DN28: 0 | DO28: 0 | DP28: 0 | DQ28: 0 | DR28: 0 | DS28: 0 | DT28: 0 | DU28: 0 | DV28: 0
D29: Ending Balance | F29: =F27-F28 -> 0 | G29: =G27-G28 -> 0 | H29: 0 | I29: 0 | J29: 0 | K29: 0 | L29: 0 | M29: 0 | N29: 0 | O29: 0 | P29: 0 | Q29: 0 | R29: 0 | S29: 0 | T29: 0 | U29: 0 | V29: 0 | W29: 0 | X29: 0 | Y29: 0 | Z29: 0 | AA29: 0 | AB29: 0 | AC29: 0 | AD29: 0 | AE29: 0 | AF29: 0 | AG29: 0 | AH29: 0 | AI29: 0 | AJ29: 0 | AK29: 0 | AL29: 0 | AM29: 0 | AN29: 0 | AO29: 0 | AP29: 0 | AQ29: 0 | AR29: 0 | AS29: 0 | AT29: 0 | AU29: 0 | AV29: 0 | AW29: 0 | AX29: 0 | AY29: 0 | AZ29: 0 | BA29: 0 | BB29: 0 | BC29: 0 | BD29: 0 | BE29: 0 | BF29: 0 | BG29: 0 | BH29: 0 | BI29: 0 | BJ29: 0 | BK29: 0 | BL29: 0 | BM29: 0 | BN29: 0 | BO29: 0 | BP29: 0 | BQ29: 0 | BR29: 0 | BS29: =BS27-BS28 -> 0 | BT29: 0 | BU29: 0 | BV29: 0 | BW29: 0 | BX29: 0 | BY29: 0 | BZ29: 0 | CA29: 0 | CB29: 0 | CC29: 0 | CD29: 0 | CE29: 0 | CF29: 0 | CG29: 0 | CH29: 0 | CI29: 0 | CJ29: 0 | CK29: 0 | CL29: 0 | CM29: 0 | CN29: 0 | CO29: 0 | CP29: 0 | CQ29: 0 | CR29: 0 | CS29: 0 | CT29: 0 | CU29: 0 | CV29: 0 | CW29: 0 | CX29: 0 | CY29: 0 | CZ29: 0 | DA29: 0 | DB29: 0 | DC29: 0 | DD29: 0 | DE29: 0 | DF29: 0 | DG29: 0 | DH29: 0 | DI29: 0 | DJ29: 0 | DK29: 0 | DL29: 0 | DM29: 0 | DN29: 0 | DO29: 0 | DP29: 0 | DQ29: 0 | DR29: 0 | DS29: 0 | DT29: 0 | DU29: 0 | DV29: 0
D30: Cumulative Costs | F30: =SUM($F$28:F28) -> 4719750 | G30: =SUM($F$28:G28) -> 4719750 | H30: =SUM($F$28:H28) -> 4719750 | I30: =SUM($F$28:I28) -> 4719750 | J30: =SUM($F$28:J28) -> 4719750 | K30: =SUM($F$28:K28) -> 4719750 | L30: =SUM($F$28:L28) -> 4719750 | M30: =SUM($F$28:M28) -> 4719750 | N30: =SUM($F$28:N28) -> 4719750 | O30: =SUM($F$28:O28) -> 4719750 | P30: =SUM($F$28:P28) -> 4719750 | Q30: =SUM($F$28:Q28) -> 4719750 | R30: =SUM($F$28:R28) -> 4719750 | S30: =SUM($F$28:S28) -> 4719750 | T30: =SUM($F$28:T28) -> 4719750 | U30: =SUM($F$28:U28) -> 4719750 | V30: =SUM($F$28:V28) -> 4719750 | W30: =SUM($F$28:W28) -> 4719750 | X30: =SUM($F$28:X28) -> 4719750 | Y30: =SUM($F$28:Y28) -> 4719750 | Z30: =SUM($F$28:Z28) -> 4719750 | AA30: =SUM($F$28:AA28) -> 4719750 | AB30: =SUM($F$28:AB28) -> 4719750 | AC30: =SUM($F$28:AC28) -> 4719750 | AD30: =SUM($F$28:AD28) -> 4719750 | AE30: =SUM($F$28:AE28) -> 4719750 | AF30: =SUM($F$28:AF28) -> 4719750 | AG30: =SUM($F$28:AG28) -> 4719750 | AH30: =SUM($F$28:AH28) -> 4719750 | AI30: =SUM($F$28:AI28) -> 4719750 | AJ30: =SUM($F$28:AJ28) -> 4719750 | AK30: =SUM($F$28:AK28) -> 4719750 | AL30: =SUM($F$28:AL28) -> 4719750 | AM30: =SUM($F$28:AM28) -> 4719750 | AN30: =SUM($F$28:AN28) -> 4719750 | AO30: =SUM($F$28:AO28) -> 4719750 | AP30: =SUM($F$28:AP28) -> 4719750 | AQ30: =SUM($F$28:AQ28) -> 4719750 | AR30: =SUM($F$28:AR28) -> 4719750 | AS30: =SUM($F$28:AS28) -> 4719750 | AT30: =SUM($F$28:AT28) -> 4719750 | AU30: =SUM($F$28:AU28) -> 4719750 | AV30: =SUM($F$28:AV28) -> 4719750 | AW30: =SUM($F$28:AW28) -> 4719750 | AX30: =SUM($F$28:AX28) -> 4719750 | AY30: =SUM($F$28:AY28) -> 4719750 | AZ30: =SUM($F$28:AZ28) -> 4719750 | BA30: =SUM($F$28:BA28) -> 4719750 | BB30: =SUM($F$28:BB28) -> 4719750 | BC30: =SUM($F$28:BC28) -> 4719750 | BD30: =SUM($F$28:BD28) -> 4719750 | BE30: =SUM($F$28:BE28) -> 4719750 | BF30: =SUM($F$28:BF28) -> 4719750 | BG30: =SUM($F$28:BG28) -> 4719750 | BH30: =SUM($F$28:BH28) -> 4719750 | BI30: =SUM($F$28:BI28) -> 4719750 | BJ30: =SUM($F$28:BJ28) -> 4719750 | BK30: =SUM($F$28:BK28) -> 4719750 | BL30: =SUM($F$28:BL28) -> 4719750 | BM30: =SUM($F$28:BM28) -> 4719750 | BN30: =SUM($F$28:BN28) -> 4719750 | BO30: =SUM($F$28:BO28) -> 4719750 | BP30: =SUM($F$28:BP28) -> 4719750 | BQ30: =SUM($F$28:BQ28) -> 4719750 | BR30: =SUM($F$28:BR28) -> 4719750 | BS30: =SUM($F$28:BS28) -> 4719750 | BT30: =SUM($F$28:BT28) -> 4719750 | BU30: =SUM($F$28:BU28) -> 4719750 | BV30: =SUM($F$28:BV28) -> 4719750 | BW30: =SUM($F$28:BW28) -> 4719750 | BX30: =SUM($F$28:BX28) -> 4719750 | BY30: =SUM($F$28:BY28) -> 4719750 | BZ30: =SUM($F$28:BZ28) -> 4719750 | CA30: =SUM($F$28:CA28) -> 4719750 | CB30: =SUM($F$28:CB28) -> 4719750 | CC30: =SUM($F$28:CC28) -> 4719750 | CD30: =SUM($F$28:CD28) -> 4719750 | CE30: =SUM($F$28:CE28) -> 4719750 | CF30: =SUM($F$28:CF28) -> 4719750 | CG30: =SUM($F$28:CG28) -> 4719750 | CH30: =SUM($F$28:CH28) -> 4719750 | CI30: =SUM($F$28:CI28) -> 4719750 | CJ30: =SUM($F$28:CJ28) -> 4719750 | CK30: =SUM($F$28:CK28) -> 4719750 | CL30: =SUM($F$28:CL28) -> 4719750 | CM30: =SUM($F$28:CM28) -> 4719750 | CN30: =SUM($F$28:CN28) -> 4719750 | CO30: =SUM($F$28:CO28) -> 4719750 | CP30: =SUM($F$28:CP28) -> 4719750 | CQ30: =SUM($F$28:CQ28) -> 4719750 | CR30: =SUM($F$28:CR28) -> 4719750 | CS30: =SUM($F$28:CS28) -> 4719750 | CT30: =SUM($F$28:CT28) -> 4719750 | CU30: =SUM($F$28:CU28) -> 4719750 | CV30: =SUM($F$28:CV28) -> 4719750 | CW30: =SUM($F$28:CW28) -> 4719750 | CX30: =SUM($F$28:CX28) -> 4719750 | CY30: =SUM($F$28:CY28) -> 4719750 | CZ30: =SUM($F$28:CZ28) -> 4719750 | DA30: =SUM($F$28:DA28) -> 4719750 | DB30: =SUM($F$28:DB28) -> 4719750 | DC30: =SUM($F$28:DC28) -> 4719750 | DD30: =SUM($F$28:DD28) -> 4719750 | DE30: =SUM($F$28:DE28) -> 4719750 | DF30: =SUM($F$28:DF28) -> 4719750 | DG30: =SUM($F$28:DG28) -> 4719750 | DH30: =SUM($F$28:DH28) -> 4719750 | DI30: =SUM($F$28:DI28) -> 4719750 | DJ30: =SUM($F$28:DJ28) -> 4719750 | DK30: =SUM($F$28:DK28) -> 4719750 | DL30: =SUM($F$28:DL28) -> 4719750 | DM30: =SUM($F$28:DM28) -> 4719750 | DN30: =SUM($F$28:DN28) -> 4719750 | DO30: =SUM($F$28:DO28) -> 4719750 | DP30: =SUM($F$28:DP28) -> 4719750 | DQ30: =SUM($F$28:DQ28) -> 4719750 | DR30: =SUM($F$28:DR28) -> 4719750 | DS30: =SUM($F$28:DS28) -> 4719750 | DT30: =SUM($F$28:DT28) -> 4719750 | DU30: =SUM($F$28:DU28) -> 4719750 | DV30: =SUM($F$28:DV28) -> 4719750
A31: Senior Debt
B32: ='Analysis Summary -WIP'!F19 -> 6500000 | D32: Beginning Balance | F32: =E38 -> 0 | G32: =F38 -> 4280250 | H32: =G38 -> 4280250 | I32: 4280250 | J32: 4280250 | K32: 4280250 | L32: 4280250 | M32: 4736062.5 | N32: 5191875 | O32: 5647687.5 | P32: 6103500 | Q32: 6559312.5 | R32: 7015125 | S32: 7470937.5 | T32: 7926750 | U32: 8382562.5 | V32: 8838375 | W32: 9294187.5 | X32: 9750000 | Y32: 9750000 | Z32: 9750000 | AA32: 9750000 | AB32: 9750000 | AC32: 9750000 | AD32: 9750000 | AE32: 9750000 | AF32: 9741621.598 | AG32: 9732531.311 | AH32: 9724210.979 | AI32: 9715555.536 | AJ32: 9707293.151 | AK32: 9698696.556 | AL32: 9690491.358 | AM32: 9682314.355 | AN32: 9673801.799 | AO32: 9665678.731 | AP32: 9657221.97 | AQ32: 9649152.36 | AR32: 9641110.255 | AS32: 9631974.46 | AT32: 9623984.165 | AU32: 9615662.333 | AV32: 9607725.682 | AW32: 9599456.204 | AX32: 9591570.583 | AY32: 9583710.836 | AZ32: 9575519.049 | BA32: 9567710.088 | BB32: 9559571.166 | BC32: 9551816.778 | BD32: 9544089.873 | BE32: 9535281.392 | BF32: 9527608.508 | BG32: 9519609.901 | BH32: 9511992.408 | BI32: 9504051.642 | BJ32: 9496491.274 | BK32: 9488960.591 | BL32: 9481108.839 | BM32: 9473638.778 | BN32: 9465845.095 | BO32: 9458432.57 | BP32: 9451048.84 | BQ32: 9442599.125 | BR32: 9435270.009 | BS32: 9427619.407 | BT32: =BS38 -> 9420344.035 | BU32: 9412747.841 | BV32: 9405526.205 | BW32: 9398329.431 | BX32: 9390812.028 | BY32: 9383666.939 | BZ32: 9376200.152 | CA32: 9369104.739 | CB32: 9362033.936 | CC32: 0 | CD32: 0 | CE32: 0 | CF32: 0 | CG32: 0 | CH32: 0 | CI32: 0 | CJ32: 0 | CK32: 0 | CL32: 0 | CM32: 0 | CN32: 0
A33: Years of IO | B33: ='Analysis Summary -WIP'!G22 -> 2 | D33: Debt Funded | F33: =IF((F23-F28-F51)<0,0,F23-F28-F51) -> 4280250 | G33: =IF((G23-G28)<0,0,G23-G28) -> 0 | H33: 0 | I33: 0 | J33: 0 | K33: 0 | L33: 455812.5 | M33: 455812.5 | N33: 455812.5 | O33: 455812.5 | P33: 455812.5 | Q33: 455812.5 | R33: 455812.5 | S33: 455812.5 | T33: 455812.5 | U33: 455812.5 | V33: 455812.5 | W33: 455812.5 | X33: 0 | Y33: 0 | Z33: 0 | AA33: 0 | AB33: 0 | AC33: 0 | AD33: 0 | AE33: 0 | AF33: 0 | AG33: 0 | AH33: 0 | AI33: 0 | AJ33: 0 | AK33: 0 | AL33: 0 | AM33: 0 | AN33: 0 | AO33: 0 | AP33: 0 | AQ33: 0 | AR33: 0 | AS33: 0 | AT33: 0 | AU33: 0 | AV33: 0 | AW33: 0 | AX33: 0 | AY33: 0 | AZ33: 0 | BA33: 0 | BB33: 0 | BC33: 0 | BD33: 0 | BE33: 0 | BF33: 0 | BG33: 0 | BH33: 0 | BI33: 0 | BJ33: 0 | BK33: 0 | BL33: 0 | BM33: 0 | BN33: 0 | BO33: 0 | BP33: 0 | BQ33: 0 | BR33: 0 | BS33: =IF((BS23-BS28)<0,0,BS23-BS28) -> 0 | BT33: 0 | BU33: 0 | BV33: 0 | BW33: 0 | BX33: 0 | BY33: 0 | BZ33: 0 | CA33: 0 | CB33: 0 | CC33: 0 | CD33: 0 | CE33: 0 | CF33: 0 | CG33: 0 | CH33: 0 | CI33: 0 | CJ33: 0 | CK33: 0 | CL33: 0 | CM33: 0 | CN33: 0
A34: AMO (Years) | B34: ='Analysis Summary -WIP'!G20 -> 30 | D34: Payment | F34: =IF(F$32>0,IF(F$1<=$B$33,F$43/360*(G$5-F$5)*F$32,PMT(F$43/360*(G$5-F$5),$B$34*12,-F$32,0)),0) -> 0 | G34: 23624.24064 | H34: 23380.38529 | I34: 25372.44098 | J34: 24552.83374 | K34: 25249.04137 | L34: 23733.52256 | M34: 27136.84878 | N34: 29651.29424 | O34: 30631.45682 | P34: 34207.74053 | Q34: 35524.9632 | R34: 38947.34654 | S34: 41477.97677 | T34: 39743.11273 | U34: 46468.78645 | V34: 47429.59272 | W34: 51578.4085 | X34: 52417.7875 | Y34: 54239.01437 | Z34: 54340.85583 | AA34: 52698.50625 | AB34: 54569.39042 | AC34: 52923 | AD34: 54803.46625 | AE34: 63302.09671 | AF34: 60529.40193 | AG34: 63359.24779 | AH34: 61974.58855 | AI34: 63421.73389 | AJ34: 62033.86857 | AK34: 63483.30139 | AL34: 63515.06795 | AM34: 62112.07327 | AN34: 63566.58506 | AO34: 62164.50766 | AP34: 63618.10068 | AQ34: 63649.53731 | AR34: 59404.88712 | AS34: 63689.58145 | AT34: 62280.30303 | AU34: 63746.62645 | AV34: 62325.74459 | AW34: 63794.79791 | AX34: 63822.85312 | AY34: 62395.65752 | AZ34: 63872.76042 | BA34: 62447.5573 | BB34: 63940.40627 | BC34: 63977.64633 | BD34: 59656.89972 | BE34: 64038.50167 | BF34: 62612.84391 | BG34: 64114.91822 | BH34: 62691.87352 | BI34: 64200.99429 | BJ34: 64251.53181 | BK34: 62825.65026 | BL34: 64356.3708 | BM34: 62911.39291 | BN34: 64450.40175 | BO34: 64500.25427 | BP34: 60091.62203 | BQ34: 64577.53458 | BR34: =IF(BR$32>0,IF(BR$1<=$B$33,BR$43/360*(BS$5-BR$5)*BR$32,PMT(BR$43/360*(BS$5-BR$5),$B$34*12,-BR$32,0)),0) -> 63121.41943 | BS34: 64660.85165 | BT34: 63199.7742 | BU34: 64746.38247 | BV34: 64782.83708 | BW34: 63311.05484 | BX34: 64862.47319 | BY34: 63378.42767 | BZ34: 64935.1739 | CA34: 64973.04648 | CB34: 61965.87271 | CC34: 0 | CD34: 0 | CE34: 0 | CF34: 0 | CG34: 0 | CH34: 0 | CI34: 0 | CJ34: 0 | CK34: 0 | CL34: 0 | CM34: 0 | CN34: 0
A35: Refi or Exit Date | B35: 2032-01-28 | D35: Interest Payments | F35: =IF(F32>0,F43/360*(G5-F5)*F32,0) -> 0 | G35: 23624.24064 | H35: 23380.38529 | I35: 25372.44098 | J35: 24552.83374 | K35: 25249.04137 | L35: 23733.52256 | M35: 27136.84878 | N35: 29651.29424 | O35: 30631.45682 | P35: 34207.74053 | Q35: 35524.9632 | R35: 38947.34654 | S35: 41477.97677 | T35: 39743.11273 | U35: 46468.78645 | V35: 47429.59272 | W35: 51578.4085 | X35: 52417.7875 | Y35: 54239.01437 | Z35: 54340.85583 | AA35: 52698.50625 | AB35: 54569.39042 | AC35: 52923 | AD35: 54803.46625 | AE35: 54923.69458 | AF35: 51439.11478 | AG35: 55038.91633 | AH35: 53319.14536 | AI35: 55159.34868 | AJ35: 53437.2736 | AK35: 55278.10358 | AL35: 55338.06503 | AM35: 53599.51718 | AN35: 55443.51668 | AO35: 53707.7466 | AP35: 55548.49099 | AQ35: 55607.43249 | AR35: 50269.09167 | AS35: 55699.28693 | AT35: 53958.47122 | AU35: 55809.97461 | AV35: 54056.26726 | AW35: 55909.17682 | AX35: 55963.10561 | AY35: 54203.8712 | AZ35: 56063.79958 | BA35: 54308.63466 | BB35: 56186.01839 | BC35: 56250.74187 | BD35: 50848.41878 | BE35: 56365.61754 | BF35: 54614.23689 | BG35: 56497.42509 | BH35: 54751.10757 | BI35: 56640.62601 | BJ35: 56720.84884 | BK35: 54973.89781 | BL35: 56886.31066 | BM35: 55117.70936 | BN35: 57037.87738 | BO35: 57116.52379 | BP35: 51641.90651 | BQ35: 57248.41948 | BR35: =IF(BR32>0,BR43/360*(BS5-BR5)*BR32,0) -> 55470.81729 | BS35: 57385.47938 | BT35: 55603.58067 | BU35: 57524.74556 | BV35: 57586.06312 | BW35: 55793.65258 | BX35: 57717.38369 | BY35: 55911.64109 | BZ35: 57839.76025 | CA35: 57902.24363 | CB35: 54214.42548 | CC35: 0 | CD35: 0 | CE35: 0 | CF35: 0 | CG35: 0 | CH35: 0 | CI35: 0 | CJ35: 0 | CK35: 0 | CL35: 0 | CM35: 0 | CN35: 0
D36: Principal | F36: =F34-F35 -> 0 | G36: =G34-G35 -> 0 | H36: =H34-H35 -> 0 | I36: 0 | J36: 0 | K36: 0 | L36: 0 | M36: 0 | N36: 0 | O36: 0 | P36: 0 | Q36: 0 | R36: 0 | S36: 0 | T36: 0 | U36: 0 | V36: 0 | W36: 0 | X36: 0 | Y36: 0 | Z36: 0 | AA36: 0 | AB36: 0 | AC36: 0 | AD36: 0 | AE36: 8378.402131 | AF36: 9090.287156 | AG36: 8320.331456 | AH36: 8655.443187 | AI36: 8262.385205 | AJ36: 8596.59497 | AK36: 8205.197811 | AL36: 8177.002915 | AM36: 8512.556095 | AN36: 8123.068374 | AO36: 8456.761059 | AP36: 8069.609691 | AQ36: 8042.104812 | AR36: 9135.795458 | AS36: 7990.294522 | AT36: 8321.831808 | AU36: 7936.651839 | AV36: 8269.477329 | AW36: 7885.621084 | AX36: 7859.747511 | AY36: 8191.786322 | AZ36: 7808.960847 | BA36: 8138.922639 | BB36: 7754.387882 | BC36: 7726.904459 | BD36: 8808.480946 | BE36: 7672.884135 | BF36: 7998.607022 | BG36: 7617.493127 | BH36: 7940.765948 | BI36: 7560.368283 | BJ36: 7530.682967 | BK36: 7851.752451 | BL36: 7470.06014 | BM36: 7793.683555 | BN36: 7412.524365 | BO36: 7383.73048 | BP36: 8449.715513 | BQ36: 7329.115101 | BR36: 7650.602141 | BS36: 7275.372272 | BT36: =BT34-BT35 -> 7596.193537 | BU36: 7221.636918 | BV36: 7196.773963 | BW36: 7517.402255 | BX36: 7145.089502 | BY36: 7466.786579 | BZ36: 7095.413651 | CA36: 7070.802853 | CB36: 7751.447233 | CC36: 0 | CD36: 0 | CE36: 0 | CF36: 0 | CG36: 0 | CH36: 0 | CI36: 0 | CJ36: 0 | CK36: 0 | CL36: 0 | CM36: 0 | CN36: 0
D37: Loan Repayment | F37: =IF($B$35<F$5,(F32-F36),0) -> 0 | G37: 0 | H37: 0 | I37: 0 | J37: 0 | K37: 0 | L37: 0 | M37: 0 | N37: 0 | O37: 0 | P37: 0 | Q37: 0 | R37: 0 | S37: 0 | T37: 0 | U37: 0 | V37: 0 | W37: 0 | X37: 0 | Y37: 0 | Z37: 0 | AA37: 0 | AB37: 0 | AC37: 0 | AD37: 0 | AE37: 0 | AF37: 0 | AG37: 0 | AH37: 0 | AI37: 0 | AJ37: 0 | AK37: 0 | AL37: 0 | AM37: 0 | AN37: 0 | AO37: 0 | AP37: 0 | AQ37: 0 | AR37: 0 | AS37: 0 | AT37: 0 | AU37: 0 | AV37: 0 | AW37: 0 | AX37: 0 | AY37: 0 | AZ37: 0 | BA37: 0 | BB37: 0 | BC37: 0 | BD37: 0 | BE37: 0 | BF37: 0 | BG37: 0 | BH37: 0 | BI37: 0 | BJ37: 0 | BK37: 0 | BL37: 0 | BM37: 0 | BN37: 0 | BO37: 0 | BP37: 0 | BQ37: 0 | BR37: =IF($B$35<BR$5,(BR32-BR36),0) -> 0 | BS37: 0 | BT37: 0 | BU37: 0 | BV37: 0 | BW37: 0 | BX37: 0 | BY37: 0 | BZ37: 0 | CA37: 0 | CB37: =IF($B$35<CB$5,(CB32-CB36),0) -> 9354282.489 | CC37: =IF($B$35<CC$5,(CC32-CC36),0) -> 0 | CD37: 0 | CE37: 0 | CF37: 0 | CG37: 0 | CH37: 0 | CI37: 0 | CJ37: 0 | CK37: 0 | CL37: 0 | CM37: 0 | CN37: 0
D38: Ending Balance | F38: =F32+F33-F36-F37 -> 4280250 | G38: 4280250 | H38: 4280250 | I38: 4280250 | J38: 4280250 | K38: 4280250 | L38: 4736062.5 | M38: 5191875 | N38: 5647687.5 | O38: 6103500 | P38: 6559312.5 | Q38: 7015125 | R38: 7470937.5 | S38: 7926750 | T38: 8382562.5 | U38: 8838375 | V38: 9294187.5 | W38: 9750000 | X38: 9750000 | Y38: 9750000 | Z38: 9750000 | AA38: 9750000 | AB38: 9750000 | AC38: 9750000 | AD38: 9750000 | AE38: 9741621.598 | AF38: 9732531.311 | AG38: 9724210.979 | AH38: 9715555.536 | AI38: 9707293.151 | AJ38: 9698696.556 | AK38: 9690491.358 | AL38: 9682314.355 | AM38: 9673801.799 | AN38: 9665678.731 | AO38: 9657221.97 | AP38: 9649152.36 | AQ38: 9641110.255 | AR38: 9631974.46 | AS38: 9623984.165 | AT38: 9615662.333 | AU38: 9607725.682 | AV38: 9599456.204 | AW38: 9591570.583 | AX38: 9583710.836 | AY38: 9575519.049 | AZ38: 9567710.088 | BA38: 9559571.166 | BB38: 9551816.778 | BC38: 9544089.873 | BD38: 9535281.392 | BE38: 9527608.508 | BF38: 9519609.901 | BG38: 9511992.408 | BH38: 9504051.642 | BI38: 9496491.274 | BJ38: 9488960.591 | BK38: 9481108.839 | BL38: 9473638.778 | BM38: 9465845.095 | BN38: 9458432.57 | BO38: 9451048.84 | BP38: 9442599.125 | BQ38: 9435270.009 | BR38: =BR32+BR33-BR36-BR37 -> 9427619.407 | BS38: 9420344.035 | BT38: 9412747.841 | BU38: 9405526.205 | BV38: 9398329.431 | BW38: 9390812.028 | BX38: 9383666.939 | BY38: 9376200.152 | BZ38: 9369104.739 | CA38: 9362033.936 | CB38: =CB32+CB33-CB36-CB37 -> 0 | CC38: =CC32+CC33-CC36-CC37 -> 0 | CD38: 0 | CE38: 0 | CF38: 0 | CG38: 0 | CH38: 0 | CI38: 0 | CJ38: 0 | CK38: 0 | CL38: 0 | CM38: 0 | CN38: 0
D39: Cumulative Balance | F39: =SUM($F$33:F33) -> 4280250 | G39: =SUM($F$33:G33) -> 4280250 | H39: =SUM($F$33:H33) -> 4280250 | I39: =SUM($F$33:I33) -> 4280250 | J39: =SUM($F$33:J33) -> 4280250 | K39: =SUM($F$33:K33) -> 4280250 | L39: =SUM($F$33:L33) -> 4736062.5 | M39: =SUM($F$33:M33) -> 5191875 | N39: =SUM($F$33:N33) -> 5647687.5 | O39: =SUM($F$33:O33) -> 6103500 | P39: =SUM($F$33:P33) -> 6559312.5 | Q39: =SUM($F$33:Q33) -> 7015125 | R39: =SUM($F$33:R33) -> 7470937.5 | S39: =SUM($F$33:S33) -> 7926750 | T39: =SUM($F$33:T33) -> 8382562.5 | U39: =SUM($F$33:U33) -> 8838375 | V39: =SUM($F$33:V33) -> 9294187.5 | W39: =SUM($F$33:W33) -> 9750000 | X39: =SUM($F$33:X33) -> 9750000 | Y39: =SUM($F$33:Y33) -> 9750000 | Z39: =SUM($F$33:Z33) -> 9750000 | AA39: =SUM($F$33:AA33) -> 9750000 | AB39: =SUM($F$33:AB33) -> 9750000 | AC39: =SUM($F$33:AC33) -> 9750000 | AD39: =SUM($F$33:AD33) -> 9750000 | AE39: =SUM($F$33:AE33) -> 9750000 | AF39: =SUM($F$33:AF33) -> 9750000 | AG39: =SUM($F$33:AG33) -> 9750000 | AH39: =SUM($F$33:AH33) -> 9750000 | AI39: =SUM($F$33:AI33) -> 9750000 | AJ39: =SUM($F$33:AJ33) -> 9750000 | AK39: =SUM($F$33:AK33) -> 9750000 | AL39: =SUM($F$33:AL33) -> 9750000 | AM39: =SUM($F$33:AM33) -> 9750000 | AN39: =SUM($F$33:AN33) -> 9750000 | AO39: =SUM($F$33:AO33) -> 9750000 | AP39: =SUM($F$33:AP33) -> 9750000 | AQ39: =SUM($F$33:AQ33) -> 9750000 | AR39: =SUM($F$33:AR33) -> 9750000 | AS39: =SUM($F$33:AS33) -> 9750000 | AT39: =SUM($F$33:AT33) -> 9750000 | AU39: =SUM($F$33:AU33) -> 9750000 | AV39: =SUM($F$33:AV33) -> 9750000 | AW39: =SUM($F$33:AW33) -> 9750000 | AX39: =SUM($F$33:AX33) -> 9750000 | AY39: =SUM($F$33:AY33) -> 9750000 | AZ39: =SUM($F$33:AZ33) -> 9750000 | BA39: =SUM($F$33:BA33) -> 9750000 | BB39: =SUM($F$33:BB33) -> 9750000 | BC39: =SUM($F$33:BC33) -> 9750000 | BD39: =SUM($F$33:BD33) -> 9750000 | BE39: =SUM($F$33:BE33) -> 9750000 | BF39: =SUM($F$33:BF33) -> 9750000 | BG39: =SUM($F$33:BG33) -> 9750000 | BH39: =SUM($F$33:BH33) -> 9750000 | BI39: =SUM($F$33:BI33) -> 9750000 | BJ39: =SUM($F$33:BJ33) -> 9750000 | BK39: =SUM($F$33:BK33) -> 9750000 | BL39: =SUM($F$33:BL33) -> 9750000 | BM39: =SUM($F$33:BM33) -> 9750000 | BN39: =SUM($F$33:BN33) -> 9750000 | BO39: =SUM($F$33:BO33) -> 9750000 | BP39: =SUM($F$33:BP33) -> 9750000 | BQ39: =SUM($F$33:BQ33) -> 9750000 | BR39: =SUM($F$33:BR33) -> 9750000 | BS39: =SUM($F$33:BS33) -> 9750000 | BT39: =SUM($F$33:BT33) -> 9750000 | BU39: =SUM($F$33:BU33) -> 9750000 | BV39: =SUM($F$33:BV33) -> 9750000 | BW39: =SUM($F$33:BW33) -> 9750000 | BX39: =SUM($F$33:BX33) -> 9750000 | BY39: =SUM($F$33:BY33) -> 9750000 | BZ39: =SUM($F$33:BZ33) -> 9750000 | CA39: =SUM($F$33:CA33) -> 9750000 | CB39: =SUM($F$33:CB33) -> 9750000 | CC39: =SUM($F$33:CC33) -> 9750000 | CD39: =SUM($F$33:CD33) -> 9750000 | CE39: =SUM($F$33:CE33) -> 9750000 | CF39: =SUM($F$33:CF33) -> 9750000 | CG39: =SUM($F$33:CG33) -> 9750000 | CH39: =SUM($F$33:CH33) -> 9750000 | CI39: =SUM($F$33:CI33) -> 9750000 | CJ39: =SUM($F$33:CJ33) -> 9750000 | CK39: =SUM($F$33:CK33) -> 9750000 | CL39: =SUM($F$33:CL33) -> 9750000 | CM39: =SUM($F$33:CM33) -> 9750000 | CN39: =SUM($F$33:CN33) -> 9750000
A40: Interest Rate Details | D40: Ceiling
D41: 1-month Term SOFR | E41: 2025-09-30 | F41: 0.0371826 | G41: 0.0359632 | H41: 0.0352307 | I41: 0.0338389 | J41: 0.0338357 | K41: 0.0335041 | L41: 0.0315387 | M41: 0.03154 | N41: 0.0313224 | O41: 0.0300846 | P41: 0.0300858 | Q41: 0.0299915 | R41: 0.0294738 | S41: 0.0294738 | T41: 0.0294631 | U41: 0.0293762 | V41: 0.0293959 | W41: 0.0294462 | X41: 0.0295142 | Y41: 0.0296023 | Z41: 0.0297236 | AA41: 0.0298597 | AB41: 0.0299958 | AC41: 0.030136 | AD41: 0.0302746 | AE41: 0.0304178 | AF41: 0.0305491 | AG41: 0.0306727 | AH41: 0.0307976 | AI41: 0.0309314 | AJ41: 0.0310583 | AK41: 0.0311882 | AL41: 0.0313161 | AM41: 0.0314298 | AN41: 0.0315571 | AO41: 0.0316785 | AP41: 0.0317976 | AQ41: 0.0319244 | AR41: 0.0320376 | AS41: 0.0321545 | AT41: 0.03228 | AU41: 0.0324021 | AV41: 0.032516 | AW41: 0.0326359 | AX41: 0.0327568 | AY41: 0.03287 | AZ41: 0.0329925 | BA41: 0.0331149 | BB41: 0.0332544 | BC41: 0.0333885 | BD41: 0.0334995 | BE41: 0.033647 | BF41: 0.0337865 | BG41: 0.0339208 | BH41: 0.0340721 | BI41: 0.0342086 | BJ41: 0.0343618 | BK41: 0.0345215 | BL41: 0.034677 | BM41: 0.0348161 | BN41: 0.0349753 | BO41: 0.0351267 | BP41: 0.0352533 | BQ41: 0.0354065 | BR41: 0.0355491 | BS41: 0.0356872 | BT41: 0.03583 | BU41: 0.0359707 | BV41: 0.0361009 | BW41: 0.0362386 | BX41: 0.0363747 | BY41: 0.0365008 | BZ41: 0.0366375 | CA41: 0.0367692 | CB41: 0.0368868 | CC41: 0.0370148 | CD41: 0.0371376 | CE41: 0.0372706 | CF41: 0.0373904 | CG41: 0.0375045 | CH41: 0.0376289 | CI41: 0.0377441 | CJ41: 0.0378585 | CK41: 0.037976 | CL41: 0.0380927 | CM41: 0.0382167 | CN41: 0.0383197 | CO41: 0.0384312 | CP41: 0.0385338 | CQ41: 0.038655 | CR41: 0.0387631 | CS41: 0.0388679 | CT41: 0.0389789 | CU41: 0.0390853 | CV41: 0.039203 | CW41: 0.0393072 | CX41: 0.0394087 | CY41: 0.0395239 | CZ41: 0.039618 | DA41: 0.0397219 | DB41: 0.0398199 | DC41: 0.0399289 | DD41: 0.0400283 | DE41: 0.0401364 | DF41: 0.0402376 | DG41: 0.0403288 | DH41: 0.0404343 | DI41: 0.04053 | DJ41: 0.0406269 | DK41: 0.0407296 | DL41: 0.0408153 | DM41: 0.0409117 | DN41: 0.0410123 | DO41: 0.0411074 | DP41: 0.0411956 | DQ41: 0.0412918 | DR41: 0.0413847 | DS41: 0.0414706
D42: Basis Points Above Curve / Fixed Rate | F42: ='Analysis Summary -WIP'!E22 -> 0.035 | G42: =F42 -> 0.035 | H42: =G42 -> 0.035 | I42: 0.035 | J42: 0.035 | K42: 0.035 | L42: 0.035 | M42: 0.035 | N42: 0.035 | O42: 0.035 | P42: 0.035 | Q42: 0.035 | R42: 0.035 | S42: 0.035 | T42: 0.035 | U42: 0.035 | V42: 0.035 | W42: 0.035 | X42: 0.035 | Y42: 0.035 | Z42: 0.035 | AA42: 0.035 | AB42: 0.035 | AC42: 0.035 | AD42: 0.035 | AE42: 0.035 | AF42: 0.035 | AG42: 0.035 | AH42: 0.035 | AI42: 0.035 | AJ42: 0.035 | AK42: 0.035 | AL42: 0.035 | AM42: 0.035 | AN42: 0.035 | AO42: 0.035 | AP42: 0.035 | AQ42: 0.035 | AR42: 0.035 | AS42: 0.035 | AT42: 0.035 | AU42: 0.035 | AV42: 0.035 | AW42: 0.035 | AX42: 0.035 | AY42: 0.035 | AZ42: 0.035 | BA42: 0.035 | BB42: 0.035 | BC42: 0.035 | BD42: 0.035 | BE42: 0.035 | BF42: 0.035 | BG42: 0.035 | BH42: 0.035 | BI42: 0.035 | BJ42: 0.035 | BK42: 0.035 | BL42: 0.035 | BM42: 0.035 | BN42: 0.035 | BO42: 0.035 | BP42: 0.035 | BQ42: 0.035 | BR42: 0.035 | BS42: 0.035 | BT42: =BS42 -> 0.035 | BU42: 0.035 | BV42: 0.035 | BW42: 0.035 | BX42: 0.035 | BY42: 0.035 | BZ42: 0.035 | CA42: 0.035 | CB42: 0.035 | CC42: 0.035 | CD42: 0.035 | CE42: 0.035 | CF42: 0.035 | CG42: 0.035 | CH42: 0.035 | CI42: 0.035 | CJ42: 0.035 | CK42: 0.035 | CL42: 0.035 | CM42: 0.035 | CN42: 0.035 | CO42: 0.035 | CP42: 0.035 | CQ42: 0.035 | CR42: 0.035 | CS42: 0.035 | CT42: 0.035 | CU42: 0.035 | CV42: 0.035 | CW42: 0.035 | CX42: 0.035 | CY42: 0.035 | CZ42: 0.035 | DA42: 0.035 | DB42: 0.035 | DC42: 0.035 | DD42: 0.035 | DE42: 0.035 | DF42: 0.035 | DG42: 0.035 | DH42: 0.035 | DI42: 0.035 | DJ42: 0.035 | DK42: 0.035 | DL42: 0.035 | DM42: 0.035 | DN42: 0.035 | DO42: 0.035 | DP42: 0.035 | DQ42: 0.035 | DR42: 0.035 | DS42: 0.035
D43: Interest Rate | F43: =IF('Analysis Summary -WIP'!$G$21="Floating",SUM(F41:F42),'Monthly CF - WIP'!F42) -> 0.0721826 | G43: =IF('Analysis Summary -WIP'!$G$21="Floating",SUM(G41:G42),'Monthly CF - WIP'!G42) -> 0.0709632 | H43: =IF('Analysis Summary -WIP'!$G$21="Floating",SUM(H41:H42),'Monthly CF - WIP'!H42) -> 0.0702307 | I43: =IF('Analysis Summary -WIP'!$G$21="Floating",SUM(I41:I42),'Monthly CF - WIP'!I42) -> 0.0688389 | J43: =IF('Analysis Summary -WIP'!$G$21="Floating",SUM(J41:J42),'Monthly CF - WIP'!J42) -> 0.0688357 | K43: =IF('Analysis Summary -WIP'!$G$21="Floating",SUM(K41:K42),'Monthly CF - WIP'!K42) -> 0.0685041 | L43: =IF('Analysis Summary -WIP'!$G$21="Floating",SUM(L41:L42),'Monthly CF - WIP'!L42) -> 0.0665387 | M43: =IF('Analysis Summary -WIP'!$G$21="Floating",SUM(M41:M42),'Monthly CF - WIP'!M42) -> 0.06654 | N43: =IF('Analysis Summary -WIP'!$G$21="Floating",SUM(N41:N42),'Monthly CF - WIP'!N42) -> 0.0663224 | O43: =IF('Analysis Summary -WIP'!$G$21="Floating",SUM(O41:O42),'Monthly CF - WIP'!O42) -> 0.0650846 | P43: =IF('Analysis Summary -WIP'!$G$21="Floating",SUM(P41:P42),'Monthly CF - WIP'!P42) -> 0.0650858 | Q43: =IF('Analysis Summary -WIP'!$G$21="Floating",SUM(Q41:Q42),'Monthly CF - WIP'!Q42) -> 0.0649915 | R43: =IF('Analysis Summary -WIP'!$G$21="Floating",SUM(R41:R42),'Monthly CF - WIP'!R42) -> 0.0644738 | S43: =IF('Analysis Summary -WIP'!$G$21="Floating",SUM(S41:S42),'Monthly CF - WIP'!S42) -> 0.0644738 | T43: =IF('Analysis Summary -WIP'!$G$21="Floating",SUM(T41:T42),'Monthly CF - WIP'!T42) -> 0.0644631 | U43: =IF('Analysis Summary -WIP'!$G$21="Floating",SUM(U41:U42),'Monthly CF - WIP'!U42) -> 0.0643762 | V43: =IF('Analysis Summary -WIP'!$G$21="Floating",SUM(V41:V42),'Monthly CF - WIP'!V42) -> 0.0643959 | W43: =IF('Analysis Summary -WIP'!$G$21="Floating",SUM(W41:W42),'Monthly CF - WIP'!W42) -> 0.0644462 | X43: =IF('Analysis Summary -WIP'!$G$21="Floating",SUM(X41:X42),'Monthly CF - WIP'!X42) -> 0.0645142 | Y43: =IF('Analysis Summary -WIP'!$G$21="Floating",SUM(Y41:Y42),'Monthly CF - WIP'!Y42) -> 0.0646023 | Z43: =IF('Analysis Summary -WIP'!$G$21="Floating",SUM(Z41:Z42),'Monthly CF - WIP'!Z42) -> 0.0647236 | AA43: =IF('Analysis Summary -WIP'!$G$21="Floating",SUM(AA41:AA42),'Monthly CF - WIP'!AA42) -> 0.0648597 | AB43: =IF('Analysis Summary -WIP'!$G$21="Floating",SUM(AB41:AB42),'Monthly CF - WIP'!AB42) -> 0.0649958 | AC43: =IF('Analysis Summary -WIP'!$G$21="Floating",SUM(AC41:AC42),'Monthly CF - WIP'!AC42) -> 0.065136 | AD43: =IF('Analysis Summary -WIP'!$G$21="Floating",SUM(AD41:AD42),'Monthly CF - WIP'!AD42) -> 0.0652746 | AE43: =IF('Analysis Summary -WIP'!$G$21="Floating",SUM(AE41:AE42),'Monthly CF - WIP'!AE42) -> 0.0654178 | AF43: =IF('Analysis Summary -WIP'!$G$21="Floating",SUM(AF41:AF42),'Monthly CF - WIP'!AF42) -> 0.0655491 | AG43: =IF('Analysis Summary -WIP'!$G$21="Floating",SUM(AG41:AG42),'Monthly CF - WIP'!AG42) -> 0.0656727 | AH43: =IF('Analysis Summary -WIP'!$G$21="Floating",SUM(AH41:AH42),'Monthly CF - WIP'!AH42) -> 0.0657976 | AI43: =IF('Analysis Summary -WIP'!$G$21="Floating",SUM(AI41:AI42),'Monthly CF - WIP'!AI42) -> 0.0659314 | AJ43: =IF('Analysis Summary -WIP'!$G$21="Floating",SUM(AJ41:AJ42),'Monthly CF - WIP'!AJ42) -> 0.0660583 | AK43: =IF('Analysis Summary -WIP'!$G$21="Floating",SUM(AK41:AK42),'Monthly CF - WIP'!AK42) -> 0.0661882 | AL43: =IF('Analysis Summary -WIP'!$G$21="Floating",SUM(AL41:AL42),'Monthly CF - WIP'!AL42) -> 0.0663161 | AM43: =IF('Analysis Summary -WIP'!$G$21="Floating",SUM(AM41:AM42),'Monthly CF - WIP'!AM42) -> 0.0664298 | AN43: =IF('Analysis Summary -WIP'!$G$21="Floating",SUM(AN41:AN42),'Monthly CF - WIP'!AN42) -> 0.0665571 | AO43: =IF('Analysis Summary -WIP'!$G$21="Floating",SUM(AO41:AO42),'Monthly CF - WIP'!AO42) -> 0.0666785 | AP43: =IF('Analysis Summary -WIP'!$G$21="Floating",SUM(AP41:AP42),'Monthly CF - WIP'!AP42) -> 0.0667976 | AQ43: =IF('Analysis Summary -WIP'!$G$21="Floating",SUM(AQ41:AQ42),'Monthly CF - WIP'!AQ42) -> 0.0669244 | AR43: =IF('Analysis Summary -WIP'!$G$21="Floating",SUM(AR41:AR42),'Monthly CF - WIP'!AR42) -> 0.0670376 | AS43: =IF('Analysis Summary -WIP'!$G$21="Floating",SUM(AS41:AS42),'Monthly CF - WIP'!AS42) -> 0.0671545 | AT43: =IF('Analysis Summary -WIP'!$G$21="Floating",SUM(AT41:AT42),'Monthly CF - WIP'!AT42) -> 0.06728 | AU43: =IF('Analysis Summary -WIP'!$G$21="Floating",SUM(AU41:AU42),'Monthly CF - WIP'!AU42) -> 0.0674021 | AV43: =IF('Analysis Summary -WIP'!$G$21="Floating",SUM(AV41:AV42),'Monthly CF - WIP'!AV42) -> 0.067516 | AW43: =IF('Analysis Summary -WIP'!$G$21="Floating",SUM(AW41:AW42),'Monthly CF - WIP'!AW42) -> 0.0676359 | AX43: =IF('Analysis Summary -WIP'!$G$21="Floating",SUM(AX41:AX42),'Monthly CF - WIP'!AX42) -> 0.0677568 | AY43: =IF('Analysis Summary -WIP'!$G$21="Floating",SUM(AY41:AY42),'Monthly CF - WIP'!AY42) -> 0.06787 | AZ43: =IF('Analysis Summary -WIP'!$G$21="Floating",SUM(AZ41:AZ42),'Monthly CF - WIP'!AZ42) -> 0.0679925 | BA43: =IF('Analysis Summary -WIP'!$G$21="Floating",SUM(BA41:BA42),'Monthly CF - WIP'!BA42) -> 0.0681149 | BB43: =IF('Analysis Summary -WIP'!$G$21="Floating",SUM(BB41:BB42),'Monthly CF - WIP'!BB42) -> 0.0682544 | BC43: =IF('Analysis Summary -WIP'!$G$21="Floating",SUM(BC41:BC42),'Monthly CF - WIP'!BC42) -> 0.0683885 | BD43: =IF('Analysis Summary -WIP'!$G$21="Floating",SUM(BD41:BD42),'Monthly CF - WIP'!BD42) -> 0.0684995 | BE43: =IF('Analysis Summary -WIP'!$G$21="Floating",SUM(BE41:BE42),'Monthly CF - WIP'!BE42) -> 0.068647 | BF43: =IF('Analysis Summary -WIP'!$G$21="Floating",SUM(BF41:BF42),'Monthly CF - WIP'!BF42) -> 0.0687865 | BG43: =IF('Analysis Summary -WIP'!$G$21="Floating",SUM(BG41:BG42),'Monthly CF - WIP'!BG42) -> 0.0689208 | BH43: =IF('Analysis Summary -WIP'!$G$21="Floating",SUM(BH41:BH42),'Monthly CF - WIP'!BH42) -> 0.0690721 | BI43: =IF('Analysis Summary -WIP'!$G$21="Floating",SUM(BI41:BI42),'Monthly CF - WIP'!BI42) -> 0.0692086 | BJ43: =IF('Analysis Summary -WIP'!$G$21="Floating",SUM(BJ41:BJ42),'Monthly CF - WIP'!BJ42) -> 0.0693618 | BK43: =IF('Analysis Summary -WIP'!$G$21="Floating",SUM(BK41:BK42),'Monthly CF - WIP'!BK42) -> 0.0695215 | BL43: =IF('Analysis Summary -WIP'!$G$21="Floating",SUM(BL41:BL42),'Monthly CF - WIP'!BL42) -> 0.069677 | BM43: =IF('Analysis Summary -WIP'!$G$21="Floating",SUM(BM41:BM42),'Monthly CF - WIP'!BM42) -> 0.0698161 | BN43: =IF('Analysis Summary -WIP'!$G$21="Floating",SUM(BN41:BN42),'Monthly CF - WIP'!BN42) -> 0.0699753 | BO43: =IF('Analysis Summary -WIP'!$G$21="Floating",SUM(BO41:BO42),'Monthly CF - WIP'!BO42) -> 0.0701267 | BP43: =IF('Analysis Summary -WIP'!$G$21="Floating",SUM(BP41:BP42),'Monthly CF - WIP'!BP42) -> 0.0702533 | BQ43: =IF('Analysis Summary -WIP'!$G$21="Floating",SUM(BQ41:BQ42),'Monthly CF - WIP'!BQ42) -> 0.0704065 | BR43: =IF('Analysis Summary -WIP'!$G$21="Floating",SUM(BR41:BR42),'Monthly CF - WIP'!BR42) -> 0.0705491 | BS43: =IF('Analysis Summary -WIP'!$G$21="Floating",SUM(BS41:BS42),'Monthly CF - WIP'!BS42) -> 0.0706872 | BT43: =IF('Analysis Summary -WIP'!$G$21="Floating",SUM(BT41:BT42),'Monthly CF - WIP'!BT42) -> 0.07083 | BU43: =IF('Analysis Summary -WIP'!$G$21="Floating",SUM(BU41:BU42),'Monthly CF - WIP'!BU42) -> 0.0709707 | BV43: =IF('Analysis Summary -WIP'!$G$21="Floating",SUM(BV41:BV42),'Monthly CF - WIP'!BV42) -> 0.0711009 | BW43: =IF('Analysis Summary -WIP'!$G$21="Floating",SUM(BW41:BW42),'Monthly CF - WIP'!BW42) -> 0.0712386 | BX43: =IF('Analysis Summary -WIP'!$G$21="Floating",SUM(BX41:BX42),'Monthly CF - WIP'!BX42) -> 0.0713747 | BY43: =IF('Analysis Summary -WIP'!$G$21="Floating",SUM(BY41:BY42),'Monthly CF - WIP'!BY42) -> 0.0715008 | BZ43: =IF('Analysis Summary -WIP'!$G$21="Floating",SUM(BZ41:BZ42),'Monthly CF - WIP'!BZ42) -> 0.0716375 | CA43: =IF('Analysis Summary -WIP'!$G$21="Floating",SUM(CA41:CA42),'Monthly CF - WIP'!CA42) -> 0.0717692 | CB43: =IF('Analysis Summary -WIP'!$G$21="Floating",SUM(CB41:CB42),'Monthly CF - WIP'!CB42) -> 0.0718868 | CC43: =IF('Analysis Summary -WIP'!$G$21="Floating",SUM(CC41:CC42),'Monthly CF - WIP'!CC42) -> 0.0720148 | CD43: =IF('Analysis Summary -WIP'!$G$21="Floating",SUM(CD41:CD42),'Monthly CF - WIP'!CD42) -> 0.0721376 | CE43: =IF('Analysis Summary -WIP'!$G$21="Floating",SUM(CE41:CE42),'Monthly CF - WIP'!CE42) -> 0.0722706 | CF43: =IF('Analysis Summary -WIP'!$G$21="Floating",SUM(CF41:CF42),'Monthly CF - WIP'!CF42) -> 0.0723904 | CG43: =IF('Analysis Summary -WIP'!$G$21="Floating",SUM(CG41:CG42),'Monthly CF - WIP'!CG42) -> 0.0725045 | CH43: =IF('Analysis Summary -WIP'!$G$21="Floating",SUM(CH41:CH42),'Monthly CF - WIP'!CH42) -> 0.0726289 | CI43: =IF('Analysis Summary -WIP'!$G$21="Floating",SUM(CI41:CI42),'Monthly CF - WIP'!CI42) -> 0.0727441 | CJ43: =IF('Analysis Summary -WIP'!$G$21="Floating",SUM(CJ41:CJ42),'Monthly CF - WIP'!CJ42) -> 0.0728585 | CK43: =IF('Analysis Summary -WIP'!$G$21="Floating",SUM(CK41:CK42),'Monthly CF - WIP'!CK42) -> 0.072976 | CL43: =IF('Analysis Summary -WIP'!$G$21="Floating",SUM(CL41:CL42),'Monthly CF - WIP'!CL42) -> 0.0730927 | CM43: =IF('Analysis Summary -WIP'!$G$21="Floating",SUM(CM41:CM42),'Monthly CF - WIP'!CM42) -> 0.0732167 | CN43: =IF('Analysis Summary -WIP'!$G$21="Floating",SUM(CN41:CN42),'Monthly CF - WIP'!CN42) -> 0.0733197 | CO43: =IF('Analysis Summary -WIP'!$G$21="Floating",SUM(CO41:CO42),'Monthly CF - WIP'!CO42) -> 0.0734312 | CP43: =IF('Analysis Summary -WIP'!$G$21="Floating",SUM(CP41:CP42),'Monthly CF - WIP'!CP42) -> 0.0735338 | CQ43: =IF('Analysis Summary -WIP'!$G$21="Floating",SUM(CQ41:CQ42),'Monthly CF - WIP'!CQ42) -> 0.073655 | CR43: =IF('Analysis Summary -WIP'!$G$21="Floating",SUM(CR41:CR42),'Monthly CF - WIP'!CR42) -> 0.0737631 | CS43: =IF('Analysis Summary -WIP'!$G$21="Floating",SUM(CS41:CS42),'Monthly CF - WIP'!CS42) -> 0.0738679 | CT43: =IF('Analysis Summary -WIP'!$G$21="Floating",SUM(CT41:CT42),'Monthly CF - WIP'!CT42) -> 0.0739789 | CU43: =IF('Analysis Summary -WIP'!$G$21="Floating",SUM(CU41:CU42),'Monthly CF - WIP'!CU42) -> 0.0740853 | CV43: =IF('Analysis Summary -WIP'!$G$21="Floating",SUM(CV41:CV42),'Monthly CF - WIP'!CV42) -> 0.074203 | CW43: =IF('Analysis Summary -WIP'!$G$21="Floating",SUM(CW41:CW42),'Monthly CF - WIP'!CW42) -> 0.0743072 | CX43: =IF('Analysis Summary -WIP'!$G$21="Floating",SUM(CX41:CX42),'Monthly CF - WIP'!CX42) -> 0.0744087 | CY43: =IF('Analysis Summary -WIP'!$G$21="Floating",SUM(CY41:CY42),'Monthly CF - WIP'!CY42) -> 0.0745239 | CZ43: =IF('Analysis Summary -WIP'!$G$21="Floating",SUM(CZ41:CZ42),'Monthly CF - WIP'!CZ42) -> 0.074618 | DA43: =IF('Analysis Summary -WIP'!$G$21="Floating",SUM(DA41:DA42),'Monthly CF - WIP'!DA42) -> 0.0747219 | DB43: =IF('Analysis Summary -WIP'!$G$21="Floating",SUM(DB41:DB42),'Monthly CF - WIP'!DB42) -> 0.0748199 | DC43: =IF('Analysis Summary -WIP'!$G$21="Floating",SUM(DC41:DC42),'Monthly CF - WIP'!DC42) -> 0.0749289 | DD43: =IF('Analysis Summary -WIP'!$G$21="Floating",SUM(DD41:DD42),'Monthly CF - WIP'!DD42) -> 0.0750283 | DE43: =IF('Analysis Summary -WIP'!$G$21="Floating",SUM(DE41:DE42),'Monthly CF - WIP'!DE42) -> 0.0751364 | DF43: =IF('Analysis Summary -WIP'!$G$21="Floating",SUM(DF41:DF42),'Monthly CF - WIP'!DF42) -> 0.0752376 | DG43: =IF('Analysis Summary -WIP'!$G$21="Floating",SUM(DG41:DG42),'Monthly CF - WIP'!DG42) -> 0.0753288 | DH43: =IF('Analysis Summary -WIP'!$G$21="Floating",SUM(DH41:DH42),'Monthly CF - WIP'!DH42) -> 0.0754343 | DI43: =IF('Analysis Summary -WIP'!$G$21="Floating",SUM(DI41:DI42),'Monthly CF - WIP'!DI42) -> 0.07553 | DJ43: =IF('Analysis Summary -WIP'!$G$21="Floating",SUM(DJ41:DJ42),'Monthly CF - WIP'!DJ42) -> 0.0756269 | DK43: =IF('Analysis Summary -WIP'!$G$21="Floating",SUM(DK41:DK42),'Monthly CF - WIP'!DK42) -> 0.0757296 | DL43: =IF('Analysis Summary -WIP'!$G$21="Floating",SUM(DL41:DL42),'Monthly CF - WIP'!DL42) -> 0.0758153 | DM43: =IF('Analysis Summary -WIP'!$G$21="Floating",SUM(DM41:DM42),'Monthly CF - WIP'!DM42) -> 0.0759117 | DN43: =IF('Analysis Summary -WIP'!$G$21="Floating",SUM(DN41:DN42),'Monthly CF - WIP'!DN42) -> 0.0760123 | DO43: =IF('Analysis Summary -WIP'!$G$21="Floating",SUM(DO41:DO42),'Monthly CF - WIP'!DO42) -> 0.0761074 | DP43: =IF('Analysis Summary -WIP'!$G$21="Floating",SUM(DP41:DP42),'Monthly CF - WIP'!DP42) -> 0.0761956 | DQ43: =IF('Analysis Summary -WIP'!$G$21="Floating",SUM(DQ41:DQ42),'Monthly CF - WIP'!DQ42) -> 0.0762918 | DR43: =IF('Analysis Summary -WIP'!$G$21="Floating",SUM(DR41:DR42),'Monthly CF - WIP'!DR42) -> 0.0763847 | DS43: =IF('Analysis Summary -WIP'!$G$21="Floating",SUM(DS41:DS42),'Monthly CF - WIP'!DS42) -> 0.0764706
D44: Floor
D45: Actual Interest Rate
A46: Loan Fees
A47: Total Interest Accrued
A48: Total Debt with Interest Reserve
A49: Mezz Debt
B50: ='Analysis Summary -WIP'!F23 -> 1000000 | D50: Beginning Balance | F50: =E56 -> 0 | G50: =F56 -> 1000000 | H50: =G56 -> 1000000 | I50: 1000000 | J50: 1000000 | K50: 1000000 | L50: 1000000 | M50: 1000000 | N50: 1000000 | O50: 1000000 | P50: 1000000 | Q50: 1000000 | R50: 1000000 | S50: 1000000 | T50: 1000000 | U50: 1000000 | V50: 1000000 | W50: 1000000 | X50: 1000000 | Y50: 1000000 | Z50: 1000000 | AA50: 1000000 | AB50: 1000000 | AC50: 1000000 | AD50: 1000000 | AE50: 1000000 | AF50: 999140.6767 | AG50: 998208.3396 | AH50: 997354.9722
A51: Years of IO | B51: ='Analysis Summary -WIP'!G26 -> 2 | D51: Debt Funded | F51: =IF(F50=$B$50,0,MIN($B$50,F23-F28)) -> 1000000 | G51: 0 | H51: 0 | I51: 0 | J51: 0 | K51: 0 | L51: =IF(L50=$B$50,0,MIN($B$50,L23-L28)) -> 0 | M51: =IF(M50=$B$50,0,MIN($B$50,M23-M28)) -> 0 | N51: 0 | O51: 0 | P51: 0 | Q51: 0 | R51: 0 | S51: 0 | T51: 0 | U51: 0 | V51: 0 | W51: 0 | X51: 0 | Y51: 0 | Z51: 0 | AA51: 0 | AB51: 0 | AC51: 0 | AD51: 0 | AE51: 0 | AF51: 0 | AG51: 0 | AH51: 0
A52: AMO (Years) | B52: ='Analysis Summary -WIP'!G24 -> 30 | D52: =D34 -> Payment | F52: =IF(F50>0,IF(F1<=$B$51,F62/360*(G$5-F$5)*F50,PMT(F$62/360*(G$5-F$5),$B$52*12,-F50)),0) -> 0 | G52: =IF(G50>0,IF(G1<=$B$51,G62/360*(H$5-G$5)*G50,PMT(G$62/360*(H$5-G$5),$B$52*12,-G50)),0) -> 5519.36 | H52: =IF(H50>0,IF(H1<=$B$51,H62/360*(I$5-H$5)*H50,PMT(H$62/360*(I$5-H$5),$B$52*12,-H50)),0) -> 5462.387778 | I52: 5927.794167 | J52: 5736.308333 | K52: 5898.964167 | L52: 5544.891667 | M52: 5729.833333 | N52: 5711.095556 | O52: 5423.716667 | P52: 5604.610556 | Q52: 5415.958333 | R52: 5551.910556 | S52: 5551.910556 | T52: 5013.796667 | U52: 5543.506111 | V52: 5366.325 | W52: 5549.533889 | X52: 5376.183333 | Y52: 5562.975833 | Z52: 5573.421111 | AA52: 5404.975 | AB52: 5596.860556 | AC52: 5428 | AD52: 5620.868333 | AE52: 6492.52274 | AF52: 6208.143788 | AG52: 6498.384388 | AH52: 6356.368056
A53: =A35 -> Refi or Exit Date | B53: =B35 -> 2032-01-28 | D53: =D35 -> Interest Payments | F53: =IF(F50>0,(F62/360*(G5-F5))*F50,0) -> 0 | G53: =IF(G50>0,(G62/360*(H5-G5))*G50,0) -> 5519.36 | H53: =IF(H50>0,(H62/360*(I5-H5))*H50,0) -> 5462.387778 | I53: 5927.794167 | J53: 5736.308333 | K53: 5898.964167 | L53: 5544.891667 | M53: 5729.833333 | N53: 5711.095556 | O53: 5423.716667 | P53: 5604.610556 | Q53: 5415.958333 | R53: 5551.910556 | S53: 5551.910556 | T53: 5013.796667 | U53: 5543.506111 | V53: 5366.325 | W53: 5549.533889 | X53: 5376.183333 | Y53: 5562.975833 | Z53: 5573.421111 | AA53: 5404.975 | AB53: 5596.860556 | AC53: 5428 | AD53: 5620.868333 | AE53: 5633.199444 | AF53: 5275.806644 | AG53: 5645.01706 | AH53: 5468.630293
D54: =D36 -> Principal | F54: =F52-F53 -> 0 | G54: =G52-G53 -> 0 | H54: =H52-H53 -> 0 | I54: 0 | J54: 0 | K54: 0 | L54: 0 | M54: 0 | N54: 0 | O54: 0 | P54: 0 | Q54: 0 | R54: 0 | S54: 0 | T54: 0 | U54: 0 | V54: 0 | W54: 0 | X54: 0 | Y54: 0 | Z54: 0 | AA54: 0 | AB54: 0 | AC54: 0 | AD54: 0 | AE54: 859.3232955 | AF54: 932.3371442 | AG54: 853.3673288 | AH54: 887.7377628
D55: =D37 -> Loan Repayment | F55: =IF(F5<$B$53,0,F50-F54) -> 0 | G55: =IF(G5<$B$53,0,G50-G54) -> 0 | H55: =IF(H5<$B$53,0,H50-H54) -> 0 | I55: 0 | J55: 0 | K55: 0 | L55: 0 | M55: 0 | N55: 0 | O55: 0 | P55: 0 | Q55: 0 | R55: 0 | S55: 0 | T55: 0 | U55: 0 | V55: 0 | W55: 0 | X55: 0 | Y55: 0 | Z55: 0 | AA55: 0 | AB55: 0 | AC55: 0 | AD55: 0 | AE55: 0 | AF55: 0 | AG55: 0 | AH55: 0
D56: Ending Balance | F56: =F50+F51-F54-F55 -> 1000000 | G56: =G50+G51-G54-G55 -> 1000000 | H56: =H50+H51-H54-H55 -> 1000000 | I56: 1000000 | J56: 1000000 | K56: 1000000 | L56: 1000000 | M56: 1000000 | N56: 1000000 | O56: 1000000 | P56: 1000000 | Q56: 1000000 | R56: 1000000 | S56: 1000000 | T56: 1000000 | U56: 1000000 | V56: 1000000 | W56: 1000000 | X56: 1000000 | Y56: 1000000 | Z56: 1000000 | AA56: 1000000 | AB56: 1000000 | AC56: 1000000 | AD56: 1000000 | AE56: 999140.6767 | AF56: 998208.3396 | AG56: 997354.9722 | AH56: 996467.2345
D57: Construction Loan Repayment
D58: Cumulative Balance | F58: =SUM($F$51:F51) -> 1000000
A59: =A40 -> Interest Rate Details | D59: =D40 -> Ceiling
D60: =D41 -> 1-month Term SOFR | F60: =F41 -> 0.0371826 | G60: 0.0359632 | H60: 0.0352307 | I60: 0.0338389 | J60: 0.0338357 | K60: 0.0335041 | L60: 0.0315387 | M60: 0.03154 | N60: 0.0313224 | O60: 0.0300846 | P60: 0.0300858 | Q60: 0.0299915 | R60: 0.0294738 | S60: 0.0294738 | T60: 0.0294631 | U60: 0.0293762 | V60: 0.0293959 | W60: 0.0294462 | X60: 0.0295142 | Y60: 0.0296023 | Z60: 0.0297236 | AA60: 0.0298597 | AB60: 0.0299958 | AC60: 0.030136 | AD60: 0.0302746 | AE60: 0.0304178 | AF60: 0.0305491 | AG60: 0.0306727 | AH60: 0.0307976 | AI60: 0.0309314 | AJ60: 0.0310583 | AK60: 0.0311882 | AL60: 0.0313161 | AM60: 0.0314298 | AN60: 0.0315571 | AO60: 0.0316785 | AP60: 0.0317976 | AQ60: 0.0319244 | AR60: 0.0320376 | AS60: 0.0321545 | AT60: 0.03228 | AU60: 0.0324021 | AV60: 0.032516 | AW60: 0.0326359 | AX60: 0.0327568 | AY60: 0.03287 | AZ60: 0.0329925 | BA60: 0.0331149 | BB60: 0.0332544 | BC60: 0.0333885 | BD60: 0.0334995 | BE60: 0.033647 | BF60: 0.0337865 | BG60: 0.0339208 | BH60: 0.0340721 | BI60: 0.0342086 | BJ60: 0.0343618 | BK60: 0.0345215 | BL60: 0.034677 | BM60: 0.0348161 | BN60: 0.0349753 | BO60: 0.0351267 | BP60: 0.0352533 | BQ60: 0.0354065 | BR60: =BR41 -> 0.0355491 | BS60: 0.0356872 | BT60: 0.03583 | BU60: 0.0359707 | BV60: 0.0361009 | BW60: 0.0362386 | BX60: 0.0363747 | BY60: 0.0365008 | BZ60: 0.0366375 | CA60: 0.0367692 | CB60: 0.0368868 | CC60: 0.0370148 | CD60: 0.0371376 | CE60: 0.0372706 | CF60: 0.0373904 | CG60: 0.0375045 | CH60: 0.0376289 | CI60: 0.0377441 | CJ60: 0.0378585 | CK60: 0.037976 | CL60: 0.0380927 | CM60: 0.0382167 | CN60: 0.0383197 | CO60: 0.0384312 | CP60: 0.0385338 | CQ60: 0.038655 | CR60: 0.0387631 | CS60: 0.0388679 | CT60: 0.0389789 | CU60: 0.0390853 | CV60: 0.039203 | CW60: 0.0393072 | CX60: 0.0394087 | CY60: 0.0395239 | CZ60: 0.039618 | DA60: 0.0397219 | DB60: 0.0398199 | DC60: 0.0399289 | DD60: 0.0400283 | DE60: 0.0401364 | DF60: 0.0402376 | DG60: 0.0403288 | DH60: 0.0404343 | DI60: 0.04053 | DJ60: 0.0406269 | DK60: 0.0407296 | DL60: 0.0408153 | DM60: 0.0409117 | DN60: 0.0410123 | DO60: 0.0411074 | DP60: 0.0411956 | DQ60: 0.0412918 | DR60: 0.0413847 | DS60: 0.0414706 | DT60: 0 | DU60: 0 | DV60: 0 | DW60: 0 | DX60: 0 | DY60: 0 | DZ60: 0 | EA60: 0 | EB60: 0 | EC60: 0 | ED60: =ED41 -> 0 | EE60: 0 | EF60: 0 | EG60: 0 | EH60: 0 | EI60: 0 | EJ60: 0 | EK60: 0 | EL60: 0 | EM60: 0 | EN60: 0 | EO60: 0 | EP60: 0 | EQ60: 0 | ER60: 0 | ES60: 0 | ET60: 0 | EU60: 0 | EV60: 0 | EW60: 0 | EX60: 0 | EY60: 0 | EZ60: 0 | FA60: 0 | FB60: 0 | FC60: 0 | FD60: 0 | FE60: 0 | FF60: 0 | FG60: 0 | FH60: 0 | FI60: 0 | FJ60: 0 | FK60: 0 | FL60: 0 | FM60: 0 | FN60: 0 | FO60: 0 | FP60: 0 | FQ60: 0 | FR60: 0 | FS60: 0 | FT60: 0 | FU60: 0 | FV60: 0 | FW60: 0 | FX60: 0 | FY60: 0 | FZ60: 0 | GA60: 0 | GB60: 0 | GC60: 0 | GD60: 0 | GE60: 0 | GF60: 0 | GG60: 0 | GH60: 0 | GI60: 0 | GJ60: 0 | GK60: 0 | GL60: 0 | GM60: 0 | GN60: 0 | GO60: 0 | GP60: =GP41 -> 0 | GQ60: 0 | GR60: 0 | GS60: 0 | GT60: 0 | GU60: 0 | GV60: 0 | GW60: 0 | GX60: 0 | GY60: 0 | GZ60: 0 | HA60: 0 | HB60: 0 | HC60: 0 | HD60: 0 | HE60: 0 | HF60: 0 | HG60: 0 | HH60: 0 | HI60: 0 | HJ60: 0 | HK60: 0 | HL60: 0 | HM60: 0 | HN60: 0 | HO60: 0 | HP60: 0 | HQ60: 0 | HR60: 0 | HS60: 0 | HT60: 0 | HU60: 0 | HV60: 0 | HW60: 0 | HX60: 0 | HY60: 0 | HZ60: 0 | IA60: 0 | IB60: 0 | IC60: 0 | ID60: 0 | IE60: 0 | IF60: 0 | IG60: 0 | IH60: 0 | II60: 0 | IJ60: 0 | IK60: 0 | IL60: 0 | IM60: 0 | IN60: 0 | IO60: 0 | IP60: 0 | IQ60: 0 | IR60: 0 | IS60: 0 | IT60: 0 | IU60: 0 | IV60: 0 | IW60: 0 | IX60: 0 | IY60: 0 | IZ60: 0 | JA60: 0 | JB60: =JB41 -> 0 | JC60: 0 | JD60: 0 | JE60: 0 | JF60: 0 | JG60: 0 | JH60: 0 | JI60: 0 | JJ60: 0 | JK60: 0 | JL60: 0 | JM60: 0 | JN60: 0 | JO60: 0 | JP60: 0 | JQ60: 0 | JR60: 0 | JS60: 0 | JT60: 0 | JU60: 0 | JV60: 0 | JW60: 0 | JX60: 0 | JY60: 0 | JZ60: 0 | KA60: 0 | KB60: 0 | KC60: 0 | KD60: 0 | KE60: 0 | KF60: 0 | KG60: 0 | KH60: 0 | KI60: 0 | KJ60: 0 | KK60: 0 | KL60: 0 | KM60: 0 | KN60: 0 | KO60: 0 | KP60: 0 | KQ60: 0 | KR60: 0 | KS60: 0 | KT60: 0 | KU60: 0 | KV60: 0 | KW60: 0 | KX60: 0 | KY60: 0 | KZ60: 0 | LA60: 0 | LB60: 0 | LC60: 0 | LD60: 0 | LE60: 0 | LF60: 0 | LG60: 0 | LH60: 0 | LI60: 0 | LJ60: 0 | LK60: 0 | LL60: 0 | LM60: 0 | LN60: =LN41 -> 0 | LO60: 0 | LP60: 0 | LQ60: 0 | LR60: 0 | LS60: 0 | LT60: 0 | LU60: 0 | LV60: 0 | LW60: 0 | LX60: 0 | LY60: 0 | LZ60: 0 | MA60: 0 | MB60: 0 | MC60: 0 | MD60: 0 | ME60: 0 | MF60: 0 | MG60: 0 | MH60: 0 | MI60: 0 | MJ60: 0 | MK60: 0 | ML60: 0 | MM60: 0 | MN60: 0 | MO60: 0 | MP60: 0 | MQ60: 0 | MR60: 0 | MS60: 0 | MT60: 0 | MU60: 0 | MV60: 0 | MW60: 0 | MX60: 0 | MY60: 0 | MZ60: 0 | NA60: 0 | NB60: 0 | NC60: 0 | ND60: 0 | NE60: 0 | NF60: 0 | NG60: 0 | NH60: 0 | NI60: 0 | NJ60: 0 | NK60: 0 | NL60: 0 | NM60: 0 | NN60: 0 | NO60: 0 | NP60: 0 | NQ60: 0 | NR60: 0 | NS60: 0 | NT60: 0 | NU60: 0 | NV60: 0 | NW60: 0 | NX60: 0 | NY60: 0 | NZ60: =NZ41 -> 0 | OA60: 0 | OB60: 0 | OC60: 0 | OD60: 0 | OE60: 0 | OF60: 0 | OG60: 0 | OH60: 0 | OI60: 0 | OJ60: 0 | OK60: 0 | OL60: 0 | OM60: 0 | ON60: 0 | OO60: 0 | OP60: 0 | OQ60: 0 | OR60: 0 | OS60: 0 | OT60: 0 | OU60: 0 | OV60: 0 | OW60: 0 | OX60: 0 | OY60: 0 | OZ60: 0 | PA60: 0 | PB60: 0 | PC60: 0 | PD60: 0 | PE60: 0 | PF60: 0 | PG60: 0 | PH60: 0 | PI60: 0 | PJ60: 0 | PK60: 0 | PL60: 0 | PM60: 0 | PN60: 0 | PO60: 0 | PP60: 0 | PQ60: 0 | PR60: 0 | PS60: 0 | PT60: 0 | PU60: 0 | PV60: 0 | PW60: 0 | PX60: 0 | PY60: 0 | PZ60: 0 | QA60: 0 | QB60: 0 | QC60: 0 | QD60: 0 | QE60: 0 | QF60: 0 | QG60: 0 | QH60: 0 | QI60: 0 | QJ60: 0 | QK60: 0 | QL60: =QL41 -> 0 | QM60: 0 | QN60: 0 | QO60: 0 | QP60: 0 | QQ60: 0 | QR60: 0 | QS60: 0 | QT60: 0 | QU60: 0 | QV60: 0 | QW60: 0 | QX60: 0 | QY60: 0 | QZ60: 0 | RA60: 0 | RB60: 0 | RC60: 0 | RD60: 0 | RE60: 0 | RF60: 0 | RG60: 0 | RH60: 0 | RI60: 0 | RJ60: 0 | RK60: 0 | RL60: 0 | RM60: 0 | RN60: 0 | RO60: 0 | RP60: 0 | RQ60: 0 | RR60: 0 | RS60: 0 | RT60: 0 | RU60: 0 | RV60: 0 | RW60: 0 | RX60: 0 | RY60: 0 | RZ60: 0 | SA60: 0 | SB60: 0 | SC60: 0 | SD60: 0 | SE60: 0 | SF60: 0 | SG60: 0 | SH60: 0 | SI60: 0 | SJ60: 0 | SK60: 0 | SL60: 0 | SM60: 0 | SN60: 0 | SO60: 0 | SP60: 0 | SQ60: 0 | SR60: 0 | SS60: 0 | ST60: 0 | SU60: 0 | SV60: 0 | SW60: 0 | SX60: =SX41 -> 0 | SY60: 0 | SZ60: 0 | TA60: 0 | TB60: 0 | TC60: 0 | TD60: 0 | TE60: 0 | TF60: 0 | TG60: 0 | TH60: 0 | TI60: 0 | TJ60: 0 | TK60: 0 | TL60: 0 | TM60: 0 | TN60: 0 | TO60: 0 | TP60: 0 | TQ60: 0 | TR60: 0 | TS60: 0 | TT60: 0 | TU60: 0 | TV60: 0 | TW60: 0 | TX60: 0 | TY60: 0 | TZ60: 0 | UA60: 0 | UB60: 0 | UC60: 0 | UD60: 0 | UE60: 0 | UF60: 0 | UG60: 0 | UH60: 0 | UI60: 0 | UJ60: 0 | UK60: 0 | UL60: 0 | UM60: 0 | UN60: 0 | UO60: 0 | UP60: 0 | UQ60: 0 | UR60: 0 | US60: 0 | UT60: 0 | UU60: 0 | UV60: 0 | UW60: 0 | UX60: 0 | UY60: 0 | UZ60: 0 | VA60: 0 | VB60: 0 | VC60: 0 | VD60: 0 | VE60: 0 | VF60: 0 | VG60: 0 | VH60: 0 | VI60: 0 | VJ60: =VJ41 -> 0 | VK60: 0 | VL60: 0 | VM60: 0 | VN60: 0 | VO60: 0 | VP60: 0 | VQ60: 0 | VR60: 0 | VS60: 0 | VT60: 0 | VU60: 0 | VV60: 0 | VW60: 0 | VX60: 0 | VY60: 0 | VZ60: 0 | WA60: 0 | WB60: 0 | WC60: 0 | WD60: 0 | WE60: 0 | WF60: 0 | WG60: 0 | WH60: 0 | WI60: 0 | WJ60: 0 | WK60: 0 | WL60: 0 | WM60: 0 | WN60: 0 | WO60: 0 | WP60: 0 | WQ60: 0 | WR60: 0 | WS60: 0 | WT60: 0 | WU60: 0 | WV60: 0 | WW60: 0 | WX60: 0 | WY60: 0 | WZ60: 0 | XA60: 0 | XB60: 0 | XC60: 0 | XD60: 0 | XE60: 0 | XF60: 0 | XG60: 0 | XH60: 0 | XI60: 0 | XJ60: 0 | XK60: 0 | XL60: 0 | XM60: 0 | XN60: 0 | XO60: 0 | XP60: 0 | XQ60: 0 | XR60: 0 | XS60: 0 | XT60: 0 | XU60: 0 | XV60: =XV41 -> 0 | XW60: 0 | XX60: 0 | XY60: 0 | XZ60: 0 | YA60: 0 | YB60: 0 | YC60: 0 | YD60: 0 | YE60: 0 | YF60: 0 | YG60: 0 | YH60: 0 | YI60: 0 | YJ60: 0 | YK60: 0 | YL60: 0 | YM60: 0 | YN60: 0 | YO60: 0 | YP60: 0 | YQ60: 0 | YR60: 0 | YS60: 0 | YT60: 0 | YU60: 0 | YV60: 0 | YW60: 0 | YX60: 0 | YY60: 0 | YZ60: 0 | ZA60: 0 | ZB60: 0 | ZC60: 0 | ZD60: 0 | ZE60: 0 | ZF60: 0 | ZG60: 0 | ZH60: 0 | ZI60: 0 | ZJ60: 0 | ZK60: 0 | ZL60: 0 | ZM60: 0 | ZN60: 0 | ZO60: 0 | ZP60: 0 | ZQ60: 0 | ZR60: 0 | ZS60: 0 | ZT60: 0 | ZU60: 0 | ZV60: 0 | ZW60: 0 | ZX60: 0 | ZY60: 0 | ZZ60: 0 | AAA60: 0 | AAB60: 0 | AAC60: 0 | AAD60: 0 | AAE60: 0 | AAF60: 0 | AAG60: 0 | AAH60: =AAH41 -> 0 | AAI60: 0 | AAJ60: 0 | AAK60: 0 | AAL60: 0 | AAM60: 0 | AAN60: 0 | AAO60: 0 | AAP60: 0 | AAQ60: 0 | AAR60: 0 | AAS60: 0 | AAT60: 0 | AAU60: 0 | AAV60: 0 | AAW60: 0 | AAX60: 0 | AAY60: 0 | AAZ60: 0 | ABA60: 0 | ABB60: 0 | ABC60: 0 | ABD60: 0 | ABE60: 0 | ABF60: 0 | ABG60: 0 | ABH60: 0 | ABI60: 0 | ABJ60: 0 | ABK60: 0 | ABL60: 0 | ABM60: 0 | ABN60: 0 | ABO60: 0 | ABP60: 0 | ABQ60: 0 | ABR60: 0 | ABS60: 0 | ABT60: 0 | ABU60: 0 | ABV60: 0 | ABW60: 0 | ABX60: 0 | ABY60: 0 | ABZ60: 0 | ACA60: 0 | ACB60: 0 | ACC60: 0 | ACD60: 0 | ACE60: 0 | ACF60: 0 | ACG60: 0 | ACH60: 0 | ACI60: 0 | ACJ60: 0 | ACK60: 0 | ACL60: 0 | ACM60: 0 | ACN60: 0 | ACO60: 0 | ACP60: 0 | ACQ60: 0 | ACR60: 0 | ACS60: 0 | ACT60: =ACT41 -> 0 | ACU60: 0 | ACV60: 0 | ACW60: 0 | ACX60: 0 | ACY60: 0 | ACZ60: 0 | ADA60: 0 | ADB60: 0 | ADC60: 0 | ADD60: 0 | ADE60: 0 | ADF60: 0 | ADG60: 0 | ADH60: 0 | ADI60: 0 | ADJ60: 0 | ADK60: 0 | ADL60: 0 | ADM60: 0 | ADN60: 0 | ADO60: 0 | ADP60: 0 | ADQ60: 0 | ADR60: 0 | ADS60: 0 | ADT60: 0 | ADU60: 0 | ADV60: 0 | ADW60: 0 | ADX60: 0 | ADY60: 0 | ADZ60: 0 | AEA60: 0 | AEB60: 0 | AEC60: 0 | AED60: 0 | AEE60: 0 | AEF60: 0 | AEG60: 0 | AEH60: 0 | AEI60: 0 | AEJ60: 0 | AEK60: 0 | AEL60: 0 | AEM60: 0 | AEN60: 0 | AEO60: 0 | AEP60: 0 | AEQ60: 0 | AER60: 0 | AES60: 0 | AET60: 0 | AEU60: 0 | AEV60: 0 | AEW60: 0 | AEX60: 0 | AEY60: 0 | AEZ60: 0 | AFA60: 0 | AFB60: 0 | AFC60: 0 | AFD60: 0 | AFE60: 0 | AFF60: =AFF41 -> 0 | AFG60: 0 | AFH60: 0 | AFI60: 0 | AFJ60: 0 | AFK60: 0 | AFL60: 0 | AFM60: 0 | AFN60: 0 | AFO60: 0 | AFP60: 0 | AFQ60: 0 | AFR60: 0 | AFS60: 0 | AFT60: 0 | AFU60: 0 | AFV60: 0 | AFW60: 0 | AFX60: 0 | AFY60: 0 | AFZ60: 0 | AGA60: 0 | AGB60: 0 | AGC60: 0 | AGD60: 0 | AGE60: 0 | AGF60: 0 | AGG60: 0 | AGH60: 0 | AGI60: 0 | AGJ60: 0 | AGK60: 0 | AGL60: 0 | AGM60: 0 | AGN60: 0 | AGO60: 0 | AGP60: 0 | AGQ60: 0 | AGR60: 0 | AGS60: 0 | AGT60: 0 | AGU60: 0 | AGV60: 0 | AGW60: 0 | AGX60: 0 | AGY60: 0 | AGZ60: 0 | AHA60: 0 | AHB60: 0 | AHC60: 0 | AHD60: 0 | AHE60: 0 | AHF60: 0 | AHG60: 0 | AHH60: 0 | AHI60: 0 | AHJ60: 0 | AHK60: 0 | AHL60: 0 | AHM60: 0 | AHN60: 0 | AHO60: 0 | AHP60: 0 | AHQ60: 0 | AHR60: =AHR41 -> 0 | AHS60: 0 | AHT60: 0 | AHU60: 0 | AHV60: 0 | AHW60: 0 | AHX60: 0 | AHY60: 0 | AHZ60: 0 | AIA60: 0 | AIB60: 0 | AIC60: 0 | AID60: 0 | AIE60: 0 | AIF60: 0 | AIG60: 0 | AIH60: 0 | AII60: 0 | AIJ60: 0 | AIK60: 0 | AIL60: 0 | AIM60: 0 | AIN60: 0 | AIO60: 0 | AIP60: 0 | AIQ60: 0 | AIR60: 0 | AIS60: 0 | AIT60: 0 | AIU60: 0 | AIV60: 0 | AIW60: 0 | AIX60: 0 | AIY60: 0 | AIZ60: 0 | AJA60: 0 | AJB60: 0 | AJC60: 0 | AJD60: 0 | AJE60: 0 | AJF60: 0 | AJG60: 0 | AJH60: 0 | AJI60: 0 | AJJ60: 0 | AJK60: 0 | AJL60: 0 | AJM60: 0 | AJN60: 0 | AJO60: 0 | AJP60: 0 | AJQ60: 0 | AJR60: 0 | AJS60: 0 | AJT60: 0 | AJU60: 0 | AJV60: 0 | AJW60: 0 | AJX60: 0 | AJY60: 0 | AJZ60: 0 | AKA60: 0 | AKB60: 0 | AKC60: 0 | AKD60: =AKD41 -> 0 | AKE60: 0 | AKF60: 0 | AKG60: 0 | AKH60: 0 | AKI60: 0 | AKJ60: 0 | AKK60: 0 | AKL60: 0 | AKM60: 0 | AKN60: 0 | AKO60: 0 | AKP60: 0 | AKQ60: 0 | AKR60: 0 | AKS60: 0 | AKT60: 0 | AKU60: 0 | AKV60: 0 | AKW60: 0 | AKX60: 0 | AKY60: 0 | AKZ60: 0 | ALA60: 0 | ALB60: 0 | ALC60: 0 | ALD60: 0 | ALE60: 0 | ALF60: 0 | ALG60: 0 | ALH60: 0 | ALI60: 0 | ALJ60: 0 | ALK60: 0 | ALL60: 0 | ALM60: 0 | ALN60: 0 | ALO60: 0 | ALP60: 0 | ALQ60: 0 | ALR60: 0 | ALS60: 0 | ALT60: 0 | ALU60: 0 | ALV60: 0 | ALW60: 0 | ALX60: 0 | ALY60: 0 | ALZ60: 0 | AMA60: 0 | AMB60: 0 | AMC60: 0 | AMD60: 0 | AME60: 0 | AMF60: 0 | AMG60: 0 | AMH60: 0 | AMI60: 0 | AMJ60: 0 | AMK60: 0 | AML60: 0 | AMM60: 0 | AMN60: 0 | AMO60: 0 | AMP60: =AMP41 -> 0 | AMQ60: 0 | AMR60: 0 | AMS60: 0 | AMT60: 0 | AMU60: 0 | AMV60: 0 | AMW60: 0 | AMX60: 0 | AMY60: 0 | AMZ60: 0 | ANA60: 0 | ANB60: 0 | ANC60: 0 | AND60: 0 | ANE60: 0 | ANF60: 0 | ANG60: 0 | ANH60: 0 | ANI60: 0 | ANJ60: 0 | ANK60: 0 | ANL60: 0 | ANM60: 0 | ANN60: 0 | ANO60: 0 | ANP60: 0 | ANQ60: 0 | ANR60: 0 | ANS60: 0 | ANT60: 0 | ANU60: 0 | ANV60: 0 | ANW60: 0 | ANX60: 0 | ANY60: 0 | ANZ60: 0 | AOA60: 0 | AOB60: 0 | AOC60: 0 | AOD60: 0 | AOE60: 0 | AOF60: 0 | AOG60: 0 | AOH60: 0 | AOI60: 0 | AOJ60: 0 | AOK60: 0 | AOL60: 0 | AOM60: 0 | AON60: 0 | AOO60: 0 | AOP60: 0 | AOQ60: 0 | AOR60: 0 | AOS60: 0 | AOT60: 0 | AOU60: 0 | AOV60: 0 | AOW60: 0 | AOX60: 0 | AOY60: 0 | AOZ60: 0 | APA60: 0 | APB60: =APB41 -> 0 | APC60: 0 | APD60: 0 | APE60: 0 | APF60: 0 | APG60: 0 | APH60: 0 | API60: 0 | APJ60: 0 | APK60: 0 | APL60: 0 | APM60: 0 | APN60: 0 | APO60: 0 | APP60: 0 | APQ60: 0 | APR60: 0 | APS60: 0 | APT60: 0 | APU60: 0 | APV60: 0 | APW60: 0 | APX60: 0 | APY60: 0 | APZ60: 0 | AQA60: 0 | AQB60: 0 | AQC60: 0 | AQD60: 0 | AQE60: 0 | AQF60: 0 | AQG60: 0 | AQH60: 0 | AQI60: 0 | AQJ60: 0 | AQK60: 0 | AQL60: 0 | AQM60: 0 | AQN60: 0 | AQO60: 0 | AQP60: 0 | AQQ60: 0 | AQR60: 0 | AQS60: 0 | AQT60: 0 | AQU60: 0 | AQV60: 0 | AQW60: 0 | AQX60: 0 | AQY60: 0 | AQZ60: 0 | ARA60: 0 | ARB60: 0 | ARC60: 0 | ARD60: 0 | ARE60: 0 | ARF60: 0 | ARG60: 0 | ARH60: 0 | ARI60: 0 | ARJ60: 0 | ARK60: 0 | ARL60: 0 | ARM60: 0 | ARN60: =ARN41 -> 0 | ARO60: 0 | ARP60: 0 | ARQ60: 0 | ARR60: 0 | ARS60: 0 | ART60: 0 | ARU60: 0 | ARV60: 0 | ARW60: 0 | ARX60: 0 | ARY60: 0 | ARZ60: 0 | ASA60: 0 | ASB60: 0 | ASC60: 0 | ASD60: 0 | ASE60: 0 | ASF60: 0 | ASG60: 0 | ASH60: 0 | ASI60: 0 | ASJ60: 0 | ASK60: 0 | ASL60: 0 | ASM60: 0 | ASN60: 0 | ASO60: 0 | ASP60: 0 | ASQ60: 0 | ASR60: 0 | ASS60: 0 | AST60: 0 | ASU60: 0 | ASV60: 0 | ASW60: 0 | ASX60: 0 | ASY60: 0 | ASZ60: 0 | ATA60: 0 | ATB60: 0 | ATC60: 0 | ATD60: 0 | ATE60: 0 | ATF60: 0 | ATG60: 0 | ATH60: 0 | ATI60: 0 | ATJ60: 0 | ATK60: 0 | ATL60: 0 | ATM60: 0 | ATN60: 0 | ATO60: 0 | ATP60: 0 | ATQ60: 0 | ATR60: 0 | ATS60: 0 | ATT60: 0 | ATU60: 0 | ATV60: 0 | ATW60: 0 | ATX60: 0 | ATY60: 0 | ATZ60: =ATZ41 -> 0 | AUA60: 0 | AUB60: 0 | AUC60: 0 | AUD60: 0 | AUE60: 0 | AUF60: 0 | AUG60: 0 | AUH60: 0 | AUI60: 0 | AUJ60: 0 | AUK60: 0 | AUL60: 0 | AUM60: 0 | AUN60: 0 | AUO60: 0 | AUP60: 0 | AUQ60: 0 | AUR60: 0 | AUS60: 0 | AUT60: 0 | AUU60: 0 | AUV60: 0 | AUW60: 0 | AUX60: 0 | AUY60: 0 | AUZ60: 0 | AVA60: 0 | AVB60: 0 | AVC60: 0 | AVD60: 0 | AVE60: 0 | AVF60: 0 | AVG60: 0 | AVH60: 0 | AVI60: 0 | AVJ60: 0 | AVK60: 0 | AVL60: 0 | AVM60: 0 | AVN60: 0 | AVO60: 0 | AVP60: 0 | AVQ60: 0 | AVR60: 0 | AVS60: 0 | AVT60: 0 | AVU60: 0 | AVV60: 0 | AVW60: 0 | AVX60: 0 | AVY60: 0 | AVZ60: 0 | AWA60: 0 | AWB60: 0 | AWC60: 0 | AWD60: 0 | AWE60: 0 | AWF60: 0 | AWG60: 0 | AWH60: 0 | AWI60: 0 | AWJ60: 0 | AWK60: 0 | AWL60: =AWL41 -> 0 | AWM60: 0 | AWN60: 0 | AWO60: 0 | AWP60: 0 | AWQ60: 0 | AWR60: 0 | AWS60: 0 | AWT60: 0 | AWU60: 0 | AWV60: 0 | AWW60: 0 | AWX60: 0 | AWY60: 0 | AWZ60: 0 | AXA60: 0 | AXB60: 0 | AXC60: 0 | AXD60: 0 | AXE60: 0 | AXF60: 0 | AXG60: 0 | AXH60: 0 | AXI60: 0 | AXJ60: 0 | AXK60: 0 | AXL60: 0 | AXM60: 0 | AXN60: 0 | AXO60: 0 | AXP60: 0 | AXQ60: 0 | AXR60: 0 | AXS60: 0 | AXT60: 0 | AXU60: 0 | AXV60: 0 | AXW60: 0 | AXX60: 0 | AXY60: 0 | AXZ60: 0 | AYA60: 0 | AYB60: 0 | AYC60: 0 | AYD60: 0 | AYE60: 0 | AYF60: 0 | AYG60: 0 | AYH60: 0 | AYI60: 0 | AYJ60: 0 | AYK60: 0 | AYL60: 0 | AYM60: 0 | AYN60: 0 | AYO60: 0 | AYP60: 0 | AYQ60: 0 | AYR60: 0 | AYS60: 0 | AYT60: 0 | AYU60: 0 | AYV60: 0 | AYW60: 0 | AYX60: =AYX41 -> 0 | AYY60: 0 | AYZ60: 0 | AZA60: 0 | AZB60: 0 | AZC60: 0 | AZD60: 0 | AZE60: 0 | AZF60: 0 | AZG60: 0 | AZH60: 0 | AZI60: 0 | AZJ60: 0 | AZK60: 0 | AZL60: 0 | AZM60: 0 | AZN60: 0 | AZO60: 0 | AZP60: 0 | AZQ60: 0 | AZR60: 0 | AZS60: 0 | AZT60: 0 | AZU60: 0 | AZV60: 0 | AZW60: 0 | AZX60: 0 | AZY60: 0 | AZZ60: 0 | BAA60: 0 | BAB60: 0 | BAC60: 0 | BAD60: 0 | BAE60: 0 | BAF60: 0 | BAG60: 0 | BAH60: 0 | BAI60: 0 | BAJ60: 0 | BAK60: 0 | BAL60: 0 | BAM60: 0 | BAN60: 0 | BAO60: 0 | BAP60: 0 | BAQ60: 0 | BAR60: 0 | BAS60: 0 | BAT60: 0 | BAU60: 0 | BAV60: 0 | BAW60: 0 | BAX60: 0 | BAY60: 0 | BAZ60: 0 | BBA60: 0 | BBB60: 0 | BBC60: 0 | BBD60: 0 | BBE60: 0 | BBF60: 0 | BBG60: 0 | BBH60: 0 | BBI60: 0 | BBJ60: =BBJ41 -> 0 | BBK60: 0 | BBL60: 0 | BBM60: 0 | BBN60: 0 | BBO60: 0 | BBP60: 0 | BBQ60: 0 | BBR60: 0 | BBS60: 0 | BBT60: 0 | BBU60: 0 | BBV60: 0 | BBW60: 0 | BBX60: 0 | BBY60: 0 | BBZ60: 0 | BCA60: 0 | BCB60: 0 | BCC60: 0 | BCD60: 0 | BCE60: 0 | BCF60: 0 | BCG60: 0 | BCH60: 0 | BCI60: 0 | BCJ60: 0 | BCK60: 0 | BCL60: 0 | BCM60: 0 | BCN60: 0 | BCO60: 0 | BCP60: 0 | BCQ60: 0 | BCR60: 0 | BCS60: 0 | BCT60: 0 | BCU60: 0 | BCV60: 0 | BCW60: 0 | BCX60: 0 | BCY60: 0 | BCZ60: 0 | BDA60: 0 | BDB60: 0 | BDC60: 0 | BDD60: 0 | BDE60: 0 | BDF60: 0 | BDG60: 0 | BDH60: 0 | BDI60: 0 | BDJ60: 0 | BDK60: 0 | BDL60: 0 | BDM60: 0 | BDN60: 0 | BDO60: 0 | BDP60: 0 | BDQ60: 0 | BDR60: 0 | BDS60: 0 | BDT60: 0 | BDU60: 0 | BDV60: =BDV41 -> 0 | BDW60: 0 | BDX60: 0 | BDY60: 0 | BDZ60: 0 | BEA60: 0 | BEB60: 0 | BEC60: 0 | BED60: 0 | BEE60: 0 | BEF60: 0 | BEG60: 0 | BEH60: 0 | BEI60: 0 | BEJ60: 0 | BEK60: 0 | BEL60: 0 | BEM60: 0 | BEN60: 0 | BEO60: 0 | BEP60: 0 | BEQ60: 0 | BER60: 0 | BES60: 0 | BET60: 0 | BEU60: 0 | BEV60: 0 | BEW60: 0 | BEX60: 0 | BEY60: 0 | BEZ60: 0 | BFA60: 0 | BFB60: 0 | BFC60: 0 | BFD60: 0 | BFE60: 0 | BFF60: 0 | BFG60: 0 | BFH60: 0 | BFI60: 0 | BFJ60: 0 | BFK60: 0 | BFL60: 0 | BFM60: 0 | BFN60: 0 | BFO60: 0 | BFP60: 0 | BFQ60: 0 | BFR60: 0 | BFS60: 0 | BFT60: 0 | BFU60: 0 | BFV60: 0 | BFW60: 0 | BFX60: 0 | BFY60: 0 | BFZ60: 0 | BGA60: 0 | BGB60: 0 | BGC60: 0 | BGD60: 0 | BGE60: 0 | BGF60: 0 | BGG60: 0 | BGH60: =BGH41 -> 0 | BGI60: 0 | BGJ60: 0 | BGK60: 0 | BGL60: 0 | BGM60: 0 | BGN60: 0 | BGO60: 0 | BGP60: 0 | BGQ60: 0 | BGR60: 0 | BGS60: 0 | BGT60: 0 | BGU60: 0 | BGV60: 0 | BGW60: 0 | BGX60: 0 | BGY60: 0 | BGZ60: 0 | BHA60: 0 | BHB60: 0 | BHC60: 0 | BHD60: 0 | BHE60: 0 | BHF60: 0 | BHG60: 0 | BHH60: 0 | BHI60: 0 | BHJ60: 0 | BHK60: 0 | BHL60: 0 | BHM60: 0 | BHN60: 0 | BHO60: 0 | BHP60: 0 | BHQ60: 0 | BHR60: 0 | BHS60: 0 | BHT60: 0 | BHU60: 0 | BHV60: 0 | BHW60: 0 | BHX60: 0 | BHY60: 0 | BHZ60: 0 | BIA60: 0 | BIB60: 0 | BIC60: 0 | BID60: 0 | BIE60: 0 | BIF60: 0 | BIG60: 0 | BIH60: 0 | BII60: 0 | BIJ60: 0 | BIK60: 0 | BIL60: 0 | BIM60: 0 | BIN60: 0 | BIO60: 0 | BIP60: 0 | BIQ60: 0 | BIR60: 0 | BIS60: 0 | BIT60: =BIT41 -> 0 | BIU60: 0 | BIV60: 0 | BIW60: 0 | BIX60: 0 | BIY60: 0 | BIZ60: 0 | BJA60: 0 | BJB60: 0 | BJC60: 0 | BJD60: 0 | BJE60: 0 | BJF60: 0 | BJG60: 0 | BJH60: 0 | BJI60: 0 | BJJ60: 0 | BJK60: 0 | BJL60: 0 | BJM60: 0 | BJN60: 0 | BJO60: 0 | BJP60: 0 | BJQ60: 0 | BJR60: 0 | BJS60: 0 | BJT60: 0 | BJU60: 0 | BJV60: 0 | BJW60: 0 | BJX60: 0 | BJY60: 0 | BJZ60: 0 | BKA60: 0 | BKB60: 0 | BKC60: 0 | BKD60: 0 | BKE60: 0 | BKF60: 0 | BKG60: 0 | BKH60: 0 | BKI60: 0 | BKJ60: 0 | BKK60: 0 | BKL60: 0 | BKM60: 0 | BKN60: 0 | BKO60: 0 | BKP60: 0 | BKQ60: 0 | BKR60: 0 | BKS60: 0 | BKT60: 0 | BKU60: 0 | BKV60: 0 | BKW60: 0 | BKX60: 0 | BKY60: 0 | BKZ60: 0 | BLA60: 0 | BLB60: 0 | BLC60: 0 | BLD60: 0 | BLE60: 0 | BLF60: =BLF41 -> 0 | BLG60: 0 | BLH60: 0 | BLI60: 0 | BLJ60: 0 | BLK60: 0 | BLL60: 0 | BLM60: 0 | BLN60: 0 | BLO60: 0 | BLP60: 0 | BLQ60: 0 | BLR60: 0 | BLS60: 0 | BLT60: 0 | BLU60: 0 | BLV60: 0 | BLW60: 0 | BLX60: 0 | BLY60: 0 | BLZ60: 0 | BMA60: 0 | BMB60: 0 | BMC60: 0 | BMD60: 0 | BME60: 0 | BMF60: 0 | BMG60: 0 | BMH60: 0 | BMI60: 0 | BMJ60: 0 | BMK60: 0 | BML60: 0 | BMM60: 0 | BMN60: 0 | BMO60: 0 | BMP60: 0 | BMQ60: 0 | BMR60: 0 | BMS60: 0 | BMT60: 0 | BMU60: 0 | BMV60: 0 | BMW60: 0 | BMX60: 0 | BMY60: 0 | BMZ60: 0 | BNA60: 0 | BNB60: 0 | BNC60: 0 | BND60: 0 | BNE60: 0 | BNF60: 0 | BNG60: 0 | BNH60: 0 | BNI60: 0 | BNJ60: 0 | BNK60: 0 | BNL60: 0 | BNM60: 0 | BNN60: 0 | BNO60: 0 | BNP60: 0 | BNQ60: 0 | BNR60: =BNR41 -> 0 | BNS60: 0 | BNT60: 0 | BNU60: 0 | BNV60: 0 | BNW60: 0 | BNX60: 0 | BNY60: 0 | BNZ60: 0 | BOA60: 0 | BOB60: 0 | BOC60: 0 | BOD60: 0 | BOE60: 0 | BOF60: 0 | BOG60: 0 | BOH60: 0 | BOI60: 0 | BOJ60: 0 | BOK60: 0 | BOL60: 0 | BOM60: 0 | BON60: 0 | BOO60: 0 | BOP60: 0 | BOQ60: 0 | BOR60: 0 | BOS60: 0 | BOT60: 0 | BOU60: 0 | BOV60: 0 | BOW60: 0 | BOX60: 0 | BOY60: 0 | BOZ60: 0 | BPA60: 0 | BPB60: 0 | BPC60: 0 | BPD60: 0 | BPE60: 0 | BPF60: 0 | BPG60: 0 | BPH60: 0 | BPI60: 0 | BPJ60: 0 | BPK60: 0 | BPL60: 0 | BPM60: 0 | BPN60: 0 | BPO60: 0 | BPP60: 0 | BPQ60: 0 | BPR60: 0 | BPS60: 0 | BPT60: 0 | BPU60: 0 | BPV60: 0 | BPW60: 0 | BPX60: 0 | BPY60: 0 | BPZ60: 0 | BQA60: 0 | BQB60: 0 | BQC60: 0 | BQD60: =BQD41 -> 0 | BQE60: 0 | BQF60: 0 | BQG60: 0 | BQH60: 0 | BQI60: 0 | BQJ60: 0 | BQK60: 0 | BQL60: 0 | BQM60: 0 | BQN60: 0 | BQO60: 0 | BQP60: 0 | BQQ60: 0 | BQR60: 0 | BQS60: 0 | BQT60: 0 | BQU60: 0 | BQV60: 0 | BQW60: 0 | BQX60: 0 | BQY60: 0 | BQZ60: 0 | BRA60: 0 | BRB60: 0 | BRC60: 0 | BRD60: 0 | BRE60: 0 | BRF60: 0 | BRG60: 0 | BRH60: 0 | BRI60: 0 | BRJ60: 0 | BRK60: 0 | BRL60: 0 | BRM60: 0 | BRN60: 0 | BRO60: 0 | BRP60: 0 | BRQ60: 0 | BRR60: 0 | BRS60: 0 | BRT60: 0 | BRU60: 0 | BRV60: 0 | BRW60: 0 | BRX60: 0 | BRY60: 0 | BRZ60: 0 | BSA60: 0 | BSB60: 0 | BSC60: 0 | BSD60: 0 | BSE60: 0 | BSF60: 0 | BSG60: 0 | BSH60: 0 | BSI60: 0 | BSJ60: 0 | BSK60: 0 | BSL60: 0 | BSM60: 0 | BSN60: 0 | BSO60: 0 | BSP60: =BSP41 -> 0 | BSQ60: 0 | BSR60: 0 | BSS60: 0 | BST60: 0 | BSU60: 0 | BSV60: 0 | BSW60: 0 | BSX60: 0 | BSY60: 0 | BSZ60: 0 | BTA60: 0 | BTB60: 0 | BTC60: 0 | BTD60: 0 | BTE60: 0 | BTF60: 0 | BTG60: 0 | BTH60: 0 | BTI60: 0 | BTJ60: 0 | BTK60: 0 | BTL60: 0 | BTM60: 0 | BTN60: 0 | BTO60: 0 | BTP60: 0 | BTQ60: 0 | BTR60: 0 | BTS60: 0 | BTT60: 0 | BTU60: 0 | BTV60: 0 | BTW60: 0 | BTX60: 0 | BTY60: 0 | BTZ60: 0 | BUA60: 0 | BUB60: 0 | BUC60: 0 | BUD60: 0 | BUE60: 0 | BUF60: 0 | BUG60: 0 | BUH60: 0 | BUI60: 0 | BUJ60: 0 | BUK60: 0 | BUL60: 0 | BUM60: 0 | BUN60: 0 | BUO60: 0 | BUP60: 0 | BUQ60: 0 | BUR60: 0 | BUS60: 0 | BUT60: 0 | BUU60: 0 | BUV60: 0 | BUW60: 0 | BUX60: 0 | BUY60: 0 | BUZ60: 0 | BVA60: 0 | BVB60: =BVB41 -> 0 | BVC60: 0 | BVD60: 0 | BVE60: 0 | BVF60: 0 | BVG60: 0 | BVH60: 0 | BVI60: 0 | BVJ60: 0 | BVK60: 0 | BVL60: 0 | BVM60: 0 | BVN60: 0 | BVO60: 0 | BVP60: 0 | BVQ60: 0 | BVR60: 0 | BVS60: 0 | BVT60: 0 | BVU60: 0 | BVV60: 0 | BVW60: 0 | BVX60: 0 | BVY60: 0 | BVZ60: 0 | BWA60: 0 | BWB60: 0 | BWC60: 0 | BWD60: 0 | BWE60: 0 | BWF60: 0 | BWG60: 0 | BWH60: 0 | BWI60: 0 | BWJ60: 0 | BWK60: 0 | BWL60: 0 | BWM60: 0 | BWN60: 0 | BWO60: 0 | BWP60: 0 | BWQ60: 0 | BWR60: 0 | BWS60: 0 | BWT60: 0 | BWU60: 0 | BWV60: 0 | BWW60: 0 | BWX60: 0 | BWY60: 0 | BWZ60: 0 | BXA60: 0 | BXB60: 0 | BXC60: 0 | BXD60: 0 | BXE60: 0 | BXF60: 0 | BXG60: 0 | BXH60: 0 | BXI60: 0 | BXJ60: 0 | BXK60: 0 | BXL60: 0 | BXM60: 0 | BXN60: =BXN41 -> 0 | BXO60: 0 | BXP60: 0 | BXQ60: 0 | BXR60: 0 | BXS60: 0 | BXT60: 0 | BXU60: 0 | BXV60: 0 | BXW60: 0 | BXX60: 0 | BXY60: 0 | BXZ60: 0 | BYA60: 0 | BYB60: 0 | BYC60: 0 | BYD60: 0 | BYE60: 0 | BYF60: 0 | BYG60: 0 | BYH60: 0 | BYI60: 0 | BYJ60: 0 | BYK60: 0 | BYL60: 0 | BYM60: 0 | BYN60: 0 | BYO60: 0 | BYP60: 0 | BYQ60: 0 | BYR60: 0 | BYS60: 0 | BYT60: 0 | BYU60: 0 | BYV60: 0 | BYW60: 0 | BYX60: 0 | BYY60: 0 | BYZ60: 0 | BZA60: 0 | BZB60: 0 | BZC60: 0 | BZD60: 0 | BZE60: 0 | BZF60: 0 | BZG60: 0 | BZH60: 0 | BZI60: 0 | BZJ60: 0 | BZK60: 0 | BZL60: 0 | BZM60: 0 | BZN60: 0 | BZO60: 0 | BZP60: 0 | BZQ60: 0 | BZR60: 0 | BZS60: 0 | BZT60: 0 | BZU60: 0 | BZV60: 0 | BZW60: 0 | BZX60: 0 | BZY60: 0 | BZZ60: =BZZ41 -> 0 | CAA60: 0 | CAB60: 0 | CAC60: 0 | CAD60: 0 | CAE60: 0 | CAF60: 0 | CAG60: 0 | CAH60: 0 | CAI60: 0 | CAJ60: 0 | CAK60: 0 | CAL60: 0 | CAM60: 0 | CAN60: 0 | CAO60: 0 | CAP60: 0 | CAQ60: 0 | CAR60: 0 | CAS60: 0 | CAT60: 0 | CAU60: 0 | CAV60: 0 | CAW60: 0 | CAX60: 0 | CAY60: 0 | CAZ60: 0 | CBA60: 0 | CBB60: 0 | CBC60: 0 | CBD60: 0 | CBE60: 0 | CBF60: 0 | CBG60: 0 | CBH60: 0 | CBI60: 0 | CBJ60: 0 | CBK60: 0 | CBL60: 0 | CBM60: 0 | CBN60: 0 | CBO60: 0 | CBP60: 0 | CBQ60: 0 | CBR60: 0 | CBS60: 0 | CBT60: 0 | CBU60: 0 | CBV60: 0 | CBW60: 0 | CBX60: 0 | CBY60: 0 | CBZ60: 0 | CCA60: 0 | CCB60: 0 | CCC60: 0 | CCD60: 0 | CCE60: 0 | CCF60: 0 | CCG60: 0 | CCH60: 0 | CCI60: 0 | CCJ60: 0 | CCK60: 0 | CCL60: =CCL41 -> 0 | CCM60: 0 | CCN60: 0 | CCO60: 0 | CCP60: 0 | CCQ60: 0 | CCR60: 0 | CCS60: 0 | CCT60: 0 | CCU60: 0 | CCV60: 0 | CCW60: 0 | CCX60: 0 | CCY60: 0 | CCZ60: 0 | CDA60: 0 | CDB60: 0 | CDC60: 0 | CDD60: 0 | CDE60: 0 | CDF60: 0 | CDG60: 0 | CDH60: 0 | CDI60: 0 | CDJ60: 0 | CDK60: 0 | CDL60: 0 | CDM60: 0 | CDN60: 0 | CDO60: 0 | CDP60: 0 | CDQ60: 0 | CDR60: 0 | CDS60: 0 | CDT60: 0 | CDU60: 0 | CDV60: 0 | CDW60: 0 | CDX60: 0 | CDY60: 0 | CDZ60: 0 | CEA60: 0 | CEB60: 0 | CEC60: 0 | CED60: 0 | CEE60: 0 | CEF60: 0 | CEG60: 0 | CEH60: 0 | CEI60: 0 | CEJ60: 0 | CEK60: 0 | CEL60: 0 | CEM60: 0 | CEN60: 0 | CEO60: 0 | CEP60: 0 | CEQ60: 0 | CER60: 0 | CES60: 0 | CET60: 0 | CEU60: 0 | CEV60: 0 | CEW60: 0 | CEX60: =CEX41 -> 0 | CEY60: 0 | CEZ60: 0 | CFA60: 0 | CFB60: 0 | CFC60: 0 | CFD60: 0 | CFE60: 0 | CFF60: 0 | CFG60: 0 | CFH60: 0 | CFI60: 0 | CFJ60: 0 | CFK60: 0 | CFL60: 0 | CFM60: 0 | CFN60: 0 | CFO60: 0 | CFP60: 0 | CFQ60: 0 | CFR60: 0 | CFS60: 0 | CFT60: 0 | CFU60: 0 | CFV60: 0 | CFW60: 0 | CFX60: 0 | CFY60: 0 | CFZ60: 0 | CGA60: 0 | CGB60: 0 | CGC60: 0 | CGD60: 0 | CGE60: 0 | CGF60: 0 | CGG60: 0 | CGH60: 0 | CGI60: 0 | CGJ60: 0 | CGK60: 0 | CGL60: 0 | CGM60: 0 | CGN60: 0 | CGO60: 0 | CGP60: 0 | CGQ60: 0 | CGR60: 0 | CGS60: 0 | CGT60: 0 | CGU60: 0 | CGV60: 0 | CGW60: 0 | CGX60: 0 | CGY60: 0 | CGZ60: 0 | CHA60: 0 | CHB60: 0 | CHC60: 0 | CHD60: 0 | CHE60: 0 | CHF60: 0 | CHG60: 0 | CHH60: 0 | CHI60: 0 | CHJ60: =CHJ41 -> 0 | CHK60: 0 | CHL60: 0 | CHM60: 0 | CHN60: 0 | CHO60: 0 | CHP60: 0 | CHQ60: 0 | CHR60: 0 | CHS60: 0 | CHT60: 0 | CHU60: 0 | CHV60: 0 | CHW60: 0 | CHX60: 0 | CHY60: 0 | CHZ60: 0 | CIA60: 0 | CIB60: 0 | CIC60: 0 | CID60: 0 | CIE60: 0 | CIF60: 0 | CIG60: 0 | CIH60: 0 | CII60: 0 | CIJ60: 0 | CIK60: 0 | CIL60: 0 | CIM60: 0 | CIN60: 0 | CIO60: 0 | CIP60: 0 | CIQ60: 0 | CIR60: 0 | CIS60: 0 | CIT60: 0 | CIU60: 0 | CIV60: 0 | CIW60: 0 | CIX60: 0 | CIY60: 0 | CIZ60: 0 | CJA60: 0 | CJB60: 0 | CJC60: 0 | CJD60: 0 | CJE60: 0 | CJF60: 0 | CJG60: 0 | CJH60: 0 | CJI60: 0 | CJJ60: 0 | CJK60: 0 | CJL60: 0 | CJM60: 0 | CJN60: 0 | CJO60: 0 | CJP60: 0 | CJQ60: 0 | CJR60: 0 | CJS60: 0 | CJT60: 0 | CJU60: 0 | CJV60: =CJV41 -> 0 | CJW60: 0 | CJX60: 0 | CJY60: 0 | CJZ60: 0 | CKA60: 0 | CKB60: 0 | CKC60: 0 | CKD60: 0 | CKE60: 0 | CKF60: 0 | CKG60: 0 | CKH60: 0 | CKI60: 0 | CKJ60: 0 | CKK60: 0 | CKL60: 0 | CKM60: 0 | CKN60: 0 | CKO60: 0 | CKP60: 0 | CKQ60: 0 | CKR60: 0 | CKS60: 0 | CKT60: 0 | CKU60: 0 | CKV60: 0 | CKW60: 0 | CKX60: 0 | CKY60: 0 | CKZ60: 0 | CLA60: 0 | CLB60: 0 | CLC60: 0 | CLD60: 0 | CLE60: 0 | CLF60: 0 | CLG60: 0 | CLH60: 0 | CLI60: 0 | CLJ60: 0 | CLK60: 0 | CLL60: 0 | CLM60: 0 | CLN60: 0 | CLO60: 0 | CLP60: 0 | CLQ60: 0 | CLR60: 0 | CLS60: 0 | CLT60: 0 | CLU60: 0 | CLV60: 0 | CLW60: 0 | CLX60: 0 | CLY60: 0 | CLZ60: 0 | CMA60: 0 | CMB60: 0 | CMC60: 0 | CMD60: 0 | CME60: 0 | CMF60: 0 | CMG60: 0 | CMH60: =CMH41 -> 0 | CMI60: 0 | CMJ60: 0 | CMK60: 0 | CML60: 0 | CMM60: 0 | CMN60: 0 | CMO60: 0 | CMP60: 0 | CMQ60: 0 | CMR60: 0 | CMS60: 0 | CMT60: 0 | CMU60: 0 | CMV60: 0 | CMW60: 0 | CMX60: 0 | CMY60: 0 | CMZ60: 0 | CNA60: 0 | CNB60: 0 | CNC60: 0 | CND60: 0 | CNE60: 0 | CNF60: 0 | CNG60: 0 | CNH60: 0 | CNI60: 0 | CNJ60: 0 | CNK60: 0 | CNL60: 0 | CNM60: 0 | CNN60: 0 | CNO60: 0 | CNP60: 0 | CNQ60: 0 | CNR60: 0 | CNS60: 0 | CNT60: 0 | CNU60: 0 | CNV60: 0 | CNW60: 0 | CNX60: 0 | CNY60: 0 | CNZ60: 0 | COA60: 0 | COB60: 0 | COC60: 0 | COD60: 0 | COE60: 0 | COF60: 0 | COG60: 0 | COH60: 0 | COI60: 0 | COJ60: 0 | COK60: 0 | COL60: 0 | COM60: 0 | CON60: 0 | COO60: 0 | COP60: 0 | COQ60: 0 | COR60: 0 | COS60: 0 | COT60: =COT41 -> 0 | COU60: 0 | COV60: 0 | COW60: 0 | COX60: 0 | COY60: 0 | COZ60: 0 | CPA60: 0 | CPB60: 0 | CPC60: 0 | CPD60: 0 | CPE60: 0 | CPF60: 0 | CPG60: 0 | CPH60: 0 | CPI60: 0 | CPJ60: 0 | CPK60: 0 | CPL60: 0 | CPM60: 0 | CPN60: 0 | CPO60: 0 | CPP60: 0 | CPQ60: 0 | CPR60: 0 | CPS60: 0 | CPT60: 0 | CPU60: 0 | CPV60: 0 | CPW60: 0 | CPX60: 0 | CPY60: 0 | CPZ60: 0 | CQA60: 0 | CQB60: 0 | CQC60: 0 | CQD60: 0 | CQE60: 0 | CQF60: 0 | CQG60: 0 | CQH60: 0 | CQI60: 0 | CQJ60: 0 | CQK60: 0 | CQL60: 0 | CQM60: 0 | CQN60: 0 | CQO60: 0 | CQP60: 0 | CQQ60: 0 | CQR60: 0 | CQS60: 0 | CQT60: 0 | CQU60: 0 | CQV60: 0 | CQW60: 0 | CQX60: 0 | CQY60: 0 | CQZ60: 0 | CRA60: 0 | CRB60: 0 | CRC60: 0 | CRD60: 0 | CRE60: 0 | CRF60: =CRF41 -> 0 | CRG60: 0 | CRH60: 0 | CRI60: 0 | CRJ60: 0 | CRK60: 0 | CRL60: 0 | CRM60: 0 | CRN60: 0 | CRO60: 0 | CRP60: 0 | CRQ60: 0 | CRR60: 0 | CRS60: 0 | CRT60: 0 | CRU60: 0 | CRV60: 0 | CRW60: 0 | CRX60: 0 | CRY60: 0 | CRZ60: 0 | CSA60: 0 | CSB60: 0 | CSC60: 0 | CSD60: 0 | CSE60: 0 | CSF60: 0 | CSG60: 0 | CSH60: 0 | CSI60: 0 | CSJ60: 0 | CSK60: 0 | CSL60: 0 | CSM60: 0 | CSN60: 0 | CSO60: 0 | CSP60: 0 | CSQ60: 0 | CSR60: 0 | CSS60: 0 | CST60: 0 | CSU60: 0 | CSV60: 0 | CSW60: 0 | CSX60: 0 | CSY60: 0 | CSZ60: 0 | CTA60: 0 | CTB60: 0 | CTC60: 0 | CTD60: 0 | CTE60: 0 | CTF60: 0 | CTG60: 0 | CTH60: 0 | CTI60: 0 | CTJ60: 0 | CTK60: 0 | CTL60: 0 | CTM60: 0 | CTN60: 0 | CTO60: 0 | CTP60: 0 | CTQ60: 0 | CTR60: =CTR41 -> 0 | CTS60: 0 | CTT60: 0 | CTU60: 0 | CTV60: 0 | CTW60: 0 | CTX60: 0 | CTY60: 0 | CTZ60: 0 | CUA60: 0 | CUB60: 0 | CUC60: 0 | CUD60: 0 | CUE60: 0 | CUF60: 0 | CUG60: 0 | CUH60: 0 | CUI60: 0 | CUJ60: 0 | CUK60: 0 | CUL60: 0 | CUM60: 0 | CUN60: 0 | CUO60: 0 | CUP60: 0 | CUQ60: 0 | CUR60: 0 | CUS60: 0 | CUT60: 0 | CUU60: 0 | CUV60: 0 | CUW60: 0 | CUX60: 0 | CUY60: 0 | CUZ60: 0 | CVA60: 0 | CVB60: 0 | CVC60: 0 | CVD60: 0 | CVE60: 0 | CVF60: 0 | CVG60: 0 | CVH60: 0 | CVI60: 0 | CVJ60: 0 | CVK60: 0 | CVL60: 0 | CVM60: 0 | CVN60: 0 | CVO60: 0 | CVP60: 0 | CVQ60: 0 | CVR60: 0 | CVS60: 0 | CVT60: 0 | CVU60: 0 | CVV60: 0 | CVW60: 0 | CVX60: 0 | CVY60: 0 | CVZ60: 0 | CWA60: 0 | CWB60: 0 | CWC60: 0 | CWD60: =CWD41 -> 0 | CWE60: 0 | CWF60: 0 | CWG60: 0 | CWH60: 0 | CWI60: 0 | CWJ60: 0 | CWK60: 0 | CWL60: 0 | CWM60: 0 | CWN60: 0 | CWO60: 0 | CWP60: 0 | CWQ60: 0 | CWR60: 0 | CWS60: 0 | CWT60: 0 | CWU60: 0 | CWV60: 0 | CWW60: 0 | CWX60: 0 | CWY60: 0 | CWZ60: 0 | CXA60: 0 | CXB60: 0 | CXC60: 0 | CXD60: 0 | CXE60: 0 | CXF60: 0 | CXG60: 0 | CXH60: 0 | CXI60: 0 | CXJ60: 0 | CXK60: 0 | CXL60: 0 | CXM60: 0 | CXN60: 0 | CXO60: 0 | CXP60: 0 | CXQ60: 0 | CXR60: 0 | CXS60: 0 | CXT60: 0 | CXU60: 0 | CXV60: 0 | CXW60: 0 | CXX60: 0 | CXY60: 0 | CXZ60: 0 | CYA60: 0 | CYB60: 0 | CYC60: 0 | CYD60: 0 | CYE60: 0 | CYF60: 0 | CYG60: 0 | CYH60: 0 | CYI60: 0 | CYJ60: 0 | CYK60: 0 | CYL60: 0 | CYM60: 0 | CYN60: 0 | CYO60: 0 | CYP60: =CYP41 -> 0 | CYQ60: 0 | CYR60: 0 | CYS60: 0 | CYT60: 0 | CYU60: 0 | CYV60: 0 | CYW60: 0 | CYX60: 0 | CYY60: 0 | CYZ60: 0 | CZA60: 0 | CZB60: 0 | CZC60: 0 | CZD60: 0 | CZE60: 0 | CZF60: 0 | CZG60: 0 | CZH60: 0 | CZI60: 0 | CZJ60: 0 | CZK60: 0 | CZL60: 0 | CZM60: 0 | CZN60: 0 | CZO60: 0 | CZP60: 0 | CZQ60: 0 | CZR60: 0 | CZS60: 0 | CZT60: 0 | CZU60: 0 | CZV60: 0 | CZW60: 0 | CZX60: 0 | CZY60: 0 | CZZ60: 0 | DAA60: 0 | DAB60: 0 | DAC60: 0 | DAD60: 0 | DAE60: 0 | DAF60: 0 | DAG60: 0 | DAH60: 0 | DAI60: 0 | DAJ60: 0 | DAK60: 0 | DAL60: 0 | DAM60: 0 | DAN60: 0 | DAO60: 0 | DAP60: 0 | DAQ60: 0 | DAR60: 0 | DAS60: 0 | DAT60: 0 | DAU60: 0 | DAV60: 0 | DAW60: 0 | DAX60: 0 | DAY60: 0 | DAZ60: 0 | DBA60: 0 | DBB60: =DBB41 -> 0 | DBC60: 0 | DBD60: 0 | DBE60: 0 | DBF60: 0 | DBG60: 0 | DBH60: 0 | DBI60: 0 | DBJ60: 0 | DBK60: 0 | DBL60: 0 | DBM60: 0 | DBN60: 0 | DBO60: 0 | DBP60: 0 | DBQ60: 0 | DBR60: 0 | DBS60: 0 | DBT60: 0 | DBU60: 0 | DBV60: 0 | DBW60: 0 | DBX60: 0 | DBY60: 0 | DBZ60: 0 | DCA60: 0 | DCB60: 0 | DCC60: 0 | DCD60: 0 | DCE60: 0 | DCF60: 0 | DCG60: 0 | DCH60: 0 | DCI60: 0 | DCJ60: 0 | DCK60: 0 | DCL60: 0 | DCM60: 0 | DCN60: 0 | DCO60: 0 | DCP60: 0 | DCQ60: 0 | DCR60: 0 | DCS60: 0 | DCT60: 0 | DCU60: 0 | DCV60: 0 | DCW60: 0 | DCX60: 0 | DCY60: 0 | DCZ60: 0 | DDA60: 0 | DDB60: 0 | DDC60: 0 | DDD60: 0 | DDE60: 0 | DDF60: 0 | DDG60: 0 | DDH60: 0 | DDI60: 0 | DDJ60: 0 | DDK60: 0 | DDL60: 0 | DDM60: 0 | DDN60: =DDN41 -> 0 | DDO60: 0 | DDP60: 0 | DDQ60: 0 | DDR60: 0 | DDS60: 0 | DDT60: 0 | DDU60: 0 | DDV60: 0 | DDW60: 0 | DDX60: 0 | DDY60: 0 | DDZ60: 0 | DEA60: 0 | DEB60: 0 | DEC60: 0 | DED60: 0 | DEE60: 0 | DEF60: 0 | DEG60: 0 | DEH60: 0 | DEI60: 0 | DEJ60: 0 | DEK60: 0 | DEL60: 0 | DEM60: 0 | DEN60: 0 | DEO60: 0 | DEP60: 0 | DEQ60: 0 | DER60: 0 | DES60: 0 | DET60: 0 | DEU60: 0 | DEV60: 0 | DEW60: 0 | DEX60: 0 | DEY60: 0 | DEZ60: 0 | DFA60: 0 | DFB60: 0 | DFC60: 0 | DFD60: 0 | DFE60: 0 | DFF60: 0 | DFG60: 0 | DFH60: 0 | DFI60: 0 | DFJ60: 0 | DFK60: 0 | DFL60: 0 | DFM60: 0 | DFN60: 0 | DFO60: 0 | DFP60: 0 | DFQ60: 0 | DFR60: 0 | DFS60: 0 | DFT60: 0 | DFU60: 0 | DFV60: 0 | DFW60: 0 | DFX60: 0 | DFY60: 0 | DFZ60: =DFZ41 -> 0 | DGA60: 0 | DGB60: 0 | DGC60: 0 | DGD60: 0 | DGE60: 0 | DGF60: 0 | DGG60: 0 | DGH60: 0 | DGI60: 0 | DGJ60: 0 | DGK60: 0 | DGL60: 0 | DGM60: 0 | DGN60: 0 | DGO60: 0 | DGP60: 0 | DGQ60: 0 | DGR60: 0 | DGS60: 0 | DGT60: 0 | DGU60: 0 | DGV60: 0 | DGW60: 0 | DGX60: 0 | DGY60: 0 | DGZ60: 0 | DHA60: 0 | DHB60: 0 | DHC60: 0 | DHD60: 0 | DHE60: 0 | DHF60: 0 | DHG60: 0 | DHH60: 0 | DHI60: 0 | DHJ60: 0 | DHK60: 0 | DHL60: 0 | DHM60: 0 | DHN60: 0 | DHO60: 0 | DHP60: 0 | DHQ60: 0 | DHR60: 0 | DHS60: 0 | DHT60: 0 | DHU60: 0 | DHV60: 0 | DHW60: 0 | DHX60: 0 | DHY60: 0 | DHZ60: 0 | DIA60: 0 | DIB60: 0 | DIC60: 0 | DID60: 0 | DIE60: 0 | DIF60: 0 | DIG60: 0 | DIH60: 0 | DII60: 0 | DIJ60: 0 | DIK60: 0 | DIL60: =DIL41 -> 0 | DIM60: 0 | DIN60: 0 | DIO60: 0 | DIP60: 0 | DIQ60: 0 | DIR60: 0 | DIS60: 0 | DIT60: 0 | DIU60: 0 | DIV60: 0 | DIW60: 0 | DIX60: 0 | DIY60: 0 | DIZ60: 0 | DJA60: 0 | DJB60: 0 | DJC60: 0 | DJD60: 0 | DJE60: 0 | DJF60: 0 | DJG60: 0 | DJH60: 0 | DJI60: 0 | DJJ60: 0 | DJK60: 0 | DJL60: 0 | DJM60: 0 | DJN60: 0 | DJO60: 0 | DJP60: 0 | DJQ60: 0 | DJR60: 0 | DJS60: 0 | DJT60: 0 | DJU60: 0 | DJV60: 0 | DJW60: 0 | DJX60: 0 | DJY60: 0 | DJZ60: 0 | DKA60: 0 | DKB60: 0 | DKC60: 0 | DKD60: 0 | DKE60: 0 | DKF60: 0 | DKG60: 0 | DKH60: 0 | DKI60: 0 | DKJ60: 0 | DKK60: 0 | DKL60: 0 | DKM60: 0 | DKN60: 0 | DKO60: 0 | DKP60: 0 | DKQ60: 0 | DKR60: 0 | DKS60: 0 | DKT60: 0 | DKU60: 0 | DKV60: 0 | DKW60: 0 | DKX60: =DKX41 -> 0 | DKY60: 0 | DKZ60: 0 | DLA60: 0 | DLB60: 0 | DLC60: 0 | DLD60: 0 | DLE60: 0 | DLF60: 0 | DLG60: 0 | DLH60: 0 | DLI60: 0 | DLJ60: 0 | DLK60: 0 | DLL60: 0 | DLM60: 0 | DLN60: 0 | DLO60: 0 | DLP60: 0 | DLQ60: 0 | DLR60: 0 | DLS60: 0 | DLT60: 0 | DLU60: 0 | DLV60: 0 | DLW60: 0 | DLX60: 0 | DLY60: 0 | DLZ60: 0 | DMA60: 0 | DMB60: 0 | DMC60: 0 | DMD60: 0 | DME60: 0 | DMF60: 0 | DMG60: 0 | DMH60: 0 | DMI60: 0 | DMJ60: 0 | DMK60: 0 | DML60: 0 | DMM60: 0 | DMN60: 0 | DMO60: 0 | DMP60: 0 | DMQ60: 0 | DMR60: 0 | DMS60: 0 | DMT60: 0 | DMU60: 0 | DMV60: 0 | DMW60: 0 | DMX60: 0 | DMY60: 0 | DMZ60: 0 | DNA60: 0 | DNB60: 0 | DNC60: 0 | DND60: 0 | DNE60: 0 | DNF60: 0 | DNG60: 0 | DNH60: 0 | DNI60: 0 | DNJ60: =DNJ41 -> 0 | DNK60: 0 | DNL60: 0 | DNM60: 0 | DNN60: 0 | DNO60: 0 | DNP60: 0 | DNQ60: 0 | DNR60: 0 | DNS60: 0 | DNT60: 0 | DNU60: 0 | DNV60: 0 | DNW60: 0 | DNX60: 0 | DNY60: 0 | DNZ60: 0 | DOA60: 0 | DOB60: 0 | DOC60: 0 | DOD60: 0 | DOE60: 0 | DOF60: 0 | DOG60: 0 | DOH60: 0 | DOI60: 0 | DOJ60: 0 | DOK60: 0 | DOL60: 0 | DOM60: 0 | DON60: 0 | DOO60: 0 | DOP60: 0 | DOQ60: 0 | DOR60: 0 | DOS60: 0 | DOT60: 0 | DOU60: 0 | DOV60: 0 | DOW60: 0 | DOX60: 0 | DOY60: 0 | DOZ60: 0 | DPA60: 0 | DPB60: 0 | DPC60: 0 | DPD60: 0 | DPE60: 0 | DPF60: 0 | DPG60: 0 | DPH60: 0 | DPI60: 0 | DPJ60: 0 | DPK60: 0 | DPL60: 0 | DPM60: 0 | DPN60: 0 | DPO60: 0 | DPP60: 0 | DPQ60: 0 | DPR60: 0 | DPS60: 0 | DPT60: 0 | DPU60: 0 | DPV60: =DPV41 -> 0 | DPW60: 0 | DPX60: 0 | DPY60: 0 | DPZ60: 0 | DQA60: 0 | DQB60: 0 | DQC60: 0 | DQD60: 0 | DQE60: 0 | DQF60: 0 | DQG60: 0 | DQH60: 0 | DQI60: 0 | DQJ60: 0 | DQK60: 0 | DQL60: 0 | DQM60: 0 | DQN60: 0 | DQO60: 0 | DQP60: 0 | DQQ60: 0 | DQR60: 0 | DQS60: 0 | DQT60: 0 | DQU60: 0 | DQV60: 0 | DQW60: 0 | DQX60: 0 | DQY60: 0 | DQZ60: 0 | DRA60: 0 | DRB60: 0 | DRC60: 0 | DRD60: 0 | DRE60: 0 | DRF60: 0 | DRG60: 0 | DRH60: 0 | DRI60: 0 | DRJ60: 0 | DRK60: 0 | DRL60: 0 | DRM60: 0 | DRN60: 0 | DRO60: 0 | DRP60: 0 | DRQ60: 0 | DRR60: 0 | DRS60: 0 | DRT60: 0 | DRU60: 0 | DRV60: 0 | DRW60: 0 | DRX60: 0 | DRY60: 0 | DRZ60: 0 | DSA60: 0 | DSB60: 0 | DSC60: 0 | DSD60: 0 | DSE60: 0 | DSF60: 0 | DSG60: 0 | DSH60: =DSH41 -> 0 | DSI60: 0 | DSJ60: 0 | DSK60: 0 | DSL60: 0 | DSM60: 0 | DSN60: 0 | DSO60: 0 | DSP60: 0 | DSQ60: 0 | DSR60: 0 | DSS60: 0 | DST60: 0 | DSU60: 0 | DSV60: 0 | DSW60: 0 | DSX60: 0 | DSY60: 0 | DSZ60: 0 | DTA60: 0 | DTB60: 0 | DTC60: 0 | DTD60: 0 | DTE60: 0 | DTF60: 0 | DTG60: 0 | DTH60: 0 | DTI60: 0 | DTJ60: 0 | DTK60: 0 | DTL60: 0 | DTM60: 0 | DTN60: 0 | DTO60: 0 | DTP60: 0 | DTQ60: 0 | DTR60: 0 | DTS60: 0 | DTT60: 0 | DTU60: 0 | DTV60: 0 | DTW60: 0 | DTX60: 0 | DTY60: 0 | DTZ60: 0 | DUA60: 0 | DUB60: 0 | DUC60: 0 | DUD60: 0 | DUE60: 0 | DUF60: 0 | DUG60: 0 | DUH60: 0 | DUI60: 0 | DUJ60: 0 | DUK60: 0 | DUL60: 0 | DUM60: 0 | DUN60: 0 | DUO60: 0 | DUP60: 0 | DUQ60: 0 | DUR60: 0 | DUS60: 0 | DUT60: =DUT41 -> 0 | DUU60: 0 | DUV60: 0 | DUW60: 0 | DUX60: 0 | DUY60: 0 | DUZ60: 0 | DVA60: 0 | DVB60: 0 | DVC60: 0 | DVD60: 0 | DVE60: 0 | DVF60: 0 | DVG60: 0 | DVH60: 0 | DVI60: 0 | DVJ60: 0 | DVK60: 0 | DVL60: 0 | DVM60: 0 | DVN60: 0 | DVO60: 0 | DVP60: 0 | DVQ60: 0 | DVR60: 0 | DVS60: 0 | DVT60: 0 | DVU60: 0 | DVV60: 0 | DVW60: 0 | DVX60: 0 | DVY60: 0 | DVZ60: 0 | DWA60: 0 | DWB60: 0 | DWC60: 0 | DWD60: 0 | DWE60: 0 | DWF60: 0 | DWG60: 0 | DWH60: 0 | DWI60: 0 | DWJ60: 0 | DWK60: 0 | DWL60: 0 | DWM60: 0 | DWN60: 0 | DWO60: 0 | DWP60: 0 | DWQ60: 0 | DWR60: 0 | DWS60: 0 | DWT60: 0 | DWU60: 0 | DWV60: 0 | DWW60: 0 | DWX60: 0 | DWY60: 0 | DWZ60: 0 | DXA60: 0 | DXB60: 0 | DXC60: 0 | DXD60: 0 | DXE60: 0 | DXF60: =DXF41 -> 0 | DXG60: 0 | DXH60: 0 | DXI60: 0 | DXJ60: 0 | DXK60: 0 | DXL60: 0 | DXM60: 0 | DXN60: 0 | DXO60: 0 | DXP60: 0 | DXQ60: 0 | DXR60: 0 | DXS60: 0 | DXT60: 0 | DXU60: 0 | DXV60: 0 | DXW60: 0 | DXX60: 0 | DXY60: 0 | DXZ60: 0 | DYA60: 0 | DYB60: 0 | DYC60: 0 | DYD60: 0 | DYE60: 0 | DYF60: 0 | DYG60: 0 | DYH60: 0 | DYI60: 0 | DYJ60: 0 | DYK60: 0 | DYL60: 0 | DYM60: 0 | DYN60: 0 | DYO60: 0 | DYP60: 0 | DYQ60: 0 | DYR60: 0 | DYS60: 0 | DYT60: 0 | DYU60: 0 | DYV60: 0 | DYW60: 0 | DYX60: 0 | DYY60: 0 | DYZ60: 0 | DZA60: 0 | DZB60: 0 | DZC60: 0 | DZD60: 0 | DZE60: 0 | DZF60: 0 | DZG60: 0 | DZH60: 0 | DZI60: 0 | DZJ60: 0 | DZK60: 0 | DZL60: 0 | DZM60: 0 | DZN60: 0 | DZO60: 0 | DZP60: 0 | DZQ60: 0 | DZR60: =DZR41 -> 0 | DZS60: 0 | DZT60: 0 | DZU60: 0 | DZV60: 0 | DZW60: 0 | DZX60: 0 | DZY60: 0 | DZZ60: 0 | EAA60: 0 | EAB60: 0 | EAC60: 0 | EAD60: 0 | EAE60: 0 | EAF60: 0 | EAG60: 0 | EAH60: 0 | EAI60: 0 | EAJ60: 0 | EAK60: 0 | EAL60: 0 | EAM60: 0 | EAN60: 0 | EAO60: 0 | EAP60: 0 | EAQ60: 0 | EAR60: 0 | EAS60: 0 | EAT60: 0 | EAU60: 0 | EAV60: 0 | EAW60: 0 | EAX60: 0 | EAY60: 0 | EAZ60: 0 | EBA60: 0 | EBB60: 0 | EBC60: 0 | EBD60: 0 | EBE60: 0 | EBF60: 0 | EBG60: 0 | EBH60: 0 | EBI60: 0 | EBJ60: 0 | EBK60: 0 | EBL60: 0 | EBM60: 0 | EBN60: 0 | EBO60: 0 | EBP60: 0 | EBQ60: 0 | EBR60: 0 | EBS60: 0 | EBT60: 0 | EBU60: 0 | EBV60: 0 | EBW60: 0 | EBX60: 0 | EBY60: 0 | EBZ60: 0 | ECA60: 0 | ECB60: 0 | ECC60: 0 | ECD60: =ECD41 -> 0 | ECE60: 0 | ECF60: 0 | ECG60: 0 | ECH60: 0 | ECI60: 0 | ECJ60: 0 | ECK60: 0 | ECL60: 0 | ECM60: 0 | ECN60: 0 | ECO60: 0 | ECP60: 0 | ECQ60: 0 | ECR60: 0 | ECS60: 0 | ECT60: 0 | ECU60: 0 | ECV60: 0 | ECW60: 0 | ECX60: 0 | ECY60: 0 | ECZ60: 0 | EDA60: 0 | EDB60: 0 | EDC60: 0 | EDD60: 0 | EDE60: 0 | EDF60: 0 | EDG60: 0 | EDH60: 0 | EDI60: 0 | EDJ60: 0 | EDK60: 0 | EDL60: 0 | EDM60: 0 | EDN60: 0 | EDO60: 0 | EDP60: 0 | EDQ60: 0 | EDR60: 0 | EDS60: 0 | EDT60: 0 | EDU60: 0 | EDV60: 0 | EDW60: 0 | EDX60: 0 | EDY60: 0 | EDZ60: 0 | EEA60: 0 | EEB60: 0 | EEC60: 0 | EED60: 0 | EEE60: 0 | EEF60: 0 | EEG60: 0 | EEH60: 0 | EEI60: 0 | EEJ60: 0 | EEK60: 0 | EEL60: 0 | EEM60: 0 | EEN60: 0 | EEO60: 0 | EEP60: =EEP41 -> 0 | EEQ60: 0 | EER60: 0 | EES60: 0 | EET60: 0 | EEU60: 0 | EEV60: 0 | EEW60: 0 | EEX60: 0 | EEY60: 0 | EEZ60: 0 | EFA60: 0 | EFB60: 0 | EFC60: 0 | EFD60: 0 | EFE60: 0 | EFF60: 0 | EFG60: 0 | EFH60: 0 | EFI60: 0 | EFJ60: 0 | EFK60: 0 | EFL60: 0 | EFM60: 0 | EFN60: 0 | EFO60: 0 | EFP60: 0 | EFQ60: 0 | EFR60: 0 | EFS60: 0 | EFT60: 0 | EFU60: 0 | EFV60: 0 | EFW60: 0 | EFX60: 0 | EFY60: 0 | EFZ60: 0 | EGA60: 0 | EGB60: 0 | EGC60: 0 | EGD60: 0 | EGE60: 0 | EGF60: 0 | EGG60: 0 | EGH60: 0 | EGI60: 0 | EGJ60: 0 | EGK60: 0 | EGL60: 0 | EGM60: 0 | EGN60: 0 | EGO60: 0 | EGP60: 0 | EGQ60: 0 | EGR60: 0 | EGS60: 0 | EGT60: 0 | EGU60: 0 | EGV60: 0 | EGW60: 0 | EGX60: 0 | EGY60: 0 | EGZ60: 0 | EHA60: 0 | EHB60: =EHB41 -> 0 | EHC60: 0 | EHD60: 0 | EHE60: 0 | EHF60: 0 | EHG60: 0 | EHH60: 0 | EHI60: 0 | EHJ60: 0 | EHK60: 0 | EHL60: 0 | EHM60: 0 | EHN60: 0 | EHO60: 0 | EHP60: 0 | EHQ60: 0 | EHR60: 0 | EHS60: 0 | EHT60: 0 | EHU60: 0 | EHV60: 0 | EHW60: 0 | EHX60: 0 | EHY60: 0 | EHZ60: 0 | EIA60: 0 | EIB60: 0 | EIC60: 0 | EID60: 0 | EIE60: 0 | EIF60: 0 | EIG60: 0 | EIH60: 0 | EII60: 0 | EIJ60: 0 | EIK60: 0 | EIL60: 0 | EIM60: 0 | EIN60: 0 | EIO60: 0 | EIP60: 0 | EIQ60: 0 | EIR60: 0 | EIS60: 0 | EIT60: 0 | EIU60: 0 | EIV60: 0 | EIW60: 0 | EIX60: 0 | EIY60: 0 | EIZ60: 0 | EJA60: 0 | EJB60: 0 | EJC60: 0 | EJD60: 0 | EJE60: 0 | EJF60: 0 | EJG60: 0 | EJH60: 0 | EJI60: 0 | EJJ60: 0 | EJK60: 0 | EJL60: 0 | EJM60: 0 | EJN60: =EJN41 -> 0 | EJO60: 0 | EJP60: 0 | EJQ60: 0 | EJR60: 0 | EJS60: 0 | EJT60: 0 | EJU60: 0 | EJV60: 0 | EJW60: 0 | EJX60: 0 | EJY60: 0 | EJZ60: 0 | EKA60: 0 | EKB60: 0 | EKC60: 0 | EKD60: 0 | EKE60: 0 | EKF60: 0 | EKG60: 0 | EKH60: 0 | EKI60: 0 | EKJ60: 0 | EKK60: 0 | EKL60: 0 | EKM60: 0 | EKN60: 0 | EKO60: 0 | EKP60: 0 | EKQ60: 0 | EKR60: 0 | EKS60: 0 | EKT60: 0 | EKU60: 0 | EKV60: 0 | EKW60: 0 | EKX60: 0 | EKY60: 0 | EKZ60: 0 | ELA60: 0 | ELB60: 0 | ELC60: 0 | ELD60: 0 | ELE60: 0 | ELF60: 0 | ELG60: 0 | ELH60: 0 | ELI60: 0 | ELJ60: 0 | ELK60: 0 | ELL60: 0 | ELM60: 0 | ELN60: 0 | ELO60: 0 | ELP60: 0 | ELQ60: 0 | ELR60: 0 | ELS60: 0 | ELT60: 0 | ELU60: 0 | ELV60: 0 | ELW60: 0 | ELX60: 0 | ELY60: 0 | ELZ60: =ELZ41 -> 0 | EMA60: 0 | EMB60: 0 | EMC60: 0 | EMD60: 0 | EME60: 0 | EMF60: 0 | EMG60: 0 | EMH60: 0 | EMI60: 0 | EMJ60: 0 | EMK60: 0 | EML60: 0 | EMM60: 0 | EMN60: 0 | EMO60: 0 | EMP60: 0 | EMQ60: 0 | EMR60: 0 | EMS60: 0 | EMT60: 0 | EMU60: 0 | EMV60: 0 | EMW60: 0 | EMX60: 0 | EMY60: 0 | EMZ60: 0 | ENA60: 0 | ENB60: 0 | ENC60: 0 | END60: 0 | ENE60: 0 | ENF60: 0 | ENG60: 0 | ENH60: 0 | ENI60: 0 | ENJ60: 0 | ENK60: 0 | ENL60: 0 | ENM60: 0 | ENN60: 0 | ENO60: 0 | ENP60: 0 | ENQ60: 0 | ENR60: 0 | ENS60: 0 | ENT60: 0 | ENU60: 0 | ENV60: 0 | ENW60: 0 | ENX60: 0 | ENY60: 0 | ENZ60: 0 | EOA60: 0 | EOB60: 0 | EOC60: 0 | EOD60: 0 | EOE60: 0 | EOF60: 0 | EOG60: 0 | EOH60: 0 | EOI60: 0 | EOJ60: 0 | EOK60: 0 | EOL60: =EOL41 -> 0 | EOM60: 0 | EON60: 0 | EOO60: 0 | EOP60: 0 | EOQ60: 0 | EOR60: 0 | EOS60: 0 | EOT60: 0 | EOU60: 0 | EOV60: 0 | EOW60: 0 | EOX60: 0 | EOY60: 0 | EOZ60: 0 | EPA60: 0 | EPB60: 0 | EPC60: 0 | EPD60: 0 | EPE60: 0 | EPF60: 0 | EPG60: 0 | EPH60: 0 | EPI60: 0 | EPJ60: 0 | EPK60: 0 | EPL60: 0 | EPM60: 0 | EPN60: 0 | EPO60: 0 | EPP60: 0 | EPQ60: 0 | EPR60: 0 | EPS60: 0 | EPT60: 0 | EPU60: 0 | EPV60: 0 | EPW60: 0 | EPX60: 0 | EPY60: 0 | EPZ60: 0 | EQA60: 0 | EQB60: 0 | EQC60: 0 | EQD60: 0 | EQE60: 0 | EQF60: 0 | EQG60: 0 | EQH60: 0 | EQI60: 0 | EQJ60: 0 | EQK60: 0 | EQL60: 0 | EQM60: 0 | EQN60: 0 | EQO60: 0 | EQP60: 0 | EQQ60: 0 | EQR60: 0 | EQS60: 0 | EQT60: 0 | EQU60: 0 | EQV60: 0 | EQW60: 0 | EQX60: =EQX41 -> 0 | EQY60: 0 | EQZ60: 0 | ERA60: 0 | ERB60: 0 | ERC60: 0 | ERD60: 0 | ERE60: 0 | ERF60: 0 | ERG60: 0 | ERH60: 0 | ERI60: 0 | ERJ60: 0 | ERK60: 0 | ERL60: 0 | ERM60: 0 | ERN60: 0 | ERO60: 0 | ERP60: 0 | ERQ60: 0 | ERR60: 0 | ERS60: 0 | ERT60: 0 | ERU60: 0 | ERV60: 0 | ERW60: 0 | ERX60: 0 | ERY60: 0 | ERZ60: 0 | ESA60: 0 | ESB60: 0 | ESC60: 0 | ESD60: 0 | ESE60: 0 | ESF60: 0 | ESG60: 0 | ESH60: 0 | ESI60: 0 | ESJ60: 0 | ESK60: 0 | ESL60: 0 | ESM60: 0 | ESN60: 0 | ESO60: 0 | ESP60: 0 | ESQ60: 0 | ESR60: 0 | ESS60: 0 | EST60: 0 | ESU60: 0 | ESV60: 0 | ESW60: 0 | ESX60: 0 | ESY60: 0 | ESZ60: 0 | ETA60: 0 | ETB60: 0 | ETC60: 0 | ETD60: 0 | ETE60: 0 | ETF60: 0 | ETG60: 0 | ETH60: 0 | ETI60: 0 | ETJ60: =ETJ41 -> 0 | ETK60: 0 | ETL60: 0 | ETM60: 0 | ETN60: 0 | ETO60: 0 | ETP60: 0 | ETQ60: 0 | ETR60: 0 | ETS60: 0 | ETT60: 0 | ETU60: 0 | ETV60: 0 | ETW60: 0 | ETX60: 0 | ETY60: 0 | ETZ60: 0 | EUA60: 0 | EUB60: 0 | EUC60: 0 | EUD60: 0 | EUE60: 0 | EUF60: 0 | EUG60: 0 | EUH60: 0 | EUI60: 0 | EUJ60: 0 | EUK60: 0 | EUL60: 0 | EUM60: 0 | EUN60: 0 | EUO60: 0 | EUP60: 0 | EUQ60: 0 | EUR60: 0 | EUS60: 0 | EUT60: 0 | EUU60: 0 | EUV60: 0 | EUW60: 0 | EUX60: 0 | EUY60: 0 | EUZ60: 0 | EVA60: 0 | EVB60: 0 | EVC60: 0 | EVD60: 0 | EVE60: 0 | EVF60: 0 | EVG60: 0 | EVH60: 0 | EVI60: 0 | EVJ60: 0 | EVK60: 0 | EVL60: 0 | EVM60: 0 | EVN60: 0 | EVO60: 0 | EVP60: 0 | EVQ60: 0 | EVR60: 0 | EVS60: 0 | EVT60: 0 | EVU60: 0 | EVV60: =EVV41 -> 0 | EVW60: 0 | EVX60: 0 | EVY60: 0 | EVZ60: 0 | EWA60: 0 | EWB60: 0 | EWC60: 0 | EWD60: 0 | EWE60: 0 | EWF60: 0 | EWG60: 0 | EWH60: 0 | EWI60: 0 | EWJ60: 0 | EWK60: 0 | EWL60: 0 | EWM60: 0 | EWN60: 0 | EWO60: 0 | EWP60: 0 | EWQ60: 0 | EWR60: 0 | EWS60: 0 | EWT60: 0 | EWU60: 0 | EWV60: 0 | EWW60: 0 | EWX60: 0 | EWY60: 0 | EWZ60: 0 | EXA60: 0 | EXB60: 0 | EXC60: 0 | EXD60: 0 | EXE60: 0 | EXF60: 0 | EXG60: 0 | EXH60: 0 | EXI60: 0 | EXJ60: 0 | EXK60: 0 | EXL60: 0 | EXM60: 0 | EXN60: 0 | EXO60: 0 | EXP60: 0 | EXQ60: 0 | EXR60: 0 | EXS60: 0 | EXT60: 0 | EXU60: 0 | EXV60: 0 | EXW60: 0 | EXX60: 0 | EXY60: 0 | EXZ60: 0 | EYA60: 0 | EYB60: 0 | EYC60: 0 | EYD60: 0 | EYE60: 0 | EYF60: 0 | EYG60: 0 | EYH60: =EYH41 -> 0 | EYI60: 0 | EYJ60: 0 | EYK60: 0 | EYL60: 0 | EYM60: 0 | EYN60: 0 | EYO60: 0 | EYP60: 0 | EYQ60: 0 | EYR60: 0 | EYS60: 0 | EYT60: 0 | EYU60: 0 | EYV60: 0 | EYW60: 0 | EYX60: 0 | EYY60: 0 | EYZ60: 0 | EZA60: 0 | EZB60: 0 | EZC60: 0 | EZD60: 0 | EZE60: 0 | EZF60: 0 | EZG60: 0 | EZH60: 0 | EZI60: 0 | EZJ60: 0 | EZK60: 0 | EZL60: 0 | EZM60: 0 | EZN60: 0 | EZO60: 0 | EZP60: 0 | EZQ60: 0 | EZR60: 0 | EZS60: 0 | EZT60: 0 | EZU60: 0 | EZV60: 0 | EZW60: 0 | EZX60: 0 | EZY60: 0 | EZZ60: 0 | FAA60: 0 | FAB60: 0 | FAC60: 0 | FAD60: 0 | FAE60: 0 | FAF60: 0 | FAG60: 0 | FAH60: 0 | FAI60: 0 | FAJ60: 0 | FAK60: 0 | FAL60: 0 | FAM60: 0 | FAN60: 0 | FAO60: 0 | FAP60: 0 | FAQ60: 0 | FAR60: 0 | FAS60: 0 | FAT60: =FAT41 -> 0 | FAU60: 0 | FAV60: 0 | FAW60: 0 | FAX60: 0 | FAY60: 0 | FAZ60: 0 | FBA60: 0 | FBB60: 0 | FBC60: 0 | FBD60: 0 | FBE60: 0 | FBF60: 0 | FBG60: 0 | FBH60: 0 | FBI60: 0 | FBJ60: 0 | FBK60: 0 | FBL60: 0 | FBM60: 0 | FBN60: 0 | FBO60: 0 | FBP60: 0 | FBQ60: 0 | FBR60: 0 | FBS60: 0 | FBT60: 0 | FBU60: 0 | FBV60: 0 | FBW60: 0 | FBX60: 0 | FBY60: 0 | FBZ60: 0 | FCA60: 0 | FCB60: 0 | FCC60: 0 | FCD60: 0 | FCE60: 0 | FCF60: 0 | FCG60: 0 | FCH60: 0 | FCI60: 0 | FCJ60: 0 | FCK60: 0 | FCL60: 0 | FCM60: 0 | FCN60: 0 | FCO60: 0 | FCP60: 0 | FCQ60: 0 | FCR60: 0 | FCS60: 0 | FCT60: 0 | FCU60: 0 | FCV60: 0 | FCW60: 0 | FCX60: 0 | FCY60: 0 | FCZ60: 0 | FDA60: 0 | FDB60: 0 | FDC60: 0 | FDD60: 0 | FDE60: 0 | FDF60: =FDF41 -> 0 | FDG60: 0 | FDH60: 0 | FDI60: 0 | FDJ60: 0 | FDK60: 0 | FDL60: 0 | FDM60: 0 | FDN60: 0 | FDO60: 0 | FDP60: 0 | FDQ60: 0 | FDR60: 0 | FDS60: 0 | FDT60: 0 | FDU60: 0 | FDV60: 0 | FDW60: 0 | FDX60: 0 | FDY60: 0 | FDZ60: 0 | FEA60: 0 | FEB60: 0 | FEC60: 0 | FED60: 0 | FEE60: 0 | FEF60: 0 | FEG60: 0 | FEH60: 0 | FEI60: 0 | FEJ60: 0 | FEK60: 0 | FEL60: 0 | FEM60: 0 | FEN60: 0 | FEO60: 0 | FEP60: 0 | FEQ60: 0 | FER60: 0 | FES60: 0 | FET60: 0 | FEU60: 0 | FEV60: 0 | FEW60: 0 | FEX60: 0 | FEY60: 0 | FEZ60: 0 | FFA60: 0 | FFB60: 0 | FFC60: 0 | FFD60: 0 | FFE60: 0 | FFF60: 0 | FFG60: 0 | FFH60: 0 | FFI60: 0 | FFJ60: 0 | FFK60: 0 | FFL60: 0 | FFM60: 0 | FFN60: 0 | FFO60: 0 | FFP60: 0 | FFQ60: 0 | FFR60: =FFR41 -> 0 | FFS60: 0 | FFT60: 0 | FFU60: 0 | FFV60: 0 | FFW60: 0 | FFX60: 0 | FFY60: 0 | FFZ60: 0 | FGA60: 0 | FGB60: 0 | FGC60: 0 | FGD60: 0 | FGE60: 0 | FGF60: 0 | FGG60: 0 | FGH60: 0 | FGI60: 0 | FGJ60: 0 | FGK60: 0 | FGL60: 0 | FGM60: 0 | FGN60: 0 | FGO60: 0 | FGP60: 0 | FGQ60: 0 | FGR60: 0 | FGS60: 0 | FGT60: 0 | FGU60: 0 | FGV60: 0 | FGW60: 0 | FGX60: 0 | FGY60: 0 | FGZ60: 0 | FHA60: 0 | FHB60: 0 | FHC60: 0 | FHD60: 0 | FHE60: 0 | FHF60: 0 | FHG60: 0 | FHH60: 0 | FHI60: 0 | FHJ60: 0 | FHK60: 0 | FHL60: 0 | FHM60: 0 | FHN60: 0 | FHO60: 0 | FHP60: 0 | FHQ60: 0 | FHR60: 0 | FHS60: 0 | FHT60: 0 | FHU60: 0 | FHV60: 0 | FHW60: 0 | FHX60: 0 | FHY60: 0 | FHZ60: 0 | FIA60: 0 | FIB60: 0 | FIC60: 0 | FID60: =FID41 -> 0 | FIE60: 0 | FIF60: 0 | FIG60: 0 | FIH60: 0 | FII60: 0 | FIJ60: 0 | FIK60: 0 | FIL60: 0 | FIM60: 0 | FIN60: 0 | FIO60: 0 | FIP60: 0 | FIQ60: 0 | FIR60: 0 | FIS60: 0 | FIT60: 0 | FIU60: 0 | FIV60: 0 | FIW60: 0 | FIX60: 0 | FIY60: 0 | FIZ60: 0 | FJA60: 0 | FJB60: 0 | FJC60: 0 | FJD60: 0 | FJE60: 0 | FJF60: 0 | FJG60: 0 | FJH60: 0 | FJI60: 0 | FJJ60: 0 | FJK60: 0 | FJL60: 0 | FJM60: 0 | FJN60: 0 | FJO60: 0 | FJP60: 0 | FJQ60: 0 | FJR60: 0 | FJS60: 0 | FJT60: 0 | FJU60: 0 | FJV60: 0 | FJW60: 0 | FJX60: 0 | FJY60: 0 | FJZ60: 0 | FKA60: 0 | FKB60: 0 | FKC60: 0 | FKD60: 0 | FKE60: 0 | FKF60: 0 | FKG60: 0 | FKH60: 0 | FKI60: 0 | FKJ60: 0 | FKK60: 0 | FKL60: 0 | FKM60: 0 | FKN60: 0 | FKO60: 0 | FKP60: =FKP41 -> 0 | FKQ60: 0 | FKR60: 0 | FKS60: 0 | FKT60: 0 | FKU60: 0 | FKV60: 0 | FKW60: 0 | FKX60: 0 | FKY60: 0 | FKZ60: 0 | FLA60: 0 | FLB60: 0 | FLC60: 0 | FLD60: 0 | FLE60: 0 | FLF60: 0 | FLG60: 0 | FLH60: 0 | FLI60: 0 | FLJ60: 0 | FLK60: 0 | FLL60: 0 | FLM60: 0 | FLN60: 0 | FLO60: 0 | FLP60: 0 | FLQ60: 0 | FLR60: 0 | FLS60: 0 | FLT60: 0 | FLU60: 0 | FLV60: 0 | FLW60: 0 | FLX60: 0 | FLY60: 0 | FLZ60: 0 | FMA60: 0 | FMB60: 0 | FMC60: 0 | FMD60: 0 | FME60: 0 | FMF60: 0 | FMG60: 0 | FMH60: 0 | FMI60: 0 | FMJ60: 0 | FMK60: 0 | FML60: 0 | FMM60: 0 | FMN60: 0 | FMO60: 0 | FMP60: 0 | FMQ60: 0 | FMR60: 0 | FMS60: 0 | FMT60: 0 | FMU60: 0 | FMV60: 0 | FMW60: 0 | FMX60: 0 | FMY60: 0 | FMZ60: 0 | FNA60: 0 | FNB60: =FNB41 -> 0 | FNC60: 0 | FND60: 0 | FNE60: 0 | FNF60: 0 | FNG60: 0 | FNH60: 0 | FNI60: 0 | FNJ60: 0 | FNK60: 0 | FNL60: 0 | FNM60: 0 | FNN60: 0 | FNO60: 0 | FNP60: 0 | FNQ60: 0 | FNR60: 0 | FNS60: 0 | FNT60: 0 | FNU60: 0 | FNV60: 0 | FNW60: 0 | FNX60: 0 | FNY60: 0 | FNZ60: 0 | FOA60: 0 | FOB60: 0 | FOC60: 0 | FOD60: 0 | FOE60: 0 | FOF60: 0 | FOG60: 0 | FOH60: 0 | FOI60: 0 | FOJ60: 0 | FOK60: 0 | FOL60: 0 | FOM60: 0 | FON60: 0 | FOO60: 0 | FOP60: 0 | FOQ60: 0 | FOR60: 0 | FOS60: 0 | FOT60: 0 | FOU60: 0 | FOV60: 0 | FOW60: 0 | FOX60: 0 | FOY60: 0 | FOZ60: 0 | FPA60: 0 | FPB60: 0 | FPC60: 0 | FPD60: 0 | FPE60: 0 | FPF60: 0 | FPG60: 0 | FPH60: 0 | FPI60: 0 | FPJ60: 0 | FPK60: 0 | FPL60: 0 | FPM60: 0 | FPN60: =FPN41 -> 0 | FPO60: 0 | FPP60: 0 | FPQ60: 0 | FPR60: 0 | FPS60: 0 | FPT60: 0 | FPU60: 0 | FPV60: 0 | FPW60: 0 | FPX60: 0 | FPY60: 0 | FPZ60: 0 | FQA60: 0 | FQB60: 0 | FQC60: 0 | FQD60: 0 | FQE60: 0 | FQF60: 0 | FQG60: 0 | FQH60: 0 | FQI60: 0 | FQJ60: 0 | FQK60: 0 | FQL60: 0 | FQM60: 0 | FQN60: 0 | FQO60: 0 | FQP60: 0 | FQQ60: 0 | FQR60: 0 | FQS60: 0 | FQT60: 0 | FQU60: 0 | FQV60: 0 | FQW60: 0 | FQX60: 0 | FQY60: 0 | FQZ60: 0 | FRA60: 0 | FRB60: 0 | FRC60: 0 | FRD60: 0 | FRE60: 0 | FRF60: 0 | FRG60: 0 | FRH60: 0 | FRI60: 0 | FRJ60: 0 | FRK60: 0 | FRL60: 0 | FRM60: 0 | FRN60: 0 | FRO60: 0 | FRP60: 0 | FRQ60: 0 | FRR60: 0 | FRS60: 0 | FRT60: 0 | FRU60: 0 | FRV60: 0 | FRW60: 0 | FRX60: 0 | FRY60: 0 | FRZ60: =FRZ41 -> 0 | FSA60: 0 | FSB60: 0 | FSC60: 0 | FSD60: 0 | FSE60: 0 | FSF60: 0 | FSG60: 0 | FSH60: 0 | FSI60: 0 | FSJ60: 0 | FSK60: 0 | FSL60: 0 | FSM60: 0 | FSN60: 0 | FSO60: 0 | FSP60: 0 | FSQ60: 0 | FSR60: 0 | FSS60: 0 | FST60: 0 | FSU60: 0 | FSV60: 0 | FSW60: 0 | FSX60: 0 | FSY60: 0 | FSZ60: 0 | FTA60: 0 | FTB60: 0 | FTC60: 0 | FTD60: 0 | FTE60: 0 | FTF60: 0 | FTG60: 0 | FTH60: 0 | FTI60: 0 | FTJ60: 0 | FTK60: 0 | FTL60: 0 | FTM60: 0 | FTN60: 0 | FTO60: 0 | FTP60: 0 | FTQ60: 0 | FTR60: 0 | FTS60: 0 | FTT60: 0 | FTU60: 0 | FTV60: 0 | FTW60: 0 | FTX60: 0 | FTY60: 0 | FTZ60: 0 | FUA60: 0 | FUB60: 0 | FUC60: 0 | FUD60: 0 | FUE60: 0 | FUF60: 0 | FUG60: 0 | FUH60: 0 | FUI60: 0 | FUJ60: 0 | FUK60: 0 | FUL60: =FUL41 -> 0 | FUM60: 0 | FUN60: 0 | FUO60: 0 | FUP60: 0 | FUQ60: 0 | FUR60: 0 | FUS60: 0 | FUT60: 0 | FUU60: 0 | FUV60: 0 | FUW60: 0 | FUX60: 0 | FUY60: 0 | FUZ60: 0 | FVA60: 0 | FVB60: 0 | FVC60: 0 | FVD60: 0 | FVE60: 0 | FVF60: 0 | FVG60: 0 | FVH60: 0 | FVI60: 0 | FVJ60: 0 | FVK60: 0 | FVL60: 0 | FVM60: 0 | FVN60: 0 | FVO60: 0 | FVP60: 0 | FVQ60: 0 | FVR60: 0 | FVS60: 0 | FVT60: 0 | FVU60: 0 | FVV60: 0 | FVW60: 0 | FVX60: 0 | FVY60: 0 | FVZ60: 0 | FWA60: 0 | FWB60: 0 | FWC60: 0 | FWD60: 0 | FWE60: 0 | FWF60: 0 | FWG60: 0 | FWH60: 0 | FWI60: 0 | FWJ60: 0 | FWK60: 0 | FWL60: 0 | FWM60: 0 | FWN60: 0 | FWO60: 0 | FWP60: 0 | FWQ60: 0 | FWR60: 0 | FWS60: 0 | FWT60: 0 | FWU60: 0 | FWV60: 0 | FWW60: 0 | FWX60: =FWX41 -> 0 | FWY60: 0 | FWZ60: 0 | FXA60: 0 | FXB60: 0 | FXC60: 0 | FXD60: 0 | FXE60: 0 | FXF60: 0 | FXG60: 0 | FXH60: 0 | FXI60: 0 | FXJ60: 0 | FXK60: 0 | FXL60: 0 | FXM60: 0 | FXN60: 0 | FXO60: 0 | FXP60: 0 | FXQ60: 0 | FXR60: 0 | FXS60: 0 | FXT60: 0 | FXU60: 0 | FXV60: 0 | FXW60: 0 | FXX60: 0 | FXY60: 0 | FXZ60: 0 | FYA60: 0 | FYB60: 0 | FYC60: 0 | FYD60: 0 | FYE60: 0 | FYF60: 0 | FYG60: 0 | FYH60: 0 | FYI60: 0 | FYJ60: 0 | FYK60: 0 | FYL60: 0 | FYM60: 0 | FYN60: 0 | FYO60: 0 | FYP60: 0 | FYQ60: 0 | FYR60: 0 | FYS60: 0 | FYT60: 0 | FYU60: 0 | FYV60: 0 | FYW60: 0 | FYX60: 0 | FYY60: 0 | FYZ60: 0 | FZA60: 0 | FZB60: 0 | FZC60: 0 | FZD60: 0 | FZE60: 0 | FZF60: 0 | FZG60: 0 | FZH60: 0 | FZI60: 0 | FZJ60: =FZJ41 -> 0 | FZK60: 0 | FZL60: 0 | FZM60: 0 | FZN60: 0 | FZO60: 0 | FZP60: 0 | FZQ60: 0 | FZR60: 0 | FZS60: 0 | FZT60: 0 | FZU60: 0 | FZV60: 0 | FZW60: 0 | FZX60: 0 | FZY60: 0 | FZZ60: 0 | GAA60: 0 | GAB60: 0 | GAC60: 0 | GAD60: 0 | GAE60: 0 | GAF60: 0 | GAG60: 0 | GAH60: 0 | GAI60: 0 | GAJ60: 0 | GAK60: 0 | GAL60: 0 | GAM60: 0 | GAN60: 0 | GAO60: 0 | GAP60: 0 | GAQ60: 0 | GAR60: 0 | GAS60: 0 | GAT60: 0 | GAU60: 0 | GAV60: 0 | GAW60: 0 | GAX60: 0 | GAY60: 0 | GAZ60: 0 | GBA60: 0 | GBB60: 0 | GBC60: 0 | GBD60: 0 | GBE60: 0 | GBF60: 0 | GBG60: 0 | GBH60: 0 | GBI60: 0 | GBJ60: 0 | GBK60: 0 | GBL60: 0 | GBM60: 0 | GBN60: 0 | GBO60: 0 | GBP60: 0 | GBQ60: 0 | GBR60: 0 | GBS60: 0 | GBT60: 0 | GBU60: 0 | GBV60: =GBV41 -> 0 | GBW60: 0 | GBX60: 0 | GBY60: 0 | GBZ60: 0 | GCA60: 0 | GCB60: 0 | GCC60: 0 | GCD60: 0 | GCE60: 0 | GCF60: 0 | GCG60: 0 | GCH60: 0 | GCI60: 0 | GCJ60: 0 | GCK60: 0 | GCL60: 0 | GCM60: 0 | GCN60: 0 | GCO60: 0 | GCP60: 0 | GCQ60: 0 | GCR60: 0 | GCS60: 0 | GCT60: 0 | GCU60: 0 | GCV60: 0 | GCW60: 0 | GCX60: 0 | GCY60: 0 | GCZ60: 0 | GDA60: 0 | GDB60: 0 | GDC60: 0 | GDD60: 0 | GDE60: 0 | GDF60: 0 | GDG60: 0 | GDH60: 0 | GDI60: 0 | GDJ60: 0 | GDK60: 0 | GDL60: 0 | GDM60: 0 | GDN60: 0 | GDO60: 0 | GDP60: 0 | GDQ60: 0 | GDR60: 0 | GDS60: 0 | GDT60: 0 | GDU60: 0 | GDV60: 0 | GDW60: 0 | GDX60: 0 | GDY60: 0 | GDZ60: 0 | GEA60: 0 | GEB60: 0 | GEC60: 0 | GED60: 0 | GEE60: 0 | GEF60: 0 | GEG60: 0 | GEH60: =GEH41 -> 0 | GEI60: 0 | GEJ60: 0 | GEK60: 0 | GEL60: 0 | GEM60: 0 | GEN60: 0 | GEO60: 0 | GEP60: 0 | GEQ60: 0 | GER60: 0 | GES60: 0 | GET60: 0 | GEU60: 0 | GEV60: 0 | GEW60: 0 | GEX60: 0 | GEY60: 0 | GEZ60: 0 | GFA60: 0 | GFB60: 0 | GFC60: 0 | GFD60: 0 | GFE60: 0 | GFF60: 0 | GFG60: 0 | GFH60: 0 | GFI60: 0 | GFJ60: 0 | GFK60: 0 | GFL60: 0 | GFM60: 0 | GFN60: 0 | GFO60: 0 | GFP60: 0 | GFQ60: 0 | GFR60: 0 | GFS60: 0 | GFT60: 0 | GFU60: 0 | GFV60: 0 | GFW60: 0 | GFX60: 0 | GFY60: 0 | GFZ60: 0 | GGA60: 0 | GGB60: 0 | GGC60: 0 | GGD60: 0 | GGE60: 0 | GGF60: 0 | GGG60: 0 | GGH60: 0 | GGI60: 0 | GGJ60: 0 | GGK60: 0 | GGL60: 0 | GGM60: 0 | GGN60: 0 | GGO60: 0 | GGP60: 0 | GGQ60: 0 | GGR60: 0 | GGS60: 0 | GGT60: =GGT41 -> 0 | GGU60: 0 | GGV60: 0 | GGW60: 0 | GGX60: 0 | GGY60: 0 | GGZ60: 0 | GHA60: 0 | GHB60: 0 | GHC60: 0 | GHD60: 0 | GHE60: 0 | GHF60: 0 | GHG60: 0 | GHH60: 0 | GHI60: 0 | GHJ60: 0 | GHK60: 0 | GHL60: 0 | GHM60: 0 | GHN60: 0 | GHO60: 0 | GHP60: 0 | GHQ60: 0 | GHR60: 0 | GHS60: 0 | GHT60: 0 | GHU60: 0 | GHV60: 0 | GHW60: 0 | GHX60: 0 | GHY60: 0 | GHZ60: 0 | GIA60: 0 | GIB60: 0 | GIC60: 0 | GID60: 0 | GIE60: 0 | GIF60: 0 | GIG60: 0 | GIH60: 0 | GII60: 0 | GIJ60: 0 | GIK60: 0 | GIL60: 0 | GIM60: 0 | GIN60: 0 | GIO60: 0 | GIP60: 0 | GIQ60: 0 | GIR60: 0 | GIS60: 0 | GIT60: 0 | GIU60: 0 | GIV60: 0 | GIW60: 0 | GIX60: 0 | GIY60: 0 | GIZ60: 0 | GJA60: 0 | GJB60: 0 | GJC60: 0 | GJD60: 0 | GJE60: 0 | GJF60: =GJF41 -> 0 | GJG60: 0 | GJH60: 0 | GJI60: 0 | GJJ60: 0 | GJK60: 0 | GJL60: 0 | GJM60: 0 | GJN60: 0 | GJO60: 0 | GJP60: 0 | GJQ60: 0 | GJR60: 0 | GJS60: 0 | GJT60: 0 | GJU60: 0 | GJV60: 0 | GJW60: 0 | GJX60: 0 | GJY60: 0 | GJZ60: 0 | GKA60: 0 | GKB60: 0 | GKC60: 0 | GKD60: 0 | GKE60: 0 | GKF60: 0 | GKG60: 0 | GKH60: 0 | GKI60: 0 | GKJ60: 0 | GKK60: 0 | GKL60: 0 | GKM60: 0 | GKN60: 0 | GKO60: 0 | GKP60: 0 | GKQ60: 0 | GKR60: 0 | GKS60: 0 | GKT60: 0 | GKU60: 0 | GKV60: 0 | GKW60: 0 | GKX60: 0 | GKY60: 0 | GKZ60: 0 | GLA60: 0 | GLB60: 0 | GLC60: 0 | GLD60: 0 | GLE60: 0 | GLF60: 0 | GLG60: 0 | GLH60: 0 | GLI60: 0 | GLJ60: 0 | GLK60: 0 | GLL60: 0 | GLM60: 0 | GLN60: 0 | GLO60: 0 | GLP60: 0 | GLQ60: 0 | GLR60: =GLR41 -> 0 | GLS60: 0 | GLT60: 0 | GLU60: 0 | GLV60: 0 | GLW60: 0 | GLX60: 0 | GLY60: 0 | GLZ60: 0 | GMA60: 0 | GMB60: 0 | GMC60: 0 | GMD60: 0 | GME60: 0 | GMF60: 0 | GMG60: 0 | GMH60: 0 | GMI60: 0 | GMJ60: 0 | GMK60: 0 | GML60: 0 | GMM60: 0 | GMN60: 0 | GMO60: 0 | GMP60: 0 | GMQ60: 0 | GMR60: 0 | GMS60: 0 | GMT60: 0 | GMU60: 0 | GMV60: 0 | GMW60: 0 | GMX60: 0 | GMY60: 0 | GMZ60: 0 | GNA60: 0 | GNB60: 0 | GNC60: 0 | GND60: 0 | GNE60: 0 | GNF60: 0 | GNG60: 0 | GNH60: 0 | GNI60: 0 | GNJ60: 0 | GNK60: 0 | GNL60: 0 | GNM60: 0 | GNN60: 0 | GNO60: 0 | GNP60: 0 | GNQ60: 0 | GNR60: 0 | GNS60: 0 | GNT60: 0 | GNU60: 0 | GNV60: 0 | GNW60: 0 | GNX60: 0 | GNY60: 0 | GNZ60: 0 | GOA60: 0 | GOB60: 0 | GOC60: 0 | GOD60: =GOD41 -> 0 | GOE60: 0 | GOF60: 0 | GOG60: 0 | GOH60: 0 | GOI60: 0 | GOJ60: 0 | GOK60: 0 | GOL60: 0 | GOM60: 0 | GON60: 0 | GOO60: 0 | GOP60: 0 | GOQ60: 0 | GOR60: 0 | GOS60: 0 | GOT60: 0 | GOU60: 0 | GOV60: 0 | GOW60: 0 | GOX60: 0 | GOY60: 0 | GOZ60: 0 | GPA60: 0 | GPB60: 0 | GPC60: 0 | GPD60: 0 | GPE60: 0 | GPF60: 0 | GPG60: 0 | GPH60: 0 | GPI60: 0 | GPJ60: 0 | GPK60: 0 | GPL60: 0 | GPM60: 0 | GPN60: 0 | GPO60: 0 | GPP60: 0 | GPQ60: 0 | GPR60: 0 | GPS60: 0 | GPT60: 0 | GPU60: 0 | GPV60: 0 | GPW60: 0 | GPX60: 0 | GPY60: 0 | GPZ60: 0 | GQA60: 0 | GQB60: 0 | GQC60: 0 | GQD60: 0 | GQE60: 0 | GQF60: 0 | GQG60: 0 | GQH60: 0 | GQI60: 0 | GQJ60: 0 | GQK60: 0 | GQL60: 0 | GQM60: 0 | GQN60: 0 | GQO60: 0 | GQP60: =GQP41 -> 0 | GQQ60: 0 | GQR60: 0 | GQS60: 0 | GQT60: 0 | GQU60: 0 | GQV60: 0 | GQW60: 0 | GQX60: 0 | GQY60: 0 | GQZ60: 0 | GRA60: 0 | GRB60: 0 | GRC60: 0 | GRD60: 0 | GRE60: 0 | GRF60: 0 | GRG60: 0 | GRH60: 0 | GRI60: 0 | GRJ60: 0 | GRK60: 0 | GRL60: 0 | GRM60: 0 | GRN60: 0 | GRO60: 0 | GRP60: 0 | GRQ60: 0 | GRR60: 0 | GRS60: 0 | GRT60: 0 | GRU60: 0 | GRV60: 0 | GRW60: 0 | GRX60: 0 | GRY60: 0 | GRZ60: 0 | GSA60: 0 | GSB60: 0 | GSC60: 0 | GSD60: 0 | GSE60: 0 | GSF60: 0 | GSG60: 0 | GSH60: 0 | GSI60: 0 | GSJ60: 0 | GSK60: 0 | GSL60: 0 | GSM60: 0 | GSN60: 0 | GSO60: 0 | GSP60: 0 | GSQ60: 0 | GSR60: 0 | GSS60: 0 | GST60: 0 | GSU60: 0 | GSV60: 0 | GSW60: 0 | GSX60: 0 | GSY60: 0 | GSZ60: 0 | GTA60: 0 | GTB60: =GTB41 -> 0 | GTC60: 0 | GTD60: 0 | GTE60: 0 | GTF60: 0 | GTG60: 0 | GTH60: 0 | GTI60: 0 | GTJ60: 0 | GTK60: 0 | GTL60: 0 | GTM60: 0 | GTN60: 0 | GTO60: 0 | GTP60: 0 | GTQ60: 0 | GTR60: 0 | GTS60: 0 | GTT60: 0 | GTU60: 0 | GTV60: 0 | GTW60: 0 | GTX60: 0 | GTY60: 0 | GTZ60: 0 | GUA60: 0 | GUB60: 0 | GUC60: 0 | GUD60: 0 | GUE60: 0 | GUF60: 0 | GUG60: 0 | GUH60: 0 | GUI60: 0 | GUJ60: 0 | GUK60: 0 | GUL60: 0 | GUM60: 0 | GUN60: 0 | GUO60: 0 | GUP60: 0 | GUQ60: 0 | GUR60: 0 | GUS60: 0 | GUT60: 0 | GUU60: 0 | GUV60: 0 | GUW60: 0 | GUX60: 0 | GUY60: 0 | GUZ60: 0 | GVA60: 0 | GVB60: 0 | GVC60: 0 | GVD60: 0 | GVE60: 0 | GVF60: 0 | GVG60: 0 | GVH60: 0 | GVI60: 0 | GVJ60: 0 | GVK60: 0 | GVL60: 0 | GVM60: 0 | GVN60: =GVN41 -> 0 | GVO60: 0 | GVP60: 0 | GVQ60: 0 | GVR60: 0 | GVS60: 0 | GVT60: 0 | GVU60: 0 | GVV60: 0 | GVW60: 0 | GVX60: 0 | GVY60: 0 | GVZ60: 0 | GWA60: 0 | GWB60: 0 | GWC60: 0 | GWD60: 0 | GWE60: 0 | GWF60: 0 | GWG60: 0 | GWH60: 0 | GWI60: 0 | GWJ60: 0 | GWK60: 0 | GWL60: 0 | GWM60: 0 | GWN60: 0 | GWO60: 0 | GWP60: 0 | GWQ60: 0 | GWR60: 0 | GWS60: 0 | GWT60: 0 | GWU60: 0 | GWV60: 0 | GWW60: 0 | GWX60: 0 | GWY60: 0 | GWZ60: 0 | GXA60: 0 | GXB60: 0 | GXC60: 0 | GXD60: 0 | GXE60: 0 | GXF60: 0 | GXG60: 0 | GXH60: 0 | GXI60: 0 | GXJ60: 0 | GXK60: 0 | GXL60: 0 | GXM60: 0 | GXN60: 0 | GXO60: 0 | GXP60: 0 | GXQ60: 0 | GXR60: 0 | GXS60: 0 | GXT60: 0 | GXU60: 0 | GXV60: 0 | GXW60: 0 | GXX60: 0 | GXY60: 0 | GXZ60: =GXZ41 -> 0 | GYA60: 0 | GYB60: 0 | GYC60: 0 | GYD60: 0 | GYE60: 0 | GYF60: 0 | GYG60: 0 | GYH60: 0 | GYI60: 0 | GYJ60: 0 | GYK60: 0 | GYL60: 0 | GYM60: 0 | GYN60: 0 | GYO60: 0 | GYP60: 0 | GYQ60: 0 | GYR60: 0 | GYS60: 0 | GYT60: 0 | GYU60: 0 | GYV60: 0 | GYW60: 0 | GYX60: 0 | GYY60: 0 | GYZ60: 0 | GZA60: 0 | GZB60: 0 | GZC60: 0 | GZD60: 0 | GZE60: 0 | GZF60: 0 | GZG60: 0 | GZH60: 0 | GZI60: 0 | GZJ60: 0 | GZK60: 0 | GZL60: 0 | GZM60: 0 | GZN60: 0 | GZO60: 0 | GZP60: 0 | GZQ60: 0 | GZR60: 0 | GZS60: 0 | GZT60: 0 | GZU60: 0 | GZV60: 0 | GZW60: 0 | GZX60: 0 | GZY60: 0 | GZZ60: 0 | HAA60: 0 | HAB60: 0 | HAC60: 0 | HAD60: 0 | HAE60: 0 | HAF60: 0 | HAG60: 0 | HAH60: 0 | HAI60: 0 | HAJ60: 0 | HAK60: 0 | HAL60: =HAL41 -> 0 | HAM60: 0 | HAN60: 0 | HAO60: 0 | HAP60: 0 | HAQ60: 0 | HAR60: 0 | HAS60: 0 | HAT60: 0 | HAU60: 0 | HAV60: 0 | HAW60: 0 | HAX60: 0 | HAY60: 0 | HAZ60: 0 | HBA60: 0 | HBB60: 0 | HBC60: 0 | HBD60: 0 | HBE60: 0 | HBF60: 0 | HBG60: 0 | HBH60: 0 | HBI60: 0 | HBJ60: 0 | HBK60: 0 | HBL60: 0 | HBM60: 0 | HBN60: 0 | HBO60: 0 | HBP60: 0 | HBQ60: 0 | HBR60: 0 | HBS60: 0 | HBT60: 0 | HBU60: 0 | HBV60: 0 | HBW60: 0 | HBX60: 0 | HBY60: 0 | HBZ60: 0 | HCA60: 0 | HCB60: 0 | HCC60: 0 | HCD60: 0 | HCE60: 0 | HCF60: 0 | HCG60: 0 | HCH60: 0 | HCI60: 0 | HCJ60: 0 | HCK60: 0 | HCL60: 0 | HCM60: 0 | HCN60: 0 | HCO60: 0 | HCP60: 0 | HCQ60: 0 | HCR60: 0 | HCS60: 0 | HCT60: 0 | HCU60: 0 | HCV60: 0 | HCW60: 0 | HCX60: =HCX41 -> 0 | HCY60: 0 | HCZ60: 0 | HDA60: 0 | HDB60: 0 | HDC60: 0 | HDD60: 0 | HDE60: 0 | HDF60: 0 | HDG60: 0 | HDH60: 0 | HDI60: 0 | HDJ60: 0 | HDK60: 0 | HDL60: 0 | HDM60: 0 | HDN60: 0 | HDO60: 0 | HDP60: 0 | HDQ60: 0 | HDR60: 0 | HDS60: 0 | HDT60: 0 | HDU60: 0 | HDV60: 0 | HDW60: 0 | HDX60: 0 | HDY60: 0 | HDZ60: 0 | HEA60: 0 | HEB60: 0 | HEC60: 0 | HED60: 0 | HEE60: 0 | HEF60: 0 | HEG60: 0 | HEH60: 0 | HEI60: 0 | HEJ60: 0 | HEK60: 0 | HEL60: 0 | HEM60: 0 | HEN60: 0 | HEO60: 0 | HEP60: 0 | HEQ60: 0 | HER60: 0 | HES60: 0 | HET60: 0 | HEU60: 0 | HEV60: 0 | HEW60: 0 | HEX60: 0 | HEY60: 0 | HEZ60: 0 | HFA60: 0 | HFB60: 0 | HFC60: 0 | HFD60: 0 | HFE60: 0 | HFF60: 0 | HFG60: 0 | HFH60: 0 | HFI60: 0 | HFJ60: =HFJ41 -> 0 | HFK60: 0 | HFL60: 0 | HFM60: 0 | HFN60: 0 | HFO60: 0 | HFP60: 0 | HFQ60: 0 | HFR60: 0 | HFS60: 0 | HFT60: 0 | HFU60: 0 | HFV60: 0 | HFW60: 0 | HFX60: 0 | HFY60: 0 | HFZ60: 0 | HGA60: 0 | HGB60: 0 | HGC60: 0 | HGD60: 0 | HGE60: 0 | HGF60: 0 | HGG60: 0 | HGH60: 0 | HGI60: 0 | HGJ60: 0 | HGK60: 0 | HGL60: 0 | HGM60: 0 | HGN60: 0 | HGO60: 0 | HGP60: 0 | HGQ60: 0 | HGR60: 0 | HGS60: 0 | HGT60: 0 | HGU60: 0 | HGV60: 0 | HGW60: 0 | HGX60: 0 | HGY60: 0 | HGZ60: 0 | HHA60: 0 | HHB60: 0 | HHC60: 0 | HHD60: 0 | HHE60: 0 | HHF60: 0 | HHG60: 0 | HHH60: 0 | HHI60: 0 | HHJ60: 0 | HHK60: 0 | HHL60: 0 | HHM60: 0 | HHN60: 0 | HHO60: 0 | HHP60: 0 | HHQ60: 0 | HHR60: 0 | HHS60: 0 | HHT60: 0 | HHU60: 0 | HHV60: =HHV41 -> 0 | HHW60: 0 | HHX60: 0 | HHY60: 0 | HHZ60: 0 | HIA60: 0 | HIB60: 0 | HIC60: 0 | HID60: 0 | HIE60: 0 | HIF60: 0 | HIG60: 0 | HIH60: 0 | HII60: 0 | HIJ60: 0 | HIK60: 0 | HIL60: 0 | HIM60: 0 | HIN60: 0 | HIO60: 0 | HIP60: 0 | HIQ60: 0 | HIR60: 0 | HIS60: 0 | HIT60: 0 | HIU60: 0 | HIV60: 0 | HIW60: 0 | HIX60: 0 | HIY60: 0 | HIZ60: 0 | HJA60: 0 | HJB60: 0 | HJC60: 0 | HJD60: 0 | HJE60: 0 | HJF60: 0 | HJG60: 0 | HJH60: 0 | HJI60: 0 | HJJ60: 0 | HJK60: 0 | HJL60: 0 | HJM60: 0 | HJN60: 0 | HJO60: 0 | HJP60: 0 | HJQ60: 0 | HJR60: 0 | HJS60: 0 | HJT60: 0 | HJU60: 0 | HJV60: 0 | HJW60: 0 | HJX60: 0 | HJY60: 0 | HJZ60: 0 | HKA60: 0 | HKB60: 0 | HKC60: 0 | HKD60: 0 | HKE60: 0 | HKF60: 0 | HKG60: 0 | HKH60: =HKH41 -> 0 | HKI60: 0 | HKJ60: 0 | HKK60: 0 | HKL60: 0 | HKM60: 0 | HKN60: 0 | HKO60: 0 | HKP60: 0 | HKQ60: 0 | HKR60: 0 | HKS60: 0 | HKT60: 0 | HKU60: 0 | HKV60: 0 | HKW60: 0 | HKX60: 0 | HKY60: 0 | HKZ60: 0 | HLA60: 0 | HLB60: 0 | HLC60: 0 | HLD60: 0 | HLE60: 0 | HLF60: 0 | HLG60: 0 | HLH60: 0 | HLI60: 0 | HLJ60: 0 | HLK60: 0 | HLL60: 0 | HLM60: 0 | HLN60: 0 | HLO60: 0 | HLP60: 0 | HLQ60: 0 | HLR60: 0 | HLS60: 0 | HLT60: 0 | HLU60: 0 | HLV60: 0 | HLW60: 0 | HLX60: 0 | HLY60: 0 | HLZ60: 0 | HMA60: 0 | HMB60: 0 | HMC60: 0 | HMD60: 0 | HME60: 0 | HMF60: 0 | HMG60: 0 | HMH60: 0 | HMI60: 0 | HMJ60: 0 | HMK60: 0 | HML60: 0 | HMM60: 0 | HMN60: 0 | HMO60: 0 | HMP60: 0 | HMQ60: 0 | HMR60: 0 | HMS60: 0 | HMT60: =HMT41 -> 0 | HMU60: 0 | HMV60: 0 | HMW60: 0 | HMX60: 0 | HMY60: 0 | HMZ60: 0 | HNA60: 0 | HNB60: 0 | HNC60: 0 | HND60: 0 | HNE60: 0 | HNF60: 0 | HNG60: 0 | HNH60: 0 | HNI60: 0 | HNJ60: 0 | HNK60: 0 | HNL60: 0 | HNM60: 0 | HNN60: 0 | HNO60: 0 | HNP60: 0 | HNQ60: 0 | HNR60: 0 | HNS60: 0 | HNT60: 0 | HNU60: 0 | HNV60: 0 | HNW60: 0 | HNX60: 0 | HNY60: 0 | HNZ60: 0 | HOA60: 0 | HOB60: 0 | HOC60: 0 | HOD60: 0 | HOE60: 0 | HOF60: 0 | HOG60: 0 | HOH60: 0 | HOI60: 0 | HOJ60: 0 | HOK60: 0 | HOL60: 0 | HOM60: 0 | HON60: 0 | HOO60: 0 | HOP60: 0 | HOQ60: 0 | HOR60: 0 | HOS60: 0 | HOT60: 0 | HOU60: 0 | HOV60: 0 | HOW60: 0 | HOX60: 0 | HOY60: 0 | HOZ60: 0 | HPA60: 0 | HPB60: 0 | HPC60: 0 | HPD60: 0 | HPE60: 0 | HPF60: =HPF41 -> 0 | HPG60: 0 | HPH60: 0 | HPI60: 0 | HPJ60: 0 | HPK60: 0 | HPL60: 0 | HPM60: 0 | HPN60: 0 | HPO60: 0 | HPP60: 0 | HPQ60: 0 | HPR60: 0 | HPS60: 0 | HPT60: 0 | HPU60: 0 | HPV60: 0 | HPW60: 0 | HPX60: 0 | HPY60: 0 | HPZ60: 0 | HQA60: 0 | HQB60: 0 | HQC60: 0 | HQD60: 0 | HQE60: 0 | HQF60: 0 | HQG60: 0 | HQH60: 0 | HQI60: 0 | HQJ60: 0 | HQK60: 0 | HQL60: 0 | HQM60: 0 | HQN60: 0 | HQO60: 0 | HQP60: 0 | HQQ60: 0 | HQR60: 0 | HQS60: 0 | HQT60: 0 | HQU60: 0 | HQV60: 0 | HQW60: 0 | HQX60: 0 | HQY60: 0 | HQZ60: 0 | HRA60: 0 | HRB60: 0 | HRC60: 0 | HRD60: 0 | HRE60: 0 | HRF60: 0 | HRG60: 0 | HRH60: 0 | HRI60: 0 | HRJ60: 0 | HRK60: 0 | HRL60: 0 | HRM60: 0 | HRN60: 0 | HRO60: 0 | HRP60: 0 | HRQ60: 0 | HRR60: =HRR41 -> 0 | HRS60: 0 | HRT60: 0 | HRU60: 0 | HRV60: 0 | HRW60: 0 | HRX60: 0 | HRY60: 0 | HRZ60: 0 | HSA60: 0 | HSB60: 0 | HSC60: 0 | HSD60: 0 | HSE60: 0 | HSF60: 0 | HSG60: 0 | HSH60: 0 | HSI60: 0 | HSJ60: 0 | HSK60: 0 | HSL60: 0 | HSM60: 0 | HSN60: 0 | HSO60: 0 | HSP60: 0 | HSQ60: 0 | HSR60: 0 | HSS60: 0 | HST60: 0 | HSU60: 0 | HSV60: 0 | HSW60: 0 | HSX60: 0 | HSY60: 0 | HSZ60: 0 | HTA60: 0 | HTB60: 0 | HTC60: 0 | HTD60: 0 | HTE60: 0 | HTF60: 0 | HTG60: 0 | HTH60: 0 | HTI60: 0 | HTJ60: 0 | HTK60: 0 | HTL60: 0 | HTM60: 0 | HTN60: 0 | HTO60: 0 | HTP60: 0 | HTQ60: 0 | HTR60: 0 | HTS60: 0 | HTT60: 0 | HTU60: 0 | HTV60: 0 | HTW60: 0 | HTX60: 0 | HTY60: 0 | HTZ60: 0 | HUA60: 0 | HUB60: 0 | HUC60: 0 | HUD60: =HUD41 -> 0 | HUE60: 0 | HUF60: 0 | HUG60: 0 | HUH60: 0 | HUI60: 0 | HUJ60: 0 | HUK60: 0 | HUL60: 0 | HUM60: 0 | HUN60: 0 | HUO60: 0 | HUP60: 0 | HUQ60: 0 | HUR60: 0 | HUS60: 0 | HUT60: 0 | HUU60: 0 | HUV60: 0 | HUW60: 0 | HUX60: 0 | HUY60: 0 | HUZ60: 0 | HVA60: 0 | HVB60: 0 | HVC60: 0 | HVD60: 0 | HVE60: 0 | HVF60: 0 | HVG60: 0 | HVH60: 0 | HVI60: 0 | HVJ60: 0 | HVK60: 0 | HVL60: 0 | HVM60: 0 | HVN60: 0 | HVO60: 0 | HVP60: 0 | HVQ60: 0 | HVR60: 0 | HVS60: 0 | HVT60: 0 | HVU60: 0 | HVV60: 0 | HVW60: 0 | HVX60: 0 | HVY60: 0 | HVZ60: 0 | HWA60: 0 | HWB60: 0 | HWC60: 0 | HWD60: 0 | HWE60: 0 | HWF60: 0 | HWG60: 0 | HWH60: 0 | HWI60: 0 | HWJ60: 0 | HWK60: 0 | HWL60: 0 | HWM60: 0 | HWN60: 0 | HWO60: 0 | HWP60: =HWP41 -> 0 | HWQ60: 0 | HWR60: 0 | HWS60: 0 | HWT60: 0 | HWU60: 0 | HWV60: 0 | HWW60: 0 | HWX60: 0 | HWY60: 0 | HWZ60: 0 | HXA60: 0 | HXB60: 0 | HXC60: 0 | HXD60: 0 | HXE60: 0 | HXF60: 0 | HXG60: 0 | HXH60: 0 | HXI60: 0 | HXJ60: 0 | HXK60: 0 | HXL60: 0 | HXM60: 0 | HXN60: 0 | HXO60: 0 | HXP60: 0 | HXQ60: 0 | HXR60: 0 | HXS60: 0 | HXT60: 0 | HXU60: 0 | HXV60: 0 | HXW60: 0 | HXX60: 0 | HXY60: 0 | HXZ60: 0 | HYA60: 0 | HYB60: 0 | HYC60: 0 | HYD60: 0 | HYE60: 0 | HYF60: 0 | HYG60: 0 | HYH60: 0 | HYI60: 0 | HYJ60: 0 | HYK60: 0 | HYL60: 0 | HYM60: 0 | HYN60: 0 | HYO60: 0 | HYP60: 0 | HYQ60: 0 | HYR60: 0 | HYS60: 0 | HYT60: 0 | HYU60: 0 | HYV60: 0 | HYW60: 0 | HYX60: 0 | HYY60: 0 | HYZ60: 0 | HZA60: 0 | HZB60: =HZB41 -> 0 | HZC60: 0 | HZD60: 0 | HZE60: 0 | HZF60: 0 | HZG60: 0 | HZH60: 0 | HZI60: 0 | HZJ60: 0 | HZK60: 0 | HZL60: 0 | HZM60: 0 | HZN60: 0 | HZO60: 0 | HZP60: 0 | HZQ60: 0 | HZR60: 0 | HZS60: 0 | HZT60: 0 | HZU60: 0 | HZV60: 0 | HZW60: 0 | HZX60: 0 | HZY60: 0 | HZZ60: 0 | IAA60: 0 | IAB60: 0 | IAC60: 0 | IAD60: 0 | IAE60: 0 | IAF60: 0 | IAG60: 0 | IAH60: 0 | IAI60: 0 | IAJ60: 0 | IAK60: 0 | IAL60: 0 | IAM60: 0 | IAN60: 0 | IAO60: 0 | IAP60: 0 | IAQ60: 0 | IAR60: 0 | IAS60: 0 | IAT60: 0 | IAU60: 0 | IAV60: 0 | IAW60: 0 | IAX60: 0 | IAY60: 0 | IAZ60: 0 | IBA60: 0 | IBB60: 0 | IBC60: 0 | IBD60: 0 | IBE60: 0 | IBF60: 0 | IBG60: 0 | IBH60: 0 | IBI60: 0 | IBJ60: 0 | IBK60: 0 | IBL60: 0 | IBM60: 0 | IBN60: =IBN41 -> 0 | IBO60: 0 | IBP60: 0 | IBQ60: 0 | IBR60: 0 | IBS60: 0 | IBT60: 0 | IBU60: 0 | IBV60: 0 | IBW60: 0 | IBX60: 0 | IBY60: 0 | IBZ60: 0 | ICA60: 0 | ICB60: 0 | ICC60: 0 | ICD60: 0 | ICE60: 0 | ICF60: 0 | ICG60: 0 | ICH60: 0 | ICI60: 0 | ICJ60: 0 | ICK60: 0 | ICL60: 0 | ICM60: 0 | ICN60: 0 | ICO60: 0 | ICP60: 0 | ICQ60: 0 | ICR60: 0 | ICS60: 0 | ICT60: 0 | ICU60: 0 | ICV60: 0 | ICW60: 0 | ICX60: 0 | ICY60: 0 | ICZ60: 0 | IDA60: 0 | IDB60: 0 | IDC60: 0 | IDD60: 0 | IDE60: 0 | IDF60: 0 | IDG60: 0 | IDH60: 0 | IDI60: 0 | IDJ60: 0 | IDK60: 0 | IDL60: 0 | IDM60: 0 | IDN60: 0 | IDO60: 0 | IDP60: 0 | IDQ60: 0 | IDR60: 0 | IDS60: 0 | IDT60: 0 | IDU60: 0 | IDV60: 0 | IDW60: 0 | IDX60: 0 | IDY60: 0 | IDZ60: =IDZ41 -> 0 | IEA60: 0 | IEB60: 0 | IEC60: 0 | IED60: 0 | IEE60: 0 | IEF60: 0 | IEG60: 0 | IEH60: 0 | IEI60: 0 | IEJ60: 0 | IEK60: 0 | IEL60: 0 | IEM60: 0 | IEN60: 0 | IEO60: 0 | IEP60: 0 | IEQ60: 0 | IER60: 0 | IES60: 0 | IET60: 0 | IEU60: 0 | IEV60: 0 | IEW60: 0 | IEX60: 0 | IEY60: 0 | IEZ60: 0 | IFA60: 0 | IFB60: 0 | IFC60: 0 | IFD60: 0 | IFE60: 0 | IFF60: 0 | IFG60: 0 | IFH60: 0 | IFI60: 0 | IFJ60: 0 | IFK60: 0 | IFL60: 0 | IFM60: 0 | IFN60: 0 | IFO60: 0 | IFP60: 0 | IFQ60: 0 | IFR60: 0 | IFS60: 0 | IFT60: 0 | IFU60: 0 | IFV60: 0 | IFW60: 0 | IFX60: 0 | IFY60: 0 | IFZ60: 0 | IGA60: 0 | IGB60: 0 | IGC60: 0 | IGD60: 0 | IGE60: 0 | IGF60: 0 | IGG60: 0 | IGH60: 0 | IGI60: 0 | IGJ60: 0 | IGK60: 0 | IGL60: =IGL41 -> 0 | IGM60: 0 | IGN60: 0 | IGO60: 0 | IGP60: 0 | IGQ60: 0 | IGR60: 0 | IGS60: 0 | IGT60: 0 | IGU60: 0 | IGV60: 0 | IGW60: 0 | IGX60: 0 | IGY60: 0 | IGZ60: 0 | IHA60: 0 | IHB60: 0 | IHC60: 0 | IHD60: 0 | IHE60: 0 | IHF60: 0 | IHG60: 0 | IHH60: 0 | IHI60: 0 | IHJ60: 0 | IHK60: 0 | IHL60: 0 | IHM60: 0 | IHN60: 0 | IHO60: 0 | IHP60: 0 | IHQ60: 0 | IHR60: 0 | IHS60: 0 | IHT60: 0 | IHU60: 0 | IHV60: 0 | IHW60: 0 | IHX60: 0 | IHY60: 0 | IHZ60: 0 | IIA60: 0 | IIB60: 0 | IIC60: 0 | IID60: 0 | IIE60: 0 | IIF60: 0 | IIG60: 0 | IIH60: 0 | III60: 0 | IIJ60: 0 | IIK60: 0 | IIL60: 0 | IIM60: 0 | IIN60: 0 | IIO60: 0 | IIP60: 0 | IIQ60: 0 | IIR60: 0 | IIS60: 0 | IIT60: 0 | IIU60: 0 | IIV60: 0 | IIW60: 0 | IIX60: =IIX41 -> 0 | IIY60: 0 | IIZ60: 0 | IJA60: 0 | IJB60: 0 | IJC60: 0 | IJD60: 0 | IJE60: 0 | IJF60: 0 | IJG60: 0 | IJH60: 0 | IJI60: 0 | IJJ60: 0 | IJK60: 0 | IJL60: 0 | IJM60: 0 | IJN60: 0 | IJO60: 0 | IJP60: 0 | IJQ60: 0 | IJR60: 0 | IJS60: 0 | IJT60: 0 | IJU60: 0 | IJV60: 0 | IJW60: 0 | IJX60: 0 | IJY60: 0 | IJZ60: 0 | IKA60: 0 | IKB60: 0 | IKC60: 0 | IKD60: 0 | IKE60: 0 | IKF60: 0 | IKG60: 0 | IKH60: 0 | IKI60: 0 | IKJ60: 0 | IKK60: 0 | IKL60: 0 | IKM60: 0 | IKN60: 0 | IKO60: 0 | IKP60: 0 | IKQ60: 0 | IKR60: 0 | IKS60: 0 | IKT60: 0 | IKU60: 0 | IKV60: 0 | IKW60: 0 | IKX60: 0 | IKY60: 0 | IKZ60: 0 | ILA60: 0 | ILB60: 0 | ILC60: 0 | ILD60: 0 | ILE60: 0 | ILF60: 0 | ILG60: 0 | ILH60: 0 | ILI60: 0 | ILJ60: =ILJ41 -> 0 | ILK60: 0 | ILL60: 0 | ILM60: 0 | ILN60: 0 | ILO60: 0 | ILP60: 0 | ILQ60: 0 | ILR60: 0 | ILS60: 0 | ILT60: 0 | ILU60: 0 | ILV60: 0 | ILW60: 0 | ILX60: 0 | ILY60: 0 | ILZ60: 0 | IMA60: 0 | IMB60: 0 | IMC60: 0 | IMD60: 0 | IME60: 0 | IMF60: 0 | IMG60: 0 | IMH60: 0 | IMI60: 0 | IMJ60: 0 | IMK60: 0 | IML60: 0 | IMM60: 0 | IMN60: 0 | IMO60: 0 | IMP60: 0 | IMQ60: 0 | IMR60: 0 | IMS60: 0 | IMT60: 0 | IMU60: 0 | IMV60: 0 | IMW60: 0 | IMX60: 0 | IMY60: 0 | IMZ60: 0 | INA60: 0 | INB60: 0 | INC60: 0 | IND60: 0 | INE60: 0 | INF60: 0 | ING60: 0 | INH60: 0 | INI60: 0 | INJ60: 0 | INK60: 0 | INL60: 0 | INM60: 0 | INN60: 0 | INO60: 0 | INP60: 0 | INQ60: 0 | INR60: 0 | INS60: 0 | INT60: 0 | INU60: 0 | INV60: =INV41 -> 0 | INW60: 0 | INX60: 0 | INY60: 0 | INZ60: 0 | IOA60: 0 | IOB60: 0 | IOC60: 0 | IOD60: 0 | IOE60: 0 | IOF60: 0 | IOG60: 0 | IOH60: 0 | IOI60: 0 | IOJ60: 0 | IOK60: 0 | IOL60: 0 | IOM60: 0 | ION60: 0 | IOO60: 0 | IOP60: 0 | IOQ60: 0 | IOR60: 0 | IOS60: 0 | IOT60: 0 | IOU60: 0 | IOV60: 0 | IOW60: 0 | IOX60: 0 | IOY60: 0 | IOZ60: 0 | IPA60: 0 | IPB60: 0 | IPC60: 0 | IPD60: 0 | IPE60: 0 | IPF60: 0 | IPG60: 0 | IPH60: 0 | IPI60: 0 | IPJ60: 0 | IPK60: 0 | IPL60: 0 | IPM60: 0 | IPN60: 0 | IPO60: 0 | IPP60: 0 | IPQ60: 0 | IPR60: 0 | IPS60: 0 | IPT60: 0 | IPU60: 0 | IPV60: 0 | IPW60: 0 | IPX60: 0 | IPY60: 0 | IPZ60: 0 | IQA60: 0 | IQB60: 0 | IQC60: 0 | IQD60: 0 | IQE60: 0 | IQF60: 0 | IQG60: 0 | IQH60: =IQH41 -> 0 | IQI60: 0 | IQJ60: 0 | IQK60: 0 | IQL60: 0 | IQM60: 0 | IQN60: 0 | IQO60: 0 | IQP60: 0 | IQQ60: 0 | IQR60: 0 | IQS60: 0 | IQT60: 0 | IQU60: 0 | IQV60: 0 | IQW60: 0 | IQX60: 0 | IQY60: 0 | IQZ60: 0 | IRA60: 0 | IRB60: 0 | IRC60: 0 | IRD60: 0 | IRE60: 0 | IRF60: 0 | IRG60: 0 | IRH60: 0 | IRI60: 0 | IRJ60: 0 | IRK60: 0 | IRL60: 0 | IRM60: 0 | IRN60: 0 | IRO60: 0 | IRP60: 0 | IRQ60: 0 | IRR60: 0 | IRS60: 0 | IRT60: 0 | IRU60: 0 | IRV60: 0 | IRW60: 0 | IRX60: 0 | IRY60: 0 | IRZ60: 0 | ISA60: 0 | ISB60: 0 | ISC60: 0 | ISD60: 0 | ISE60: 0 | ISF60: 0 | ISG60: 0 | ISH60: 0 | ISI60: 0 | ISJ60: 0 | ISK60: 0 | ISL60: 0 | ISM60: 0 | ISN60: 0 | ISO60: 0 | ISP60: 0 | ISQ60: 0 | ISR60: 0 | ISS60: 0 | IST60: =IST41 -> 0 | ISU60: 0 | ISV60: 0 | ISW60: 0 | ISX60: 0 | ISY60: 0 | ISZ60: 0 | ITA60: 0 | ITB60: 0 | ITC60: 0 | ITD60: 0 | ITE60: 0 | ITF60: 0 | ITG60: 0 | ITH60: 0 | ITI60: 0 | ITJ60: 0 | ITK60: 0 | ITL60: 0 | ITM60: 0 | ITN60: 0 | ITO60: 0 | ITP60: 0 | ITQ60: 0 | ITR60: 0 | ITS60: 0 | ITT60: 0 | ITU60: 0 | ITV60: 0 | ITW60: 0 | ITX60: 0 | ITY60: 0 | ITZ60: 0 | IUA60: 0 | IUB60: 0 | IUC60: 0 | IUD60: 0 | IUE60: 0 | IUF60: 0 | IUG60: 0 | IUH60: 0 | IUI60: 0 | IUJ60: 0 | IUK60: 0 | IUL60: 0 | IUM60: 0 | IUN60: 0 | IUO60: 0 | IUP60: 0 | IUQ60: 0 | IUR60: 0 | IUS60: 0 | IUT60: 0 | IUU60: 0 | IUV60: 0 | IUW60: 0 | IUX60: 0 | IUY60: 0 | IUZ60: 0 | IVA60: 0 | IVB60: 0 | IVC60: 0 | IVD60: 0 | IVE60: 0 | IVF60: =IVF41 -> 0 | IVG60: 0 | IVH60: 0 | IVI60: 0 | IVJ60: 0 | IVK60: 0 | IVL60: 0 | IVM60: 0 | IVN60: 0 | IVO60: 0 | IVP60: 0 | IVQ60: 0 | IVR60: 0 | IVS60: 0 | IVT60: 0 | IVU60: 0 | IVV60: 0 | IVW60: 0 | IVX60: 0 | IVY60: 0 | IVZ60: 0 | IWA60: 0 | IWB60: 0 | IWC60: 0 | IWD60: 0 | IWE60: 0 | IWF60: 0 | IWG60: 0 | IWH60: 0 | IWI60: 0 | IWJ60: 0 | IWK60: 0 | IWL60: 0 | IWM60: 0 | IWN60: 0 | IWO60: 0 | IWP60: 0 | IWQ60: 0 | IWR60: 0 | IWS60: 0 | IWT60: 0 | IWU60: 0 | IWV60: 0 | IWW60: 0 | IWX60: 0 | IWY60: 0 | IWZ60: 0 | IXA60: 0 | IXB60: 0 | IXC60: 0 | IXD60: 0 | IXE60: 0 | IXF60: 0 | IXG60: 0 | IXH60: 0 | IXI60: 0 | IXJ60: 0 | IXK60: 0 | IXL60: 0 | IXM60: 0 | IXN60: 0 | IXO60: 0 | IXP60: 0 | IXQ60: 0 | IXR60: =IXR41 -> 0 | IXS60: 0 | IXT60: 0 | IXU60: 0 | IXV60: 0 | IXW60: 0 | IXX60: 0 | IXY60: 0 | IXZ60: 0 | IYA60: 0 | IYB60: 0 | IYC60: 0 | IYD60: 0 | IYE60: 0 | IYF60: 0 | IYG60: 0 | IYH60: 0 | IYI60: 0 | IYJ60: 0 | IYK60: 0 | IYL60: 0 | IYM60: 0 | IYN60: 0 | IYO60: 0 | IYP60: 0 | IYQ60: 0 | IYR60: 0 | IYS60: 0 | IYT60: 0 | IYU60: 0 | IYV60: 0 | IYW60: 0 | IYX60: 0 | IYY60: 0 | IYZ60: 0 | IZA60: 0 | IZB60: 0 | IZC60: 0 | IZD60: 0 | IZE60: 0 | IZF60: 0 | IZG60: 0 | IZH60: 0 | IZI60: 0 | IZJ60: 0 | IZK60: 0 | IZL60: 0 | IZM60: 0 | IZN60: 0 | IZO60: 0 | IZP60: 0 | IZQ60: 0 | IZR60: 0 | IZS60: 0 | IZT60: 0 | IZU60: 0 | IZV60: 0 | IZW60: 0 | IZX60: 0 | IZY60: 0 | IZZ60: 0 | JAA60: 0 | JAB60: 0 | JAC60: 0 | JAD60: =JAD41 -> 0 | JAE60: 0 | JAF60: 0 | JAG60: 0 | JAH60: 0 | JAI60: 0 | JAJ60: 0 | JAK60: 0 | JAL60: 0 | JAM60: 0 | JAN60: 0 | JAO60: 0 | JAP60: 0 | JAQ60: 0 | JAR60: 0 | JAS60: 0 | JAT60: 0 | JAU60: 0 | JAV60: 0 | JAW60: 0 | JAX60: 0 | JAY60: 0 | JAZ60: 0 | JBA60: 0 | JBB60: 0 | JBC60: 0 | JBD60: 0 | JBE60: 0 | JBF60: 0 | JBG60: 0 | JBH60: 0 | JBI60: 0 | JBJ60: 0 | JBK60: 0 | JBL60: 0 | JBM60: 0 | JBN60: 0 | JBO60: 0 | JBP60: 0 | JBQ60: 0 | JBR60: 0 | JBS60: 0 | JBT60: 0 | JBU60: 0 | JBV60: 0 | JBW60: 0 | JBX60: 0 | JBY60: 0 | JBZ60: 0 | JCA60: 0 | JCB60: 0 | JCC60: 0 | JCD60: 0 | JCE60: 0 | JCF60: 0 | JCG60: 0 | JCH60: 0 | JCI60: 0 | JCJ60: 0 | JCK60: 0 | JCL60: 0 | JCM60: 0 | JCN60: 0 | JCO60: 0 | JCP60: =JCP41 -> 0 | JCQ60: 0 | JCR60: 0 | JCS60: 0 | JCT60: 0 | JCU60: 0 | JCV60: 0 | JCW60: 0 | JCX60: 0 | JCY60: 0 | JCZ60: 0 | JDA60: 0 | JDB60: 0 | JDC60: 0 | JDD60: 0 | JDE60: 0 | JDF60: 0 | JDG60: 0 | JDH60: 0 | JDI60: 0 | JDJ60: 0 | JDK60: 0 | JDL60: 0 | JDM60: 0 | JDN60: 0 | JDO60: 0 | JDP60: 0 | JDQ60: 0 | JDR60: 0 | JDS60: 0 | JDT60: 0 | JDU60: 0 | JDV60: 0 | JDW60: 0 | JDX60: 0 | JDY60: 0 | JDZ60: 0 | JEA60: 0 | JEB60: 0 | JEC60: 0 | JED60: 0 | JEE60: 0 | JEF60: 0 | JEG60: 0 | JEH60: 0 | JEI60: 0 | JEJ60: 0 | JEK60: 0 | JEL60: 0 | JEM60: 0 | JEN60: 0 | JEO60: 0 | JEP60: 0 | JEQ60: 0 | JER60: 0 | JES60: 0 | JET60: 0 | JEU60: 0 | JEV60: 0 | JEW60: 0 | JEX60: 0 | JEY60: 0 | JEZ60: 0 | JFA60: 0 | JFB60: =JFB41 -> 0 | JFC60: 0 | JFD60: 0 | JFE60: 0 | JFF60: 0 | JFG60: 0 | JFH60: 0 | JFI60: 0 | JFJ60: 0 | JFK60: 0 | JFL60: 0 | JFM60: 0 | JFN60: 0 | JFO60: 0 | JFP60: 0 | JFQ60: 0 | JFR60: 0 | JFS60: 0 | JFT60: 0 | JFU60: 0 | JFV60: 0 | JFW60: 0 | JFX60: 0 | JFY60: 0 | JFZ60: 0 | JGA60: 0 | JGB60: 0 | JGC60: 0 | JGD60: 0 | JGE60: 0 | JGF60: 0 | JGG60: 0 | JGH60: 0 | JGI60: 0 | JGJ60: 0 | JGK60: 0 | JGL60: 0 | JGM60: 0 | JGN60: 0 | JGO60: 0 | JGP60: 0 | JGQ60: 0 | JGR60: 0 | JGS60: 0 | JGT60: 0 | JGU60: 0 | JGV60: 0 | JGW60: 0 | JGX60: 0 | JGY60: 0 | JGZ60: 0 | JHA60: 0 | JHB60: 0 | JHC60: 0 | JHD60: 0 | JHE60: 0 | JHF60: 0 | JHG60: 0 | JHH60: 0 | JHI60: 0 | JHJ60: 0 | JHK60: 0 | JHL60: 0 | JHM60: 0 | JHN60: =JHN41 -> 0 | JHO60: 0 | JHP60: 0 | JHQ60: 0 | JHR60: 0 | JHS60: 0 | JHT60: 0 | JHU60: 0 | JHV60: 0 | JHW60: 0 | JHX60: 0 | JHY60: 0 | JHZ60: 0 | JIA60: 0 | JIB60: 0 | JIC60: 0 | JID60: 0 | JIE60: 0 | JIF60: 0 | JIG60: 0 | JIH60: 0 | JII60: 0 | JIJ60: 0 | JIK60: 0 | JIL60: 0 | JIM60: 0 | JIN60: 0 | JIO60: 0 | JIP60: 0 | JIQ60: 0 | JIR60: 0 | JIS60: 0 | JIT60: 0 | JIU60: 0 | JIV60: 0 | JIW60: 0 | JIX60: 0 | JIY60: 0 | JIZ60: 0 | JJA60: 0 | JJB60: 0 | JJC60: 0 | JJD60: 0 | JJE60: 0 | JJF60: 0 | JJG60: 0 | JJH60: 0 | JJI60: 0 | JJJ60: 0 | JJK60: 0 | JJL60: 0 | JJM60: 0 | JJN60: 0 | JJO60: 0 | JJP60: 0 | JJQ60: 0 | JJR60: 0 | JJS60: 0 | JJT60: 0 | JJU60: 0 | JJV60: 0 | JJW60: 0 | JJX60: 0 | JJY60: 0 | JJZ60: =JJZ41 -> 0 | JKA60: 0 | JKB60: 0 | JKC60: 0 | JKD60: 0 | JKE60: 0 | JKF60: 0 | JKG60: 0 | JKH60: 0 | JKI60: 0 | JKJ60: 0 | JKK60: 0 | JKL60: 0 | JKM60: 0 | JKN60: 0 | JKO60: 0 | JKP60: 0 | JKQ60: 0 | JKR60: 0 | JKS60: 0 | JKT60: 0 | JKU60: 0 | JKV60: 0 | JKW60: 0 | JKX60: 0 | JKY60: 0 | JKZ60: 0 | JLA60: 0 | JLB60: 0 | JLC60: 0 | JLD60: 0 | JLE60: 0 | JLF60: 0 | JLG60: 0 | JLH60: 0 | JLI60: 0 | JLJ60: 0 | JLK60: 0 | JLL60: 0 | JLM60: 0 | JLN60: 0 | JLO60: 0 | JLP60: 0 | JLQ60: 0 | JLR60: 0 | JLS60: 0 | JLT60: 0 | JLU60: 0 | JLV60: 0 | JLW60: 0 | JLX60: 0 | JLY60: 0 | JLZ60: 0 | JMA60: 0 | JMB60: 0 | JMC60: 0 | JMD60: 0 | JME60: 0 | JMF60: 0 | JMG60: 0 | JMH60: 0 | JMI60: 0 | JMJ60: 0 | JMK60: 0 | JML60: =JML41 -> 0 | JMM60: 0 | JMN60: 0 | JMO60: 0 | JMP60: 0 | JMQ60: 0 | JMR60: 0 | JMS60: 0 | JMT60: 0 | JMU60: 0 | JMV60: 0 | JMW60: 0 | JMX60: 0 | JMY60: 0 | JMZ60: 0 | JNA60: 0 | JNB60: 0 | JNC60: 0 | JND60: 0 | JNE60: 0 | JNF60: 0 | JNG60: 0 | JNH60: 0 | JNI60: 0 | JNJ60: 0 | JNK60: 0 | JNL60: 0 | JNM60: 0 | JNN60: 0 | JNO60: 0 | JNP60: 0 | JNQ60: 0 | JNR60: 0 | JNS60: 0 | JNT60: 0 | JNU60: 0 | JNV60: 0 | JNW60: 0 | JNX60: 0 | JNY60: 0 | JNZ60: 0 | JOA60: 0 | JOB60: 0 | JOC60: 0 | JOD60: 0 | JOE60: 0 | JOF60: 0 | JOG60: 0 | JOH60: 0 | JOI60: 0 | JOJ60: 0 | JOK60: 0 | JOL60: 0 | JOM60: 0 | JON60: 0 | JOO60: 0 | JOP60: 0 | JOQ60: 0 | JOR60: 0 | JOS60: 0 | JOT60: 0 | JOU60: 0 | JOV60: 0 | JOW60: 0 | JOX60: =JOX41 -> 0 | JOY60: 0 | JOZ60: 0 | JPA60: 0 | JPB60: 0 | JPC60: 0 | JPD60: 0 | JPE60: 0 | JPF60: 0 | JPG60: 0 | JPH60: 0 | JPI60: 0 | JPJ60: 0 | JPK60: 0 | JPL60: 0 | JPM60: 0 | JPN60: 0 | JPO60: 0 | JPP60: 0 | JPQ60: 0 | JPR60: 0 | JPS60: 0 | JPT60: 0 | JPU60: 0 | JPV60: 0 | JPW60: 0 | JPX60: 0 | JPY60: 0 | JPZ60: 0 | JQA60: 0 | JQB60: 0 | JQC60: 0 | JQD60: 0 | JQE60: 0 | JQF60: 0 | JQG60: 0 | JQH60: 0 | JQI60: 0 | JQJ60: 0 | JQK60: 0 | JQL60: 0 | JQM60: 0 | JQN60: 0 | JQO60: 0 | JQP60: 0 | JQQ60: 0 | JQR60: 0 | JQS60: 0 | JQT60: 0 | JQU60: 0 | JQV60: 0 | JQW60: 0 | JQX60: 0 | JQY60: 0 | JQZ60: 0 | JRA60: 0 | JRB60: 0 | JRC60: 0 | JRD60: 0 | JRE60: 0 | JRF60: 0 | JRG60: 0 | JRH60: 0 | JRI60: 0 | JRJ60: =JRJ41 -> 0 | JRK60: 0 | JRL60: 0 | JRM60: 0 | JRN60: 0 | JRO60: 0 | JRP60: 0 | JRQ60: 0 | JRR60: 0 | JRS60: 0 | JRT60: 0 | JRU60: 0 | JRV60: 0 | JRW60: 0 | JRX60: 0 | JRY60: 0 | JRZ60: 0 | JSA60: 0 | JSB60: 0 | JSC60: 0 | JSD60: 0 | JSE60: 0 | JSF60: 0 | JSG60: 0 | JSH60: 0 | JSI60: 0 | JSJ60: 0 | JSK60: 0 | JSL60: 0 | JSM60: 0 | JSN60: 0 | JSO60: 0 | JSP60: 0 | JSQ60: 0 | JSR60: 0 | JSS60: 0 | JST60: 0 | JSU60: 0 | JSV60: 0 | JSW60: 0 | JSX60: 0 | JSY60: 0 | JSZ60: 0 | JTA60: 0 | JTB60: 0 | JTC60: 0 | JTD60: 0 | JTE60: 0 | JTF60: 0 | JTG60: 0 | JTH60: 0 | JTI60: 0 | JTJ60: 0 | JTK60: 0 | JTL60: 0 | JTM60: 0 | JTN60: 0 | JTO60: 0 | JTP60: 0 | JTQ60: 0 | JTR60: 0 | JTS60: 0 | JTT60: 0 | JTU60: 0 | JTV60: =JTV41 -> 0 | JTW60: 0 | JTX60: 0 | JTY60: 0 | JTZ60: 0 | JUA60: 0 | JUB60: 0 | JUC60: 0 | JUD60: 0 | JUE60: 0 | JUF60: 0 | JUG60: 0 | JUH60: 0 | JUI60: 0 | JUJ60: 0 | JUK60: 0 | JUL60: 0 | JUM60: 0 | JUN60: 0 | JUO60: 0 | JUP60: 0 | JUQ60: 0 | JUR60: 0 | JUS60: 0 | JUT60: 0 | JUU60: 0 | JUV60: 0 | JUW60: 0 | JUX60: 0 | JUY60: 0 | JUZ60: 0 | JVA60: 0 | JVB60: 0 | JVC60: 0 | JVD60: 0 | JVE60: 0 | JVF60: 0 | JVG60: 0 | JVH60: 0 | JVI60: 0 | JVJ60: 0 | JVK60: 0 | JVL60: 0 | JVM60: 0 | JVN60: 0 | JVO60: 0 | JVP60: 0 | JVQ60: 0 | JVR60: 0 | JVS60: 0 | JVT60: 0 | JVU60: 0 | JVV60: 0 | JVW60: 0 | JVX60: 0 | JVY60: 0 | JVZ60: 0 | JWA60: 0 | JWB60: 0 | JWC60: 0 | JWD60: 0 | JWE60: 0 | JWF60: 0 | JWG60: 0 | JWH60: =JWH41 -> 0 | JWI60: 0 | JWJ60: 0 | JWK60: 0 | JWL60: 0 | JWM60: 0 | JWN60: 0 | JWO60: 0 | JWP60: 0 | JWQ60: 0 | JWR60: 0 | JWS60: 0 | JWT60: 0 | JWU60: 0 | JWV60: 0 | JWW60: 0 | JWX60: 0 | JWY60: 0 | JWZ60: 0 | JXA60: 0 | JXB60: 0 | JXC60: 0 | JXD60: 0 | JXE60: 0 | JXF60: 0 | JXG60: 0 | JXH60: 0 | JXI60: 0 | JXJ60: 0 | JXK60: 0 | JXL60: 0 | JXM60: 0 | JXN60: 0 | JXO60: 0 | JXP60: 0 | JXQ60: 0 | JXR60: 0 | JXS60: 0 | JXT60: 0 | JXU60: 0 | JXV60: 0 | JXW60: 0 | JXX60: 0 | JXY60: 0 | JXZ60: 0 | JYA60: 0 | JYB60: 0 | JYC60: 0 | JYD60: 0 | JYE60: 0 | JYF60: 0 | JYG60: 0 | JYH60: 0 | JYI60: 0 | JYJ60: 0 | JYK60: 0 | JYL60: 0 | JYM60: 0 | JYN60: 0 | JYO60: 0 | JYP60: 0 | JYQ60: 0 | JYR60: 0 | JYS60: 0 | JYT60: =JYT41 -> 0 | JYU60: 0 | JYV60: 0 | JYW60: 0 | JYX60: 0 | JYY60: 0 | JYZ60: 0 | JZA60: 0 | JZB60: 0 | JZC60: 0 | JZD60: 0 | JZE60: 0 | JZF60: 0 | JZG60: 0 | JZH60: 0 | JZI60: 0 | JZJ60: 0 | JZK60: 0 | JZL60: 0 | JZM60: 0 | JZN60: 0 | JZO60: 0 | JZP60: 0 | JZQ60: 0 | JZR60: 0 | JZS60: 0 | JZT60: 0 | JZU60: 0 | JZV60: 0 | JZW60: 0 | JZX60: 0 | JZY60: 0 | JZZ60: 0 | KAA60: 0 | KAB60: 0 | KAC60: 0 | KAD60: 0 | KAE60: 0 | KAF60: 0 | KAG60: 0 | KAH60: 0 | KAI60: 0 | KAJ60: 0 | KAK60: 0 | KAL60: 0 | KAM60: 0 | KAN60: 0 | KAO60: 0 | KAP60: 0 | KAQ60: 0 | KAR60: 0 | KAS60: 0 | KAT60: 0 | KAU60: 0 | KAV60: 0 | KAW60: 0 | KAX60: 0 | KAY60: 0 | KAZ60: 0 | KBA60: 0 | KBB60: 0 | KBC60: 0 | KBD60: 0 | KBE60: 0 | KBF60: =KBF41 -> 0 | KBG60: 0 | KBH60: 0 | KBI60: 0 | KBJ60: 0 | KBK60: 0 | KBL60: 0 | KBM60: 0 | KBN60: 0 | KBO60: 0 | KBP60: 0 | KBQ60: 0 | KBR60: 0 | KBS60: 0 | KBT60: 0 | KBU60: 0 | KBV60: 0 | KBW60: 0 | KBX60: 0 | KBY60: 0 | KBZ60: 0 | KCA60: 0 | KCB60: 0 | KCC60: 0 | KCD60: 0 | KCE60: 0 | KCF60: 0 | KCG60: 0 | KCH60: 0 | KCI60: 0 | KCJ60: 0 | KCK60: 0 | KCL60: 0 | KCM60: 0 | KCN60: 0 | KCO60: 0 | KCP60: 0 | KCQ60: 0 | KCR60: 0 | KCS60: 0 | KCT60: 0 | KCU60: 0 | KCV60: 0 | KCW60: 0 | KCX60: 0 | KCY60: 0 | KCZ60: 0 | KDA60: 0 | KDB60: 0 | KDC60: 0 | KDD60: 0 | KDE60: 0 | KDF60: 0 | KDG60: 0 | KDH60: 0 | KDI60: 0 | KDJ60: 0 | KDK60: 0 | KDL60: 0 | KDM60: 0 | KDN60: 0 | KDO60: 0 | KDP60: 0 | KDQ60: 0 | KDR60: =KDR41 -> 0 | KDS60: 0 | KDT60: 0 | KDU60: 0 | KDV60: 0 | KDW60: 0 | KDX60: 0 | KDY60: 0 | KDZ60: 0 | KEA60: 0 | KEB60: 0 | KEC60: 0 | KED60: 0 | KEE60: 0 | KEF60: 0 | KEG60: 0 | KEH60: 0 | KEI60: 0 | KEJ60: 0 | KEK60: 0 | KEL60: 0 | KEM60: 0 | KEN60: 0 | KEO60: 0 | KEP60: 0 | KEQ60: 0 | KER60: 0 | KES60: 0 | KET60: 0 | KEU60: 0 | KEV60: 0 | KEW60: 0 | KEX60: 0 | KEY60: 0 | KEZ60: 0 | KFA60: 0 | KFB60: 0 | KFC60: 0 | KFD60: 0 | KFE60: 0 | KFF60: 0 | KFG60: 0 | KFH60: 0 | KFI60: 0 | KFJ60: 0 | KFK60: 0 | KFL60: 0 | KFM60: 0 | KFN60: 0 | KFO60: 0 | KFP60: 0 | KFQ60: 0 | KFR60: 0 | KFS60: 0 | KFT60: 0 | KFU60: 0 | KFV60: 0 | KFW60: 0 | KFX60: 0 | KFY60: 0 | KFZ60: 0 | KGA60: 0 | KGB60: 0 | KGC60: 0 | KGD60: =KGD41 -> 0 | KGE60: 0 | KGF60: 0 | KGG60: 0 | KGH60: 0 | KGI60: 0 | KGJ60: 0 | KGK60: 0 | KGL60: 0 | KGM60: 0 | KGN60: 0 | KGO60: 0 | KGP60: 0 | KGQ60: 0 | KGR60: 0 | KGS60: 0 | KGT60: 0 | KGU60: 0 | KGV60: 0 | KGW60: 0 | KGX60: 0 | KGY60: 0 | KGZ60: 0 | KHA60: 0 | KHB60: 0 | KHC60: 0 | KHD60: 0 | KHE60: 0 | KHF60: 0 | KHG60: 0 | KHH60: 0 | KHI60: 0 | KHJ60: 0 | KHK60: 0 | KHL60: 0 | KHM60: 0 | KHN60: 0 | KHO60: 0 | KHP60: 0 | KHQ60: 0 | KHR60: 0 | KHS60: 0 | KHT60: 0 | KHU60: 0 | KHV60: 0 | KHW60: 0 | KHX60: 0 | KHY60: 0 | KHZ60: 0 | KIA60: 0 | KIB60: 0 | KIC60: 0 | KID60: 0 | KIE60: 0 | KIF60: 0 | KIG60: 0 | KIH60: 0 | KII60: 0 | KIJ60: 0 | KIK60: 0 | KIL60: 0 | KIM60: 0 | KIN60: 0 | KIO60: 0 | KIP60: =KIP41 -> 0 | KIQ60: 0 | KIR60: 0 | KIS60: 0 | KIT60: 0 | KIU60: 0 | KIV60: 0 | KIW60: 0 | KIX60: 0 | KIY60: 0 | KIZ60: 0 | KJA60: 0 | KJB60: 0 | KJC60: 0 | KJD60: 0 | KJE60: 0 | KJF60: 0 | KJG60: 0 | KJH60: 0 | KJI60: 0 | KJJ60: 0 | KJK60: 0 | KJL60: 0 | KJM60: 0 | KJN60: 0 | KJO60: 0 | KJP60: 0 | KJQ60: 0 | KJR60: 0 | KJS60: 0 | KJT60: 0 | KJU60: 0 | KJV60: 0 | KJW60: 0 | KJX60: 0 | KJY60: 0 | KJZ60: 0 | KKA60: 0 | KKB60: 0 | KKC60: 0 | KKD60: 0 | KKE60: 0 | KKF60: 0 | KKG60: 0 | KKH60: 0 | KKI60: 0 | KKJ60: 0 | KKK60: 0 | KKL60: 0 | KKM60: 0 | KKN60: 0 | KKO60: 0 | KKP60: 0 | KKQ60: 0 | KKR60: 0 | KKS60: 0 | KKT60: 0 | KKU60: 0 | KKV60: 0 | KKW60: 0 | KKX60: 0 | KKY60: 0 | KKZ60: 0 | KLA60: 0 | KLB60: =KLB41 -> 0 | KLC60: 0 | KLD60: 0 | KLE60: 0 | KLF60: 0 | KLG60: 0 | KLH60: 0 | KLI60: 0 | KLJ60: 0 | KLK60: 0 | KLL60: 0 | KLM60: 0 | KLN60: 0 | KLO60: 0 | KLP60: 0 | KLQ60: 0 | KLR60: 0 | KLS60: 0 | KLT60: 0 | KLU60: 0 | KLV60: 0 | KLW60: 0 | KLX60: 0 | KLY60: 0 | KLZ60: 0 | KMA60: 0 | KMB60: 0 | KMC60: 0 | KMD60: 0 | KME60: 0 | KMF60: 0 | KMG60: 0 | KMH60: 0 | KMI60: 0 | KMJ60: 0 | KMK60: 0 | KML60: 0 | KMM60: 0 | KMN60: 0 | KMO60: 0 | KMP60: 0 | KMQ60: 0 | KMR60: 0 | KMS60: 0 | KMT60: 0 | KMU60: 0 | KMV60: 0 | KMW60: 0 | KMX60: 0 | KMY60: 0 | KMZ60: 0 | KNA60: 0 | KNB60: 0 | KNC60: 0 | KND60: 0 | KNE60: 0 | KNF60: 0 | KNG60: 0 | KNH60: 0 | KNI60: 0 | KNJ60: 0 | KNK60: 0 | KNL60: 0 | KNM60: 0 | KNN60: =KNN41 -> 0 | KNO60: 0 | KNP60: 0 | KNQ60: 0 | KNR60: 0 | KNS60: 0 | KNT60: 0 | KNU60: 0 | KNV60: 0 | KNW60: 0 | KNX60: 0 | KNY60: 0 | KNZ60: 0 | KOA60: 0 | KOB60: 0 | KOC60: 0 | KOD60: 0 | KOE60: 0 | KOF60: 0 | KOG60: 0 | KOH60: 0 | KOI60: 0 | KOJ60: 0 | KOK60: 0 | KOL60: 0 | KOM60: 0 | KON60: 0 | KOO60: 0 | KOP60: 0 | KOQ60: 0 | KOR60: 0 | KOS60: 0 | KOT60: 0 | KOU60: 0 | KOV60: 0 | KOW60: 0 | KOX60: 0 | KOY60: 0 | KOZ60: 0 | KPA60: 0 | KPB60: 0 | KPC60: 0 | KPD60: 0 | KPE60: 0 | KPF60: 0 | KPG60: 0 | KPH60: 0 | KPI60: 0 | KPJ60: 0 | KPK60: 0 | KPL60: 0 | KPM60: 0 | KPN60: 0 | KPO60: 0 | KPP60: 0 | KPQ60: 0 | KPR60: 0 | KPS60: 0 | KPT60: 0 | KPU60: 0 | KPV60: 0 | KPW60: 0 | KPX60: 0 | KPY60: 0 | KPZ60: =KPZ41 -> 0 | KQA60: 0 | KQB60: 0 | KQC60: 0 | KQD60: 0 | KQE60: 0 | KQF60: 0 | KQG60: 0 | KQH60: 0 | KQI60: 0 | KQJ60: 0 | KQK60: 0 | KQL60: 0 | KQM60: 0 | KQN60: 0 | KQO60: 0 | KQP60: 0 | KQQ60: 0 | KQR60: 0 | KQS60: 0 | KQT60: 0 | KQU60: 0 | KQV60: 0 | KQW60: 0 | KQX60: 0 | KQY60: 0 | KQZ60: 0 | KRA60: 0 | KRB60: 0 | KRC60: 0 | KRD60: 0 | KRE60: 0 | KRF60: 0 | KRG60: 0 | KRH60: 0 | KRI60: 0 | KRJ60: 0 | KRK60: 0 | KRL60: 0 | KRM60: 0 | KRN60: 0 | KRO60: 0 | KRP60: 0 | KRQ60: 0 | KRR60: 0 | KRS60: 0 | KRT60: 0 | KRU60: 0 | KRV60: 0 | KRW60: 0 | KRX60: 0 | KRY60: 0 | KRZ60: 0 | KSA60: 0 | KSB60: 0 | KSC60: 0 | KSD60: 0 | KSE60: 0 | KSF60: 0 | KSG60: 0 | KSH60: 0 | KSI60: 0 | KSJ60: 0 | KSK60: 0 | KSL60: =KSL41 -> 0 | KSM60: 0 | KSN60: 0 | KSO60: 0 | KSP60: 0 | KSQ60: 0 | KSR60: 0 | KSS60: 0 | KST60: 0 | KSU60: 0 | KSV60: 0 | KSW60: 0 | KSX60: 0 | KSY60: 0 | KSZ60: 0 | KTA60: 0 | KTB60: 0 | KTC60: 0 | KTD60: 0 | KTE60: 0 | KTF60: 0 | KTG60: 0 | KTH60: 0 | KTI60: 0 | KTJ60: 0 | KTK60: 0 | KTL60: 0 | KTM60: 0 | KTN60: 0 | KTO60: 0 | KTP60: 0 | KTQ60: 0 | KTR60: 0 | KTS60: 0 | KTT60: 0 | KTU60: 0 | KTV60: 0 | KTW60: 0 | KTX60: 0 | KTY60: 0 | KTZ60: 0 | KUA60: 0 | KUB60: 0 | KUC60: 0 | KUD60: 0 | KUE60: 0 | KUF60: 0 | KUG60: 0 | KUH60: 0 | KUI60: 0 | KUJ60: 0 | KUK60: 0 | KUL60: 0 | KUM60: 0 | KUN60: 0 | KUO60: 0 | KUP60: 0 | KUQ60: 0 | KUR60: 0 | KUS60: 0 | KUT60: 0 | KUU60: 0 | KUV60: 0 | KUW60: 0 | KUX60: =KUX41 -> 0 | KUY60: 0 | KUZ60: 0 | KVA60: 0 | KVB60: 0 | KVC60: 0 | KVD60: 0 | KVE60: 0 | KVF60: 0 | KVG60: 0 | KVH60: 0 | KVI60: 0 | KVJ60: 0 | KVK60: 0 | KVL60: 0 | KVM60: 0 | KVN60: 0 | KVO60: 0 | KVP60: 0 | KVQ60: 0 | KVR60: 0 | KVS60: 0 | KVT60: 0 | KVU60: 0 | KVV60: 0 | KVW60: 0 | KVX60: 0 | KVY60: 0 | KVZ60: 0 | KWA60: 0 | KWB60: 0 | KWC60: 0 | KWD60: 0 | KWE60: 0 | KWF60: 0 | KWG60: 0 | KWH60: 0 | KWI60: 0 | KWJ60: 0 | KWK60: 0 | KWL60: 0 | KWM60: 0 | KWN60: 0 | KWO60: 0 | KWP60: 0 | KWQ60: 0 | KWR60: 0 | KWS60: 0 | KWT60: 0 | KWU60: 0 | KWV60: 0 | KWW60: 0 | KWX60: 0 | KWY60: 0 | KWZ60: 0 | KXA60: 0 | KXB60: 0 | KXC60: 0 | KXD60: 0 | KXE60: 0 | KXF60: 0 | KXG60: 0 | KXH60: 0 | KXI60: 0 | KXJ60: =KXJ41 -> 0 | KXK60: 0 | KXL60: 0 | KXM60: 0 | KXN60: 0 | KXO60: 0 | KXP60: 0 | KXQ60: 0 | KXR60: 0 | KXS60: 0 | KXT60: 0 | KXU60: 0 | KXV60: 0 | KXW60: 0 | KXX60: 0 | KXY60: 0 | KXZ60: 0 | KYA60: 0 | KYB60: 0 | KYC60: 0 | KYD60: 0 | KYE60: 0 | KYF60: 0 | KYG60: 0 | KYH60: 0 | KYI60: 0 | KYJ60: 0 | KYK60: 0 | KYL60: 0 | KYM60: 0 | KYN60: 0 | KYO60: 0 | KYP60: 0 | KYQ60: 0 | KYR60: 0 | KYS60: 0 | KYT60: 0 | KYU60: 0 | KYV60: 0 | KYW60: 0 | KYX60: 0 | KYY60: 0 | KYZ60: 0 | KZA60: 0 | KZB60: 0 | KZC60: 0 | KZD60: 0 | KZE60: 0 | KZF60: 0 | KZG60: 0 | KZH60: 0 | KZI60: 0 | KZJ60: 0 | KZK60: 0 | KZL60: 0 | KZM60: 0 | KZN60: 0 | KZO60: 0 | KZP60: 0 | KZQ60: 0 | KZR60: 0 | KZS60: 0 | KZT60: 0 | KZU60: 0 | KZV60: =KZV41 -> 0 | KZW60: 0 | KZX60: 0 | KZY60: 0 | KZZ60: 0 | LAA60: 0 | LAB60: 0 | LAC60: 0 | LAD60: 0 | LAE60: 0 | LAF60: 0 | LAG60: 0 | LAH60: 0 | LAI60: 0 | LAJ60: 0 | LAK60: 0 | LAL60: 0 | LAM60: 0 | LAN60: 0 | LAO60: 0 | LAP60: 0 | LAQ60: 0 | LAR60: 0 | LAS60: 0 | LAT60: 0 | LAU60: 0 | LAV60: 0 | LAW60: 0 | LAX60: 0 | LAY60: 0 | LAZ60: 0 | LBA60: 0 | LBB60: 0 | LBC60: 0 | LBD60: 0 | LBE60: 0 | LBF60: 0 | LBG60: 0 | LBH60: 0 | LBI60: 0 | LBJ60: 0 | LBK60: 0 | LBL60: 0 | LBM60: 0 | LBN60: 0 | LBO60: 0 | LBP60: 0 | LBQ60: 0 | LBR60: 0 | LBS60: 0 | LBT60: 0 | LBU60: 0 | LBV60: 0 | LBW60: 0 | LBX60: 0 | LBY60: 0 | LBZ60: 0 | LCA60: 0 | LCB60: 0 | LCC60: 0 | LCD60: 0 | LCE60: 0 | LCF60: 0 | LCG60: 0 | LCH60: =LCH41 -> 0 | LCI60: 0 | LCJ60: 0 | LCK60: 0 | LCL60: 0 | LCM60: 0 | LCN60: 0 | LCO60: 0 | LCP60: 0 | LCQ60: 0 | LCR60: 0 | LCS60: 0 | LCT60: 0 | LCU60: 0 | LCV60: 0 | LCW60: 0 | LCX60: 0 | LCY60: 0 | LCZ60: 0 | LDA60: 0 | LDB60: 0 | LDC60: 0 | LDD60: 0 | LDE60: 0 | LDF60: 0 | LDG60: 0 | LDH60: 0 | LDI60: 0 | LDJ60: 0 | LDK60: 0 | LDL60: 0 | LDM60: 0 | LDN60: 0 | LDO60: 0 | LDP60: 0 | LDQ60: 0 | LDR60: 0 | LDS60: 0 | LDT60: 0 | LDU60: 0 | LDV60: 0 | LDW60: 0 | LDX60: 0 | LDY60: 0 | LDZ60: 0 | LEA60: 0 | LEB60: 0 | LEC60: 0 | LED60: 0 | LEE60: 0 | LEF60: 0 | LEG60: 0 | LEH60: 0 | LEI60: 0 | LEJ60: 0 | LEK60: 0 | LEL60: 0 | LEM60: 0 | LEN60: 0 | LEO60: 0 | LEP60: 0 | LEQ60: 0 | LER60: 0 | LES60: 0 | LET60: =LET41 -> 0 | LEU60: 0 | LEV60: 0 | LEW60: 0 | LEX60: 0 | LEY60: 0 | LEZ60: 0 | LFA60: 0 | LFB60: 0 | LFC60: 0 | LFD60: 0 | LFE60: 0 | LFF60: 0 | LFG60: 0 | LFH60: 0 | LFI60: 0 | LFJ60: 0 | LFK60: 0 | LFL60: 0 | LFM60: 0 | LFN60: 0 | LFO60: 0 | LFP60: 0 | LFQ60: 0 | LFR60: 0 | LFS60: 0 | LFT60: 0 | LFU60: 0 | LFV60: 0 | LFW60: 0 | LFX60: 0 | LFY60: 0 | LFZ60: 0 | LGA60: 0 | LGB60: 0 | LGC60: 0 | LGD60: 0 | LGE60: 0 | LGF60: 0 | LGG60: 0 | LGH60: 0 | LGI60: 0 | LGJ60: 0 | LGK60: 0 | LGL60: 0 | LGM60: 0 | LGN60: 0 | LGO60: 0 | LGP60: 0 | LGQ60: 0 | LGR60: 0 | LGS60: 0 | LGT60: 0 | LGU60: 0 | LGV60: 0 | LGW60: 0 | LGX60: 0 | LGY60: 0 | LGZ60: 0 | LHA60: 0 | LHB60: 0 | LHC60: 0 | LHD60: 0 | LHE60: 0 | LHF60: =LHF41 -> 0 | LHG60: 0 | LHH60: 0 | LHI60: 0 | LHJ60: 0 | LHK60: 0 | LHL60: 0 | LHM60: 0 | LHN60: 0 | LHO60: 0 | LHP60: 0 | LHQ60: 0 | LHR60: 0 | LHS60: 0 | LHT60: 0 | LHU60: 0 | LHV60: 0 | LHW60: 0 | LHX60: 0 | LHY60: 0 | LHZ60: 0 | LIA60: 0 | LIB60: 0 | LIC60: 0 | LID60: 0 | LIE60: 0 | LIF60: 0 | LIG60: 0 | LIH60: 0 | LII60: 0 | LIJ60: 0 | LIK60: 0 | LIL60: 0 | LIM60: 0 | LIN60: 0 | LIO60: 0 | LIP60: 0 | LIQ60: 0 | LIR60: 0 | LIS60: 0 | LIT60: 0 | LIU60: 0 | LIV60: 0 | LIW60: 0 | LIX60: 0 | LIY60: 0 | LIZ60: 0 | LJA60: 0 | LJB60: 0 | LJC60: 0 | LJD60: 0 | LJE60: 0 | LJF60: 0 | LJG60: 0 | LJH60: 0 | LJI60: 0 | LJJ60: 0 | LJK60: 0 | LJL60: 0 | LJM60: 0 | LJN60: 0 | LJO60: 0 | LJP60: 0 | LJQ60: 0 | LJR60: =LJR41 -> 0 | LJS60: 0 | LJT60: 0 | LJU60: 0 | LJV60: 0 | LJW60: 0 | LJX60: 0 | LJY60: 0 | LJZ60: 0 | LKA60: 0 | LKB60: 0 | LKC60: 0 | LKD60: 0 | LKE60: 0 | LKF60: 0 | LKG60: 0 | LKH60: 0 | LKI60: 0 | LKJ60: 0 | LKK60: 0 | LKL60: 0 | LKM60: 0 | LKN60: 0 | LKO60: 0 | LKP60: 0 | LKQ60: 0 | LKR60: 0 | LKS60: 0 | LKT60: 0 | LKU60: 0 | LKV60: 0 | LKW60: 0 | LKX60: 0 | LKY60: 0 | LKZ60: 0 | LLA60: 0 | LLB60: 0 | LLC60: 0 | LLD60: 0 | LLE60: 0 | LLF60: 0 | LLG60: 0 | LLH60: 0 | LLI60: 0 | LLJ60: 0 | LLK60: 0 | LLL60: 0 | LLM60: 0 | LLN60: 0 | LLO60: 0 | LLP60: 0 | LLQ60: 0 | LLR60: 0 | LLS60: 0 | LLT60: 0 | LLU60: 0 | LLV60: 0 | LLW60: 0 | LLX60: 0 | LLY60: 0 | LLZ60: 0 | LMA60: 0 | LMB60: 0 | LMC60: 0 | LMD60: =LMD41 -> 0 | LME60: 0 | LMF60: 0 | LMG60: 0 | LMH60: 0 | LMI60: 0 | LMJ60: 0 | LMK60: 0 | LML60: 0 | LMM60: 0 | LMN60: 0 | LMO60: 0 | LMP60: 0 | LMQ60: 0 | LMR60: 0 | LMS60: 0 | LMT60: 0 | LMU60: 0 | LMV60: 0 | LMW60: 0 | LMX60: 0 | LMY60: 0 | LMZ60: 0 | LNA60: 0 | LNB60: 0 | LNC60: 0 | LND60: 0 | LNE60: 0 | LNF60: 0 | LNG60: 0 | LNH60: 0 | LNI60: 0 | LNJ60: 0 | LNK60: 0 | LNL60: 0 | LNM60: 0 | LNN60: 0 | LNO60: 0 | LNP60: 0 | LNQ60: 0 | LNR60: 0 | LNS60: 0 | LNT60: 0 | LNU60: 0 | LNV60: 0 | LNW60: 0 | LNX60: 0 | LNY60: 0 | LNZ60: 0 | LOA60: 0 | LOB60: 0 | LOC60: 0 | LOD60: 0 | LOE60: 0 | LOF60: 0 | LOG60: 0 | LOH60: 0 | LOI60: 0 | LOJ60: 0 | LOK60: 0 | LOL60: 0 | LOM60: 0 | LON60: 0 | LOO60: 0 | LOP60: =LOP41 -> 0 | LOQ60: 0 | LOR60: 0 | LOS60: 0 | LOT60: 0 | LOU60: 0 | LOV60: 0 | LOW60: 0 | LOX60: 0 | LOY60: 0 | LOZ60: 0 | LPA60: 0 | LPB60: 0 | LPC60: 0 | LPD60: 0 | LPE60: 0 | LPF60: 0 | LPG60: 0 | LPH60: 0 | LPI60: 0 | LPJ60: 0 | LPK60: 0 | LPL60: 0 | LPM60: 0 | LPN60: 0 | LPO60: 0 | LPP60: 0 | LPQ60: 0 | LPR60: 0 | LPS60: 0 | LPT60: 0 | LPU60: 0 | LPV60: 0 | LPW60: 0 | LPX60: 0 | LPY60: 0 | LPZ60: 0 | LQA60: 0 | LQB60: 0 | LQC60: 0 | LQD60: 0 | LQE60: 0 | LQF60: 0 | LQG60: 0 | LQH60: 0 | LQI60: 0 | LQJ60: 0 | LQK60: 0 | LQL60: 0 | LQM60: 0 | LQN60: 0 | LQO60: 0 | LQP60: 0 | LQQ60: 0 | LQR60: 0 | LQS60: 0 | LQT60: 0 | LQU60: 0 | LQV60: 0 | LQW60: 0 | LQX60: 0 | LQY60: 0 | LQZ60: 0 | LRA60: 0 | LRB60: =LRB41 -> 0 | LRC60: 0 | LRD60: 0 | LRE60: 0 | LRF60: 0 | LRG60: 0 | LRH60: 0 | LRI60: 0 | LRJ60: 0 | LRK60: 0 | LRL60: 0 | LRM60: 0 | LRN60: 0 | LRO60: 0 | LRP60: 0 | LRQ60: 0 | LRR60: 0 | LRS60: 0 | LRT60: 0 | LRU60: 0 | LRV60: 0 | LRW60: 0 | LRX60: 0 | LRY60: 0 | LRZ60: 0 | LSA60: 0 | LSB60: 0 | LSC60: 0 | LSD60: 0 | LSE60: 0 | LSF60: 0 | LSG60: 0 | LSH60: 0 | LSI60: 0 | LSJ60: 0 | LSK60: 0 | LSL60: 0 | LSM60: 0 | LSN60: 0 | LSO60: 0 | LSP60: 0 | LSQ60: 0 | LSR60: 0 | LSS60: 0 | LST60: 0 | LSU60: 0 | LSV60: 0 | LSW60: 0 | LSX60: 0 | LSY60: 0 | LSZ60: 0 | LTA60: 0 | LTB60: 0 | LTC60: 0 | LTD60: 0 | LTE60: 0 | LTF60: 0 | LTG60: 0 | LTH60: 0 | LTI60: 0 | LTJ60: 0 | LTK60: 0 | LTL60: 0 | LTM60: 0 | LTN60: =LTN41 -> 0 | LTO60: 0 | LTP60: 0 | LTQ60: 0 | LTR60: 0 | LTS60: 0 | LTT60: 0 | LTU60: 0 | LTV60: 0 | LTW60: 0 | LTX60: 0 | LTY60: 0 | LTZ60: 0 | LUA60: 0 | LUB60: 0 | LUC60: 0 | LUD60: 0 | LUE60: 0 | LUF60: 0 | LUG60: 0 | LUH60: 0 | LUI60: 0 | LUJ60: 0 | LUK60: 0 | LUL60: 0 | LUM60: 0 | LUN60: 0 | LUO60: 0 | LUP60: 0 | LUQ60: 0 | LUR60: 0 | LUS60: 0 | LUT60: 0 | LUU60: 0 | LUV60: 0 | LUW60: 0 | LUX60: 0 | LUY60: 0 | LUZ60: 0 | LVA60: 0 | LVB60: 0 | LVC60: 0 | LVD60: 0 | LVE60: 0 | LVF60: 0 | LVG60: 0 | LVH60: 0 | LVI60: 0 | LVJ60: 0 | LVK60: 0 | LVL60: 0 | LVM60: 0 | LVN60: 0 | LVO60: 0 | LVP60: 0 | LVQ60: 0 | LVR60: 0 | LVS60: 0 | LVT60: 0 | LVU60: 0 | LVV60: 0 | LVW60: 0 | LVX60: 0 | LVY60: 0 | LVZ60: =LVZ41 -> 0 | LWA60: 0 | LWB60: 0 | LWC60: 0 | LWD60: 0 | LWE60: 0 | LWF60: 0 | LWG60: 0 | LWH60: 0 | LWI60: 0 | LWJ60: 0 | LWK60: 0 | LWL60: 0 | LWM60: 0 | LWN60: 0 | LWO60: 0 | LWP60: 0 | LWQ60: 0 | LWR60: 0 | LWS60: 0 | LWT60: 0 | LWU60: 0 | LWV60: 0 | LWW60: 0 | LWX60: 0 | LWY60: 0 | LWZ60: 0 | LXA60: 0 | LXB60: 0 | LXC60: 0 | LXD60: 0 | LXE60: 0 | LXF60: 0 | LXG60: 0 | LXH60: 0 | LXI60: 0 | LXJ60: 0 | LXK60: 0 | LXL60: 0 | LXM60: 0 | LXN60: 0 | LXO60: 0 | LXP60: 0 | LXQ60: 0 | LXR60: 0 | LXS60: 0 | LXT60: 0 | LXU60: 0 | LXV60: 0 | LXW60: 0 | LXX60: 0 | LXY60: 0 | LXZ60: 0 | LYA60: 0 | LYB60: 0 | LYC60: 0 | LYD60: 0 | LYE60: 0 | LYF60: 0 | LYG60: 0 | LYH60: 0 | LYI60: 0 | LYJ60: 0 | LYK60: 0 | LYL60: =LYL41 -> 0 | LYM60: 0 | LYN60: 0 | LYO60: 0 | LYP60: 0 | LYQ60: 0 | LYR60: 0 | LYS60: 0 | LYT60: 0 | LYU60: 0 | LYV60: 0 | LYW60: 0 | LYX60: 0 | LYY60: 0 | LYZ60: 0 | LZA60: 0 | LZB60: 0 | LZC60: 0 | LZD60: 0 | LZE60: 0 | LZF60: 0 | LZG60: 0 | LZH60: 0 | LZI60: 0 | LZJ60: 0 | LZK60: 0 | LZL60: 0 | LZM60: 0 | LZN60: 0 | LZO60: 0 | LZP60: 0 | LZQ60: 0 | LZR60: 0 | LZS60: 0 | LZT60: 0 | LZU60: 0 | LZV60: 0 | LZW60: 0 | LZX60: 0 | LZY60: 0 | LZZ60: 0 | MAA60: 0 | MAB60: 0 | MAC60: 0 | MAD60: 0 | MAE60: 0 | MAF60: 0 | MAG60: 0 | MAH60: 0 | MAI60: 0 | MAJ60: 0 | MAK60: 0 | MAL60: 0 | MAM60: 0 | MAN60: 0 | MAO60: 0 | MAP60: 0 | MAQ60: 0 | MAR60: 0 | MAS60: 0 | MAT60: 0 | MAU60: 0 | MAV60: 0 | MAW60: 0 | MAX60: =MAX41 -> 0 | MAY60: 0 | MAZ60: 0 | MBA60: 0 | MBB60: 0 | MBC60: 0 | MBD60: 0 | MBE60: 0 | MBF60: 0 | MBG60: 0 | MBH60: 0 | MBI60: 0 | MBJ60: 0 | MBK60: 0 | MBL60: 0 | MBM60: 0 | MBN60: 0 | MBO60: 0 | MBP60: 0 | MBQ60: 0 | MBR60: 0 | MBS60: 0 | MBT60: 0 | MBU60: 0 | MBV60: 0 | MBW60: 0 | MBX60: 0 | MBY60: 0 | MBZ60: 0 | MCA60: 0 | MCB60: 0 | MCC60: 0 | MCD60: 0 | MCE60: 0 | MCF60: 0 | MCG60: 0 | MCH60: 0 | MCI60: 0 | MCJ60: 0 | MCK60: 0 | MCL60: 0 | MCM60: 0 | MCN60: 0 | MCO60: 0 | MCP60: 0 | MCQ60: 0 | MCR60: 0 | MCS60: 0 | MCT60: 0 | MCU60: 0 | MCV60: 0 | MCW60: 0 | MCX60: 0 | MCY60: 0 | MCZ60: 0 | MDA60: 0 | MDB60: 0 | MDC60: 0 | MDD60: 0 | MDE60: 0 | MDF60: 0 | MDG60: 0 | MDH60: 0 | MDI60: 0 | MDJ60: =MDJ41 -> 0 | MDK60: 0 | MDL60: 0 | MDM60: 0 | MDN60: 0 | MDO60: 0 | MDP60: 0 | MDQ60: 0 | MDR60: 0 | MDS60: 0 | MDT60: 0 | MDU60: 0 | MDV60: 0 | MDW60: 0 | MDX60: 0 | MDY60: 0 | MDZ60: 0 | MEA60: 0 | MEB60: 0 | MEC60: 0 | MED60: 0 | MEE60: 0 | MEF60: 0 | MEG60: 0 | MEH60: 0 | MEI60: 0 | MEJ60: 0 | MEK60: 0 | MEL60: 0 | MEM60: 0 | MEN60: 0 | MEO60: 0 | MEP60: 0 | MEQ60: 0 | MER60: 0 | MES60: 0 | MET60: 0 | MEU60: 0 | MEV60: 0 | MEW60: 0 | MEX60: 0 | MEY60: 0 | MEZ60: 0 | MFA60: 0 | MFB60: 0 | MFC60: 0 | MFD60: 0 | MFE60: 0 | MFF60: 0 | MFG60: 0 | MFH60: 0 | MFI60: 0 | MFJ60: 0 | MFK60: 0 | MFL60: 0 | MFM60: 0 | MFN60: 0 | MFO60: 0 | MFP60: 0 | MFQ60: 0 | MFR60: 0 | MFS60: 0 | MFT60: 0 | MFU60: 0 | MFV60: =MFV41 -> 0 | MFW60: 0 | MFX60: 0 | MFY60: 0 | MFZ60: 0 | MGA60: 0 | MGB60: 0 | MGC60: 0 | MGD60: 0 | MGE60: 0 | MGF60: 0 | MGG60: 0 | MGH60: 0 | MGI60: 0 | MGJ60: 0 | MGK60: 0 | MGL60: 0 | MGM60: 0 | MGN60: 0 | MGO60: 0 | MGP60: 0 | MGQ60: 0 | MGR60: 0 | MGS60: 0 | MGT60: 0 | MGU60: 0 | MGV60: 0 | MGW60: 0 | MGX60: 0 | MGY60: 0 | MGZ60: 0 | MHA60: 0 | MHB60: 0 | MHC60: 0 | MHD60: 0 | MHE60: 0 | MHF60: 0 | MHG60: 0 | MHH60: 0 | MHI60: 0 | MHJ60: 0 | MHK60: 0 | MHL60: 0 | MHM60: 0 | MHN60: 0 | MHO60: 0 | MHP60: 0 | MHQ60: 0 | MHR60: 0 | MHS60: 0 | MHT60: 0 | MHU60: 0 | MHV60: 0 | MHW60: 0 | MHX60: 0 | MHY60: 0 | MHZ60: 0 | MIA60: 0 | MIB60: 0 | MIC60: 0 | MID60: 0 | MIE60: 0 | MIF60: 0 | MIG60: 0 | MIH60: =MIH41 -> 0 | MII60: 0 | MIJ60: 0 | MIK60: 0 | MIL60: 0 | MIM60: 0 | MIN60: 0 | MIO60: 0 | MIP60: 0 | MIQ60: 0 | MIR60: 0 | MIS60: 0 | MIT60: 0 | MIU60: 0 | MIV60: 0 | MIW60: 0 | MIX60: 0 | MIY60: 0 | MIZ60: 0 | MJA60: 0 | MJB60: 0 | MJC60: 0 | MJD60: 0 | MJE60: 0 | MJF60: 0 | MJG60: 0 | MJH60: 0 | MJI60: 0 | MJJ60: 0 | MJK60: 0 | MJL60: 0 | MJM60: 0 | MJN60: 0 | MJO60: 0 | MJP60: 0 | MJQ60: 0 | MJR60: 0 | MJS60: 0 | MJT60: 0 | MJU60: 0 | MJV60: 0 | MJW60: 0 | MJX60: 0 | MJY60: 0 | MJZ60: 0 | MKA60: 0 | MKB60: 0 | MKC60: 0 | MKD60: 0 | MKE60: 0 | MKF60: 0 | MKG60: 0 | MKH60: 0 | MKI60: 0 | MKJ60: 0 | MKK60: 0 | MKL60: 0 | MKM60: 0 | MKN60: 0 | MKO60: 0 | MKP60: 0 | MKQ60: 0 | MKR60: 0 | MKS60: 0 | MKT60: =MKT41 -> 0 | MKU60: 0 | MKV60: 0 | MKW60: 0 | MKX60: 0 | MKY60: 0 | MKZ60: 0 | MLA60: 0 | MLB60: 0 | MLC60: 0 | MLD60: 0 | MLE60: 0 | MLF60: 0 | MLG60: 0 | MLH60: 0 | MLI60: 0 | MLJ60: 0 | MLK60: 0 | MLL60: 0 | MLM60: 0 | MLN60: 0 | MLO60: 0 | MLP60: 0 | MLQ60: 0 | MLR60: 0 | MLS60: 0 | MLT60: 0 | MLU60: 0 | MLV60: 0 | MLW60: 0 | MLX60: 0 | MLY60: 0 | MLZ60: 0 | MMA60: 0 | MMB60: 0 | MMC60: 0 | MMD60: 0 | MME60: 0 | MMF60: 0 | MMG60: 0 | MMH60: 0 | MMI60: 0 | MMJ60: 0 | MMK60: 0 | MML60: 0 | MMM60: 0 | MMN60: 0 | MMO60: 0 | MMP60: 0 | MMQ60: 0 | MMR60: 0 | MMS60: 0 | MMT60: 0 | MMU60: 0 | MMV60: 0 | MMW60: 0 | MMX60: 0 | MMY60: 0 | MMZ60: 0 | MNA60: 0 | MNB60: 0 | MNC60: 0 | MND60: 0 | MNE60: 0 | MNF60: =MNF41 -> 0 | MNG60: 0 | MNH60: 0 | MNI60: 0 | MNJ60: 0 | MNK60: 0 | MNL60: 0 | MNM60: 0 | MNN60: 0 | MNO60: 0 | MNP60: 0 | MNQ60: 0 | MNR60: 0 | MNS60: 0 | MNT60: 0 | MNU60: 0 | MNV60: 0 | MNW60: 0 | MNX60: 0 | MNY60: 0 | MNZ60: 0 | MOA60: 0 | MOB60: 0 | MOC60: 0 | MOD60: 0 | MOE60: 0 | MOF60: 0 | MOG60: 0 | MOH60: 0 | MOI60: 0 | MOJ60: 0 | MOK60: 0 | MOL60: 0 | MOM60: 0 | MON60: 0 | MOO60: 0 | MOP60: 0 | MOQ60: 0 | MOR60: 0 | MOS60: 0 | MOT60: 0 | MOU60: 0 | MOV60: 0 | MOW60: 0 | MOX60: 0 | MOY60: 0 | MOZ60: 0 | MPA60: 0 | MPB60: 0 | MPC60: 0 | MPD60: 0 | MPE60: 0 | MPF60: 0 | MPG60: 0 | MPH60: 0 | MPI60: 0 | MPJ60: 0 | MPK60: 0 | MPL60: 0 | MPM60: 0 | MPN60: 0 | MPO60: 0 | MPP60: 0 | MPQ60: 0 | MPR60: =MPR41 -> 0 | MPS60: 0 | MPT60: 0 | MPU60: 0 | MPV60: 0 | MPW60: 0 | MPX60: 0 | MPY60: 0 | MPZ60: 0 | MQA60: 0 | MQB60: 0 | MQC60: 0 | MQD60: 0 | MQE60: 0 | MQF60: 0 | MQG60: 0 | MQH60: 0 | MQI60: 0 | MQJ60: 0 | MQK60: 0 | MQL60: 0 | MQM60: 0 | MQN60: 0 | MQO60: 0 | MQP60: 0 | MQQ60: 0 | MQR60: 0 | MQS60: 0 | MQT60: 0 | MQU60: 0 | MQV60: 0 | MQW60: 0 | MQX60: 0 | MQY60: 0 | MQZ60: 0 | MRA60: 0 | MRB60: 0 | MRC60: 0 | MRD60: 0 | MRE60: 0 | MRF60: 0 | MRG60: 0 | MRH60: 0 | MRI60: 0 | MRJ60: 0 | MRK60: 0 | MRL60: 0 | MRM60: 0 | MRN60: 0 | MRO60: 0 | MRP60: 0 | MRQ60: 0 | MRR60: 0 | MRS60: 0 | MRT60: 0 | MRU60: 0 | MRV60: 0 | MRW60: 0 | MRX60: 0 | MRY60: 0 | MRZ60: 0 | MSA60: 0 | MSB60: 0 | MSC60: 0 | MSD60: =MSD41 -> 0 | MSE60: 0 | MSF60: 0 | MSG60: 0 | MSH60: 0 | MSI60: 0 | MSJ60: 0 | MSK60: 0 | MSL60: 0 | MSM60: 0 | MSN60: 0 | MSO60: 0 | MSP60: 0 | MSQ60: 0 | MSR60: 0 | MSS60: 0 | MST60: 0 | MSU60: 0 | MSV60: 0 | MSW60: 0 | MSX60: 0 | MSY60: 0 | MSZ60: 0 | MTA60: 0 | MTB60: 0 | MTC60: 0 | MTD60: 0 | MTE60: 0 | MTF60: 0 | MTG60: 0 | MTH60: 0 | MTI60: 0 | MTJ60: 0 | MTK60: 0 | MTL60: 0 | MTM60: 0 | MTN60: 0 | MTO60: 0 | MTP60: 0 | MTQ60: 0 | MTR60: 0 | MTS60: 0 | MTT60: 0 | MTU60: 0 | MTV60: 0 | MTW60: 0 | MTX60: 0 | MTY60: 0 | MTZ60: 0 | MUA60: 0 | MUB60: 0 | MUC60: 0 | MUD60: 0 | MUE60: 0 | MUF60: 0 | MUG60: 0 | MUH60: 0 | MUI60: 0 | MUJ60: 0 | MUK60: 0 | MUL60: 0 | MUM60: 0 | MUN60: 0 | MUO60: 0 | MUP60: =MUP41 -> 0 | MUQ60: 0 | MUR60: 0 | MUS60: 0 | MUT60: 0 | MUU60: 0 | MUV60: 0 | MUW60: 0 | MUX60: 0 | MUY60: 0 | MUZ60: 0 | MVA60: 0 | MVB60: 0 | MVC60: 0 | MVD60: 0 | MVE60: 0 | MVF60: 0 | MVG60: 0 | MVH60: 0 | MVI60: 0 | MVJ60: 0 | MVK60: 0 | MVL60: 0 | MVM60: 0 | MVN60: 0 | MVO60: 0 | MVP60: 0 | MVQ60: 0 | MVR60: 0 | MVS60: 0 | MVT60: 0 | MVU60: 0 | MVV60: 0 | MVW60: 0 | MVX60: 0 | MVY60: 0 | MVZ60: 0 | MWA60: 0 | MWB60: 0 | MWC60: 0 | MWD60: 0 | MWE60: 0 | MWF60: 0 | MWG60: 0 | MWH60: 0 | MWI60: 0 | MWJ60: 0 | MWK60: 0 | MWL60: 0 | MWM60: 0 | MWN60: 0 | MWO60: 0 | MWP60: 0 | MWQ60: 0 | MWR60: 0 | MWS60: 0 | MWT60: 0 | MWU60: 0 | MWV60: 0 | MWW60: 0 | MWX60: 0 | MWY60: 0 | MWZ60: 0 | MXA60: 0 | MXB60: =MXB41 -> 0 | MXC60: 0 | MXD60: 0 | MXE60: 0 | MXF60: 0 | MXG60: 0 | MXH60: 0 | MXI60: 0 | MXJ60: 0 | MXK60: 0 | MXL60: 0 | MXM60: 0 | MXN60: 0 | MXO60: 0 | MXP60: 0 | MXQ60: 0 | MXR60: 0 | MXS60: 0 | MXT60: 0 | MXU60: 0 | MXV60: 0 | MXW60: 0 | MXX60: 0 | MXY60: 0 | MXZ60: 0 | MYA60: 0 | MYB60: 0 | MYC60: 0 | MYD60: 0 | MYE60: 0 | MYF60: 0 | MYG60: 0 | MYH60: 0 | MYI60: 0 | MYJ60: 0 | MYK60: 0 | MYL60: 0 | MYM60: 0 | MYN60: 0 | MYO60: 0 | MYP60: 0 | MYQ60: 0 | MYR60: 0 | MYS60: 0 | MYT60: 0 | MYU60: 0 | MYV60: 0 | MYW60: 0 | MYX60: 0 | MYY60: 0 | MYZ60: 0 | MZA60: 0 | MZB60: 0 | MZC60: 0 | MZD60: 0 | MZE60: 0 | MZF60: 0 | MZG60: 0 | MZH60: 0 | MZI60: 0 | MZJ60: 0 | MZK60: 0 | MZL60: 0 | MZM60: 0 | MZN60: =MZN41 -> 0 | MZO60: 0 | MZP60: 0 | MZQ60: 0 | MZR60: 0 | MZS60: 0 | MZT60: 0 | MZU60: 0 | MZV60: 0 | MZW60: 0 | MZX60: 0 | MZY60: 0 | MZZ60: 0 | NAA60: 0 | NAB60: 0 | NAC60: 0 | NAD60: 0 | NAE60: 0 | NAF60: 0 | NAG60: 0 | NAH60: 0 | NAI60: 0 | NAJ60: 0 | NAK60: 0 | NAL60: 0 | NAM60: 0 | NAN60: 0 | NAO60: 0 | NAP60: 0 | NAQ60: 0 | NAR60: 0 | NAS60: 0 | NAT60: 0 | NAU60: 0 | NAV60: 0 | NAW60: 0 | NAX60: 0 | NAY60: 0 | NAZ60: 0 | NBA60: 0 | NBB60: 0 | NBC60: 0 | NBD60: 0 | NBE60: 0 | NBF60: 0 | NBG60: 0 | NBH60: 0 | NBI60: 0 | NBJ60: 0 | NBK60: 0 | NBL60: 0 | NBM60: 0 | NBN60: 0 | NBO60: 0 | NBP60: 0 | NBQ60: 0 | NBR60: 0 | NBS60: 0 | NBT60: 0 | NBU60: 0 | NBV60: 0 | NBW60: 0 | NBX60: 0 | NBY60: 0 | NBZ60: =NBZ41 -> 0 | NCA60: 0 | NCB60: 0 | NCC60: 0 | NCD60: 0 | NCE60: 0 | NCF60: 0 | NCG60: 0 | NCH60: 0 | NCI60: 0 | NCJ60: 0 | NCK60: 0 | NCL60: 0 | NCM60: 0 | NCN60: 0 | NCO60: 0 | NCP60: 0 | NCQ60: 0 | NCR60: 0 | NCS60: 0 | NCT60: 0 | NCU60: 0 | NCV60: 0 | NCW60: 0 | NCX60: 0 | NCY60: 0 | NCZ60: 0 | NDA60: 0 | NDB60: 0 | NDC60: 0 | NDD60: 0 | NDE60: 0 | NDF60: 0 | NDG60: 0 | NDH60: 0 | NDI60: 0 | NDJ60: 0 | NDK60: 0 | NDL60: 0 | NDM60: 0 | NDN60: 0 | NDO60: 0 | NDP60: 0 | NDQ60: 0 | NDR60: 0 | NDS60: 0 | NDT60: 0 | NDU60: 0 | NDV60: 0 | NDW60: 0 | NDX60: 0 | NDY60: 0 | NDZ60: 0 | NEA60: 0 | NEB60: 0 | NEC60: 0 | NED60: 0 | NEE60: 0 | NEF60: 0 | NEG60: 0 | NEH60: 0 | NEI60: 0 | NEJ60: 0 | NEK60: 0 | NEL60: =NEL41 -> 0 | NEM60: 0 | NEN60: 0 | NEO60: 0 | NEP60: 0 | NEQ60: 0 | NER60: 0 | NES60: 0 | NET60: 0 | NEU60: 0 | NEV60: 0 | NEW60: 0 | NEX60: 0 | NEY60: 0 | NEZ60: 0 | NFA60: 0 | NFB60: 0 | NFC60: 0 | NFD60: 0 | NFE60: 0 | NFF60: 0 | NFG60: 0 | NFH60: 0 | NFI60: 0 | NFJ60: 0 | NFK60: 0 | NFL60: 0 | NFM60: 0 | NFN60: 0 | NFO60: 0 | NFP60: 0 | NFQ60: 0 | NFR60: 0 | NFS60: 0 | NFT60: 0 | NFU60: 0 | NFV60: 0 | NFW60: 0 | NFX60: 0 | NFY60: 0 | NFZ60: 0 | NGA60: 0 | NGB60: 0 | NGC60: 0 | NGD60: 0 | NGE60: 0 | NGF60: 0 | NGG60: 0 | NGH60: 0 | NGI60: 0 | NGJ60: 0 | NGK60: 0 | NGL60: 0 | NGM60: 0 | NGN60: 0 | NGO60: 0 | NGP60: 0 | NGQ60: 0 | NGR60: 0 | NGS60: 0 | NGT60: 0 | NGU60: 0 | NGV60: 0 | NGW60: 0 | NGX60: =NGX41 -> 0 | NGY60: 0 | NGZ60: 0 | NHA60: 0 | NHB60: 0 | NHC60: 0 | NHD60: 0 | NHE60: 0 | NHF60: 0 | NHG60: 0 | NHH60: 0 | NHI60: 0 | NHJ60: 0 | NHK60: 0 | NHL60: 0 | NHM60: 0 | NHN60: 0 | NHO60: 0 | NHP60: 0 | NHQ60: 0 | NHR60: 0 | NHS60: 0 | NHT60: 0 | NHU60: 0 | NHV60: 0 | NHW60: 0 | NHX60: 0 | NHY60: 0 | NHZ60: 0 | NIA60: 0 | NIB60: 0 | NIC60: 0 | NID60: 0 | NIE60: 0 | NIF60: 0 | NIG60: 0 | NIH60: 0 | NII60: 0 | NIJ60: 0 | NIK60: 0 | NIL60: 0 | NIM60: 0 | NIN60: 0 | NIO60: 0 | NIP60: 0 | NIQ60: 0 | NIR60: 0 | NIS60: 0 | NIT60: 0 | NIU60: 0 | NIV60: 0 | NIW60: 0 | NIX60: 0 | NIY60: 0 | NIZ60: 0 | NJA60: 0 | NJB60: 0 | NJC60: 0 | NJD60: 0 | NJE60: 0 | NJF60: 0 | NJG60: 0 | NJH60: 0 | NJI60: 0 | NJJ60: =NJJ41 -> 0 | NJK60: 0 | NJL60: 0 | NJM60: 0 | NJN60: 0 | NJO60: 0 | NJP60: 0 | NJQ60: 0 | NJR60: 0 | NJS60: 0 | NJT60: 0 | NJU60: 0 | NJV60: 0 | NJW60: 0 | NJX60: 0 | NJY60: 0 | NJZ60: 0 | NKA60: 0 | NKB60: 0 | NKC60: 0 | NKD60: 0 | NKE60: 0 | NKF60: 0 | NKG60: 0 | NKH60: 0 | NKI60: 0 | NKJ60: 0 | NKK60: 0 | NKL60: 0 | NKM60: 0 | NKN60: 0 | NKO60: 0 | NKP60: 0 | NKQ60: 0 | NKR60: 0 | NKS60: 0 | NKT60: 0 | NKU60: 0 | NKV60: 0 | NKW60: 0 | NKX60: 0 | NKY60: 0 | NKZ60: 0 | NLA60: 0 | NLB60: 0 | NLC60: 0 | NLD60: 0 | NLE60: 0 | NLF60: 0 | NLG60: 0 | NLH60: 0 | NLI60: 0 | NLJ60: 0 | NLK60: 0 | NLL60: 0 | NLM60: 0 | NLN60: 0 | NLO60: 0 | NLP60: 0 | NLQ60: 0 | NLR60: 0 | NLS60: 0 | NLT60: 0 | NLU60: 0 | NLV60: =NLV41 -> 0 | NLW60: 0 | NLX60: 0 | NLY60: 0 | NLZ60: 0 | NMA60: 0 | NMB60: 0 | NMC60: 0 | NMD60: 0 | NME60: 0 | NMF60: 0 | NMG60: 0 | NMH60: 0 | NMI60: 0 | NMJ60: 0 | NMK60: 0 | NML60: 0 | NMM60: 0 | NMN60: 0 | NMO60: 0 | NMP60: 0 | NMQ60: 0 | NMR60: 0 | NMS60: 0 | NMT60: 0 | NMU60: 0 | NMV60: 0 | NMW60: 0 | NMX60: 0 | NMY60: 0 | NMZ60: 0 | NNA60: 0 | NNB60: 0 | NNC60: 0 | NND60: 0 | NNE60: 0 | NNF60: 0 | NNG60: 0 | NNH60: 0 | NNI60: 0 | NNJ60: 0 | NNK60: 0 | NNL60: 0 | NNM60: 0 | NNN60: 0 | NNO60: 0 | NNP60: 0 | NNQ60: 0 | NNR60: 0 | NNS60: 0 | NNT60: 0 | NNU60: 0 | NNV60: 0 | NNW60: 0 | NNX60: 0 | NNY60: 0 | NNZ60: 0 | NOA60: 0 | NOB60: 0 | NOC60: 0 | NOD60: 0 | NOE60: 0 | NOF60: 0 | NOG60: 0 | NOH60: =NOH41 -> 0 | NOI60: 0 | NOJ60: 0 | NOK60: 0 | NOL60: 0 | NOM60: 0 | NON60: 0 | NOO60: 0 | NOP60: 0 | NOQ60: 0 | NOR60: 0 | NOS60: 0 | NOT60: 0 | NOU60: 0 | NOV60: 0 | NOW60: 0 | NOX60: 0 | NOY60: 0 | NOZ60: 0 | NPA60: 0 | NPB60: 0 | NPC60: 0 | NPD60: 0 | NPE60: 0 | NPF60: 0 | NPG60: 0 | NPH60: 0 | NPI60: 0 | NPJ60: 0 | NPK60: 0 | NPL60: 0 | NPM60: 0 | NPN60: 0 | NPO60: 0 | NPP60: 0 | NPQ60: 0 | NPR60: 0 | NPS60: 0 | NPT60: 0 | NPU60: 0 | NPV60: 0 | NPW60: 0 | NPX60: 0 | NPY60: 0 | NPZ60: 0 | NQA60: 0 | NQB60: 0 | NQC60: 0 | NQD60: 0 | NQE60: 0 | NQF60: 0 | NQG60: 0 | NQH60: 0 | NQI60: 0 | NQJ60: 0 | NQK60: 0 | NQL60: 0 | NQM60: 0 | NQN60: 0 | NQO60: 0 | NQP60: 0 | NQQ60: 0 | NQR60: 0 | NQS60: 0 | NQT60: =NQT41 -> 0 | NQU60: 0 | NQV60: 0 | NQW60: 0 | NQX60: 0 | NQY60: 0 | NQZ60: 0 | NRA60: 0 | NRB60: 0 | NRC60: 0 | NRD60: 0 | NRE60: 0 | NRF60: 0 | NRG60: 0 | NRH60: 0 | NRI60: 0 | NRJ60: 0 | NRK60: 0 | NRL60: 0 | NRM60: 0 | NRN60: 0 | NRO60: 0 | NRP60: 0 | NRQ60: 0 | NRR60: 0 | NRS60: 0 | NRT60: 0 | NRU60: 0 | NRV60: 0 | NRW60: 0 | NRX60: 0 | NRY60: 0 | NRZ60: 0 | NSA60: 0 | NSB60: 0 | NSC60: 0 | NSD60: 0 | NSE60: 0 | NSF60: 0 | NSG60: 0 | NSH60: 0 | NSI60: 0 | NSJ60: 0 | NSK60: 0 | NSL60: 0 | NSM60: 0 | NSN60: 0 | NSO60: 0 | NSP60: 0 | NSQ60: 0 | NSR60: 0 | NSS60: 0 | NST60: 0 | NSU60: 0 | NSV60: 0 | NSW60: 0 | NSX60: 0 | NSY60: 0 | NSZ60: 0 | NTA60: 0 | NTB60: 0 | NTC60: 0 | NTD60: 0 | NTE60: 0 | NTF60: =NTF41 -> 0 | NTG60: 0 | NTH60: 0 | NTI60: 0 | NTJ60: 0 | NTK60: 0 | NTL60: 0 | NTM60: 0 | NTN60: 0 | NTO60: 0 | NTP60: 0 | NTQ60: 0 | NTR60: 0 | NTS60: 0 | NTT60: 0 | NTU60: 0 | NTV60: 0 | NTW60: 0 | NTX60: 0 | NTY60: 0 | NTZ60: 0 | NUA60: 0 | NUB60: 0 | NUC60: 0 | NUD60: 0 | NUE60: 0 | NUF60: 0 | NUG60: 0 | NUH60: 0 | NUI60: 0 | NUJ60: 0 | NUK60: 0 | NUL60: 0 | NUM60: 0 | NUN60: 0 | NUO60: 0 | NUP60: 0 | NUQ60: 0 | NUR60: 0 | NUS60: 0 | NUT60: 0 | NUU60: 0 | NUV60: 0 | NUW60: 0 | NUX60: 0 | NUY60: 0 | NUZ60: 0 | NVA60: 0 | NVB60: 0 | NVC60: 0 | NVD60: 0 | NVE60: 0 | NVF60: 0 | NVG60: 0 | NVH60: 0 | NVI60: 0 | NVJ60: 0 | NVK60: 0 | NVL60: 0 | NVM60: 0 | NVN60: 0 | NVO60: 0 | NVP60: 0 | NVQ60: 0 | NVR60: =NVR41 -> 0 | NVS60: 0 | NVT60: 0 | NVU60: 0 | NVV60: 0 | NVW60: 0 | NVX60: 0 | NVY60: 0 | NVZ60: 0 | NWA60: 0 | NWB60: 0 | NWC60: 0 | NWD60: 0 | NWE60: 0 | NWF60: 0 | NWG60: 0 | NWH60: 0 | NWI60: 0 | NWJ60: 0 | NWK60: 0 | NWL60: 0 | NWM60: 0 | NWN60: 0 | NWO60: 0 | NWP60: 0 | NWQ60: 0 | NWR60: 0 | NWS60: 0 | NWT60: 0 | NWU60: 0 | NWV60: 0 | NWW60: 0 | NWX60: 0 | NWY60: 0 | NWZ60: 0 | NXA60: 0 | NXB60: 0 | NXC60: 0 | NXD60: 0 | NXE60: 0 | NXF60: 0 | NXG60: 0 | NXH60: 0 | NXI60: 0 | NXJ60: 0 | NXK60: 0 | NXL60: 0 | NXM60: 0 | NXN60: 0 | NXO60: 0 | NXP60: 0 | NXQ60: 0 | NXR60: 0 | NXS60: 0 | NXT60: 0 | NXU60: 0 | NXV60: 0 | NXW60: 0 | NXX60: 0 | NXY60: 0 | NXZ60: 0 | NYA60: 0 | NYB60: 0 | NYC60: 0 | NYD60: =NYD41 -> 0 | NYE60: 0 | NYF60: 0 | NYG60: 0 | NYH60: 0 | NYI60: 0 | NYJ60: 0 | NYK60: 0 | NYL60: 0 | NYM60: 0 | NYN60: 0 | NYO60: 0 | NYP60: 0 | NYQ60: 0 | NYR60: 0 | NYS60: 0 | NYT60: 0 | NYU60: 0 | NYV60: 0 | NYW60: 0 | NYX60: 0 | NYY60: 0 | NYZ60: 0 | NZA60: 0 | NZB60: 0 | NZC60: 0 | NZD60: 0 | NZE60: 0 | NZF60: 0 | NZG60: 0 | NZH60: 0 | NZI60: 0 | NZJ60: 0 | NZK60: 0 | NZL60: 0 | NZM60: 0 | NZN60: 0 | NZO60: 0 | NZP60: 0 | NZQ60: 0 | NZR60: 0 | NZS60: 0 | NZT60: 0 | NZU60: 0 | NZV60: 0 | NZW60: 0 | NZX60: 0 | NZY60: 0 | NZZ60: 0 | OAA60: 0 | OAB60: 0 | OAC60: 0 | OAD60: 0 | OAE60: 0 | OAF60: 0 | OAG60: 0 | OAH60: 0 | OAI60: 0 | OAJ60: 0 | OAK60: 0 | OAL60: 0 | OAM60: 0 | OAN60: 0 | OAO60: 0 | OAP60: =OAP41 -> 0 | OAQ60: 0 | OAR60: 0 | OAS60: 0 | OAT60: 0 | OAU60: 0 | OAV60: 0 | OAW60: 0 | OAX60: 0 | OAY60: 0 | OAZ60: 0 | OBA60: 0 | OBB60: 0 | OBC60: 0 | OBD60: 0 | OBE60: 0 | OBF60: 0 | OBG60: 0 | OBH60: 0 | OBI60: 0 | OBJ60: 0 | OBK60: 0 | OBL60: 0 | OBM60: 0 | OBN60: 0 | OBO60: 0 | OBP60: 0 | OBQ60: 0 | OBR60: 0 | OBS60: 0 | OBT60: 0 | OBU60: 0 | OBV60: 0 | OBW60: 0 | OBX60: 0 | OBY60: 0 | OBZ60: 0 | OCA60: 0 | OCB60: 0 | OCC60: 0 | OCD60: 0 | OCE60: 0 | OCF60: 0 | OCG60: 0 | OCH60: 0 | OCI60: 0 | OCJ60: 0 | OCK60: 0 | OCL60: 0 | OCM60: 0 | OCN60: 0 | OCO60: 0 | OCP60: 0 | OCQ60: 0 | OCR60: 0 | OCS60: 0 | OCT60: 0 | OCU60: 0 | OCV60: 0 | OCW60: 0 | OCX60: 0 | OCY60: 0 | OCZ60: 0 | ODA60: 0 | ODB60: =ODB41 -> 0 | ODC60: 0 | ODD60: 0 | ODE60: 0 | ODF60: 0 | ODG60: 0 | ODH60: 0 | ODI60: 0 | ODJ60: 0 | ODK60: 0 | ODL60: 0 | ODM60: 0 | ODN60: 0 | ODO60: 0 | ODP60: 0 | ODQ60: 0 | ODR60: 0 | ODS60: 0 | ODT60: 0 | ODU60: 0 | ODV60: 0 | ODW60: 0 | ODX60: 0 | ODY60: 0 | ODZ60: 0 | OEA60: 0 | OEB60: 0 | OEC60: 0 | OED60: 0 | OEE60: 0 | OEF60: 0 | OEG60: 0 | OEH60: 0 | OEI60: 0 | OEJ60: 0 | OEK60: 0 | OEL60: 0 | OEM60: 0 | OEN60: 0 | OEO60: 0 | OEP60: 0 | OEQ60: 0 | OER60: 0 | OES60: 0 | OET60: 0 | OEU60: 0 | OEV60: 0 | OEW60: 0 | OEX60: 0 | OEY60: 0 | OEZ60: 0 | OFA60: 0 | OFB60: 0 | OFC60: 0 | OFD60: 0 | OFE60: 0 | OFF60: 0 | OFG60: 0 | OFH60: 0 | OFI60: 0 | OFJ60: 0 | OFK60: 0 | OFL60: 0 | OFM60: 0 | OFN60: =OFN41 -> 0 | OFO60: 0 | OFP60: 0 | OFQ60: 0 | OFR60: 0 | OFS60: 0 | OFT60: 0 | OFU60: 0 | OFV60: 0 | OFW60: 0 | OFX60: 0 | OFY60: 0 | OFZ60: 0 | OGA60: 0 | OGB60: 0 | OGC60: 0 | OGD60: 0 | OGE60: 0 | OGF60: 0 | OGG60: 0 | OGH60: 0 | OGI60: 0 | OGJ60: 0 | OGK60: 0 | OGL60: 0 | OGM60: 0 | OGN60: 0 | OGO60: 0 | OGP60: 0 | OGQ60: 0 | OGR60: 0 | OGS60: 0 | OGT60: 0 | OGU60: 0 | OGV60: 0 | OGW60: 0 | OGX60: 0 | OGY60: 0 | OGZ60: 0 | OHA60: 0 | OHB60: 0 | OHC60: 0 | OHD60: 0 | OHE60: 0 | OHF60: 0 | OHG60: 0 | OHH60: 0 | OHI60: 0 | OHJ60: 0 | OHK60: 0 | OHL60: 0 | OHM60: 0 | OHN60: 0 | OHO60: 0 | OHP60: 0 | OHQ60: 0 | OHR60: 0 | OHS60: 0 | OHT60: 0 | OHU60: 0 | OHV60: 0 | OHW60: 0 | OHX60: 0 | OHY60: 0 | OHZ60: =OHZ41 -> 0 | OIA60: 0 | OIB60: 0 | OIC60: 0 | OID60: 0 | OIE60: 0 | OIF60: 0 | OIG60: 0 | OIH60: 0 | OII60: 0 | OIJ60: 0 | OIK60: 0 | OIL60: 0 | OIM60: 0 | OIN60: 0 | OIO60: 0 | OIP60: 0 | OIQ60: 0 | OIR60: 0 | OIS60: 0 | OIT60: 0 | OIU60: 0 | OIV60: 0 | OIW60: 0 | OIX60: 0 | OIY60: 0 | OIZ60: 0 | OJA60: 0 | OJB60: 0 | OJC60: 0 | OJD60: 0 | OJE60: 0 | OJF60: 0 | OJG60: 0 | OJH60: 0 | OJI60: 0 | OJJ60: 0 | OJK60: 0 | OJL60: 0 | OJM60: 0 | OJN60: 0 | OJO60: 0 | OJP60: 0 | OJQ60: 0 | OJR60: 0 | OJS60: 0 | OJT60: 0 | OJU60: 0 | OJV60: 0 | OJW60: 0 | OJX60: 0 | OJY60: 0 | OJZ60: 0 | OKA60: 0 | OKB60: 0 | OKC60: 0 | OKD60: 0 | OKE60: 0 | OKF60: 0 | OKG60: 0 | OKH60: 0 | OKI60: 0 | OKJ60: 0 | OKK60: 0 | OKL60: =OKL41 -> 0 | OKM60: 0 | OKN60: 0 | OKO60: 0 | OKP60: 0 | OKQ60: 0 | OKR60: 0 | OKS60: 0 | OKT60: 0 | OKU60: 0 | OKV60: 0 | OKW60: 0 | OKX60: 0 | OKY60: 0 | OKZ60: 0 | OLA60: 0 | OLB60: 0 | OLC60: 0 | OLD60: 0 | OLE60: 0 | OLF60: 0 | OLG60: 0 | OLH60: 0 | OLI60: 0 | OLJ60: 0 | OLK60: 0 | OLL60: 0 | OLM60: 0 | OLN60: 0 | OLO60: 0 | OLP60: 0 | OLQ60: 0 | OLR60: 0 | OLS60: 0 | OLT60: 0 | OLU60: 0 | OLV60: 0 | OLW60: 0 | OLX60: 0 | OLY60: 0 | OLZ60: 0 | OMA60: 0 | OMB60: 0 | OMC60: 0 | OMD60: 0 | OME60: 0 | OMF60: 0 | OMG60: 0 | OMH60: 0 | OMI60: 0 | OMJ60: 0 | OMK60: 0 | OML60: 0 | OMM60: 0 | OMN60: 0 | OMO60: 0 | OMP60: 0 | OMQ60: 0 | OMR60: 0 | OMS60: 0 | OMT60: 0 | OMU60: 0 | OMV60: 0 | OMW60: 0 | OMX60: =OMX41 -> 0 | OMY60: 0 | OMZ60: 0 | ONA60: 0 | ONB60: 0 | ONC60: 0 | OND60: 0 | ONE60: 0 | ONF60: 0 | ONG60: 0 | ONH60: 0 | ONI60: 0 | ONJ60: 0 | ONK60: 0 | ONL60: 0 | ONM60: 0 | ONN60: 0 | ONO60: 0 | ONP60: 0 | ONQ60: 0 | ONR60: 0 | ONS60: 0 | ONT60: 0 | ONU60: 0 | ONV60: 0 | ONW60: 0 | ONX60: 0 | ONY60: 0 | ONZ60: 0 | OOA60: 0 | OOB60: 0 | OOC60: 0 | OOD60: 0 | OOE60: 0 | OOF60: 0 | OOG60: 0 | OOH60: 0 | OOI60: 0 | OOJ60: 0 | OOK60: 0 | OOL60: 0 | OOM60: 0 | OON60: 0 | OOO60: 0 | OOP60: 0 | OOQ60: 0 | OOR60: 0 | OOS60: 0 | OOT60: 0 | OOU60: 0 | OOV60: 0 | OOW60: 0 | OOX60: 0 | OOY60: 0 | OOZ60: 0 | OPA60: 0 | OPB60: 0 | OPC60: 0 | OPD60: 0 | OPE60: 0 | OPF60: 0 | OPG60: 0 | OPH60: 0 | OPI60: 0 | OPJ60: =OPJ41 -> 0 | OPK60: 0 | OPL60: 0 | OPM60: 0 | OPN60: 0 | OPO60: 0 | OPP60: 0 | OPQ60: 0 | OPR60: 0 | OPS60: 0 | OPT60: 0 | OPU60: 0 | OPV60: 0 | OPW60: 0 | OPX60: 0 | OPY60: 0 | OPZ60: 0 | OQA60: 0 | OQB60: 0 | OQC60: 0 | OQD60: 0 | OQE60: 0 | OQF60: 0 | OQG60: 0 | OQH60: 0 | OQI60: 0 | OQJ60: 0 | OQK60: 0 | OQL60: 0 | OQM60: 0 | OQN60: 0 | OQO60: 0 | OQP60: 0 | OQQ60: 0 | OQR60: 0 | OQS60: 0 | OQT60: 0 | OQU60: 0 | OQV60: 0 | OQW60: 0 | OQX60: 0 | OQY60: 0 | OQZ60: 0 | ORA60: 0 | ORB60: 0 | ORC60: 0 | ORD60: 0 | ORE60: 0 | ORF60: 0 | ORG60: 0 | ORH60: 0 | ORI60: 0 | ORJ60: 0 | ORK60: 0 | ORL60: 0 | ORM60: 0 | ORN60: 0 | ORO60: 0 | ORP60: 0 | ORQ60: 0 | ORR60: 0 | ORS60: 0 | ORT60: 0 | ORU60: 0 | ORV60: =ORV41 -> 0 | ORW60: 0 | ORX60: 0 | ORY60: 0 | ORZ60: 0 | OSA60: 0 | OSB60: 0 | OSC60: 0 | OSD60: 0 | OSE60: 0 | OSF60: 0 | OSG60: 0 | OSH60: 0 | OSI60: 0 | OSJ60: 0 | OSK60: 0 | OSL60: 0 | OSM60: 0 | OSN60: 0 | OSO60: 0 | OSP60: 0 | OSQ60: 0 | OSR60: 0 | OSS60: 0 | OST60: 0 | OSU60: 0 | OSV60: 0 | OSW60: 0 | OSX60: 0 | OSY60: 0 | OSZ60: 0 | OTA60: 0 | OTB60: 0 | OTC60: 0 | OTD60: 0 | OTE60: 0 | OTF60: 0 | OTG60: 0 | OTH60: 0 | OTI60: 0 | OTJ60: 0 | OTK60: 0 | OTL60: 0 | OTM60: 0 | OTN60: 0 | OTO60: 0 | OTP60: 0 | OTQ60: 0 | OTR60: 0 | OTS60: 0 | OTT60: 0 | OTU60: 0 | OTV60: 0 | OTW60: 0 | OTX60: 0 | OTY60: 0 | OTZ60: 0 | OUA60: 0 | OUB60: 0 | OUC60: 0 | OUD60: 0 | OUE60: 0 | OUF60: 0 | OUG60: 0 | OUH60: =OUH41 -> 0 | OUI60: 0 | OUJ60: 0 | OUK60: 0 | OUL60: 0 | OUM60: 0 | OUN60: 0 | OUO60: 0 | OUP60: 0 | OUQ60: 0 | OUR60: 0 | OUS60: 0 | OUT60: 0 | OUU60: 0 | OUV60: 0 | OUW60: 0 | OUX60: 0 | OUY60: 0 | OUZ60: 0 | OVA60: 0 | OVB60: 0 | OVC60: 0 | OVD60: 0 | OVE60: 0 | OVF60: 0 | OVG60: 0 | OVH60: 0 | OVI60: 0 | OVJ60: 0 | OVK60: 0 | OVL60: 0 | OVM60: 0 | OVN60: 0 | OVO60: 0 | OVP60: 0 | OVQ60: 0 | OVR60: 0 | OVS60: 0 | OVT60: 0 | OVU60: 0 | OVV60: 0 | OVW60: 0 | OVX60: 0 | OVY60: 0 | OVZ60: 0 | OWA60: 0 | OWB60: 0 | OWC60: 0 | OWD60: 0 | OWE60: 0 | OWF60: 0 | OWG60: 0 | OWH60: 0 | OWI60: 0 | OWJ60: 0 | OWK60: 0 | OWL60: 0 | OWM60: 0 | OWN60: 0 | OWO60: 0 | OWP60: 0 | OWQ60: 0 | OWR60: 0 | OWS60: 0 | OWT60: =OWT41 -> 0 | OWU60: 0 | OWV60: 0 | OWW60: 0 | OWX60: 0 | OWY60: 0 | OWZ60: 0 | OXA60: 0 | OXB60: 0 | OXC60: 0 | OXD60: 0 | OXE60: 0 | OXF60: 0 | OXG60: 0 | OXH60: 0 | OXI60: 0 | OXJ60: 0 | OXK60: 0 | OXL60: 0 | OXM60: 0 | OXN60: 0 | OXO60: 0 | OXP60: 0 | OXQ60: 0 | OXR60: 0 | OXS60: 0 | OXT60: 0 | OXU60: 0 | OXV60: 0 | OXW60: 0 | OXX60: 0 | OXY60: 0 | OXZ60: 0 | OYA60: 0 | OYB60: 0 | OYC60: 0 | OYD60: 0 | OYE60: 0 | OYF60: 0 | OYG60: 0 | OYH60: 0 | OYI60: 0 | OYJ60: 0 | OYK60: 0 | OYL60: 0 | OYM60: 0 | OYN60: 0 | OYO60: 0 | OYP60: 0 | OYQ60: 0 | OYR60: 0 | OYS60: 0 | OYT60: 0 | OYU60: 0 | OYV60: 0 | OYW60: 0 | OYX60: 0 | OYY60: 0 | OYZ60: 0 | OZA60: 0 | OZB60: 0 | OZC60: 0 | OZD60: 0 | OZE60: 0 | OZF60: =OZF41 -> 0 | OZG60: 0 | OZH60: 0 | OZI60: 0 | OZJ60: 0 | OZK60: 0 | OZL60: 0 | OZM60: 0 | OZN60: 0 | OZO60: 0 | OZP60: 0 | OZQ60: 0 | OZR60: 0 | OZS60: 0 | OZT60: 0 | OZU60: 0 | OZV60: 0 | OZW60: 0 | OZX60: 0 | OZY60: 0 | OZZ60: 0 | PAA60: 0 | PAB60: 0 | PAC60: 0 | PAD60: 0 | PAE60: 0 | PAF60: 0 | PAG60: 0 | PAH60: 0 | PAI60: 0 | PAJ60: 0 | PAK60: 0 | PAL60: 0 | PAM60: 0 | PAN60: 0 | PAO60: 0 | PAP60: 0 | PAQ60: 0 | PAR60: 0 | PAS60: 0 | PAT60: 0 | PAU60: 0 | PAV60: 0 | PAW60: 0 | PAX60: 0 | PAY60: 0 | PAZ60: 0 | PBA60: 0 | PBB60: 0 | PBC60: 0 | PBD60: 0 | PBE60: 0 | PBF60: 0 | PBG60: 0 | PBH60: 0 | PBI60: 0 | PBJ60: 0 | PBK60: 0 | PBL60: 0 | PBM60: 0 | PBN60: 0 | PBO60: 0 | PBP60: 0 | PBQ60: 0 | PBR60: =PBR41 -> 0 | PBS60: 0 | PBT60: 0 | PBU60: 0 | PBV60: 0 | PBW60: 0 | PBX60: 0 | PBY60: 0 | PBZ60: 0 | PCA60: 0 | PCB60: 0 | PCC60: 0 | PCD60: 0 | PCE60: 0 | PCF60: 0 | PCG60: 0 | PCH60: 0 | PCI60: 0 | PCJ60: 0 | PCK60: 0 | PCL60: 0 | PCM60: 0 | PCN60: 0 | PCO60: 0 | PCP60: 0 | PCQ60: 0 | PCR60: 0 | PCS60: 0 | PCT60: 0 | PCU60: 0 | PCV60: 0 | PCW60: 0 | PCX60: 0 | PCY60: 0 | PCZ60: 0 | PDA60: 0 | PDB60: 0 | PDC60: 0 | PDD60: 0 | PDE60: 0 | PDF60: 0 | PDG60: 0 | PDH60: 0 | PDI60: 0 | PDJ60: 0 | PDK60: 0 | PDL60: 0 | PDM60: 0 | PDN60: 0 | PDO60: 0 | PDP60: 0 | PDQ60: 0 | PDR60: 0 | PDS60: 0 | PDT60: 0 | PDU60: 0 | PDV60: 0 | PDW60: 0 | PDX60: 0 | PDY60: 0 | PDZ60: 0 | PEA60: 0 | PEB60: 0 | PEC60: 0 | PED60: =PED41 -> 0 | PEE60: 0 | PEF60: 0 | PEG60: 0 | PEH60: 0 | PEI60: 0 | PEJ60: 0 | PEK60: 0 | PEL60: 0 | PEM60: 0 | PEN60: 0 | PEO60: 0 | PEP60: 0 | PEQ60: 0 | PER60: 0 | PES60: 0 | PET60: 0 | PEU60: 0 | PEV60: 0 | PEW60: 0 | PEX60: 0 | PEY60: 0 | PEZ60: 0 | PFA60: 0 | PFB60: 0 | PFC60: 0 | PFD60: 0 | PFE60: 0 | PFF60: 0 | PFG60: 0 | PFH60: 0 | PFI60: 0 | PFJ60: 0 | PFK60: 0 | PFL60: 0 | PFM60: 0 | PFN60: 0 | PFO60: 0 | PFP60: 0 | PFQ60: 0 | PFR60: 0 | PFS60: 0 | PFT60: 0 | PFU60: 0 | PFV60: 0 | PFW60: 0 | PFX60: 0 | PFY60: 0 | PFZ60: 0 | PGA60: 0 | PGB60: 0 | PGC60: 0 | PGD60: 0 | PGE60: 0 | PGF60: 0 | PGG60: 0 | PGH60: 0 | PGI60: 0 | PGJ60: 0 | PGK60: 0 | PGL60: 0 | PGM60: 0 | PGN60: 0 | PGO60: 0 | PGP60: =PGP41 -> 0 | PGQ60: 0 | PGR60: 0 | PGS60: 0 | PGT60: 0 | PGU60: 0 | PGV60: 0 | PGW60: 0 | PGX60: 0 | PGY60: 0 | PGZ60: 0 | PHA60: 0 | PHB60: 0 | PHC60: 0 | PHD60: 0 | PHE60: 0 | PHF60: 0 | PHG60: 0 | PHH60: 0 | PHI60: 0 | PHJ60: 0 | PHK60: 0 | PHL60: 0 | PHM60: 0 | PHN60: 0 | PHO60: 0 | PHP60: 0 | PHQ60: 0 | PHR60: 0 | PHS60: 0 | PHT60: 0 | PHU60: 0 | PHV60: 0 | PHW60: 0 | PHX60: 0 | PHY60: 0 | PHZ60: 0 | PIA60: 0 | PIB60: 0 | PIC60: 0 | PID60: 0 | PIE60: 0 | PIF60: 0 | PIG60: 0 | PIH60: 0 | PII60: 0 | PIJ60: 0 | PIK60: 0 | PIL60: 0 | PIM60: 0 | PIN60: 0 | PIO60: 0 | PIP60: 0 | PIQ60: 0 | PIR60: 0 | PIS60: 0 | PIT60: 0 | PIU60: 0 | PIV60: 0 | PIW60: 0 | PIX60: 0 | PIY60: 0 | PIZ60: 0 | PJA60: 0 | PJB60: =PJB41 -> 0 | PJC60: 0 | PJD60: 0 | PJE60: 0 | PJF60: 0 | PJG60: 0 | PJH60: 0 | PJI60: 0 | PJJ60: 0 | PJK60: 0 | PJL60: 0 | PJM60: 0 | PJN60: 0 | PJO60: 0 | PJP60: 0 | PJQ60: 0 | PJR60: 0 | PJS60: 0 | PJT60: 0 | PJU60: 0 | PJV60: 0 | PJW60: 0 | PJX60: 0 | PJY60: 0 | PJZ60: 0 | PKA60: 0 | PKB60: 0 | PKC60: 0 | PKD60: 0 | PKE60: 0 | PKF60: 0 | PKG60: 0 | PKH60: 0 | PKI60: 0 | PKJ60: 0 | PKK60: 0 | PKL60: 0 | PKM60: 0 | PKN60: 0 | PKO60: 0 | PKP60: 0 | PKQ60: 0 | PKR60: 0 | PKS60: 0 | PKT60: 0 | PKU60: 0 | PKV60: 0 | PKW60: 0 | PKX60: 0 | PKY60: 0 | PKZ60: 0 | PLA60: 0 | PLB60: 0 | PLC60: 0 | PLD60: 0 | PLE60: 0 | PLF60: 0 | PLG60: 0 | PLH60: 0 | PLI60: 0 | PLJ60: 0 | PLK60: 0 | PLL60: 0 | PLM60: 0 | PLN60: =PLN41 -> 0 | PLO60: 0 | PLP60: 0 | PLQ60: 0 | PLR60: 0 | PLS60: 0 | PLT60: 0 | PLU60: 0 | PLV60: 0 | PLW60: 0 | PLX60: 0 | PLY60: 0 | PLZ60: 0 | PMA60: 0 | PMB60: 0 | PMC60: 0 | PMD60: 0 | PME60: 0 | PMF60: 0 | PMG60: 0 | PMH60: 0 | PMI60: 0 | PMJ60: 0 | PMK60: 0 | PML60: 0 | PMM60: 0 | PMN60: 0 | PMO60: 0 | PMP60: 0 | PMQ60: 0 | PMR60: 0 | PMS60: 0 | PMT60: 0 | PMU60: 0 | PMV60: 0 | PMW60: 0 | PMX60: 0 | PMY60: 0 | PMZ60: 0 | PNA60: 0 | PNB60: 0 | PNC60: 0 | PND60: 0 | PNE60: 0 | PNF60: 0 | PNG60: 0 | PNH60: 0 | PNI60: 0 | PNJ60: 0 | PNK60: 0 | PNL60: 0 | PNM60: 0 | PNN60: 0 | PNO60: 0 | PNP60: 0 | PNQ60: 0 | PNR60: 0 | PNS60: 0 | PNT60: 0 | PNU60: 0 | PNV60: 0 | PNW60: 0 | PNX60: 0 | PNY60: 0 | PNZ60: =PNZ41 -> 0 | POA60: 0 | POB60: 0 | POC60: 0 | POD60: 0 | POE60: 0 | POF60: 0 | POG60: 0 | POH60: 0 | POI60: 0 | POJ60: 0 | POK60: 0 | POL60: 0 | POM60: 0 | PON60: 0 | POO60: 0 | POP60: 0 | POQ60: 0 | POR60: 0 | POS60: 0 | POT60: 0 | POU60: 0 | POV60: 0 | POW60: 0 | POX60: 0 | POY60: 0 | POZ60: 0 | PPA60: 0 | PPB60: 0 | PPC60: 0 | PPD60: 0 | PPE60: 0 | PPF60: 0 | PPG60: 0 | PPH60: 0 | PPI60: 0 | PPJ60: 0 | PPK60: 0 | PPL60: 0 | PPM60: 0 | PPN60: 0 | PPO60: 0 | PPP60: 0 | PPQ60: 0 | PPR60: 0 | PPS60: 0 | PPT60: 0 | PPU60: 0 | PPV60: 0 | PPW60: 0 | PPX60: 0 | PPY60: 0 | PPZ60: 0 | PQA60: 0 | PQB60: 0 | PQC60: 0 | PQD60: 0 | PQE60: 0 | PQF60: 0 | PQG60: 0 | PQH60: 0 | PQI60: 0 | PQJ60: 0 | PQK60: 0 | PQL60: =PQL41 -> 0 | PQM60: 0 | PQN60: 0 | PQO60: 0 | PQP60: 0 | PQQ60: 0 | PQR60: 0 | PQS60: 0 | PQT60: 0 | PQU60: 0 | PQV60: 0 | PQW60: 0 | PQX60: 0 | PQY60: 0 | PQZ60: 0 | PRA60: 0 | PRB60: 0 | PRC60: 0 | PRD60: 0 | PRE60: 0 | PRF60: 0 | PRG60: 0 | PRH60: 0 | PRI60: 0 | PRJ60: 0 | PRK60: 0 | PRL60: 0 | PRM60: 0 | PRN60: 0 | PRO60: 0 | PRP60: 0 | PRQ60: 0 | PRR60: 0 | PRS60: 0 | PRT60: 0 | PRU60: 0 | PRV60: 0 | PRW60: 0 | PRX60: 0 | PRY60: 0 | PRZ60: 0 | PSA60: 0 | PSB60: 0 | PSC60: 0 | PSD60: 0 | PSE60: 0 | PSF60: 0 | PSG60: 0 | PSH60: 0 | PSI60: 0 | PSJ60: 0 | PSK60: 0 | PSL60: 0 | PSM60: 0 | PSN60: 0 | PSO60: 0 | PSP60: 0 | PSQ60: 0 | PSR60: 0 | PSS60: 0 | PST60: 0 | PSU60: 0 | PSV60: 0 | PSW60: 0 | PSX60: =PSX41 -> 0 | PSY60: 0 | PSZ60: 0 | PTA60: 0 | PTB60: 0 | PTC60: 0 | PTD60: 0 | PTE60: 0 | PTF60: 0 | PTG60: 0 | PTH60: 0 | PTI60: 0 | PTJ60: 0 | PTK60: 0 | PTL60: 0 | PTM60: 0 | PTN60: 0 | PTO60: 0 | PTP60: 0 | PTQ60: 0 | PTR60: 0 | PTS60: 0 | PTT60: 0 | PTU60: 0 | PTV60: 0 | PTW60: 0 | PTX60: 0 | PTY60: 0 | PTZ60: 0 | PUA60: 0 | PUB60: 0 | PUC60: 0 | PUD60: 0 | PUE60: 0 | PUF60: 0 | PUG60: 0 | PUH60: 0 | PUI60: 0 | PUJ60: 0 | PUK60: 0 | PUL60: 0 | PUM60: 0 | PUN60: 0 | PUO60: 0 | PUP60: 0 | PUQ60: 0 | PUR60: 0 | PUS60: 0 | PUT60: 0 | PUU60: 0 | PUV60: 0 | PUW60: 0 | PUX60: 0 | PUY60: 0 | PUZ60: 0 | PVA60: 0 | PVB60: 0 | PVC60: 0 | PVD60: 0 | PVE60: 0 | PVF60: 0 | PVG60: 0 | PVH60: 0 | PVI60: 0 | PVJ60: =PVJ41 -> 0 | PVK60: 0 | PVL60: 0 | PVM60: 0 | PVN60: 0 | PVO60: 0 | PVP60: 0 | PVQ60: 0 | PVR60: 0 | PVS60: 0 | PVT60: 0 | PVU60: 0 | PVV60: 0 | PVW60: 0 | PVX60: 0 | PVY60: 0 | PVZ60: 0 | PWA60: 0 | PWB60: 0 | PWC60: 0 | PWD60: 0 | PWE60: 0 | PWF60: 0 | PWG60: 0 | PWH60: 0 | PWI60: 0 | PWJ60: 0 | PWK60: 0 | PWL60: 0 | PWM60: 0 | PWN60: 0 | PWO60: 0 | PWP60: 0 | PWQ60: 0 | PWR60: 0 | PWS60: 0 | PWT60: 0 | PWU60: 0 | PWV60: 0 | PWW60: 0 | PWX60: 0 | PWY60: 0 | PWZ60: 0 | PXA60: 0 | PXB60: 0 | PXC60: 0 | PXD60: 0 | PXE60: 0 | PXF60: 0 | PXG60: 0 | PXH60: 0 | PXI60: 0 | PXJ60: 0 | PXK60: 0 | PXL60: 0 | PXM60: 0 | PXN60: 0 | PXO60: 0 | PXP60: 0 | PXQ60: 0 | PXR60: 0 | PXS60: 0 | PXT60: 0 | PXU60: 0 | PXV60: =PXV41 -> 0 | PXW60: 0 | PXX60: 0 | PXY60: 0 | PXZ60: 0 | PYA60: 0 | PYB60: 0 | PYC60: 0 | PYD60: 0 | PYE60: 0 | PYF60: 0 | PYG60: 0 | PYH60: 0 | PYI60: 0 | PYJ60: 0 | PYK60: 0 | PYL60: 0 | PYM60: 0 | PYN60: 0 | PYO60: 0 | PYP60: 0 | PYQ60: 0 | PYR60: 0 | PYS60: 0 | PYT60: 0 | PYU60: 0 | PYV60: 0 | PYW60: 0 | PYX60: 0 | PYY60: 0 | PYZ60: 0 | PZA60: 0 | PZB60: 0 | PZC60: 0 | PZD60: 0 | PZE60: 0 | PZF60: 0 | PZG60: 0 | PZH60: 0 | PZI60: 0 | PZJ60: 0 | PZK60: 0 | PZL60: 0 | PZM60: 0 | PZN60: 0 | PZO60: 0 | PZP60: 0 | PZQ60: 0 | PZR60: 0 | PZS60: 0 | PZT60: 0 | PZU60: 0 | PZV60: 0 | PZW60: 0 | PZX60: 0 | PZY60: 0 | PZZ60: 0 | QAA60: 0 | QAB60: 0 | QAC60: 0 | QAD60: 0 | QAE60: 0 | QAF60: 0 | QAG60: 0 | QAH60: =QAH41 -> 0 | QAI60: 0 | QAJ60: 0 | QAK60: 0 | QAL60: 0 | QAM60: 0 | QAN60: 0 | QAO60: 0 | QAP60: 0 | QAQ60: 0 | QAR60: 0 | QAS60: 0 | QAT60: 0 | QAU60: 0 | QAV60: 0 | QAW60: 0 | QAX60: 0 | QAY60: 0 | QAZ60: 0 | QBA60: 0 | QBB60: 0 | QBC60: 0 | QBD60: 0 | QBE60: 0 | QBF60: 0 | QBG60: 0 | QBH60: 0 | QBI60: 0 | QBJ60: 0 | QBK60: 0 | QBL60: 0 | QBM60: 0 | QBN60: 0 | QBO60: 0 | QBP60: 0 | QBQ60: 0 | QBR60: 0 | QBS60: 0 | QBT60: 0 | QBU60: 0 | QBV60: 0 | QBW60: 0 | QBX60: 0 | QBY60: 0 | QBZ60: 0 | QCA60: 0 | QCB60: 0 | QCC60: 0 | QCD60: 0 | QCE60: 0 | QCF60: 0 | QCG60: 0 | QCH60: 0 | QCI60: 0 | QCJ60: 0 | QCK60: 0 | QCL60: 0 | QCM60: 0 | QCN60: 0 | QCO60: 0 | QCP60: 0 | QCQ60: 0 | QCR60: 0 | QCS60: 0 | QCT60: =QCT41 -> 0 | QCU60: 0 | QCV60: 0 | QCW60: 0 | QCX60: 0 | QCY60: 0 | QCZ60: 0 | QDA60: 0 | QDB60: 0 | QDC60: 0 | QDD60: 0 | QDE60: 0 | QDF60: 0 | QDG60: 0 | QDH60: 0 | QDI60: 0 | QDJ60: 0 | QDK60: 0 | QDL60: 0 | QDM60: 0 | QDN60: 0 | QDO60: 0 | QDP60: 0 | QDQ60: 0 | QDR60: 0 | QDS60: 0 | QDT60: 0 | QDU60: 0 | QDV60: 0 | QDW60: 0 | QDX60: 0 | QDY60: 0 | QDZ60: 0 | QEA60: 0 | QEB60: 0 | QEC60: 0 | QED60: 0 | QEE60: 0 | QEF60: 0 | QEG60: 0 | QEH60: 0 | QEI60: 0 | QEJ60: 0 | QEK60: 0 | QEL60: 0 | QEM60: 0 | QEN60: 0 | QEO60: 0 | QEP60: 0 | QEQ60: 0 | QER60: 0 | QES60: 0 | QET60: 0 | QEU60: 0 | QEV60: 0 | QEW60: 0 | QEX60: 0 | QEY60: 0 | QEZ60: 0 | QFA60: 0 | QFB60: 0 | QFC60: 0 | QFD60: 0 | QFE60: 0 | QFF60: =QFF41 -> 0 | QFG60: 0 | QFH60: 0 | QFI60: 0 | QFJ60: 0 | QFK60: 0 | QFL60: 0 | QFM60: 0 | QFN60: 0 | QFO60: 0 | QFP60: 0 | QFQ60: 0 | QFR60: 0 | QFS60: 0 | QFT60: 0 | QFU60: 0 | QFV60: 0 | QFW60: 0 | QFX60: 0 | QFY60: 0 | QFZ60: 0 | QGA60: 0 | QGB60: 0 | QGC60: 0 | QGD60: 0 | QGE60: 0 | QGF60: 0 | QGG60: 0 | QGH60: 0 | QGI60: 0 | QGJ60: 0 | QGK60: 0 | QGL60: 0 | QGM60: 0 | QGN60: 0 | QGO60: 0 | QGP60: 0 | QGQ60: 0 | QGR60: 0 | QGS60: 0 | QGT60: 0 | QGU60: 0 | QGV60: 0 | QGW60: 0 | QGX60: 0 | QGY60: 0 | QGZ60: 0 | QHA60: 0 | QHB60: 0 | QHC60: 0 | QHD60: 0 | QHE60: 0 | QHF60: 0 | QHG60: 0 | QHH60: 0 | QHI60: 0 | QHJ60: 0 | QHK60: 0 | QHL60: 0 | QHM60: 0 | QHN60: 0 | QHO60: 0 | QHP60: 0 | QHQ60: 0 | QHR60: =QHR41 -> 0 | QHS60: 0 | QHT60: 0 | QHU60: 0 | QHV60: 0 | QHW60: 0 | QHX60: 0 | QHY60: 0 | QHZ60: 0 | QIA60: 0 | QIB60: 0 | QIC60: 0 | QID60: 0 | QIE60: 0 | QIF60: 0 | QIG60: 0 | QIH60: 0 | QII60: 0 | QIJ60: 0 | QIK60: 0 | QIL60: 0 | QIM60: 0 | QIN60: 0 | QIO60: 0 | QIP60: 0 | QIQ60: 0 | QIR60: 0 | QIS60: 0 | QIT60: 0 | QIU60: 0 | QIV60: 0 | QIW60: 0 | QIX60: 0 | QIY60: 0 | QIZ60: 0 | QJA60: 0 | QJB60: 0 | QJC60: 0 | QJD60: 0 | QJE60: 0 | QJF60: 0 | QJG60: 0 | QJH60: 0 | QJI60: 0 | QJJ60: 0 | QJK60: 0 | QJL60: 0 | QJM60: 0 | QJN60: 0 | QJO60: 0 | QJP60: 0 | QJQ60: 0 | QJR60: 0 | QJS60: 0 | QJT60: 0 | QJU60: 0 | QJV60: 0 | QJW60: 0 | QJX60: 0 | QJY60: 0 | QJZ60: 0 | QKA60: 0 | QKB60: 0 | QKC60: 0 | QKD60: =QKD41 -> 0 | QKE60: 0 | QKF60: 0 | QKG60: 0 | QKH60: 0 | QKI60: 0 | QKJ60: 0 | QKK60: 0 | QKL60: 0 | QKM60: 0 | QKN60: 0 | QKO60: 0 | QKP60: 0 | QKQ60: 0 | QKR60: 0 | QKS60: 0 | QKT60: 0 | QKU60: 0 | QKV60: 0 | QKW60: 0 | QKX60: 0 | QKY60: 0 | QKZ60: 0 | QLA60: 0 | QLB60: 0 | QLC60: 0 | QLD60: 0 | QLE60: 0 | QLF60: 0 | QLG60: 0 | QLH60: 0 | QLI60: 0 | QLJ60: 0 | QLK60: 0 | QLL60: 0 | QLM60: 0 | QLN60: 0 | QLO60: 0 | QLP60: 0 | QLQ60: 0 | QLR60: 0 | QLS60: 0 | QLT60: 0 | QLU60: 0 | QLV60: 0 | QLW60: 0 | QLX60: 0 | QLY60: 0 | QLZ60: 0 | QMA60: 0 | QMB60: 0 | QMC60: 0 | QMD60: 0 | QME60: 0 | QMF60: 0 | QMG60: 0 | QMH60: 0 | QMI60: 0 | QMJ60: 0 | QMK60: 0 | QML60: 0 | QMM60: 0 | QMN60: 0 | QMO60: 0 | QMP60: =QMP41 -> 0 | QMQ60: 0 | QMR60: 0 | QMS60: 0 | QMT60: 0 | QMU60: 0 | QMV60: 0 | QMW60: 0 | QMX60: 0 | QMY60: 0 | QMZ60: 0 | QNA60: 0 | QNB60: 0 | QNC60: 0 | QND60: 0 | QNE60: 0 | QNF60: 0 | QNG60: 0 | QNH60: 0 | QNI60: 0 | QNJ60: 0 | QNK60: 0 | QNL60: 0 | QNM60: 0 | QNN60: 0 | QNO60: 0 | QNP60: 0 | QNQ60: 0 | QNR60: 0 | QNS60: 0 | QNT60: 0 | QNU60: 0 | QNV60: 0 | QNW60: 0 | QNX60: 0 | QNY60: 0 | QNZ60: 0 | QOA60: 0 | QOB60: 0 | QOC60: 0 | QOD60: 0 | QOE60: 0 | QOF60: 0 | QOG60: 0 | QOH60: 0 | QOI60: 0 | QOJ60: 0 | QOK60: 0 | QOL60: 0 | QOM60: 0 | QON60: 0 | QOO60: 0 | QOP60: 0 | QOQ60: 0 | QOR60: 0 | QOS60: 0 | QOT60: 0 | QOU60: 0 | QOV60: 0 | QOW60: 0 | QOX60: 0 | QOY60: 0 | QOZ60: 0 | QPA60: 0 | QPB60: =QPB41 -> 0 | QPC60: 0 | QPD60: 0 | QPE60: 0 | QPF60: 0 | QPG60: 0 | QPH60: 0 | QPI60: 0 | QPJ60: 0 | QPK60: 0 | QPL60: 0 | QPM60: 0 | QPN60: 0 | QPO60: 0 | QPP60: 0 | QPQ60: 0 | QPR60: 0 | QPS60: 0 | QPT60: 0 | QPU60: 0 | QPV60: 0 | QPW60: 0 | QPX60: 0 | QPY60: 0 | QPZ60: 0 | QQA60: 0 | QQB60: 0 | QQC60: 0 | QQD60: 0 | QQE60: 0 | QQF60: 0 | QQG60: 0 | QQH60: 0 | QQI60: 0 | QQJ60: 0 | QQK60: 0 | QQL60: 0 | QQM60: 0 | QQN60: 0 | QQO60: 0 | QQP60: 0 | QQQ60: 0 | QQR60: 0 | QQS60: 0 | QQT60: 0 | QQU60: 0 | QQV60: 0 | QQW60: 0 | QQX60: 0 | QQY60: 0 | QQZ60: 0 | QRA60: 0 | QRB60: 0 | QRC60: 0 | QRD60: 0 | QRE60: 0 | QRF60: 0 | QRG60: 0 | QRH60: 0 | QRI60: 0 | QRJ60: 0 | QRK60: 0 | QRL60: 0 | QRM60: 0 | QRN60: =QRN41 -> 0 | QRO60: 0 | QRP60: 0 | QRQ60: 0 | QRR60: 0 | QRS60: 0 | QRT60: 0 | QRU60: 0 | QRV60: 0 | QRW60: 0 | QRX60: 0 | QRY60: 0 | QRZ60: 0 | QSA60: 0 | QSB60: 0 | QSC60: 0 | QSD60: 0 | QSE60: 0 | QSF60: 0 | QSG60: 0 | QSH60: 0 | QSI60: 0 | QSJ60: 0 | QSK60: 0 | QSL60: 0 | QSM60: 0 | QSN60: 0 | QSO60: 0 | QSP60: 0 | QSQ60: 0 | QSR60: 0 | QSS60: 0 | QST60: 0 | QSU60: 0 | QSV60: 0 | QSW60: 0 | QSX60: 0 | QSY60: 0 | QSZ60: 0 | QTA60: 0 | QTB60: 0 | QTC60: 0 | QTD60: 0 | QTE60: 0 | QTF60: 0 | QTG60: 0 | QTH60: 0 | QTI60: 0 | QTJ60: 0 | QTK60: 0 | QTL60: 0 | QTM60: 0 | QTN60: 0 | QTO60: 0 | QTP60: 0 | QTQ60: 0 | QTR60: 0 | QTS60: 0 | QTT60: 0 | QTU60: 0 | QTV60: 0 | QTW60: 0 | QTX60: 0 | QTY60: 0 | QTZ60: =QTZ41 -> 0 | QUA60: 0 | QUB60: 0 | QUC60: 0 | QUD60: 0 | QUE60: 0 | QUF60: 0 | QUG60: 0 | QUH60: 0 | QUI60: 0 | QUJ60: 0 | QUK60: 0 | QUL60: 0 | QUM60: 0 | QUN60: 0 | QUO60: 0 | QUP60: 0 | QUQ60: 0 | QUR60: 0 | QUS60: 0 | QUT60: 0 | QUU60: 0 | QUV60: 0 | QUW60: 0 | QUX60: 0 | QUY60: 0 | QUZ60: 0 | QVA60: 0 | QVB60: 0 | QVC60: 0 | QVD60: 0 | QVE60: 0 | QVF60: 0 | QVG60: 0 | QVH60: 0 | QVI60: 0 | QVJ60: 0 | QVK60: 0 | QVL60: 0 | QVM60: 0 | QVN60: 0 | QVO60: 0 | QVP60: 0 | QVQ60: 0 | QVR60: 0 | QVS60: 0 | QVT60: 0 | QVU60: 0 | QVV60: 0 | QVW60: 0 | QVX60: 0 | QVY60: 0 | QVZ60: 0 | QWA60: 0 | QWB60: 0 | QWC60: 0 | QWD60: 0 | QWE60: 0 | QWF60: 0 | QWG60: 0 | QWH60: 0 | QWI60: 0 | QWJ60: 0 | QWK60: 0 | QWL60: =QWL41 -> 0 | QWM60: 0 | QWN60: 0 | QWO60: 0 | QWP60: 0 | QWQ60: 0 | QWR60: 0 | QWS60: 0 | QWT60: 0 | QWU60: 0 | QWV60: 0 | QWW60: 0 | QWX60: 0 | QWY60: 0 | QWZ60: 0 | QXA60: 0 | QXB60: 0 | QXC60: 0 | QXD60: 0 | QXE60: 0 | QXF60: 0 | QXG60: 0 | QXH60: 0 | QXI60: 0 | QXJ60: 0 | QXK60: 0 | QXL60: 0 | QXM60: 0 | QXN60: 0 | QXO60: 0 | QXP60: 0 | QXQ60: 0 | QXR60: 0 | QXS60: 0 | QXT60: 0 | QXU60: 0 | QXV60: 0 | QXW60: 0 | QXX60: 0 | QXY60: 0 | QXZ60: 0 | QYA60: 0 | QYB60: 0 | QYC60: 0 | QYD60: 0 | QYE60: 0 | QYF60: 0 | QYG60: 0 | QYH60: 0 | QYI60: 0 | QYJ60: 0 | QYK60: 0 | QYL60: 0 | QYM60: 0 | QYN60: 0 | QYO60: 0 | QYP60: 0 | QYQ60: 0 | QYR60: 0 | QYS60: 0 | QYT60: 0 | QYU60: 0 | QYV60: 0 | QYW60: 0 | QYX60: =QYX41 -> 0 | QYY60: 0 | QYZ60: 0 | QZA60: 0 | QZB60: 0 | QZC60: 0 | QZD60: 0 | QZE60: 0 | QZF60: 0 | QZG60: 0 | QZH60: 0 | QZI60: 0 | QZJ60: 0 | QZK60: 0 | QZL60: 0 | QZM60: 0 | QZN60: 0 | QZO60: 0 | QZP60: 0 | QZQ60: 0 | QZR60: 0 | QZS60: 0 | QZT60: 0 | QZU60: 0 | QZV60: 0 | QZW60: 0 | QZX60: 0 | QZY60: 0 | QZZ60: 0 | RAA60: 0 | RAB60: 0 | RAC60: 0 | RAD60: 0 | RAE60: 0 | RAF60: 0 | RAG60: 0 | RAH60: 0 | RAI60: 0 | RAJ60: 0 | RAK60: 0 | RAL60: 0 | RAM60: 0 | RAN60: 0 | RAO60: 0 | RAP60: 0 | RAQ60: 0 | RAR60: 0 | RAS60: 0 | RAT60: 0 | RAU60: 0 | RAV60: 0 | RAW60: 0 | RAX60: 0 | RAY60: 0 | RAZ60: 0 | RBA60: 0 | RBB60: 0 | RBC60: 0 | RBD60: 0 | RBE60: 0 | RBF60: 0 | RBG60: 0 | RBH60: 0 | RBI60: 0 | RBJ60: =RBJ41 -> 0 | RBK60: 0 | RBL60: 0 | RBM60: 0 | RBN60: 0 | RBO60: 0 | RBP60: 0 | RBQ60: 0 | RBR60: 0 | RBS60: 0 | RBT60: 0 | RBU60: 0 | RBV60: 0 | RBW60: 0 | RBX60: 0 | RBY60: 0 | RBZ60: 0 | RCA60: 0 | RCB60: 0 | RCC60: 0 | RCD60: 0 | RCE60: 0 | RCF60: 0 | RCG60: 0 | RCH60: 0 | RCI60: 0 | RCJ60: 0 | RCK60: 0 | RCL60: 0 | RCM60: 0 | RCN60: 0 | RCO60: 0 | RCP60: 0 | RCQ60: 0 | RCR60: 0 | RCS60: 0 | RCT60: 0 | RCU60: 0 | RCV60: 0 | RCW60: 0 | RCX60: 0 | RCY60: 0 | RCZ60: 0 | RDA60: 0 | RDB60: 0 | RDC60: 0 | RDD60: 0 | RDE60: 0 | RDF60: 0 | RDG60: 0 | RDH60: 0 | RDI60: 0 | RDJ60: 0 | RDK60: 0 | RDL60: 0 | RDM60: 0 | RDN60: 0 | RDO60: 0 | RDP60: 0 | RDQ60: 0 | RDR60: 0 | RDS60: 0 | RDT60: 0 | RDU60: 0 | RDV60: =RDV41 -> 0 | RDW60: 0 | RDX60: 0 | RDY60: 0 | RDZ60: 0 | REA60: 0 | REB60: 0 | REC60: 0 | RED60: 0 | REE60: 0 | REF60: 0 | REG60: 0 | REH60: 0 | REI60: 0 | REJ60: 0 | REK60: 0 | REL60: 0 | REM60: 0 | REN60: 0 | REO60: 0 | REP60: 0 | REQ60: 0 | RER60: 0 | RES60: 0 | RET60: 0 | REU60: 0 | REV60: 0 | REW60: 0 | REX60: 0 | REY60: 0 | REZ60: 0 | RFA60: 0 | RFB60: 0 | RFC60: 0 | RFD60: 0 | RFE60: 0 | RFF60: 0 | RFG60: 0 | RFH60: 0 | RFI60: 0 | RFJ60: 0 | RFK60: 0 | RFL60: 0 | RFM60: 0 | RFN60: 0 | RFO60: 0 | RFP60: 0 | RFQ60: 0 | RFR60: 0 | RFS60: 0 | RFT60: 0 | RFU60: 0 | RFV60: 0 | RFW60: 0 | RFX60: 0 | RFY60: 0 | RFZ60: 0 | RGA60: 0 | RGB60: 0 | RGC60: 0 | RGD60: 0 | RGE60: 0 | RGF60: 0 | RGG60: 0 | RGH60: =RGH41 -> 0 | RGI60: 0 | RGJ60: 0 | RGK60: 0 | RGL60: 0 | RGM60: 0 | RGN60: 0 | RGO60: 0 | RGP60: 0 | RGQ60: 0 | RGR60: 0 | RGS60: 0 | RGT60: 0 | RGU60: 0 | RGV60: 0 | RGW60: 0 | RGX60: 0 | RGY60: 0 | RGZ60: 0 | RHA60: 0 | RHB60: 0 | RHC60: 0 | RHD60: 0 | RHE60: 0 | RHF60: 0 | RHG60: 0 | RHH60: 0 | RHI60: 0 | RHJ60: 0 | RHK60: 0 | RHL60: 0 | RHM60: 0 | RHN60: 0 | RHO60: 0 | RHP60: 0 | RHQ60: 0 | RHR60: 0 | RHS60: 0 | RHT60: 0 | RHU60: 0 | RHV60: 0 | RHW60: 0 | RHX60: 0 | RHY60: 0 | RHZ60: 0 | RIA60: 0 | RIB60: 0 | RIC60: 0 | RID60: 0 | RIE60: 0 | RIF60: 0 | RIG60: 0 | RIH60: 0 | RII60: 0 | RIJ60: 0 | RIK60: 0 | RIL60: 0 | RIM60: 0 | RIN60: 0 | RIO60: 0 | RIP60: 0 | RIQ60: 0 | RIR60: 0 | RIS60: 0 | RIT60: =RIT41 -> 0 | RIU60: 0 | RIV60: 0 | RIW60: 0 | RIX60: 0 | RIY60: 0 | RIZ60: 0 | RJA60: 0 | RJB60: 0 | RJC60: 0 | RJD60: 0 | RJE60: 0 | RJF60: 0 | RJG60: 0 | RJH60: 0 | RJI60: 0 | RJJ60: 0 | RJK60: 0 | RJL60: 0 | RJM60: 0 | RJN60: 0 | RJO60: 0 | RJP60: 0 | RJQ60: 0 | RJR60: 0 | RJS60: 0 | RJT60: 0 | RJU60: 0 | RJV60: 0 | RJW60: 0 | RJX60: 0 | RJY60: 0 | RJZ60: 0 | RKA60: 0 | RKB60: 0 | RKC60: 0 | RKD60: 0 | RKE60: 0 | RKF60: 0 | RKG60: 0 | RKH60: 0 | RKI60: 0 | RKJ60: 0 | RKK60: 0 | RKL60: 0 | RKM60: 0 | RKN60: 0 | RKO60: 0 | RKP60: 0 | RKQ60: 0 | RKR60: 0 | RKS60: 0 | RKT60: 0 | RKU60: 0 | RKV60: 0 | RKW60: 0 | RKX60: 0 | RKY60: 0 | RKZ60: 0 | RLA60: 0 | RLB60: 0 | RLC60: 0 | RLD60: 0 | RLE60: 0 | RLF60: =RLF41 -> 0 | RLG60: 0 | RLH60: 0 | RLI60: 0 | RLJ60: 0 | RLK60: 0 | RLL60: 0 | RLM60: 0 | RLN60: 0 | RLO60: 0 | RLP60: 0 | RLQ60: 0 | RLR60: 0 | RLS60: 0 | RLT60: 0 | RLU60: 0 | RLV60: 0 | RLW60: 0 | RLX60: 0 | RLY60: 0 | RLZ60: 0 | RMA60: 0 | RMB60: 0 | RMC60: 0 | RMD60: 0 | RME60: 0 | RMF60: 0 | RMG60: 0 | RMH60: 0 | RMI60: 0 | RMJ60: 0 | RMK60: 0 | RML60: 0 | RMM60: 0 | RMN60: 0 | RMO60: 0 | RMP60: 0 | RMQ60: 0 | RMR60: 0 | RMS60: 0 | RMT60: 0 | RMU60: 0 | RMV60: 0 | RMW60: 0 | RMX60: 0 | RMY60: 0 | RMZ60: 0 | RNA60: 0 | RNB60: 0 | RNC60: 0 | RND60: 0 | RNE60: 0 | RNF60: 0 | RNG60: 0 | RNH60: 0 | RNI60: 0 | RNJ60: 0 | RNK60: 0 | RNL60: 0 | RNM60: 0 | RNN60: 0 | RNO60: 0 | RNP60: 0 | RNQ60: 0 | RNR60: =RNR41 -> 0 | RNS60: 0 | RNT60: 0 | RNU60: 0 | RNV60: 0 | RNW60: 0 | RNX60: 0 | RNY60: 0 | RNZ60: 0 | ROA60: 0 | ROB60: 0 | ROC60: 0 | ROD60: 0 | ROE60: 0 | ROF60: 0 | ROG60: 0 | ROH60: 0 | ROI60: 0 | ROJ60: 0 | ROK60: 0 | ROL60: 0 | ROM60: 0 | RON60: 0 | ROO60: 0 | ROP60: 0 | ROQ60: 0 | ROR60: 0 | ROS60: 0 | ROT60: 0 | ROU60: 0 | ROV60: 0 | ROW60: 0 | ROX60: 0 | ROY60: 0 | ROZ60: 0 | RPA60: 0 | RPB60: 0 | RPC60: 0 | RPD60: 0 | RPE60: 0 | RPF60: 0 | RPG60: 0 | RPH60: 0 | RPI60: 0 | RPJ60: 0 | RPK60: 0 | RPL60: 0 | RPM60: 0 | RPN60: 0 | RPO60: 0 | RPP60: 0 | RPQ60: 0 | RPR60: 0 | RPS60: 0 | RPT60: 0 | RPU60: 0 | RPV60: 0 | RPW60: 0 | RPX60: 0 | RPY60: 0 | RPZ60: 0 | RQA60: 0 | RQB60: 0 | RQC60: 0 | RQD60: =RQD41 -> 0 | RQE60: 0 | RQF60: 0 | RQG60: 0 | RQH60: 0 | RQI60: 0 | RQJ60: 0 | RQK60: 0 | RQL60: 0 | RQM60: 0 | RQN60: 0 | RQO60: 0 | RQP60: 0 | RQQ60: 0 | RQR60: 0 | RQS60: 0 | RQT60: 0 | RQU60: 0 | RQV60: 0 | RQW60: 0 | RQX60: 0 | RQY60: 0 | RQZ60: 0 | RRA60: 0 | RRB60: 0 | RRC60: 0 | RRD60: 0 | RRE60: 0 | RRF60: 0 | RRG60: 0 | RRH60: 0 | RRI60: 0 | RRJ60: 0 | RRK60: 0 | RRL60: 0 | RRM60: 0 | RRN60: 0 | RRO60: 0 | RRP60: 0 | RRQ60: 0 | RRR60: 0 | RRS60: 0 | RRT60: 0 | RRU60: 0 | RRV60: 0 | RRW60: 0 | RRX60: 0 | RRY60: 0 | RRZ60: 0 | RSA60: 0 | RSB60: 0 | RSC60: 0 | RSD60: 0 | RSE60: 0 | RSF60: 0 | RSG60: 0 | RSH60: 0 | RSI60: 0 | RSJ60: 0 | RSK60: 0 | RSL60: 0 | RSM60: 0 | RSN60: 0 | RSO60: 0 | RSP60: =RSP41 -> 0 | RSQ60: 0 | RSR60: 0 | RSS60: 0 | RST60: 0 | RSU60: 0 | RSV60: 0 | RSW60: 0 | RSX60: 0 | RSY60: 0 | RSZ60: 0 | RTA60: 0 | RTB60: 0 | RTC60: 0 | RTD60: 0 | RTE60: 0 | RTF60: 0 | RTG60: 0 | RTH60: 0 | RTI60: 0 | RTJ60: 0 | RTK60: 0 | RTL60: 0 | RTM60: 0 | RTN60: 0 | RTO60: 0 | RTP60: 0 | RTQ60: 0 | RTR60: 0 | RTS60: 0 | RTT60: 0 | RTU60: 0 | RTV60: 0 | RTW60: 0 | RTX60: 0 | RTY60: 0 | RTZ60: 0 | RUA60: 0 | RUB60: 0 | RUC60: 0 | RUD60: 0 | RUE60: 0 | RUF60: 0 | RUG60: 0 | RUH60: 0 | RUI60: 0 | RUJ60: 0 | RUK60: 0 | RUL60: 0 | RUM60: 0 | RUN60: 0 | RUO60: 0 | RUP60: 0 | RUQ60: 0 | RUR60: 0 | RUS60: 0 | RUT60: 0 | RUU60: 0 | RUV60: 0 | RUW60: 0 | RUX60: 0 | RUY60: 0 | RUZ60: 0 | RVA60: 0 | RVB60: =RVB41 -> 0 | RVC60: 0 | RVD60: 0 | RVE60: 0 | RVF60: 0 | RVG60: 0 | RVH60: 0 | RVI60: 0 | RVJ60: 0 | RVK60: 0 | RVL60: 0 | RVM60: 0 | RVN60: 0 | RVO60: 0 | RVP60: 0 | RVQ60: 0 | RVR60: 0 | RVS60: 0 | RVT60: 0 | RVU60: 0 | RVV60: 0 | RVW60: 0 | RVX60: 0 | RVY60: 0 | RVZ60: 0 | RWA60: 0 | RWB60: 0 | RWC60: 0 | RWD60: 0 | RWE60: 0 | RWF60: 0 | RWG60: 0 | RWH60: 0 | RWI60: 0 | RWJ60: 0 | RWK60: 0 | RWL60: 0 | RWM60: 0 | RWN60: 0 | RWO60: 0 | RWP60: 0 | RWQ60: 0 | RWR60: 0 | RWS60: 0 | RWT60: 0 | RWU60: 0 | RWV60: 0 | RWW60: 0 | RWX60: 0 | RWY60: 0 | RWZ60: 0 | RXA60: 0 | RXB60: 0 | RXC60: 0 | RXD60: 0 | RXE60: 0 | RXF60: 0 | RXG60: 0 | RXH60: 0 | RXI60: 0 | RXJ60: 0 | RXK60: 0 | RXL60: 0 | RXM60: 0 | RXN60: =RXN41 -> 0 | RXO60: 0 | RXP60: 0 | RXQ60: 0 | RXR60: 0 | RXS60: 0 | RXT60: 0 | RXU60: 0 | RXV60: 0 | RXW60: 0 | RXX60: 0 | RXY60: 0 | RXZ60: 0 | RYA60: 0 | RYB60: 0 | RYC60: 0 | RYD60: 0 | RYE60: 0 | RYF60: 0 | RYG60: 0 | RYH60: 0 | RYI60: 0 | RYJ60: 0 | RYK60: 0 | RYL60: 0 | RYM60: 0 | RYN60: 0 | RYO60: 0 | RYP60: 0 | RYQ60: 0 | RYR60: 0 | RYS60: 0 | RYT60: 0 | RYU60: 0 | RYV60: 0 | RYW60: 0 | RYX60: 0 | RYY60: 0 | RYZ60: 0 | RZA60: 0 | RZB60: 0 | RZC60: 0 | RZD60: 0 | RZE60: 0 | RZF60: 0 | RZG60: 0 | RZH60: 0 | RZI60: 0 | RZJ60: 0 | RZK60: 0 | RZL60: 0 | RZM60: 0 | RZN60: 0 | RZO60: 0 | RZP60: 0 | RZQ60: 0 | RZR60: 0 | RZS60: 0 | RZT60: 0 | RZU60: 0 | RZV60: 0 | RZW60: 0 | RZX60: 0 | RZY60: 0 | RZZ60: =RZZ41 -> 0 | SAA60: 0 | SAB60: 0 | SAC60: 0 | SAD60: 0 | SAE60: 0 | SAF60: 0 | SAG60: 0 | SAH60: 0 | SAI60: 0 | SAJ60: 0 | SAK60: 0 | SAL60: 0 | SAM60: 0 | SAN60: 0 | SAO60: 0 | SAP60: 0 | SAQ60: 0 | SAR60: 0 | SAS60: 0 | SAT60: 0 | SAU60: 0 | SAV60: 0 | SAW60: 0 | SAX60: 0 | SAY60: 0 | SAZ60: 0 | SBA60: 0 | SBB60: 0 | SBC60: 0 | SBD60: 0 | SBE60: 0 | SBF60: 0 | SBG60: 0 | SBH60: 0 | SBI60: 0 | SBJ60: 0 | SBK60: 0 | SBL60: 0 | SBM60: 0 | SBN60: 0 | SBO60: 0 | SBP60: 0 | SBQ60: 0 | SBR60: 0 | SBS60: 0 | SBT60: 0 | SBU60: 0 | SBV60: 0 | SBW60: 0 | SBX60: 0 | SBY60: 0 | SBZ60: 0 | SCA60: 0 | SCB60: 0 | SCC60: 0 | SCD60: 0 | SCE60: 0 | SCF60: 0 | SCG60: 0 | SCH60: 0 | SCI60: 0 | SCJ60: 0 | SCK60: 0 | SCL60: =SCL41 -> 0 | SCM60: 0 | SCN60: 0 | SCO60: 0 | SCP60: 0 | SCQ60: 0 | SCR60: 0 | SCS60: 0 | SCT60: 0 | SCU60: 0 | SCV60: 0 | SCW60: 0 | SCX60: 0 | SCY60: 0 | SCZ60: 0 | SDA60: 0 | SDB60: 0 | SDC60: 0 | SDD60: 0 | SDE60: 0 | SDF60: 0 | SDG60: 0 | SDH60: 0 | SDI60: 0 | SDJ60: 0 | SDK60: 0 | SDL60: 0 | SDM60: 0 | SDN60: 0 | SDO60: 0 | SDP60: 0 | SDQ60: 0 | SDR60: 0 | SDS60: 0 | SDT60: 0 | SDU60: 0 | SDV60: 0 | SDW60: 0 | SDX60: 0 | SDY60: 0 | SDZ60: 0 | SEA60: 0 | SEB60: 0 | SEC60: 0 | SED60: 0 | SEE60: 0 | SEF60: 0 | SEG60: 0 | SEH60: 0 | SEI60: 0 | SEJ60: 0 | SEK60: 0 | SEL60: 0 | SEM60: 0 | SEN60: 0 | SEO60: 0 | SEP60: 0 | SEQ60: 0 | SER60: 0 | SES60: 0 | SET60: 0 | SEU60: 0 | SEV60: 0 | SEW60: 0 | SEX60: =SEX41 -> 0 | SEY60: 0 | SEZ60: 0 | SFA60: 0 | SFB60: 0 | SFC60: 0 | SFD60: 0 | SFE60: 0 | SFF60: 0 | SFG60: 0 | SFH60: 0 | SFI60: 0 | SFJ60: 0 | SFK60: 0 | SFL60: 0 | SFM60: 0 | SFN60: 0 | SFO60: 0 | SFP60: 0 | SFQ60: 0 | SFR60: 0 | SFS60: 0 | SFT60: 0 | SFU60: 0 | SFV60: 0 | SFW60: 0 | SFX60: 0 | SFY60: 0 | SFZ60: 0 | SGA60: 0 | SGB60: 0 | SGC60: 0 | SGD60: 0 | SGE60: 0 | SGF60: 0 | SGG60: 0 | SGH60: 0 | SGI60: 0 | SGJ60: 0 | SGK60: 0 | SGL60: 0 | SGM60: 0 | SGN60: 0 | SGO60: 0 | SGP60: 0 | SGQ60: 0 | SGR60: 0 | SGS60: 0 | SGT60: 0 | SGU60: 0 | SGV60: 0 | SGW60: 0 | SGX60: 0 | SGY60: 0 | SGZ60: 0 | SHA60: 0 | SHB60: 0 | SHC60: 0 | SHD60: 0 | SHE60: 0 | SHF60: 0 | SHG60: 0 | SHH60: 0 | SHI60: 0 | SHJ60: =SHJ41 -> 0 | SHK60: 0 | SHL60: 0 | SHM60: 0 | SHN60: 0 | SHO60: 0 | SHP60: 0 | SHQ60: 0 | SHR60: 0 | SHS60: 0 | SHT60: 0 | SHU60: 0 | SHV60: 0 | SHW60: 0 | SHX60: 0 | SHY60: 0 | SHZ60: 0 | SIA60: 0 | SIB60: 0 | SIC60: 0 | SID60: 0 | SIE60: 0 | SIF60: 0 | SIG60: 0 | SIH60: 0 | SII60: 0 | SIJ60: 0 | SIK60: 0 | SIL60: 0 | SIM60: 0 | SIN60: 0 | SIO60: 0 | SIP60: 0 | SIQ60: 0 | SIR60: 0 | SIS60: 0 | SIT60: 0 | SIU60: 0 | SIV60: 0 | SIW60: 0 | SIX60: 0 | SIY60: 0 | SIZ60: 0 | SJA60: 0 | SJB60: 0 | SJC60: 0 | SJD60: 0 | SJE60: 0 | SJF60: 0 | SJG60: 0 | SJH60: 0 | SJI60: 0 | SJJ60: 0 | SJK60: 0 | SJL60: 0 | SJM60: 0 | SJN60: 0 | SJO60: 0 | SJP60: 0 | SJQ60: 0 | SJR60: 0 | SJS60: 0 | SJT60: 0 | SJU60: 0 | SJV60: =SJV41 -> 0 | SJW60: 0 | SJX60: 0 | SJY60: 0 | SJZ60: 0 | SKA60: 0 | SKB60: 0 | SKC60: 0 | SKD60: 0 | SKE60: 0 | SKF60: 0 | SKG60: 0 | SKH60: 0 | SKI60: 0 | SKJ60: 0 | SKK60: 0 | SKL60: 0 | SKM60: 0 | SKN60: 0 | SKO60: 0 | SKP60: 0 | SKQ60: 0 | SKR60: 0 | SKS60: 0 | SKT60: 0 | SKU60: 0 | SKV60: 0 | SKW60: 0 | SKX60: 0 | SKY60: 0 | SKZ60: 0 | SLA60: 0 | SLB60: 0 | SLC60: 0 | SLD60: 0 | SLE60: 0 | SLF60: 0 | SLG60: 0 | SLH60: 0 | SLI60: 0 | SLJ60: 0 | SLK60: 0 | SLL60: 0 | SLM60: 0 | SLN60: 0 | SLO60: 0 | SLP60: 0 | SLQ60: 0 | SLR60: 0 | SLS60: 0 | SLT60: 0 | SLU60: 0 | SLV60: 0 | SLW60: 0 | SLX60: 0 | SLY60: 0 | SLZ60: 0 | SMA60: 0 | SMB60: 0 | SMC60: 0 | SMD60: 0 | SME60: 0 | SMF60: 0 | SMG60: 0 | SMH60: =SMH41 -> 0 | SMI60: 0 | SMJ60: 0 | SMK60: 0 | SML60: 0 | SMM60: 0 | SMN60: 0 | SMO60: 0 | SMP60: 0 | SMQ60: 0 | SMR60: 0 | SMS60: 0 | SMT60: 0 | SMU60: 0 | SMV60: 0 | SMW60: 0 | SMX60: 0 | SMY60: 0 | SMZ60: 0 | SNA60: 0 | SNB60: 0 | SNC60: 0 | SND60: 0 | SNE60: 0 | SNF60: 0 | SNG60: 0 | SNH60: 0 | SNI60: 0 | SNJ60: 0 | SNK60: 0 | SNL60: 0 | SNM60: 0 | SNN60: 0 | SNO60: 0 | SNP60: 0 | SNQ60: 0 | SNR60: 0 | SNS60: 0 | SNT60: 0 | SNU60: 0 | SNV60: 0 | SNW60: 0 | SNX60: 0 | SNY60: 0 | SNZ60: 0 | SOA60: 0 | SOB60: 0 | SOC60: 0 | SOD60: 0 | SOE60: 0 | SOF60: 0 | SOG60: 0 | SOH60: 0 | SOI60: 0 | SOJ60: 0 | SOK60: 0 | SOL60: 0 | SOM60: 0 | SON60: 0 | SOO60: 0 | SOP60: 0 | SOQ60: 0 | SOR60: 0 | SOS60: 0 | SOT60: =SOT41 -> 0 | SOU60: 0 | SOV60: 0 | SOW60: 0 | SOX60: 0 | SOY60: 0 | SOZ60: 0 | SPA60: 0 | SPB60: 0 | SPC60: 0 | SPD60: 0 | SPE60: 0 | SPF60: 0 | SPG60: 0 | SPH60: 0 | SPI60: 0 | SPJ60: 0 | SPK60: 0 | SPL60: 0 | SPM60: 0 | SPN60: 0 | SPO60: 0 | SPP60: 0 | SPQ60: 0 | SPR60: 0 | SPS60: 0 | SPT60: 0 | SPU60: 0 | SPV60: 0 | SPW60: 0 | SPX60: 0 | SPY60: 0 | SPZ60: 0 | SQA60: 0 | SQB60: 0 | SQC60: 0 | SQD60: 0 | SQE60: 0 | SQF60: 0 | SQG60: 0 | SQH60: 0 | SQI60: 0 | SQJ60: 0 | SQK60: 0 | SQL60: 0 | SQM60: 0 | SQN60: 0 | SQO60: 0 | SQP60: 0 | SQQ60: 0 | SQR60: 0 | SQS60: 0 | SQT60: 0 | SQU60: 0 | SQV60: 0 | SQW60: 0 | SQX60: 0 | SQY60: 0 | SQZ60: 0 | SRA60: 0 | SRB60: 0 | SRC60: 0 | SRD60: 0 | SRE60: 0 | SRF60: =SRF41 -> 0 | SRG60: 0 | SRH60: 0 | SRI60: 0 | SRJ60: 0 | SRK60: 0 | SRL60: 0 | SRM60: 0 | SRN60: 0 | SRO60: 0 | SRP60: 0 | SRQ60: 0 | SRR60: 0 | SRS60: 0 | SRT60: 0 | SRU60: 0 | SRV60: 0 | SRW60: 0 | SRX60: 0 | SRY60: 0 | SRZ60: 0 | SSA60: 0 | SSB60: 0 | SSC60: 0 | SSD60: 0 | SSE60: 0 | SSF60: 0 | SSG60: 0 | SSH60: 0 | SSI60: 0 | SSJ60: 0 | SSK60: 0 | SSL60: 0 | SSM60: 0 | SSN60: 0 | SSO60: 0 | SSP60: 0 | SSQ60: 0 | SSR60: 0 | SSS60: 0 | SST60: 0 | SSU60: 0 | SSV60: 0 | SSW60: 0 | SSX60: 0 | SSY60: 0 | SSZ60: 0 | STA60: 0 | STB60: 0 | STC60: 0 | STD60: 0 | STE60: 0 | STF60: 0 | STG60: 0 | STH60: 0 | STI60: 0 | STJ60: 0 | STK60: 0 | STL60: 0 | STM60: 0 | STN60: 0 | STO60: 0 | STP60: 0 | STQ60: 0 | STR60: =STR41 -> 0 | STS60: 0 | STT60: 0 | STU60: 0 | STV60: 0 | STW60: 0 | STX60: 0 | STY60: 0 | STZ60: 0 | SUA60: 0 | SUB60: 0 | SUC60: 0 | SUD60: 0 | SUE60: 0 | SUF60: 0 | SUG60: 0 | SUH60: 0 | SUI60: 0 | SUJ60: 0 | SUK60: 0 | SUL60: 0 | SUM60: 0 | SUN60: 0 | SUO60: 0 | SUP60: 0 | SUQ60: 0 | SUR60: 0 | SUS60: 0 | SUT60: 0 | SUU60: 0 | SUV60: 0 | SUW60: 0 | SUX60: 0 | SUY60: 0 | SUZ60: 0 | SVA60: 0 | SVB60: 0 | SVC60: 0 | SVD60: 0 | SVE60: 0 | SVF60: 0 | SVG60: 0 | SVH60: 0 | SVI60: 0 | SVJ60: 0 | SVK60: 0 | SVL60: 0 | SVM60: 0 | SVN60: 0 | SVO60: 0 | SVP60: 0 | SVQ60: 0 | SVR60: 0 | SVS60: 0 | SVT60: 0 | SVU60: 0 | SVV60: 0 | SVW60: 0 | SVX60: 0 | SVY60: 0 | SVZ60: 0 | SWA60: 0 | SWB60: 0 | SWC60: 0 | SWD60: =SWD41 -> 0 | SWE60: 0 | SWF60: 0 | SWG60: 0 | SWH60: 0 | SWI60: 0 | SWJ60: 0 | SWK60: 0 | SWL60: 0 | SWM60: 0 | SWN60: 0 | SWO60: 0 | SWP60: 0 | SWQ60: 0 | SWR60: 0 | SWS60: 0 | SWT60: 0 | SWU60: 0 | SWV60: 0 | SWW60: 0 | SWX60: 0 | SWY60: 0 | SWZ60: 0 | SXA60: 0 | SXB60: 0 | SXC60: 0 | SXD60: 0 | SXE60: 0 | SXF60: 0 | SXG60: 0 | SXH60: 0 | SXI60: 0 | SXJ60: 0 | SXK60: 0 | SXL60: 0 | SXM60: 0 | SXN60: 0 | SXO60: 0 | SXP60: 0 | SXQ60: 0 | SXR60: 0 | SXS60: 0 | SXT60: 0 | SXU60: 0 | SXV60: 0 | SXW60: 0 | SXX60: 0 | SXY60: 0 | SXZ60: 0 | SYA60: 0 | SYB60: 0 | SYC60: 0 | SYD60: 0 | SYE60: 0 | SYF60: 0 | SYG60: 0 | SYH60: 0 | SYI60: 0 | SYJ60: 0 | SYK60: 0 | SYL60: 0 | SYM60: 0 | SYN60: 0 | SYO60: 0 | SYP60: =SYP41 -> 0 | SYQ60: 0 | SYR60: 0 | SYS60: 0 | SYT60: 0 | SYU60: 0 | SYV60: 0 | SYW60: 0 | SYX60: 0 | SYY60: 0 | SYZ60: 0 | SZA60: 0 | SZB60: 0 | SZC60: 0 | SZD60: 0 | SZE60: 0 | SZF60: 0 | SZG60: 0 | SZH60: 0 | SZI60: 0 | SZJ60: 0 | SZK60: 0 | SZL60: 0 | SZM60: 0 | SZN60: 0 | SZO60: 0 | SZP60: 0 | SZQ60: 0 | SZR60: 0 | SZS60: 0 | SZT60: 0 | SZU60: 0 | SZV60: 0 | SZW60: 0 | SZX60: 0 | SZY60: 0 | SZZ60: 0 | TAA60: 0 | TAB60: 0 | TAC60: 0 | TAD60: 0 | TAE60: 0 | TAF60: 0 | TAG60: 0 | TAH60: 0 | TAI60: 0 | TAJ60: 0 | TAK60: 0 | TAL60: 0 | TAM60: 0 | TAN60: 0 | TAO60: 0 | TAP60: 0 | TAQ60: 0 | TAR60: 0 | TAS60: 0 | TAT60: 0 | TAU60: 0 | TAV60: 0 | TAW60: 0 | TAX60: 0 | TAY60: 0 | TAZ60: 0 | TBA60: 0 | TBB60: =TBB41 -> 0 | TBC60: 0 | TBD60: 0 | TBE60: 0 | TBF60: 0 | TBG60: 0 | TBH60: 0 | TBI60: 0 | TBJ60: 0 | TBK60: 0 | TBL60: 0 | TBM60: 0 | TBN60: 0 | TBO60: 0 | TBP60: 0 | TBQ60: 0 | TBR60: 0 | TBS60: 0 | TBT60: 0 | TBU60: 0 | TBV60: 0 | TBW60: 0 | TBX60: 0 | TBY60: 0 | TBZ60: 0 | TCA60: 0 | TCB60: 0 | TCC60: 0 | TCD60: 0 | TCE60: 0 | TCF60: 0 | TCG60: 0 | TCH60: 0 | TCI60: 0 | TCJ60: 0 | TCK60: 0 | TCL60: 0 | TCM60: 0 | TCN60: 0 | TCO60: 0 | TCP60: 0 | TCQ60: 0 | TCR60: 0 | TCS60: 0 | TCT60: 0 | TCU60: 0 | TCV60: 0 | TCW60: 0 | TCX60: 0 | TCY60: 0 | TCZ60: 0 | TDA60: 0 | TDB60: 0 | TDC60: 0 | TDD60: 0 | TDE60: 0 | TDF60: 0 | TDG60: 0 | TDH60: 0 | TDI60: 0 | TDJ60: 0 | TDK60: 0 | TDL60: 0 | TDM60: 0 | TDN60: =TDN41 -> 0 | TDO60: 0 | TDP60: 0 | TDQ60: 0 | TDR60: 0 | TDS60: 0 | TDT60: 0 | TDU60: 0 | TDV60: 0 | TDW60: 0 | TDX60: 0 | TDY60: 0 | TDZ60: 0 | TEA60: 0 | TEB60: 0 | TEC60: 0 | TED60: 0 | TEE60: 0 | TEF60: 0 | TEG60: 0 | TEH60: 0 | TEI60: 0 | TEJ60: 0 | TEK60: 0 | TEL60: 0 | TEM60: 0 | TEN60: 0 | TEO60: 0 | TEP60: 0 | TEQ60: 0 | TER60: 0 | TES60: 0 | TET60: 0 | TEU60: 0 | TEV60: 0 | TEW60: 0 | TEX60: 0 | TEY60: 0 | TEZ60: 0 | TFA60: 0 | TFB60: 0 | TFC60: 0 | TFD60: 0 | TFE60: 0 | TFF60: 0 | TFG60: 0 | TFH60: 0 | TFI60: 0 | TFJ60: 0 | TFK60: 0 | TFL60: 0 | TFM60: 0 | TFN60: 0 | TFO60: 0 | TFP60: 0 | TFQ60: 0 | TFR60: 0 | TFS60: 0 | TFT60: 0 | TFU60: 0 | TFV60: 0 | TFW60: 0 | TFX60: 0 | TFY60: 0 | TFZ60: =TFZ41 -> 0 | TGA60: 0 | TGB60: 0 | TGC60: 0 | TGD60: 0 | TGE60: 0 | TGF60: 0 | TGG60: 0 | TGH60: 0 | TGI60: 0 | TGJ60: 0 | TGK60: 0 | TGL60: 0 | TGM60: 0 | TGN60: 0 | TGO60: 0 | TGP60: 0 | TGQ60: 0 | TGR60: 0 | TGS60: 0 | TGT60: 0 | TGU60: 0 | TGV60: 0 | TGW60: 0 | TGX60: 0 | TGY60: 0 | TGZ60: 0 | THA60: 0 | THB60: 0 | THC60: 0 | THD60: 0 | THE60: 0 | THF60: 0 | THG60: 0 | THH60: 0 | THI60: 0 | THJ60: 0 | THK60: 0 | THL60: 0 | THM60: 0 | THN60: 0 | THO60: 0 | THP60: 0 | THQ60: 0 | THR60: 0 | THS60: 0 | THT60: 0 | THU60: 0 | THV60: 0 | THW60: 0 | THX60: 0 | THY60: 0 | THZ60: 0 | TIA60: 0 | TIB60: 0 | TIC60: 0 | TID60: 0 | TIE60: 0 | TIF60: 0 | TIG60: 0 | TIH60: 0 | TII60: 0 | TIJ60: 0 | TIK60: 0 | TIL60: =TIL41 -> 0 | TIM60: 0 | TIN60: 0 | TIO60: 0 | TIP60: 0 | TIQ60: 0 | TIR60: 0 | TIS60: 0 | TIT60: 0 | TIU60: 0 | TIV60: 0 | TIW60: 0 | TIX60: 0 | TIY60: 0 | TIZ60: 0 | TJA60: 0 | TJB60: 0 | TJC60: 0 | TJD60: 0 | TJE60: 0 | TJF60: 0 | TJG60: 0 | TJH60: 0 | TJI60: 0 | TJJ60: 0 | TJK60: 0 | TJL60: 0 | TJM60: 0 | TJN60: 0 | TJO60: 0 | TJP60: 0 | TJQ60: 0 | TJR60: 0 | TJS60: 0 | TJT60: 0 | TJU60: 0 | TJV60: 0 | TJW60: 0 | TJX60: 0 | TJY60: 0 | TJZ60: 0 | TKA60: 0 | TKB60: 0 | TKC60: 0 | TKD60: 0 | TKE60: 0 | TKF60: 0 | TKG60: 0 | TKH60: 0 | TKI60: 0 | TKJ60: 0 | TKK60: 0 | TKL60: 0 | TKM60: 0 | TKN60: 0 | TKO60: 0 | TKP60: 0 | TKQ60: 0 | TKR60: 0 | TKS60: 0 | TKT60: 0 | TKU60: 0 | TKV60: 0 | TKW60: 0 | TKX60: =TKX41 -> 0 | TKY60: 0 | TKZ60: 0 | TLA60: 0 | TLB60: 0 | TLC60: 0 | TLD60: 0 | TLE60: 0 | TLF60: 0 | TLG60: 0 | TLH60: 0 | TLI60: 0 | TLJ60: 0 | TLK60: 0 | TLL60: 0 | TLM60: 0 | TLN60: 0 | TLO60: 0 | TLP60: 0 | TLQ60: 0 | TLR60: 0 | TLS60: 0 | TLT60: 0 | TLU60: 0 | TLV60: 0 | TLW60: 0 | TLX60: 0 | TLY60: 0 | TLZ60: 0 | TMA60: 0 | TMB60: 0 | TMC60: 0 | TMD60: 0 | TME60: 0 | TMF60: 0 | TMG60: 0 | TMH60: 0 | TMI60: 0 | TMJ60: 0 | TMK60: 0 | TML60: 0 | TMM60: 0 | TMN60: 0 | TMO60: 0 | TMP60: 0 | TMQ60: 0 | TMR60: 0 | TMS60: 0 | TMT60: 0 | TMU60: 0 | TMV60: 0 | TMW60: 0 | TMX60: 0 | TMY60: 0 | TMZ60: 0 | TNA60: 0 | TNB60: 0 | TNC60: 0 | TND60: 0 | TNE60: 0 | TNF60: 0 | TNG60: 0 | TNH60: 0 | TNI60: 0 | TNJ60: =TNJ41 -> 0 | TNK60: 0 | TNL60: 0 | TNM60: 0 | TNN60: 0 | TNO60: 0 | TNP60: 0 | TNQ60: 0 | TNR60: 0 | TNS60: 0 | TNT60: 0 | TNU60: 0 | TNV60: 0 | TNW60: 0 | TNX60: 0 | TNY60: 0 | TNZ60: 0 | TOA60: 0 | TOB60: 0 | TOC60: 0 | TOD60: 0 | TOE60: 0 | TOF60: 0 | TOG60: 0 | TOH60: 0 | TOI60: 0 | TOJ60: 0 | TOK60: 0 | TOL60: 0 | TOM60: 0 | TON60: 0 | TOO60: 0 | TOP60: 0 | TOQ60: 0 | TOR60: 0 | TOS60: 0 | TOT60: 0 | TOU60: 0 | TOV60: 0 | TOW60: 0 | TOX60: 0 | TOY60: 0 | TOZ60: 0 | TPA60: 0 | TPB60: 0 | TPC60: 0 | TPD60: 0 | TPE60: 0 | TPF60: 0 | TPG60: 0 | TPH60: 0 | TPI60: 0 | TPJ60: 0 | TPK60: 0 | TPL60: 0 | TPM60: 0 | TPN60: 0 | TPO60: 0 | TPP60: 0 | TPQ60: 0 | TPR60: 0 | TPS60: 0 | TPT60: 0 | TPU60: 0 | TPV60: =TPV41 -> 0 | TPW60: 0 | TPX60: 0 | TPY60: 0 | TPZ60: 0 | TQA60: 0 | TQB60: 0 | TQC60: 0 | TQD60: 0 | TQE60: 0 | TQF60: 0 | TQG60: 0 | TQH60: 0 | TQI60: 0 | TQJ60: 0 | TQK60: 0 | TQL60: 0 | TQM60: 0 | TQN60: 0 | TQO60: 0 | TQP60: 0 | TQQ60: 0 | TQR60: 0 | TQS60: 0 | TQT60: 0 | TQU60: 0 | TQV60: 0 | TQW60: 0 | TQX60: 0 | TQY60: 0 | TQZ60: 0 | TRA60: 0 | TRB60: 0 | TRC60: 0 | TRD60: 0 | TRE60: 0 | TRF60: 0 | TRG60: 0 | TRH60: 0 | TRI60: 0 | TRJ60: 0 | TRK60: 0 | TRL60: 0 | TRM60: 0 | TRN60: 0 | TRO60: 0 | TRP60: 0 | TRQ60: 0 | TRR60: 0 | TRS60: 0 | TRT60: 0 | TRU60: 0 | TRV60: 0 | TRW60: 0 | TRX60: 0 | TRY60: 0 | TRZ60: 0 | TSA60: 0 | TSB60: 0 | TSC60: 0 | TSD60: 0 | TSE60: 0 | TSF60: 0 | TSG60: 0 | TSH60: =TSH41 -> 0 | TSI60: 0 | TSJ60: 0 | TSK60: 0 | TSL60: 0 | TSM60: 0 | TSN60: 0 | TSO60: 0 | TSP60: 0 | TSQ60: 0 | TSR60: 0 | TSS60: 0 | TST60: 0 | TSU60: 0 | TSV60: 0 | TSW60: 0 | TSX60: 0 | TSY60: 0 | TSZ60: 0 | TTA60: 0 | TTB60: 0 | TTC60: 0 | TTD60: 0 | TTE60: 0 | TTF60: 0 | TTG60: 0 | TTH60: 0 | TTI60: 0 | TTJ60: 0 | TTK60: 0 | TTL60: 0 | TTM60: 0 | TTN60: 0 | TTO60: 0 | TTP60: 0 | TTQ60: 0 | TTR60: 0 | TTS60: 0 | TTT60: 0 | TTU60: 0 | TTV60: 0 | TTW60: 0 | TTX60: 0 | TTY60: 0 | TTZ60: 0 | TUA60: 0 | TUB60: 0 | TUC60: 0 | TUD60: 0 | TUE60: 0 | TUF60: 0 | TUG60: 0 | TUH60: 0 | TUI60: 0 | TUJ60: 0 | TUK60: 0 | TUL60: 0 | TUM60: 0 | TUN60: 0 | TUO60: 0 | TUP60: 0 | TUQ60: 0 | TUR60: 0 | TUS60: 0 | TUT60: =TUT41 -> 0 | TUU60: 0 | TUV60: 0 | TUW60: 0 | TUX60: 0 | TUY60: 0 | TUZ60: 0 | TVA60: 0 | TVB60: 0 | TVC60: 0 | TVD60: 0 | TVE60: 0 | TVF60: 0 | TVG60: 0 | TVH60: 0 | TVI60: 0 | TVJ60: 0 | TVK60: 0 | TVL60: 0 | TVM60: 0 | TVN60: 0 | TVO60: 0 | TVP60: 0 | TVQ60: 0 | TVR60: 0 | TVS60: 0 | TVT60: 0 | TVU60: 0 | TVV60: 0 | TVW60: 0 | TVX60: 0 | TVY60: 0 | TVZ60: 0 | TWA60: 0 | TWB60: 0 | TWC60: 0 | TWD60: 0 | TWE60: 0 | TWF60: 0 | TWG60: 0 | TWH60: 0 | TWI60: 0 | TWJ60: 0 | TWK60: 0 | TWL60: 0 | TWM60: 0 | TWN60: 0 | TWO60: 0 | TWP60: 0 | TWQ60: 0 | TWR60: 0 | TWS60: 0 | TWT60: 0 | TWU60: 0 | TWV60: 0 | TWW60: 0 | TWX60: 0 | TWY60: 0 | TWZ60: 0 | TXA60: 0 | TXB60: 0 | TXC60: 0 | TXD60: 0 | TXE60: 0 | TXF60: =TXF41 -> 0 | TXG60: 0 | TXH60: 0 | TXI60: 0 | TXJ60: 0 | TXK60: 0 | TXL60: 0 | TXM60: 0 | TXN60: 0 | TXO60: 0 | TXP60: 0 | TXQ60: 0 | TXR60: 0 | TXS60: 0 | TXT60: 0 | TXU60: 0 | TXV60: 0 | TXW60: 0 | TXX60: 0 | TXY60: 0 | TXZ60: 0 | TYA60: 0 | TYB60: 0 | TYC60: 0 | TYD60: 0 | TYE60: 0 | TYF60: 0 | TYG60: 0 | TYH60: 0 | TYI60: 0 | TYJ60: 0 | TYK60: 0 | TYL60: 0 | TYM60: 0 | TYN60: 0 | TYO60: 0 | TYP60: 0 | TYQ60: 0 | TYR60: 0 | TYS60: 0 | TYT60: 0 | TYU60: 0 | TYV60: 0 | TYW60: 0 | TYX60: 0 | TYY60: 0 | TYZ60: 0 | TZA60: 0 | TZB60: 0 | TZC60: 0 | TZD60: 0 | TZE60: 0 | TZF60: 0 | TZG60: 0 | TZH60: 0 | TZI60: 0 | TZJ60: 0 | TZK60: 0 | TZL60: 0 | TZM60: 0 | TZN60: 0 | TZO60: 0 | TZP60: 0 | TZQ60: 0 | TZR60: =TZR41 -> 0 | TZS60: 0 | TZT60: 0 | TZU60: 0 | TZV60: 0 | TZW60: 0 | TZX60: 0 | TZY60: 0 | TZZ60: 0 | UAA60: 0 | UAB60: 0 | UAC60: 0 | UAD60: 0 | UAE60: 0 | UAF60: 0 | UAG60: 0 | UAH60: 0 | UAI60: 0 | UAJ60: 0 | UAK60: 0 | UAL60: 0 | UAM60: 0 | UAN60: 0 | UAO60: 0 | UAP60: 0 | UAQ60: 0 | UAR60: 0 | UAS60: 0 | UAT60: 0 | UAU60: 0 | UAV60: 0 | UAW60: 0 | UAX60: 0 | UAY60: 0 | UAZ60: 0 | UBA60: 0 | UBB60: 0 | UBC60: 0 | UBD60: 0 | UBE60: 0 | UBF60: 0 | UBG60: 0 | UBH60: 0 | UBI60: 0 | UBJ60: 0 | UBK60: 0 | UBL60: 0 | UBM60: 0 | UBN60: 0 | UBO60: 0 | UBP60: 0 | UBQ60: 0 | UBR60: 0 | UBS60: 0 | UBT60: 0 | UBU60: 0 | UBV60: 0 | UBW60: 0 | UBX60: 0 | UBY60: 0 | UBZ60: 0 | UCA60: 0 | UCB60: 0 | UCC60: 0 | UCD60: =UCD41 -> 0 | UCE60: 0 | UCF60: 0 | UCG60: 0 | UCH60: 0 | UCI60: 0 | UCJ60: 0 | UCK60: 0 | UCL60: 0 | UCM60: 0 | UCN60: 0 | UCO60: 0 | UCP60: 0 | UCQ60: 0 | UCR60: 0 | UCS60: 0 | UCT60: 0 | UCU60: 0 | UCV60: 0 | UCW60: 0 | UCX60: 0 | UCY60: 0 | UCZ60: 0 | UDA60: 0 | UDB60: 0 | UDC60: 0 | UDD60: 0 | UDE60: 0 | UDF60: 0 | UDG60: 0 | UDH60: 0 | UDI60: 0 | UDJ60: 0 | UDK60: 0 | UDL60: 0 | UDM60: 0 | UDN60: 0 | UDO60: 0 | UDP60: 0 | UDQ60: 0 | UDR60: 0 | UDS60: 0 | UDT60: 0 | UDU60: 0 | UDV60: 0 | UDW60: 0 | UDX60: 0 | UDY60: 0 | UDZ60: 0 | UEA60: 0 | UEB60: 0 | UEC60: 0 | UED60: 0 | UEE60: 0 | UEF60: 0 | UEG60: 0 | UEH60: 0 | UEI60: 0 | UEJ60: 0 | UEK60: 0 | UEL60: 0 | UEM60: 0 | UEN60: 0 | UEO60: 0 | UEP60: =UEP41 -> 0 | UEQ60: 0 | UER60: 0 | UES60: 0 | UET60: 0 | UEU60: 0 | UEV60: 0 | UEW60: 0 | UEX60: 0 | UEY60: 0 | UEZ60: 0 | UFA60: 0 | UFB60: 0 | UFC60: 0 | UFD60: 0 | UFE60: 0 | UFF60: 0 | UFG60: 0 | UFH60: 0 | UFI60: 0 | UFJ60: 0 | UFK60: 0 | UFL60: 0 | UFM60: 0 | UFN60: 0 | UFO60: 0 | UFP60: 0 | UFQ60: 0 | UFR60: 0 | UFS60: 0 | UFT60: 0 | UFU60: 0 | UFV60: 0 | UFW60: 0 | UFX60: 0 | UFY60: 0 | UFZ60: 0 | UGA60: 0 | UGB60: 0 | UGC60: 0 | UGD60: 0 | UGE60: 0 | UGF60: 0 | UGG60: 0 | UGH60: 0 | UGI60: 0 | UGJ60: 0 | UGK60: 0 | UGL60: 0 | UGM60: 0 | UGN60: 0 | UGO60: 0 | UGP60: 0 | UGQ60: 0 | UGR60: 0 | UGS60: 0 | UGT60: 0 | UGU60: 0 | UGV60: 0 | UGW60: 0 | UGX60: 0 | UGY60: 0 | UGZ60: 0 | UHA60: 0 | UHB60: =UHB41 -> 0 | UHC60: 0 | UHD60: 0 | UHE60: 0 | UHF60: 0 | UHG60: 0 | UHH60: 0 | UHI60: 0 | UHJ60: 0 | UHK60: 0 | UHL60: 0 | UHM60: 0 | UHN60: 0 | UHO60: 0 | UHP60: 0 | UHQ60: 0 | UHR60: 0 | UHS60: 0 | UHT60: 0 | UHU60: 0 | UHV60: 0 | UHW60: 0 | UHX60: 0 | UHY60: 0 | UHZ60: 0 | UIA60: 0 | UIB60: 0 | UIC60: 0 | UID60: 0 | UIE60: 0 | UIF60: 0 | UIG60: 0 | UIH60: 0 | UII60: 0 | UIJ60: 0 | UIK60: 0 | UIL60: 0 | UIM60: 0 | UIN60: 0 | UIO60: 0 | UIP60: 0 | UIQ60: 0 | UIR60: 0 | UIS60: 0 | UIT60: 0 | UIU60: 0 | UIV60: 0 | UIW60: 0 | UIX60: 0 | UIY60: 0 | UIZ60: 0 | UJA60: 0 | UJB60: 0 | UJC60: 0 | UJD60: 0 | UJE60: 0 | UJF60: 0 | UJG60: 0 | UJH60: 0 | UJI60: 0 | UJJ60: 0 | UJK60: 0 | UJL60: 0 | UJM60: 0 | UJN60: =UJN41 -> 0 | UJO60: 0 | UJP60: 0 | UJQ60: 0 | UJR60: 0 | UJS60: 0 | UJT60: 0 | UJU60: 0 | UJV60: 0 | UJW60: 0 | UJX60: 0 | UJY60: 0 | UJZ60: 0 | UKA60: 0 | UKB60: 0 | UKC60: 0 | UKD60: 0 | UKE60: 0 | UKF60: 0 | UKG60: 0 | UKH60: 0 | UKI60: 0 | UKJ60: 0 | UKK60: 0 | UKL60: 0 | UKM60: 0 | UKN60: 0 | UKO60: 0 | UKP60: 0 | UKQ60: 0 | UKR60: 0 | UKS60: 0 | UKT60: 0 | UKU60: 0 | UKV60: 0 | UKW60: 0 | UKX60: 0 | UKY60: 0 | UKZ60: 0 | ULA60: 0 | ULB60: 0 | ULC60: 0 | ULD60: 0 | ULE60: 0 | ULF60: 0 | ULG60: 0 | ULH60: 0 | ULI60: 0 | ULJ60: 0 | ULK60: 0 | ULL60: 0 | ULM60: 0 | ULN60: 0 | ULO60: 0 | ULP60: 0 | ULQ60: 0 | ULR60: 0 | ULS60: 0 | ULT60: 0 | ULU60: 0 | ULV60: 0 | ULW60: 0 | ULX60: 0 | ULY60: 0 | ULZ60: =ULZ41 -> 0 | UMA60: 0 | UMB60: 0 | UMC60: 0 | UMD60: 0 | UME60: 0 | UMF60: 0 | UMG60: 0 | UMH60: 0 | UMI60: 0 | UMJ60: 0 | UMK60: 0 | UML60: 0 | UMM60: 0 | UMN60: 0 | UMO60: 0 | UMP60: 0 | UMQ60: 0 | UMR60: 0 | UMS60: 0 | UMT60: 0 | UMU60: 0 | UMV60: 0 | UMW60: 0 | UMX60: 0 | UMY60: 0 | UMZ60: 0 | UNA60: 0 | UNB60: 0 | UNC60: 0 | UND60: 0 | UNE60: 0 | UNF60: 0 | UNG60: 0 | UNH60: 0 | UNI60: 0 | UNJ60: 0 | UNK60: 0 | UNL60: 0 | UNM60: 0 | UNN60: 0 | UNO60: 0 | UNP60: 0 | UNQ60: 0 | UNR60: 0 | UNS60: 0 | UNT60: 0 | UNU60: 0 | UNV60: 0 | UNW60: 0 | UNX60: 0 | UNY60: 0 | UNZ60: 0 | UOA60: 0 | UOB60: 0 | UOC60: 0 | UOD60: 0 | UOE60: 0 | UOF60: 0 | UOG60: 0 | UOH60: 0 | UOI60: 0 | UOJ60: 0 | UOK60: 0 | UOL60: =UOL41 -> 0 | UOM60: 0 | UON60: 0 | UOO60: 0 | UOP60: 0 | UOQ60: 0 | UOR60: 0 | UOS60: 0 | UOT60: 0 | UOU60: 0 | UOV60: 0 | UOW60: 0 | UOX60: 0 | UOY60: 0 | UOZ60: 0 | UPA60: 0 | UPB60: 0 | UPC60: 0 | UPD60: 0 | UPE60: 0 | UPF60: 0 | UPG60: 0 | UPH60: 0 | UPI60: 0 | UPJ60: 0 | UPK60: 0 | UPL60: 0 | UPM60: 0 | UPN60: 0 | UPO60: 0 | UPP60: 0 | UPQ60: 0 | UPR60: 0 | UPS60: 0 | UPT60: 0 | UPU60: 0 | UPV60: 0 | UPW60: 0 | UPX60: 0 | UPY60: 0 | UPZ60: 0 | UQA60: 0 | UQB60: 0 | UQC60: 0 | UQD60: 0 | UQE60: 0 | UQF60: 0 | UQG60: 0 | UQH60: 0 | UQI60: 0 | UQJ60: 0 | UQK60: 0 | UQL60: 0 | UQM60: 0 | UQN60: 0 | UQO60: 0 | UQP60: 0 | UQQ60: 0 | UQR60: 0 | UQS60: 0 | UQT60: 0 | UQU60: 0 | UQV60: 0 | UQW60: 0 | UQX60: =UQX41 -> 0 | UQY60: 0 | UQZ60: 0 | URA60: 0 | URB60: 0 | URC60: 0 | URD60: 0 | URE60: 0 | URF60: 0 | URG60: 0 | URH60: 0 | URI60: 0 | URJ60: 0 | URK60: 0 | URL60: 0 | URM60: 0 | URN60: 0 | URO60: 0 | URP60: 0 | URQ60: 0 | URR60: 0 | URS60: 0 | URT60: 0 | URU60: 0 | URV60: 0 | URW60: 0 | URX60: 0 | URY60: 0 | URZ60: 0 | USA60: 0 | USB60: 0 | USC60: 0 | USD60: 0 | USE60: 0 | USF60: 0 | USG60: 0 | USH60: 0 | USI60: 0 | USJ60: 0 | USK60: 0 | USL60: 0 | USM60: 0 | USN60: 0 | USO60: 0 | USP60: 0 | USQ60: 0 | USR60: 0 | USS60: 0 | UST60: 0 | USU60: 0 | USV60: 0 | USW60: 0 | USX60: 0 | USY60: 0 | USZ60: 0 | UTA60: 0 | UTB60: 0 | UTC60: 0 | UTD60: 0 | UTE60: 0 | UTF60: 0 | UTG60: 0 | UTH60: 0 | UTI60: 0 | UTJ60: =UTJ41 -> 0 | UTK60: 0 | UTL60: 0 | UTM60: 0 | UTN60: 0 | UTO60: 0 | UTP60: 0 | UTQ60: 0 | UTR60: 0 | UTS60: 0 | UTT60: 0 | UTU60: 0 | UTV60: 0 | UTW60: 0 | UTX60: 0 | UTY60: 0 | UTZ60: 0 | UUA60: 0 | UUB60: 0 | UUC60: 0 | UUD60: 0 | UUE60: 0 | UUF60: 0 | UUG60: 0 | UUH60: 0 | UUI60: 0 | UUJ60: 0 | UUK60: 0 | UUL60: 0 | UUM60: 0 | UUN60: 0 | UUO60: 0 | UUP60: 0 | UUQ60: 0 | UUR60: 0 | UUS60: 0 | UUT60: 0 | UUU60: 0 | UUV60: 0 | UUW60: 0 | UUX60: 0 | UUY60: 0 | UUZ60: 0 | UVA60: 0 | UVB60: 0 | UVC60: 0 | UVD60: 0 | UVE60: 0 | UVF60: 0 | UVG60: 0 | UVH60: 0 | UVI60: 0 | UVJ60: 0 | UVK60: 0 | UVL60: 0 | UVM60: 0 | UVN60: 0 | UVO60: 0 | UVP60: 0 | UVQ60: 0 | UVR60: 0 | UVS60: 0 | UVT60: 0 | UVU60: 0 | UVV60: =UVV41 -> 0 | UVW60: 0 | UVX60: 0 | UVY60: 0 | UVZ60: 0 | UWA60: 0 | UWB60: 0 | UWC60: 0 | UWD60: 0 | UWE60: 0 | UWF60: 0 | UWG60: 0 | UWH60: 0 | UWI60: 0 | UWJ60: 0 | UWK60: 0 | UWL60: 0 | UWM60: 0 | UWN60: 0 | UWO60: 0 | UWP60: 0 | UWQ60: 0 | UWR60: 0 | UWS60: 0 | UWT60: 0 | UWU60: 0 | UWV60: 0 | UWW60: 0 | UWX60: 0 | UWY60: 0 | UWZ60: 0 | UXA60: 0 | UXB60: 0 | UXC60: 0 | UXD60: 0 | UXE60: 0 | UXF60: 0 | UXG60: 0 | UXH60: 0 | UXI60: 0 | UXJ60: 0 | UXK60: 0 | UXL60: 0 | UXM60: 0 | UXN60: 0 | UXO60: 0 | UXP60: 0 | UXQ60: 0 | UXR60: 0 | UXS60: 0 | UXT60: 0 | UXU60: 0 | UXV60: 0 | UXW60: 0 | UXX60: 0 | UXY60: 0 | UXZ60: 0 | UYA60: 0 | UYB60: 0 | UYC60: 0 | UYD60: 0 | UYE60: 0 | UYF60: 0 | UYG60: 0 | UYH60: =UYH41 -> 0 | UYI60: 0 | UYJ60: 0 | UYK60: 0 | UYL60: 0 | UYM60: 0 | UYN60: 0 | UYO60: 0 | UYP60: 0 | UYQ60: 0 | UYR60: 0 | UYS60: 0 | UYT60: 0 | UYU60: 0 | UYV60: 0 | UYW60: 0 | UYX60: 0 | UYY60: 0 | UYZ60: 0 | UZA60: 0 | UZB60: 0 | UZC60: 0 | UZD60: 0 | UZE60: 0 | UZF60: 0 | UZG60: 0 | UZH60: 0 | UZI60: 0 | UZJ60: 0 | UZK60: 0 | UZL60: 0 | UZM60: 0 | UZN60: 0 | UZO60: 0 | UZP60: 0 | UZQ60: 0 | UZR60: 0 | UZS60: 0 | UZT60: 0 | UZU60: 0 | UZV60: 0 | UZW60: 0 | UZX60: 0 | UZY60: 0 | UZZ60: 0 | VAA60: 0 | VAB60: 0 | VAC60: 0 | VAD60: 0 | VAE60: 0 | VAF60: 0 | VAG60: 0 | VAH60: 0 | VAI60: 0 | VAJ60: 0 | VAK60: 0 | VAL60: 0 | VAM60: 0 | VAN60: 0 | VAO60: 0 | VAP60: 0 | VAQ60: 0 | VAR60: 0 | VAS60: 0 | VAT60: =VAT41 -> 0 | VAU60: 0 | VAV60: 0 | VAW60: 0 | VAX60: 0 | VAY60: 0 | VAZ60: 0 | VBA60: 0 | VBB60: 0 | VBC60: 0 | VBD60: 0 | VBE60: 0 | VBF60: 0 | VBG60: 0 | VBH60: 0 | VBI60: 0 | VBJ60: 0 | VBK60: 0 | VBL60: 0 | VBM60: 0 | VBN60: 0 | VBO60: 0 | VBP60: 0 | VBQ60: 0 | VBR60: 0 | VBS60: 0 | VBT60: 0 | VBU60: 0 | VBV60: 0 | VBW60: 0 | VBX60: 0 | VBY60: 0 | VBZ60: 0 | VCA60: 0 | VCB60: 0 | VCC60: 0 | VCD60: 0 | VCE60: 0 | VCF60: 0 | VCG60: 0 | VCH60: 0 | VCI60: 0 | VCJ60: 0 | VCK60: 0 | VCL60: 0 | VCM60: 0 | VCN60: 0 | VCO60: 0 | VCP60: 0 | VCQ60: 0 | VCR60: 0 | VCS60: 0 | VCT60: 0 | VCU60: 0 | VCV60: 0 | VCW60: 0 | VCX60: 0 | VCY60: 0 | VCZ60: 0 | VDA60: 0 | VDB60: 0 | VDC60: 0 | VDD60: 0 | VDE60: 0 | VDF60: =VDF41 -> 0 | VDG60: 0 | VDH60: 0 | VDI60: 0 | VDJ60: 0 | VDK60: 0 | VDL60: 0 | VDM60: 0 | VDN60: 0 | VDO60: 0 | VDP60: 0 | VDQ60: 0 | VDR60: 0 | VDS60: 0 | VDT60: 0 | VDU60: 0 | VDV60: 0 | VDW60: 0 | VDX60: 0 | VDY60: 0 | VDZ60: 0 | VEA60: 0 | VEB60: 0 | VEC60: 0 | VED60: 0 | VEE60: 0 | VEF60: 0 | VEG60: 0 | VEH60: 0 | VEI60: 0 | VEJ60: 0 | VEK60: 0 | VEL60: 0 | VEM60: 0 | VEN60: 0 | VEO60: 0 | VEP60: 0 | VEQ60: 0 | VER60: 0 | VES60: 0 | VET60: 0 | VEU60: 0 | VEV60: 0 | VEW60: 0 | VEX60: 0 | VEY60: 0 | VEZ60: 0 | VFA60: 0 | VFB60: 0 | VFC60: 0 | VFD60: 0 | VFE60: 0 | VFF60: 0 | VFG60: 0 | VFH60: 0 | VFI60: 0 | VFJ60: 0 | VFK60: 0 | VFL60: 0 | VFM60: 0 | VFN60: 0 | VFO60: 0 | VFP60: 0 | VFQ60: 0 | VFR60: =VFR41 -> 0 | VFS60: 0 | VFT60: 0 | VFU60: 0 | VFV60: 0 | VFW60: 0 | VFX60: 0 | VFY60: 0 | VFZ60: 0 | VGA60: 0 | VGB60: 0 | VGC60: 0 | VGD60: 0 | VGE60: 0 | VGF60: 0 | VGG60: 0 | VGH60: 0 | VGI60: 0 | VGJ60: 0 | VGK60: 0 | VGL60: 0 | VGM60: 0 | VGN60: 0 | VGO60: 0 | VGP60: 0 | VGQ60: 0 | VGR60: 0 | VGS60: 0 | VGT60: 0 | VGU60: 0 | VGV60: 0 | VGW60: 0 | VGX60: 0 | VGY60: 0 | VGZ60: 0 | VHA60: 0 | VHB60: 0 | VHC60: 0 | VHD60: 0 | VHE60: 0 | VHF60: 0 | VHG60: 0 | VHH60: 0 | VHI60: 0 | VHJ60: 0 | VHK60: 0 | VHL60: 0 | VHM60: 0 | VHN60: 0 | VHO60: 0 | VHP60: 0 | VHQ60: 0 | VHR60: 0 | VHS60: 0 | VHT60: 0 | VHU60: 0 | VHV60: 0 | VHW60: 0 | VHX60: 0 | VHY60: 0 | VHZ60: 0 | VIA60: 0 | VIB60: 0 | VIC60: 0 | VID60: =VID41 -> 0 | VIE60: 0 | VIF60: 0 | VIG60: 0 | VIH60: 0 | VII60: 0 | VIJ60: 0 | VIK60: 0 | VIL60: 0 | VIM60: 0 | VIN60: 0 | VIO60: 0 | VIP60: 0 | VIQ60: 0 | VIR60: 0 | VIS60: 0 | VIT60: 0 | VIU60: 0 | VIV60: 0 | VIW60: 0 | VIX60: 0 | VIY60: 0 | VIZ60: 0 | VJA60: 0 | VJB60: 0 | VJC60: 0 | VJD60: 0 | VJE60: 0 | VJF60: 0 | VJG60: 0 | VJH60: 0 | VJI60: 0 | VJJ60: 0 | VJK60: 0 | VJL60: 0 | VJM60: 0 | VJN60: 0 | VJO60: 0 | VJP60: 0 | VJQ60: 0 | VJR60: 0 | VJS60: 0 | VJT60: 0 | VJU60: 0 | VJV60: 0 | VJW60: 0 | VJX60: 0 | VJY60: 0 | VJZ60: 0 | VKA60: 0 | VKB60: 0 | VKC60: 0 | VKD60: 0 | VKE60: 0 | VKF60: 0 | VKG60: 0 | VKH60: 0 | VKI60: 0 | VKJ60: 0 | VKK60: 0 | VKL60: 0 | VKM60: 0 | VKN60: 0 | VKO60: 0 | VKP60: =VKP41 -> 0 | VKQ60: 0 | VKR60: 0 | VKS60: 0 | VKT60: 0 | VKU60: 0 | VKV60: 0 | VKW60: 0 | VKX60: 0 | VKY60: 0 | VKZ60: 0 | VLA60: 0 | VLB60: 0 | VLC60: 0 | VLD60: 0 | VLE60: 0 | VLF60: 0 | VLG60: 0 | VLH60: 0 | VLI60: 0 | VLJ60: 0 | VLK60: 0 | VLL60: 0 | VLM60: 0 | VLN60: 0 | VLO60: 0 | VLP60: 0 | VLQ60: 0 | VLR60: 0 | VLS60: 0 | VLT60: 0 | VLU60: 0 | VLV60: 0 | VLW60: 0 | VLX60: 0 | VLY60: 0 | VLZ60: 0 | VMA60: 0 | VMB60: 0 | VMC60: 0 | VMD60: 0 | VME60: 0 | VMF60: 0 | VMG60: 0 | VMH60: 0 | VMI60: 0 | VMJ60: 0 | VMK60: 0 | VML60: 0 | VMM60: 0 | VMN60: 0 | VMO60: 0 | VMP60: 0 | VMQ60: 0 | VMR60: 0 | VMS60: 0 | VMT60: 0 | VMU60: 0 | VMV60: 0 | VMW60: 0 | VMX60: 0 | VMY60: 0 | VMZ60: 0 | VNA60: 0 | VNB60: =VNB41 -> 0 | VNC60: 0 | VND60: 0 | VNE60: 0 | VNF60: 0 | VNG60: 0 | VNH60: 0 | VNI60: 0 | VNJ60: 0 | VNK60: 0 | VNL60: 0 | VNM60: 0 | VNN60: 0 | VNO60: 0 | VNP60: 0 | VNQ60: 0 | VNR60: 0 | VNS60: 0 | VNT60: 0 | VNU60: 0 | VNV60: 0 | VNW60: 0 | VNX60: 0 | VNY60: 0 | VNZ60: 0 | VOA60: 0 | VOB60: 0 | VOC60: 0 | VOD60: 0 | VOE60: 0 | VOF60: 0 | VOG60: 0 | VOH60: 0 | VOI60: 0 | VOJ60: 0 | VOK60: 0 | VOL60: 0 | VOM60: 0 | VON60: 0 | VOO60: 0 | VOP60: 0 | VOQ60: 0 | VOR60: 0 | VOS60: 0 | VOT60: 0 | VOU60: 0 | VOV60: 0 | VOW60: 0 | VOX60: 0 | VOY60: 0 | VOZ60: 0 | VPA60: 0 | VPB60: 0 | VPC60: 0 | VPD60: 0 | VPE60: 0 | VPF60: 0 | VPG60: 0 | VPH60: 0 | VPI60: 0 | VPJ60: 0 | VPK60: 0 | VPL60: 0 | VPM60: 0 | VPN60: =VPN41 -> 0 | VPO60: 0 | VPP60: 0 | VPQ60: 0 | VPR60: 0 | VPS60: 0 | VPT60: 0 | VPU60: 0 | VPV60: 0 | VPW60: 0 | VPX60: 0 | VPY60: 0 | VPZ60: 0 | VQA60: 0 | VQB60: 0 | VQC60: 0 | VQD60: 0 | VQE60: 0 | VQF60: 0 | VQG60: 0 | VQH60: 0 | VQI60: 0 | VQJ60: 0 | VQK60: 0 | VQL60: 0 | VQM60: 0 | VQN60: 0 | VQO60: 0 | VQP60: 0 | VQQ60: 0 | VQR60: 0 | VQS60: 0 | VQT60: 0 | VQU60: 0 | VQV60: 0 | VQW60: 0 | VQX60: 0 | VQY60: 0 | VQZ60: 0 | VRA60: 0 | VRB60: 0 | VRC60: 0 | VRD60: 0 | VRE60: 0 | VRF60: 0 | VRG60: 0 | VRH60: 0 | VRI60: 0 | VRJ60: 0 | VRK60: 0 | VRL60: 0 | VRM60: 0 | VRN60: 0 | VRO60: 0 | VRP60: 0 | VRQ60: 0 | VRR60: 0 | VRS60: 0 | VRT60: 0 | VRU60: 0 | VRV60: 0 | VRW60: 0 | VRX60: 0 | VRY60: 0 | VRZ60: =VRZ41 -> 0 | VSA60: 0 | VSB60: 0 | VSC60: 0 | VSD60: 0 | VSE60: 0 | VSF60: 0 | VSG60: 0 | VSH60: 0 | VSI60: 0 | VSJ60: 0 | VSK60: 0 | VSL60: 0 | VSM60: 0 | VSN60: 0 | VSO60: 0 | VSP60: 0 | VSQ60: 0 | VSR60: 0 | VSS60: 0 | VST60: 0 | VSU60: 0 | VSV60: 0 | VSW60: 0 | VSX60: 0 | VSY60: 0 | VSZ60: 0 | VTA60: 0 | VTB60: 0 | VTC60: 0 | VTD60: 0 | VTE60: 0 | VTF60: 0 | VTG60: 0 | VTH60: 0 | VTI60: 0 | VTJ60: 0 | VTK60: 0 | VTL60: 0 | VTM60: 0 | VTN60: 0 | VTO60: 0 | VTP60: 0 | VTQ60: 0 | VTR60: 0 | VTS60: 0 | VTT60: 0 | VTU60: 0 | VTV60: 0 | VTW60: 0 | VTX60: 0 | VTY60: 0 | VTZ60: 0 | VUA60: 0 | VUB60: 0 | VUC60: 0 | VUD60: 0 | VUE60: 0 | VUF60: 0 | VUG60: 0 | VUH60: 0 | VUI60: 0 | VUJ60: 0 | VUK60: 0 | VUL60: =VUL41 -> 0 | VUM60: 0 | VUN60: 0 | VUO60: 0 | VUP60: 0 | VUQ60: 0 | VUR60: 0 | VUS60: 0 | VUT60: 0 | VUU60: 0 | VUV60: 0 | VUW60: 0 | VUX60: 0 | VUY60: 0 | VUZ60: 0 | VVA60: 0 | VVB60: 0 | VVC60: 0 | VVD60: 0 | VVE60: 0 | VVF60: 0 | VVG60: 0 | VVH60: 0 | VVI60: 0 | VVJ60: 0 | VVK60: 0 | VVL60: 0 | VVM60: 0 | VVN60: 0 | VVO60: 0 | VVP60: 0 | VVQ60: 0 | VVR60: 0 | VVS60: 0 | VVT60: 0 | VVU60: 0 | VVV60: 0 | VVW60: 0 | VVX60: 0 | VVY60: 0 | VVZ60: 0 | VWA60: 0 | VWB60: 0 | VWC60: 0 | VWD60: 0 | VWE60: 0 | VWF60: 0 | VWG60: 0 | VWH60: 0 | VWI60: 0 | VWJ60: 0 | VWK60: 0 | VWL60: 0 | VWM60: 0 | VWN60: 0 | VWO60: 0 | VWP60: 0 | VWQ60: 0 | VWR60: 0 | VWS60: 0 | VWT60: 0 | VWU60: 0 | VWV60: 0 | VWW60: 0 | VWX60: =VWX41 -> 0 | VWY60: 0 | VWZ60: 0 | VXA60: 0 | VXB60: 0 | VXC60: 0 | VXD60: 0 | VXE60: 0 | VXF60: 0 | VXG60: 0 | VXH60: 0 | VXI60: 0 | VXJ60: 0 | VXK60: 0 | VXL60: 0 | VXM60: 0 | VXN60: 0 | VXO60: 0 | VXP60: 0 | VXQ60: 0 | VXR60: 0 | VXS60: 0 | VXT60: 0 | VXU60: 0 | VXV60: 0 | VXW60: 0 | VXX60: 0 | VXY60: 0 | VXZ60: 0 | VYA60: 0 | VYB60: 0 | VYC60: 0 | VYD60: 0 | VYE60: 0 | VYF60: 0 | VYG60: 0 | VYH60: 0 | VYI60: 0 | VYJ60: 0 | VYK60: 0 | VYL60: 0 | VYM60: 0 | VYN60: 0 | VYO60: 0 | VYP60: 0 | VYQ60: 0 | VYR60: 0 | VYS60: 0 | VYT60: 0 | VYU60: 0 | VYV60: 0 | VYW60: 0 | VYX60: 0 | VYY60: 0 | VYZ60: 0 | VZA60: 0 | VZB60: 0 | VZC60: 0 | VZD60: 0 | VZE60: 0 | VZF60: 0 | VZG60: 0 | VZH60: 0 | VZI60: 0 | VZJ60: =VZJ41 -> 0 | VZK60: 0 | VZL60: 0 | VZM60: 0 | VZN60: 0 | VZO60: 0 | VZP60: 0 | VZQ60: 0 | VZR60: 0 | VZS60: 0 | VZT60: 0 | VZU60: 0 | VZV60: 0 | VZW60: 0 | VZX60: 0 | VZY60: 0 | VZZ60: 0 | WAA60: 0 | WAB60: 0 | WAC60: 0 | WAD60: 0 | WAE60: 0 | WAF60: 0 | WAG60: 0 | WAH60: 0 | WAI60: 0 | WAJ60: 0 | WAK60: 0 | WAL60: 0 | WAM60: 0 | WAN60: 0 | WAO60: 0 | WAP60: 0 | WAQ60: 0 | WAR60: 0 | WAS60: 0 | WAT60: 0 | WAU60: 0 | WAV60: 0 | WAW60: 0 | WAX60: 0 | WAY60: 0 | WAZ60: 0 | WBA60: 0 | WBB60: 0 | WBC60: 0 | WBD60: 0 | WBE60: 0 | WBF60: 0 | WBG60: 0 | WBH60: 0 | WBI60: 0 | WBJ60: 0 | WBK60: 0 | WBL60: 0 | WBM60: 0 | WBN60: 0 | WBO60: 0 | WBP60: 0 | WBQ60: 0 | WBR60: 0 | WBS60: 0 | WBT60: 0 | WBU60: 0 | WBV60: =WBV41 -> 0 | WBW60: 0 | WBX60: 0 | WBY60: 0 | WBZ60: 0 | WCA60: 0 | WCB60: 0 | WCC60: 0 | WCD60: 0 | WCE60: 0 | WCF60: 0 | WCG60: 0 | WCH60: 0 | WCI60: 0 | WCJ60: 0 | WCK60: 0 | WCL60: 0 | WCM60: 0 | WCN60: 0 | WCO60: 0 | WCP60: 0 | WCQ60: 0 | WCR60: 0 | WCS60: 0 | WCT60: 0 | WCU60: 0 | WCV60: 0 | WCW60: 0 | WCX60: 0 | WCY60: 0 | WCZ60: 0 | WDA60: 0 | WDB60: 0 | WDC60: 0 | WDD60: 0 | WDE60: 0 | WDF60: 0 | WDG60: 0 | WDH60: 0 | WDI60: 0 | WDJ60: 0 | WDK60: 0 | WDL60: 0 | WDM60: 0 | WDN60: 0 | WDO60: 0 | WDP60: 0 | WDQ60: 0 | WDR60: 0 | WDS60: 0 | WDT60: 0 | WDU60: 0 | WDV60: 0 | WDW60: 0 | WDX60: 0 | WDY60: 0 | WDZ60: 0 | WEA60: 0 | WEB60: 0 | WEC60: 0 | WED60: 0 | WEE60: 0 | WEF60: 0 | WEG60: 0 | WEH60: =WEH41 -> 0 | WEI60: 0 | WEJ60: 0 | WEK60: 0 | WEL60: 0 | WEM60: 0 | WEN60: 0 | WEO60: 0 | WEP60: 0 | WEQ60: 0 | WER60: 0 | WES60: 0 | WET60: 0 | WEU60: 0 | WEV60: 0 | WEW60: 0 | WEX60: 0 | WEY60: 0 | WEZ60: 0 | WFA60: 0 | WFB60: 0 | WFC60: 0 | WFD60: 0 | WFE60: 0 | WFF60: 0 | WFG60: 0 | WFH60: 0 | WFI60: 0 | WFJ60: 0 | WFK60: 0 | WFL60: 0 | WFM60: 0 | WFN60: 0 | WFO60: 0 | WFP60: 0 | WFQ60: 0 | WFR60: 0 | WFS60: 0 | WFT60: 0 | WFU60: 0 | WFV60: 0 | WFW60: 0 | WFX60: 0 | WFY60: 0 | WFZ60: 0 | WGA60: 0 | WGB60: 0 | WGC60: 0 | WGD60: 0 | WGE60: 0 | WGF60: 0 | WGG60: 0 | WGH60: 0 | WGI60: 0 | WGJ60: 0 | WGK60: 0 | WGL60: 0 | WGM60: 0 | WGN60: 0 | WGO60: 0 | WGP60: 0 | WGQ60: 0 | WGR60: 0 | WGS60: 0 | WGT60: =WGT41 -> 0 | WGU60: 0 | WGV60: 0 | WGW60: 0 | WGX60: 0 | WGY60: 0 | WGZ60: 0 | WHA60: 0 | WHB60: 0 | WHC60: 0 | WHD60: 0 | WHE60: 0 | WHF60: 0 | WHG60: 0 | WHH60: 0 | WHI60: 0 | WHJ60: 0 | WHK60: 0 | WHL60: 0 | WHM60: 0 | WHN60: 0 | WHO60: 0 | WHP60: 0 | WHQ60: 0 | WHR60: 0 | WHS60: 0 | WHT60: 0 | WHU60: 0 | WHV60: 0 | WHW60: 0 | WHX60: 0 | WHY60: 0 | WHZ60: 0 | WIA60: 0 | WIB60: 0 | WIC60: 0 | WID60: 0 | WIE60: 0 | WIF60: 0 | WIG60: 0 | WIH60: 0 | WII60: 0 | WIJ60: 0 | WIK60: 0 | WIL60: 0 | WIM60: 0 | WIN60: 0 | WIO60: 0 | WIP60: 0 | WIQ60: 0 | WIR60: 0 | WIS60: 0 | WIT60: 0 | WIU60: 0 | WIV60: 0 | WIW60: 0 | WIX60: 0 | WIY60: 0 | WIZ60: 0 | WJA60: 0 | WJB60: 0 | WJC60: 0 | WJD60: 0 | WJE60: 0 | WJF60: =WJF41 -> 0 | WJG60: 0 | WJH60: 0 | WJI60: 0 | WJJ60: 0 | WJK60: 0 | WJL60: 0 | WJM60: 0 | WJN60: 0 | WJO60: 0 | WJP60: 0 | WJQ60: 0 | WJR60: 0 | WJS60: 0 | WJT60: 0 | WJU60: 0 | WJV60: 0 | WJW60: 0 | WJX60: 0 | WJY60: 0 | WJZ60: 0 | WKA60: 0 | WKB60: 0 | WKC60: 0 | WKD60: 0 | WKE60: 0 | WKF60: 0 | WKG60: 0 | WKH60: 0 | WKI60: 0 | WKJ60: 0 | WKK60: 0 | WKL60: 0 | WKM60: 0 | WKN60: 0 | WKO60: 0 | WKP60: 0 | WKQ60: 0 | WKR60: 0 | WKS60: 0 | WKT60: 0 | WKU60: 0 | WKV60: 0 | WKW60: 0 | WKX60: 0 | WKY60: 0 | WKZ60: 0 | WLA60: 0 | WLB60: 0 | WLC60: 0 | WLD60: 0 | WLE60: 0 | WLF60: 0 | WLG60: 0 | WLH60: 0 | WLI60: 0 | WLJ60: 0 | WLK60: 0 | WLL60: 0 | WLM60: 0 | WLN60: 0 | WLO60: 0 | WLP60: 0 | WLQ60: 0 | WLR60: =WLR41 -> 0 | WLS60: 0 | WLT60: 0 | WLU60: 0 | WLV60: 0 | WLW60: 0 | WLX60: 0 | WLY60: 0 | WLZ60: 0 | WMA60: 0 | WMB60: 0 | WMC60: 0 | WMD60: 0 | WME60: 0 | WMF60: 0 | WMG60: 0 | WMH60: 0 | WMI60: 0 | WMJ60: 0 | WMK60: 0 | WML60: 0 | WMM60: 0 | WMN60: 0 | WMO60: 0 | WMP60: 0 | WMQ60: 0 | WMR60: 0 | WMS60: 0 | WMT60: 0 | WMU60: 0 | WMV60: 0 | WMW60: 0 | WMX60: 0 | WMY60: 0 | WMZ60: 0 | WNA60: 0 | WNB60: 0 | WNC60: 0 | WND60: 0 | WNE60: 0 | WNF60: 0 | WNG60: 0 | WNH60: 0 | WNI60: 0 | WNJ60: 0 | WNK60: 0 | WNL60: 0 | WNM60: 0 | WNN60: 0 | WNO60: 0 | WNP60: 0 | WNQ60: 0 | WNR60: 0 | WNS60: 0 | WNT60: 0 | WNU60: 0 | WNV60: 0 | WNW60: 0 | WNX60: 0 | WNY60: 0 | WNZ60: 0 | WOA60: 0 | WOB60: 0 | WOC60: 0 | WOD60: =WOD41 -> 0 | WOE60: 0 | WOF60: 0 | WOG60: 0 | WOH60: 0 | WOI60: 0 | WOJ60: 0 | WOK60: 0 | WOL60: 0 | WOM60: 0 | WON60: 0 | WOO60: 0 | WOP60: 0 | WOQ60: 0 | WOR60: 0 | WOS60: 0 | WOT60: 0 | WOU60: 0 | WOV60: 0 | WOW60: 0 | WOX60: 0 | WOY60: 0 | WOZ60: 0 | WPA60: 0 | WPB60: 0 | WPC60: 0 | WPD60: 0 | WPE60: 0 | WPF60: 0 | WPG60: 0 | WPH60: 0 | WPI60: 0 | WPJ60: 0 | WPK60: 0 | WPL60: 0 | WPM60: 0 | WPN60: 0 | WPO60: 0 | WPP60: 0 | WPQ60: 0 | WPR60: 0 | WPS60: 0 | WPT60: 0 | WPU60: 0 | WPV60: 0 | WPW60: 0 | WPX60: 0 | WPY60: 0 | WPZ60: 0 | WQA60: 0 | WQB60: 0 | WQC60: 0 | WQD60: 0 | WQE60: 0 | WQF60: 0 | WQG60: 0 | WQH60: 0 | WQI60: 0 | WQJ60: 0 | WQK60: 0 | WQL60: 0 | WQM60: 0 | WQN60: 0 | WQO60: 0 | WQP60: =WQP41 -> 0 | WQQ60: 0 | WQR60: 0 | WQS60: 0 | WQT60: 0 | WQU60: 0 | WQV60: 0 | WQW60: 0 | WQX60: 0 | WQY60: 0 | WQZ60: 0 | WRA60: 0 | WRB60: 0 | WRC60: 0 | WRD60: 0 | WRE60: 0 | WRF60: 0 | WRG60: 0 | WRH60: 0 | WRI60: 0 | WRJ60: 0 | WRK60: 0 | WRL60: 0 | WRM60: 0 | WRN60: 0 | WRO60: 0 | WRP60: 0 | WRQ60: 0 | WRR60: 0 | WRS60: 0 | WRT60: 0 | WRU60: 0 | WRV60: 0 | WRW60: 0 | WRX60: 0 | WRY60: 0 | WRZ60: 0 | WSA60: 0 | WSB60: 0 | WSC60: 0 | WSD60: 0 | WSE60: 0 | WSF60: 0 | WSG60: 0 | WSH60: 0 | WSI60: 0 | WSJ60: 0 | WSK60: 0 | WSL60: 0 | WSM60: 0 | WSN60: 0 | WSO60: 0 | WSP60: 0 | WSQ60: 0 | WSR60: 0 | WSS60: 0 | WST60: 0 | WSU60: 0 | WSV60: 0 | WSW60: 0 | WSX60: 0 | WSY60: 0 | WSZ60: 0 | WTA60: 0 | WTB60: =WTB41 -> 0 | WTC60: 0 | WTD60: 0 | WTE60: 0 | WTF60: 0 | WTG60: 0 | WTH60: 0 | WTI60: 0 | WTJ60: 0 | WTK60: 0 | WTL60: 0 | WTM60: 0 | WTN60: 0 | WTO60: 0 | WTP60: 0 | WTQ60: 0 | WTR60: 0 | WTS60: 0 | WTT60: 0 | WTU60: 0 | WTV60: 0 | WTW60: 0 | WTX60: 0 | WTY60: 0 | WTZ60: 0 | WUA60: 0 | WUB60: 0 | WUC60: 0 | WUD60: 0 | WUE60: 0 | WUF60: 0 | WUG60: 0 | WUH60: 0 | WUI60: 0 | WUJ60: 0 | WUK60: 0 | WUL60: 0 | WUM60: 0 | WUN60: 0 | WUO60: 0 | WUP60: 0 | WUQ60: 0 | WUR60: 0 | WUS60: 0 | WUT60: 0 | WUU60: 0 | WUV60: 0 | WUW60: 0 | WUX60: 0 | WUY60: 0 | WUZ60: 0 | WVA60: 0 | WVB60: 0 | WVC60: 0 | WVD60: 0 | WVE60: 0 | WVF60: 0 | WVG60: 0 | WVH60: 0 | WVI60: 0 | WVJ60: 0 | WVK60: 0 | WVL60: 0 | WVM60: 0 | WVN60: =WVN41 -> 0 | WVO60: 0 | WVP60: 0 | WVQ60: 0 | WVR60: 0 | WVS60: 0 | WVT60: 0 | WVU60: 0 | WVV60: 0 | WVW60: 0 | WVX60: 0 | WVY60: 0 | WVZ60: 0 | WWA60: 0 | WWB60: 0 | WWC60: 0 | WWD60: 0 | WWE60: 0 | WWF60: 0 | WWG60: 0 | WWH60: 0 | WWI60: 0 | WWJ60: 0 | WWK60: 0 | WWL60: 0 | WWM60: 0 | WWN60: 0 | WWO60: 0 | WWP60: 0 | WWQ60: 0 | WWR60: 0 | WWS60: 0 | WWT60: 0 | WWU60: 0 | WWV60: 0 | WWW60: 0 | WWX60: 0 | WWY60: 0 | WWZ60: 0 | WXA60: 0 | WXB60: 0 | WXC60: 0 | WXD60: 0 | WXE60: 0 | WXF60: 0 | WXG60: 0 | WXH60: 0 | WXI60: 0 | WXJ60: 0 | WXK60: 0 | WXL60: 0 | WXM60: 0 | WXN60: 0 | WXO60: 0 | WXP60: 0 | WXQ60: 0 | WXR60: 0 | WXS60: 0 | WXT60: 0 | WXU60: 0 | WXV60: 0 | WXW60: 0 | WXX60: 0 | WXY60: 0 | WXZ60: =WXZ41 -> 0 | WYA60: 0 | WYB60: 0 | WYC60: 0 | WYD60: 0 | WYE60: 0 | WYF60: 0 | WYG60: 0 | WYH60: 0 | WYI60: 0 | WYJ60: 0 | WYK60: 0 | WYL60: 0 | WYM60: 0 | WYN60: 0 | WYO60: 0 | WYP60: 0 | WYQ60: 0 | WYR60: 0 | WYS60: 0 | WYT60: 0 | WYU60: 0 | WYV60: 0 | WYW60: 0 | WYX60: 0 | WYY60: 0 | WYZ60: 0 | WZA60: 0 | WZB60: 0 | WZC60: 0 | WZD60: 0 | WZE60: 0 | WZF60: 0 | WZG60: 0 | WZH60: 0 | WZI60: 0 | WZJ60: 0 | WZK60: 0 | WZL60: 0 | WZM60: 0 | WZN60: 0 | WZO60: 0 | WZP60: 0 | WZQ60: 0 | WZR60: 0 | WZS60: 0 | WZT60: 0 | WZU60: 0 | WZV60: 0 | WZW60: 0 | WZX60: 0 | WZY60: 0 | WZZ60: 0 | XAA60: 0 | XAB60: 0 | XAC60: 0 | XAD60: 0 | XAE60: 0 | XAF60: 0 | XAG60: 0 | XAH60: 0 | XAI60: 0 | XAJ60: 0 | XAK60: 0 | XAL60: =XAL41 -> 0 | XAM60: 0 | XAN60: 0 | XAO60: 0 | XAP60: 0 | XAQ60: 0 | XAR60: 0 | XAS60: 0 | XAT60: 0 | XAU60: 0 | XAV60: 0 | XAW60: 0 | XAX60: 0 | XAY60: 0 | XAZ60: 0 | XBA60: 0 | XBB60: 0 | XBC60: 0 | XBD60: 0 | XBE60: 0 | XBF60: 0 | XBG60: 0 | XBH60: 0 | XBI60: 0 | XBJ60: 0 | XBK60: 0 | XBL60: 0 | XBM60: 0 | XBN60: 0 | XBO60: 0 | XBP60: 0 | XBQ60: 0 | XBR60: 0 | XBS60: 0 | XBT60: 0 | XBU60: 0 | XBV60: 0 | XBW60: 0 | XBX60: 0 | XBY60: 0 | XBZ60: 0 | XCA60: 0 | XCB60: 0 | XCC60: 0 | XCD60: 0 | XCE60: 0 | XCF60: 0 | XCG60: 0 | XCH60: 0 | XCI60: 0 | XCJ60: 0 | XCK60: 0 | XCL60: 0 | XCM60: 0 | XCN60: 0 | XCO60: 0 | XCP60: 0 | XCQ60: 0 | XCR60: 0 | XCS60: 0 | XCT60: 0 | XCU60: 0 | XCV60: 0 | XCW60: 0 | XCX60: =XCX41 -> 0 | XCY60: 0 | XCZ60: 0 | XDA60: 0 | XDB60: 0 | XDC60: 0 | XDD60: 0 | XDE60: 0 | XDF60: 0 | XDG60: 0 | XDH60: 0 | XDI60: 0 | XDJ60: 0 | XDK60: 0 | XDL60: 0 | XDM60: 0 | XDN60: 0 | XDO60: 0 | XDP60: 0 | XDQ60: 0 | XDR60: 0 | XDS60: 0 | XDT60: 0 | XDU60: 0 | XDV60: 0 | XDW60: 0 | XDX60: 0 | XDY60: 0 | XDZ60: 0 | XEA60: 0 | XEB60: 0 | XEC60: 0 | XED60: 0 | XEE60: 0 | XEF60: 0 | XEG60: 0 | XEH60: 0 | XEI60: 0 | XEJ60: 0 | XEK60: 0 | XEL60: 0 | XEM60: 0 | XEN60: 0 | XEO60: 0 | XEP60: 0 | XEQ60: 0 | XER60: 0 | XES60: 0 | XET60: 0 | XEU60: 0 | XEV60: 0 | XEW60: 0 | XEX60: 0 | XEY60: 0 | XEZ60: 0 | XFA60: 0 | XFB60: 0 | XFC60: 0 | XFD60: 0
D61: =D42 -> Basis Points Above Curve / Fixed Rate | F61: ='Analysis Summary -WIP'!E26 -> 0.035 | G61: =F61 -> 0.035 | H61: =G61 -> 0.035 | I61: 0.035 | J61: 0.035 | K61: 0.035 | L61: 0.035 | M61: 0.035 | N61: 0.035 | O61: 0.035 | P61: 0.035 | Q61: 0.035 | R61: 0.035 | S61: 0.035 | T61: 0.035 | U61: 0.035 | V61: 0.035 | W61: 0.035 | X61: 0.035 | Y61: 0.035 | Z61: 0.035 | AA61: 0.035 | AB61: 0.035 | AC61: 0.035 | AD61: 0.035 | AE61: 0.035 | AF61: 0.035 | AG61: 0.035 | AH61: 0.035 | AI61: 0.035 | AJ61: 0.035 | AK61: 0.035 | AL61: 0.035 | AM61: 0.035 | AN61: 0.035 | AO61: 0.035 | AP61: 0.035 | AQ61: 0.035 | AR61: 0.035 | AS61: 0.035 | AT61: 0.035 | AU61: 0.035 | AV61: 0.035 | AW61: 0.035 | AX61: 0.035 | AY61: 0.035 | AZ61: 0.035 | BA61: 0.035 | BB61: 0.035 | BC61: 0.035 | BD61: 0.035 | BE61: 0.035 | BF61: 0.035 | BG61: 0.035 | BH61: 0.035 | BI61: 0.035 | BJ61: 0.035 | BK61: 0.035 | BL61: 0.035 | BM61: 0.035 | BN61: 0.035 | BO61: 0.035 | BP61: 0.035 | BQ61: 0.035 | BR61: 0.035 | BS61: 0.035 | BT61: =BS61 -> 0.035 | BU61: 0.035 | BV61: 0.035 | BW61: 0.035 | BX61: 0.035 | BY61: 0.035 | BZ61: 0.035 | CA61: 0.035 | CB61: 0.035 | CC61: 0.035 | CD61: 0.035 | CE61: 0.035 | CF61: 0.035 | CG61: 0.035 | CH61: 0.035 | CI61: 0.035 | CJ61: 0.035 | CK61: 0.035 | CL61: 0.035 | CM61: 0.035 | CN61: 0.035 | CO61: 0.035 | CP61: 0.035 | CQ61: 0.035 | CR61: 0.035 | CS61: 0.035 | CT61: 0.035 | CU61: 0.035 | CV61: 0.035 | CW61: 0.035 | CX61: 0.035 | CY61: 0.035 | CZ61: 0.035 | DA61: 0.035 | DB61: 0.035 | DC61: 0.035 | DD61: 0.035 | DE61: 0.035 | DF61: 0.035 | DG61: 0.035 | DH61: 0.035 | DI61: 0.035 | DJ61: 0.035 | DK61: 0.035 | DL61: 0.035 | DM61: 0.035 | DN61: 0.035 | DO61: 0.035 | DP61: 0.035 | DQ61: 0.035 | DR61: 0.035 | DS61: 0.035 | DT61: 0.035 | DU61: 0.035 | DV61: 0.035 | DW61: 0.035 | DX61: 0.035 | DY61: 0.035 | DZ61: 0.035 | EA61: 0.035 | EB61: 0.035 | EC61: 0.035 | ED61: 0.035 | EE61: 0.035 | EF61: =EE61 -> 0.035 | EG61: 0.035 | EH61: 0.035 | EI61: 0.035 | EJ61: 0.035 | EK61: 0.035 | EL61: 0.035 | EM61: 0.035 | EN61: 0.035 | EO61: 0.035 | EP61: 0.035 | EQ61: 0.035 | ER61: 0.035 | ES61: 0.035 | ET61: 0.035 | EU61: 0.035 | EV61: 0.035 | EW61: 0.035 | EX61: 0.035 | EY61: 0.035 | EZ61: 0.035 | FA61: 0.035 | FB61: 0.035 | FC61: 0.035 | FD61: 0.035 | FE61: 0.035 | FF61: 0.035
